Workbook

Sheet Lists (hidden)
A1: CITY INFORMATION | B1: CITY INFORMATION | D1: INVENTORY INFORMATION | H1: EMISSION FACTORS | K1: NOTATION KEYS | L1: SECTOR TABS | M1: CITY INFORMATION | O1: STATIONARY ENERGY | Q1: DELETE | S1: SUB-CATEGORIES | AA1: TRANSPORT | AJ1: WASTE | AT1: IPPU | BF1: AFOLU | BL1: OTHER SCOPE 3 | BM1: DATA SOURCES | BP1: EMISSIONS | BQ1: WASTEWATER CALCULATOR | CD1: SOLID WASTE CALCULATOR | CP1: FUGITIVE CALCULATOR | CR1: BIOWASTE CALCULATOR | CV1: INCINERATION TOOL | CY1: TARGET | CZ1: TARGET | DA1: TARGET | DB1: REGIONS | DC1: YEAR | DD1: Benchmarking | DE1: Sectors | DF1: Sectors | DH1: BENCHMARKING | DP1: OVERVIEW | DR1: BENCHMARKING | DS1: ACTIVITY UNITS | DV1: ROWS | DX1: STATIONARY ENERGY SUB-CATEGORIEs | EC1: Net | ED1: Emission Factor for SI Conversion | EI1: User Modes | EJ1: Emission Factors
A2: Boundary | B2: Economy | C2: Climate | D2: Inventory | E2: Gases_2 | F2: GWP | G2: Audit | H2: GWP_2 | I2: EF_Type | J2: Ef_Mass_units | K2: NK | L2: DQ | M2: Multiplier | N2: Gases | O2: Stationary | P2: Grid | Q2: Energy_Industries | R2: 1.A.1.a | S2: Fugitive_Coal | T2: 1.B.1 | U2: Fugitive_Oil_Gas | V2: 1.B.2 | W2: Fugitive_Oil | X2: 1.B.2.a | Y2: Fugitive_Gas | Z2: 1.B.2.b | AA2: Method | AB2: Road | AC2: 1.A.3.B | AD2: Rail | AE2: 1.A.3.C | AF2: Water | AG2: 1.A.3.D | AH2: Air | AI2: 1.A.3.A | AJ2: Solid waste disposal | AK2: 4.A | AL2: Biological treatment of solid waste | AM2: 4.B | AN2: Incineration and open burning of waste | AO2: 4.C | AP2: Wastewater treatment and discharge | AQ2: 4.D | AR2: Waste | AS2: Organic_Waste | AT2: IPPU_IP | AU2: 2.A, 2.B, 2.C | AV2: Mineral | AW2: Chemical | AX2: Metal | AY2: IPPU_PU | AZ2: 2.D, 2.E, 2.F, 2.G, 2.H | BA2: IPPU_Non-energy_products_from_fuels_and_solvent use | BB2: IPPU_Electronics_industry | BC2: IPPU_Product_uses_as_substitutes_for_ozone_depleting_substances | BD2: IPPU_Other_product_manufacture_and_use | BE2: IPPU_Other | BF2: AFOLU_Livestock | BG2: 3.A | BH2: Land | BI2: 3.B | BJ2: Aggregate sources | BK2: 3.C and 3.D | BL2: SCOPE3 | BM2: ReportingPeriod | BN2: Frequency | BO2: Scale | BP2: Tick | BQ2: Proxy region | BR2: Proxy country | CA2: Climate | CB2: Garbage disposals | CC2: Industry type | CD2: Region | CE2: Sub-region_Africa | CF2: Sub-region_America | CG2: Sub-region_Asia | CH2: Sub-region_Europe | CI2: Sub-region_Oceania | CJ2: Climate | CK2: Accounting method | CL2: SWTOOL_ Management | CM2: Landfill opening year | CN2: XXX | CO2: SWTOOL_MCF | CP2: FGTOOL_Units | CQ2: FGTOOL_ Development | CR2: BIOTOOL_Waste | CS2: BIOTOOL_Treatment | CT2: INCTOOL_MGT | CU2: INCTOOL_Type_CH4 | CV2: INCTOOL_CH4_ Technology | CW2: INCTOOL_Type_N2O_MSW only | CX2: INCTOOL_ Weightbasis | CY2: Target type | CZ2: ??? Base year | DA2: ??? Target year | DB2: Region_1 | DC2: Base_year | DD2: Bench_type | DE2: Sector | DF2: Yesno | DG2: Sectors_2 | DH2: Inventory_2 | DI2: SCOPE_2 | DJ2: Subsector_stationary | DK2: Subsector_transport | DL2: Subsector_waste | DM2: Subsector_IPPU | DN2: Subsector_AFOLU | DO2: Region_2 | DP2: Overview_inventory_year | DQ2: Inventory_3 | DR2: ??? | DS2: EnergyUnitsAll | DT2: TransportUnitsAll | DU2: AFOLUUnitsAll | DV2: Rows | DW2: Rows_2 | DX2: Stationary_CI | DY2: CAT_I3 | DZ2: CAT_I4 | EA2: CAT_I5 | EB2: CAT_I6 | EC2: Onoff | ED2: Road | EE2: Rail | EF2: Water | EG2: Air | EH2: Off-Road | EJ2: EF_Fuel
EI3: Locked
A4: Please select | B4: Please select | C4: Please select | D4: Please select | E4: Please select | F4: Please select | G4: Please select | H4: Please select | I4: Please select | J4: Please select | K4: NO | L4: Please select | M4: 1000000 | N4: Please select | O4: Please select | P4: Please select | Q4: Please select | S4: Please select | U4: Please select | W4: Please select (select Sub-category first) | X4: 1.B.2.a | Y4: Please select (select Sub-category first) | Z4: 1.B.2.b | AA4: Please select | AB4: Please select | AD4: Please select | AF4: Please select | AH4: Please select | AJ4: Please select | AL4: Please select | AN4: Please select | AP4: Please select | AR4: Please select | AS4: Please select | AT4: Please select | AV4: Please select | AW4: Please select | AX4: Please select | AY4: Please select | BA4: Please select | BB4: Please select | BC4: Please select | BD4: Please select | BE4: Please select | BF4: Please select | BH4: Please select | BJ4: Please select | BL4: Please select | BM4: Please select | BN4: Please select | BO4: Please select | BP4: ✓ | BQ4: Please select | CA4: Please select | CB4: Please select | CC4: Please select | CD4: Please select | CE4: Please select | CF4: Please select | CG4: Please select | CH4: Please select | CI4: Please select | CJ4: Please select | CK4: Please select | CL4: Please select | CM4: Please select | CO4: Please select | CP4: Please select | CQ4: Please select | CR4: Please select | CS4: Please select | CT4: Please select | CU4: Please select | CV4: Please select | CW4: Please select | CX4: Please select | CY4: Please select | CZ4: Please select | DA4: Please select | DB4: Please select | DC4: Please select | DD4: Please select | DE4: Please select | DF4: Please select | DG4: Please select | DH4: Please select | DI4: Please tick | DJ4: Please select | DK4: Please select | DL4: Please select | DO4: Please tick | DP4: Please select | DQ4: Please select reporting level | DR4: Please select | DS4: Please select | DT4: Please select | DU4: Please select | DV4: Add | DW4: Add | DX4: Please select | DY4: Please select | DZ4: Please select | EA4: Please select | EB4: Please select | EC4: Please select | ED4: Please select | EE4: Please select | EF4: Please select | EG4: Please select | EH4: Please select | EI4: Administrative | EJ4: Please select
A5: Sovereign city-state | B5: Industry & Manufacturing | C5: Tropical rainforest | D5: BASIC | E5: CO2 | F5: IPCC Fifth Assessment Report (2013) | G5: Yes - audited | H5: 5AR | I5: CO2e | J5: g | K5: IE | L5: L | M5: 100000 | N5: CO2 | O5: Aviation gasoline | P5: Electricity | Q5: Electricity generation | R5: 1.A.1.a.i | S5: All activities (1.B.1) | T5: 1.B.1 | U5: Oil | V5: 1.B.2.a | W5: Venting (1.B.2.a.i) | X5: 1.B.2.a.i | Y5: Venting (1.B.2.b.i) | Z5: 1.B.2.b.i | AA5: Fuel sales approach | AB5: Aviation gasoline | AD5: Diesel oil | AF5: Aviation gasoline | AH5: Aviation gasoline | AJ5: Landfill sites - Methane commitment | AK5: 4.A.1 | AL5: All organic waste | AN5: Open burning of waste (4.C.1) | AO5: 4.C.1 | AP5: All wastewater (4.D) | AQ5: 4.D | AR5: All waste | AS5: All organic waste | AT5: All industrial processes | AU5: 2.A, 2.B, 2.C | AV5: Cement production (2.A.1) | AW5: Ammonia production (2.B.1) | AX5: Iron and steel production (2.C.1) | AY5: All product use | AZ5: 2.D, 2.E, 2.F, 2.G, 2.H | BA5: Lubricant use (2.D.1) | BB5: Integrated circuit or semiconductor (2.E.1) | BC5: Refrigeration and air conditioning (2.F.1) | BD5: Electrical equipment (2.G.1) | BE5: Pulp and paper industry (2.H.1) | BF5: All livestock (3.A) | BG5: 3.A | BH5: All land | BI5: 3.B | BJ5: Burning | BK5: 3.C.1 | BL5: Goods and services | BM5: Calendar year | BN5: Annual | BO5: Local | BQ5: Africa | BR5: Please select | BS5: Nigeria | BT5: Egypt | BU5: Kenya | BV5: South Africa | CA5: Wet | CB5: Garbage disposals | CC5: Alcohol refining | CD5: Africa | CE5: Eastern Africa | CF5: North America | CG5: Eastern Asia | CH5: Eastern Europe | CI5: Australia and New Zealand | CJ5: Boreal and Temperate (MAT ≤20°C ), Dry (MAP/PET < 1) | CK5: Methane commitment | CL5: Managed | CM5: 1960 | CO5: Managed | CP5: m3 | CQ5: Developed | CR5: Dry waste | CS5: Composting | CT5: Incineration | CU5: Continuous incineration | CV5: Stoker | CW5: Continuous and semi-continuous incinerators | CX5: Wet weight | CY5: Base year | CZ5: 1990 | DA5: 2015 | DB5: Africa | DC5: 2000 | DD5: Total GHG | DE5: Stationary energy | DF5: Yes | DG5: Stationary energy | DH5: BASIC | DI5: Scope 1 | DJ5: Residential | DK5: On-road | DL5: Landfill | DO5: Africa | DP5: 2000 | DQ5: BASIC | DR5: Most recent | DS5: kWh | DT5: passengers | DU5: head | DV5: 1 | DW5: 1 | DX5: Commercial / Institutional (I.A.4.a) | DY5: Manufacturing industries and construction (1.A.2) | DZ5: Electricity generation (1.A.1.a.i) | EA5: Stationary (1.A.4.c.i) | EB5: Stationary (1.A.5.a) | EC5: On | ED5: Aviation gasoline | EE5: Diesel oil | EF5: Aviation gasoline | EG5: Aviation gasoline | EH5: Aviation gasoline | EJ5: Aviation gasoline
A6: Federal district | B6: Services | C6: Tropical monsoon | D6: BASIC+ | E6: CO2, CH4, N2O | F6: IPCC Fourth Assessment Report (2007) | G6: Yes - verified | H6: 4AR | I6: GHG | J6: kg | K6: NE | L6: M | M6: 10000 | N6: CH4 | O6: Biodiesels | P6: Electricity (CHP) | Q6: Combined heat and power generation (CHP) | R6: 1.A.1.a.ii | S6: Coal mining and handling (1.B.1.a) | T6: 1.B.1.a | U6: Natural Gas | V6: 1.B.2.b | W6: Flaring (1.B.2.a.ii) | X6: 1.B.2.a.ii | Y6: Flaring (1.B.2.b.ii) | Z6: 1.B.2.b.ii | AA6: City-induced activity | AB6: Biodiesels | AD6: Electricity | AF6: Biodiesels | AH6: Biodiesels | AJ6: Landfill sites - First order decay | AK6: 4.A.1 | AL6: Composting | AN6: Waste incineration (4.C.2) | AO6: 4.C.2 | AP6: Domestic wastewater (4.D.1) | AQ6: 4.D.1 | AR6: Municipal solid waste | AS6: Food waste | AT6: Mineral | AU6: 2.A | AV6: Lime production (2.A.1) | AW6: Nitric acid production (2.B.2) | AX6: Ferroalloy production (2.C.2) | AY6: Non_energy_products_from_fuels_and_solvent_use | AZ6: 2.D | BA6: Paraffin wax use (2.D.2) | BB6: TFT flat panel display (2.E.2) | BC6: Refrigeration and stationary air conditioning (2.F.1.a) | BD6: SF6 and PFCs from other product uses (2.G.2) | BE6: Food and beverages industry (2.H.2) | BF6: Cattle (3.A.1.a/3.A.2.a) | BG6: 3.A.1.a/3.A.2.a | BH6: Forest land | BI6: 3.B.1 | BJ6: Burning in Forest land | BK6: 3.C.1.a | BL6: Food | BM6: Financial year | BN6: Every 2 years | BO6: Metro | BQ6: Egypt | BR6: Please select | BS6: Egypt | CA6: Dry | CB6: No garbage disposals | CC6: Beer and Malt | CD6: America | CE6: Middle Africa | CF6: Central America | CG6: South-Central Asia | CH6: Northern Europe | CI6: Rest of Oceania | CJ6: Boreal and Temperate (MAT ≤20°C ), Wet (MAP/PET > 1) | CK6: First order decay | CL6: Unmanaged (≥5 m deep) | CM6: 1961 | CO6: Unmanaged (≥5 m deep) | CP6: kWh | CQ6: Developing | CR6: Wet waste | CS6: Anaerobic digestion | CT6: Open burning | CU6: Semi-continuous incineration | CV6: Fluidised bed | CW6: Batch type incinerators | CX6: Dry weight | CY6: Scenario | CZ6: 1991 | DA6: 2016 | DB6: East Asia | DC6: 2001 | DD6: Per capita | DE6: Transportation | DF6: No | DG6: Transportation | DH6: BASIC+ | DI6: Scope 2 | DJ6: Commercial | DK6: Rail | DL6: Biological | DO6: East Asia | DP6: 2001 | DQ6: BASIC+ | DR6: 2000 | DS6: MWh | DT6: vehicles | DU6: m2 | DV6: 2 | DW6: 2 | DX6: Commercial | DY6: Iron and steel (1.A.2) | DZ6: Combined heat and power generation (1.A.1.a.ii) | EA6: Off-road vehicles and other machinery (1.A.2.ii) | EB6: Mobile (1.A.5.b) | EC6: Off | ED6: Biodiesels | EE6: Electricity | EF6: Biodiesels | EG6: Biodiesels | EH6: Biodiesels | EJ6: Biodiesels
A7: Province / District / State | B7: Agriculture & Fishing | C7: Tropical savannah | E7: All GHGs | F7: IPCC Third Assessment Report (2001) | G7: No | H7: 3AR | J7: kt | K7: C | L7: H | M7: 1000 | N7: N2O | O7: Biogasoline | P7: Heating | Q7: Heat plants | R7: 1.A.1.a.iii | S7: Underground mines (1.B.1.a.i) | T7: 1.B.1.a.i | W7: Exploration (1.B.2.a.iii.1) | X7: 1.B.2.a.iii.1 | Y7: Exploration (1.B.2.b.iii.1) | Z7: 1.B.2.b.iii.1 | AA7: Geographic / Territorial | AB7: Biogasoline | AD7: Distance travelled (vehicle) | AF7: Biogasoline | AH7: Biogasoline | AJ7: Other managed waste disposal site(s) | AK7: 4.A.1 | AL7: Anaerobic digestion | AP7: Industrial wastewater (4.D.2) | AQ7: 4.D.2 | AR7: Sludge | AS7: Garden and park waste | AT7: Chemical | AU7: 2.B | AV7: Glass production (2.A.3) | AW7: Adipic acid production (2.B.3) | AX7: Aluminium production (2.C.3) | AY7: Electronics_industry | AZ7: 2.E | BA7: Solvent use (2.D.3) | BB7: Photovoltaics (2.E.3) | BC7: Mobile air conditioning (2.F.1.b) | BD7: N2O from product uses (2.G.3) | BE7: Other (2.H.3) (please specify) | BF7: Buffalo (3.A.1.b/3.A.2.b) | BG7: 3.A.1.b/3.A.2.b | BH7: Forest land remaining Forest land | BI7: 3.B.1.a | BJ7: Burning in Cropland | BK7: 3.C.1.b | BL7: Construction | BM7: Other (please specify) | BN7: Every 3 years | BO7: Regional | BQ7: Asia_MiddleEast_LatinAmerica | BR7: Please select | BS7: China | BT7: India | BU7: Indonesia | BV7: Pakistan | BW7: Bangladesh | BX7: Japan | BY7: Brazil | BZ7: Mexico | CC7: Coffee | CD7: Asia | CE7: Northern Africa | CF7: South America | CG7: South-Eastern Asia | CH7: Southern Europe | CJ7: Tropical (MAT >20°C ), Dry (MAP < 1000 mm) | CL7: Unmanaged (<5 m deep) | CM7: 1962 | CO7: Unmanaged (<5 m deep) | CP7: MWh | CU7: Batch type incineration | CW7: Open burning | CY7: Intensity | CZ7: 1992 | DA7: 2017 | DB7: Europe | DC7: 2002 | DD7: Per unit land area (km2) | DE7: Waste | DG7: Waste | DH7: Territorial | DI7: Scope 3 | DJ7: Manufacturing | DK7: Water | DL7: Incineration | DO7: Europe | DP7: 2002 | DQ7: BASIC+ Other Scope 3 | DR7: 2001 | DS7: GWh | DT7: km | DU7: hectare | DV7: 3 | DW7: 3 | DX7: Institutional | DY7: Non-ferrous metals (1.A.2.b) | DZ7: Heat plants (1.A.1.a.iii) | EA7: Fishing (mobile combustion) (1.A.4.c.iii) | ED7: Biogasoline | EE7: Distance travelled (vehicle) | EF7: Biogasoline | EG7: Biogasoline | EH7: Biogasoline | EJ7: Biogasoline
A8: County | B8: Other (please specify) | C8: Dry desert | F8: IPCC Second Assessment Report (1995) | H8: 2AR | J8: t | M8: 100 | N8: CO2, CH4 | O8: Bitumen | P8: Heating (CHP) | Q8: Other (please specify) | S8: Mining (1.B.1.a.i.1) | T8: 1.B.1.a.i.1 | W8: Production and Upgrading (1.B.2.a.iii.2) | X8: 1.B.2.a.iii.2 | Y8: Production (1.B.2.b.iii.2) | Z8: 1.B.2.b.iii.2 | AA8: Resident activity | AB8: Compressed Natural Gas (CNG) | AD8: Distance travelled (passenger) | AF8: Compressed Natural Gas (CNG) | AH8: Compressed Natural Gas (CNG) | AJ8: Unmanaged waste disposal sites | AK8: 4.A.2 | AL8: Other (please specify) | AR8: Industrial waste | AS8: Sludge | AT8: Metal | AU8: 2.C | AV8: Other Process Uses of Carbonates (2.A.4) | AW8: Caprolactam production (2.B.4) | AX8: Magnesium production (2.C.4) | AY8: Product_uses_as_substitutes_for_ozone_depleting_substances | AZ8: 2.F | BA8: Other (2.D.4) (please specify) | BB8: Heat transfer fluid (2.E.4) | BC8: Foam blowing agents (2.F.2) | BD8: Other (2.G.4) (please specify) | BF8: Sheep (3.A.1.c/3.A.2.c) | BG8: 3.A.1.c/3.A.2.c | BH8: Crop land converted to Forest land | BI8: 3.B.1.b.i | BJ8: Burning in Grassland | BK8: 3.C.1.c | BL8: Upstream emissions from energy use | BN8: Every 4 years | BO8: National | BQ8: India | BR8: Please select | BS8: India | CC8: Dairy products | CD8: Europe | CE8: Southern Africa | CF8: Caribbean | CG8: Western Asia & Middle East | CH8: Western Europe | CJ8: Tropical (MAT >20°C ), Moist and Wet (MAP≥ 1000 mm) | CL8: Uncategorized | CM8: 1963 | CO8: Uncategorized | CP8: GWh | CY8: Absolute | CZ8: 1993 | DA8: 2018 | DB8: Latin America | DC8: 2003 | DD8: Per unit GDP ($m) | DE8: IPPU | DG8: IPPU | DJ8: Energy | DK8: Air | DL8: Wastewater | DO8: Latin America | DP8: 2003 | DQ8: Territorial | DR8: 2002 | DS8: TWh | DT8: miles | DU8: km2 | DV8: 4 | DW8: 4 | DX8: Streetlighting | DY8: Chemicals (1.A.2.c) | DZ8: Petroleum refining (1.A.1.b) | ED8: Compressed Natural Gas (CNG) | EE8: Distance travelled (passenger) | EF8: Compressed Natural Gas (CNG) | EG8: Compressed Natural Gas (CNG) | EH8: Compressed Natural Gas (CNG) | EJ8: Bitumen
A9: A Metropolitan area | C9: Dry steppe (hot) | J9: lt | M9: 10 | N9: CO2, N2O | O9: Butane | P9: Steam | S9: Post-mining seam gas emissions (1.B.1.a.i.2) | T9: 1.B.1.a.i.2 | W9: Transport (1.B.2.a.iii.3) | X9: 1.B.2.a.iii.3 | Y9: Processing (1.B.2.b.iii.3) | Z9: 1.B.2.b.iii.3 | AB9: Diesel oil | AD9: Distance travelled (freight) | AF9: Diesel oil | AH9: Diesel oil | AJ9: Uncategorised waste disposal sites | AK9: 4.A.3 | AR9: Other (please specify) | AS9: Other (please specify) | AT9: Other (please specify) | AV9: Other (2.A.5) (please specify) | AW9: Carbide production (2.B.5) | AX9: Lead production (2.C.5) | AY9: Other_product_manufacture_and_use | AZ9: 2.G | BB9: Other (2.E.5) (please specify) | BC9: Fire protection (2.F.3) | BF9: Goats (3.A.1.d/3.A.2.d) | BG9: 3.A.1.d/3.A.2.d | BH9: Grassland converted to Forest land | BI9: 3.B.1.b.ii | BJ9: Burning in All Other land | BK9: 3.C.1.d | BL9: Other (please specify) | BN9: Every 5 years | BO9: International | BQ9: Japan | BR9: Please select | BS9: Japan | CC9: Fish processing | CD9: Oceania | CE9: Western Africa | CM9: 1964 | CP9: GJ | CZ9: 1994 | DA9: 2019 | DB9: North America | DC9: 2004 | DE9: AFOLU | DG9: AFOLU | DJ9: Agriculture | DK9: Off-road | DO9: North America | DP9: 2004 | DR9: 2003 | DS9: MJ | DT9: vkt | DU9: acre | DV9: 5 | DW9: 5 | DY9: Pulp, paper and print (1.A.2.d) | DZ9: Manufacture of solid fuels (1.A.1.c.i) | ED9: Diesel oil | EE9: Distance travelled (freight) | EF9: Diesel oil | EG9: Diesel oil | EH9: Diesel oil | EJ9: Butane
A10: City / Municipality | C10: Dry steppe (cold) | J10: st | M10: 1 | N10: CH4, N2O | O10: Charcoal | P10: Steam (CHP) | S10: Abandoned underground mines (1.B.1.a.i.3) | T10: 1.B.1.a.i.3 | W10: Refining (1.B.2.a.iii.4) | X10: 1.B.2.a.iii.4 | Y10: Transmission and storage (1.B.2.b.iii.4) | Z10: 1.B.2.b.iii.4 | AB10: E85 | AD10: Travel expenditure | AF10: E85 | AH10: E85 | AW10: Titanium dioxide production (2.B.6) | AX10: Zinc production (2.C.6) | AY10: Other (please specify) | AZ10: 2.H | BC10: Aerosols (2.F.4) | BF10: Camels (3.A.1.e/3.A.2.e) | BG10: 3.A.1.e/3.A.2.e | BH10: Settlements converted to Forest land | BI10: 3.B.1.b.iv | BJ10: Liming | BK10: 3.C.2 | BN10: As required | BO10: Other (please specify) | BQ10: Brazil | BR10: Please select | BS10: Brazil | CC10: Meat and poultry | CM10: 1965 | CP10: TJ | CZ10: 1995 | DA10: 2020 | DB10: Southeast Asia and Oceania | DC10: 2005 | DE10: Other scope 3 | DG10: Other scope 3 | DJ10: Non-specified | DO10: Southeast Asia and Oceania | DP10: 2005 | DR10: 2004 | DS10: GJ | DT10: vmt | DU10: mile2 | DV10: 6 | DW10: 6 | DY10: Food processing, beverages and tobacco (1.A.2.e) | DZ10: Other energy industries (1.A.1.c.ii) | ED10: E85 | EE10: Travel expenditure | EF10: E85 | EG10: E85 | EH10: E85 | EJ10: Charcoal
A11: Local government area within a city / metropolitan area | C11: Temperate, dry summer (Mediterranean) | J11: lb | M11: 0.1 | N11: CO2, CH4, N2O | O11: Coal (Bituminous or Black coal) | P11: Cooling | S11: Flaring of drained CH4 or conversion of CH4 to CO2 (1.B.1.a.i.4) | T11: 1.B.1.a.i.4 | W11: Distribution of oil products (1.B.2.a.iii.5) | X11: 1.B.2.a.iii.5 | Y11: Distribution (1.B.2.b.iii.5) | Z11: 1.B.2.b.iii.5 | AB11: Ethanol | AD11: Travel time | AF11: Ethanol | AH11: Ethanol | AW11: Soda ash production (2.B.7) | AX11: Other (2.C.7) (please specify) | BC11: Solvents (2.F.5) | BF11: Horses (3.A.1.f/3.A.2.f) | BG11: 3.A.1.f/3.A.2.f | BH11: Wetlands converted to Forest land | BI11: 3.B.1.b.iii | BJ11: Urea fertilization | BK11: 3.C.3 | BN11: Once | BQ11: Canada_Europe_Russia_Oceania | BR11: Please select | BS11: Canada | BT11: Russia | BU11: Germany | BV11: United Kingdom | BW11: France | BX11: Italy | BY11: Australia | BZ11: New Zealand | CC11: Organic chemicals | CM11: 1966 | CP11: metric tonne | CZ11: 1996 | DA11: 2021 | DB11: South and West Asia | DC11: 2006 | DJ11: Fugitive (coal) | DO11: South and West Asia | DP11: 2006 | DR11: 2005 | DS11: TJ | DT11: pkm | DU11: l (liter) | DV11: 7 | DW11: 7 | DY11: Non-metallic minerals (1.A.2.f) | ED11: Electricity | EE11: Travel time | EF11: Electricity | EG11: Electricity | EH11: Electricity | EJ11: Coal (Bituminous or Black coal)
A12: Other (please specify) | C12: Temperate, dry winter | J12: Other (please specify) | M12: 0.01 | N12: HFCs | O12: Coke | P12: Cooling (CHP) | S12: Surface mines (1.B.1.a.ii) | T12: 1.B.1.a.ii | W12: Other (please specify) (1.B.2.a.iii.6) | X12: 1.B.2.a.iii.6 | Y12: Other (please specify) (1.B.2.b.iii.6) | Z12: 1.B.2.b.iii.6 | AB12: Hydrogen | AD12: T&D losses from grid-supplied energy consumption | AF12: Hydrogen | AH12: Hydrogen | AW12: Petrochemical and black carbon production (2.B.8) | BC12: Other (2.F.6) (please specify) | BF12: Mules and Asses (3.A.1.g/3.A.2.g) | BG12: 3.A.1.g/3.A.2.g | BH12: Other land converted to Forest land | BI12: 3.B.1.b.v | BJ12: Direct N2O from managed soils | BK12: 3.C.4 | BN12: Other (please specify) | BQ12: Denmark | BR12: Please select | BS12: Russia | BT12: Germany | BU12: United Kingdom | BV12: France | BW12: Italy | CC12: Petroleum refineries | CM12: 1967 | CP12: MBtu | CZ12: 1997 | DA12: 2022 | DC12: 2007 | DJ12: Fugitive (oil and gas) | DP12: 2007 | DR12: 2006 | DS12: Mcal | DT12: tkm | DU12: kl | DV12: 8 | DW12: 8 | DY12: Transport equipment (1.A.2.g) | ED12: Ethanol | EE12: T&D losses from grid-supplied energy consumption | EF12: Ethanol | EG12: Ethanol | EH12: Ethanol | EJ12: Coke
C13: Temperate, hot summer | M13: 0.001 | N13: PFCs | O13: Coking coal | P13: Other (please specify) | S13: Mining (1.B.1.a.ii.1) | T13: 1.B.1.a.ii.1 | AB13: Gas oil | AD13: Other (please specify) | AF13: Gas oil | AH13: Gas oil | AW13: Fluorochemical production (2.B.9) | BF13: Swine (3.A.1.h/3.A.2.h) | BG13: 3.A.1.h/3.A.2.h | BH13: Crop land | BI13: 3.B.2 | BJ13: Indirect N2O from managed soils | BK13: 3.C.5 | BQ13: Germany | BR13: Please select | BS13: Germany | CC13: Plastic and resins | CM13: 1968 | CP13: MMBtu | CZ13: 1998 | DA13: 2023 | DC13: 2008 | DP13: 2008 | DR13: 2007 | DS13: Gcal | DT13: kWh | DU13: Ml | DV13: 9 | DW13: 9 | DY13: Machinery (1.A.2.h) | ED13: Hydrogen | EE13: Other (please specify) | EF13: Hydrogen | EG13: Hydrogen | EH13: Hydrogen | EJ13: Coking coal
C14: Temperate, warm summer | M14: 0.0001 | N14: SF6 | O14: Coal (manufactured solid fuels) | S14: Post-mining seam gas emissions (1.B.1.a.ii.2) | T14: 1.B.1.a.ii.2 | AB14: Jet gasoline | AF14: Jet gasoline | AH14: Jet gasoline | AW14: Other (2.B.10) (please specify) | BF14: Poultry (3.A.2.i) | BG14: 3.A.2.i | BH14: Crop land remaining Crop land | BI14: 3.B.2.a | BJ14: Indirect N2O from manure management | BK14: 3.C.6 | BQ14: Greece | BR14: Please select | BS14: Russia | BT14: Germany | BU14: United Kingdom | BV14: France | BW14: Italy | CC14: Pulp and paper | CM14: 1969 | CZ14: 1999 | DA14: 2024 | DC14: 2009 | DP14: 2009 | DR14: 2008 | DS14: Btu | DT14: MWh | DU14: gal (US) | DV14: 10 | DW14: 10 | DY14: Mining (excl. fuels) and quarrying (1.A.2.i) | ED14: Gas oil | EF14: Gas oil | EG14: Gas oil | EH14: Gas oil | EJ14: Coal (manufactured solid fuels)
C15: Temperate, cold summer | M15: 1e-05 | N15: HFCs, PFCs | O15: Compressed Natural Gas (CNG) | S15: Uncontrolled combustion and burning coal dumps (1.B.1.b) | T15: 1.B.1.b | AB15: Jet kerosene | AF15: Jet kerosene | AH15: Jet kerosene | BF15: Other (please specify) (3.A.1.J/3.A.2.J) | BG15: 3.A.1.J/3.A.2.J | BH15: Forest land converted to Crop land | BI15: 3.B.2.b.i | BJ15: Rice cultivations | BK15: 3.C.7 | BQ15: Italy | BR15: Please select | BS15: Italy | CC15: Soap and detergents | CM15: 1970 | CZ15: 2000 | DA15: 2025 | DC15: 2010 | DP15: 2010 | DR15: 2009 | DS15: kBtu | DT15: GWh | DU15: gal (UK) | DV15: 15 | DW15: 15 | DY15: Wood and wood products (1.A.2.j) | ED15: Jet gasoline | EF15: Jet gasoline | EG15: Jet gasoline | EH15: Jet gasoline | EJ15: Compressed Natural Gas (CNG)
C16: Cold, dry summer | M16: 1e-06 | N16: HFCs, SF6 | O16: Crude oil | S16: Solid fuel transformation (1.B.1.c) | T16: 1.B.1.c | AB16: Kerosene | AF16: Kerosene | AH16: Kerosene | BH16: Grassland converted to Crop land | BI16: 3.B.2.b.ii | BJ16: CH4 from drained organic soils | BK16: 3.C.8 | BQ16: Sweden | BR16: Please select | BS16: Russia | BT16: Germany | BU16: United Kingdom | BV16: France | BW16: Italy | CC16: Starch production | CM16: 1971 | CZ16: 2001 | DA16: 2026 | DC16: 2011 | DP16: 2011 | DR16: 2010 | DS16: MMBtu | DT16: TWh | DU16: tonne | DV16: 20 | DW16: 20 | DY16: Construction (1.A.2.k) | ED16: Jet kerosene | EF16: Jet kerosene | EG16: Jet kerosene | EH16: Jet kerosene | EJ16: Crude oil
C17: Cold, dry winter | M17: 1e-07 | N17: PFCs, SF6 | O17: Diesel oil | S17: Other (please specify) | AB17: Liquefied Natural Gas (LNG) | AF17: Liquefied Natural Gas (LNG) | AH17: Liquefied Natural Gas (LNG) | BH17: Settlements converted to Crop land | BI17: 3.B.2.b.iv | BJ17: CH4 from drainage ditches on organic soils | BK17: 3.C.9 | BQ17: Turkey | BR17: Please select | BS17: Russia | BT17: Germany | BU17: United Kingdom | BV17: France | BW17: Italy | CC17: Sugar refining | CM17: 1972 | CZ17: 2002 | DA17: 2027 | DC17: 2012 | DP17: 2012 | DR17: 2011 | DS17: Therm | DT17: MJ | DU17: kg | DV17: 25 | DW17: 25 | DY17: Textile and leather (1.A.2.l) | ED17: Kerosene | EF17: Kerosene | EG17: Kerosene | EH17: Kerosene | EJ17: Diesel oil
C18: Cold, hot summer | M18: Other (please specify) | N18: HFCs, PFCs, SF6 | O18: E85 | AB18: Liquefied Petroleum Gas (LPG) | AF18: Liquefied Petroleum Gas (LPG) | AH18: Liquefied Petroleum Gas (LPG) | BH18: Wetlands converted to Crop land | BI18: 3.B.2.b.iii | BJ18: CH4 from rewetting of organic soils | BK18: 3.C.10 | BQ18: UnitedStates | BR18: Please select | BS18: United States | CC18: Vegetable oils | CM18: 1973 | CZ18: 2003 | DA18: 2028 | DC18: 2013 | DP18: 2013 | DR18: 2012 | DS18: Mtoe | DT18: GJ | DU18: lt | DV18: 30 | DW18: 30 | DY18: Non-specified industry (1.A.2.m) | ED18: Liquefied Natural Gas (LNG) | EF18: Liquefied Natural Gas (LNG) | EG18: Liquefied Natural Gas (LNG) | EH18: Liquefied Natural Gas (LNG) | EJ18: E85
C19: Cold, warm summer | N19: NF3 | O19: Ethanol | AB19: Methanol | AF19: Methanol | AH19: Methanol | BH19: Other land converted to Crop land | BI19: 3.B.2.b.v | BJ19: CH4 emissions from rewetting of mangroves and tidal marshes | BK19: 3.C.11 | CC19: Vegetables, fruits and juices | CM19: 1974 | CZ19: 2004 | DA19: 2029 | DC19: 2014 | DP19: 2014 | DR19: 2013 | DS19: BOE | DT19: TJ | DU19: st | DV19: 35 | DW19: 35 | ED19: Liquefied Petroleum Gas (LPG) | EF19: Liquefied Petroleum Gas (LPG) | EG19: Liquefied Petroleum Gas (LPG) | EH19: Liquefied Petroleum Gas (LPG) | EJ19: Ethanol
C20: Cold, cold summer | N20: All F-gases | O20: Hydrogen | AB20: Motor gasoline (petrol) | AF20: Motor gasoline (petrol) | AH20: Motor gasoline (petrol) | BH20: Grassland | BI20: 3.B.3 | BJ20: N2O emissions from aquaculture | BK20: 3.C.12 | CC20: Wine and vinegar | CM20: 1975 | CZ20: 2005 | DA20: 2030 | DC20: 2015 | DP20: 2015 | DR20: 2014 | DS20: m³ | DT20: Mcal | DU20: lb | DV20: 40 | DW20: 40 | ED20: Methanol | EF20: Methanol | EG20: Methanol | EH20: Methanol | EJ20: Hydrogen
C21: Cold, very cold winter | N21: All GHGs | O21: Gas oil | AB21: Other biogas | AF21: Other biogas | AH21: Other biogas | BH21: Grassland remaining Grassland | BI21: 3.B.3.a | BJ21: CH4 emissions from rewetted and created wetlands on inland wetland mineral soils | BK21: 3.C.13 | CM21: 1976 | CZ21: 2006 | DA21: 2031 | DC21: 2016 | DP21: 2016 | DR21: =IF(YEAR(DR30)>2015,"2015","") -> 2015 | DS21: thou.m3 | DT21: Gcal | DU21: Other (please specify) | DV21: 45 | DW21: 45 | ED21: Mix of diesel oil and motor gasoline | EF21: Motor gasoline (petrol) | EG21: Motor gasoline (petrol) | EH21: Mix of diesel oil and motor gasoline | EJ21: Gas oil
C22: Polar, tundra | O22: Jet gasoline | AB22: Other Liquid BioFuels | AF22: Other Liquid BioFuels | AH22: Other Liquid BioFuels | BH22: Forest land converted to Grassland | BI22: 3.B.3.b.i | BJ22: Harvested wood products | BK22: 3.D.1 | CM22: 1977 | CZ22: 2007 | DA22: 2032 | DC22: 2017 | DP22: 2017 | DR22: =IF(YEAR(DR30)>2016,"2016","") -> 2016 | DS22: Mcm | DT22: Btu | DV22: 50 | DW22: 50 | ED22: Motor gasoline (petrol) | EF22: Other biogas | EG22: Other biogas | EH22: Motor gasoline (petrol) | EJ22: Jet gasoline
C23: Polar, frost | O23: Jet kerosene | AB23: Residual fuel oil | AF23: Residual fuel oil | AH23: Residual fuel oil | BH23: Crop land converted to Grassland | BI23: 3.B.3.b.ii | BJ23: Other (please specify) | BK23: 3.C.14 or 3.D.2 | CM23: 1978 | CZ23: 2008 | DA23: 2033 | DC23: 2018 | DP23: 2018 | DR23: =IF(YEAR(DR30)>2017,"2017","") -> 2017 | DS23: cf (ft3) | DT23: kBtu | DW23: 60 | ED23: Other biogas | EF23: Other Liquid BioFuels | EG23: Other Liquid BioFuels | EH23: Other biogas | EJ23: Jet kerosene
O24: Kerosene (paraffin) | AB24: Electricity | AF24: Electricity | AH24: Electricity | BH24: Wetlands converted to Grassland | BI24: 3.B.3.b.iii | CM24: 1979 | CZ24: 2009 | DA24: 2034 | DC24: 2019 | DP24: 2019 | DR24: =IF(YEAR(DR30)>2018,"2018","") -> 2018 | DS24: Ccf | DT24: MMBtu | DW24: 70 | ED24: Other Liquid BioFuels | EF24: Residual fuel oil | EG24: Residual fuel oil | EH24: Other Liquid BioFuels | EJ24: Kerosene (paraffin)
O25: Landfill gas | AB25: Hydrogen | AF25: Hydrogen | AH25: Hydrogen | BH25: Settlements converted to Grassland | BI25: 3.B.3.b.iv | CM25: 1980 | CZ25: 2010 | DA25: 2035 | DC25: 2020 | DP25: 2020 | DR25: =IF(YEAR(DR30)>2019,"2019","") ->  | DS25: Mcf | DT25: Therm | DW25: 80 | ED25: Residual fuel oil | EF25: Electricity | EG25: Electricity | EH25: Residual fuel oil | EJ25: Landfill gas
O26: Liquefied Natural Gas (LNG) | AB26: Distance travelled (vehicle) | AF26: Distance travelled (vehicle) | AH26: Distance travelled (vehicle) | BH26: Other land converted to Grassland | BI26: 3.B.3.b.v | CM26: 1981 | CZ26: 2011 | DA26: 2036 | DC26: 2000/2001 | DR26: =IF(YEAR(DR30)>2020,"2020","") ->  | DS26: MMcf | DT26: Mtoe | DW26: 90 | ED26: Electricity | EF26: Hydrogen | EG26: Hydrogen | EH26: Electricity | EJ26: Liquefied Natural Gas (LNG)
O27: Liquefied Petroleum Gas (LPG) | AB27: Distance travelled (passenger) | AF27: Distance travelled (passenger) | AH27: Distance travelled (passenger) | BH27: Wetlands | BI27: 3.B.4 | CM27: 1982 | CZ27: 2012 | DA27: 2037 | DC27: 2001/2002 | DS27: bbl | DT27: BOE | DW27: 100 | ED27: Hydrogen | EF27: Distance travelled (vehicle) | EG27: Distance travelled (vehicle) | EH27: Hydrogen | EJ27: Liquefied Petroleum Gas (LPG)
O28: Lubricants | AB28: Distance travelled (freight) | AF28: Distance travelled (freight) | AH28: Distance travelled (freight) | BH28: Wetlands remaining Wetlands | BI28: 3.B.4.a | CM28: 1983 | CZ28: 2013 | DA28: 2038 | DC28: 2002/2003 | DS28: MMb | DT28: m³ | ED28: Distance travelled (vehicle) | EF28: Distance travelled (passenger) | EG28: Distance travelled (passenger) | EH28: Other (please specify) | EJ28: Lubricants
O29: Methanol | AB29: Travel expenditure | AF29: Travel expenditure | AH29: Travel expenditure | BH29: Forest land converted to Wetlands | BI29: 3.B.4.b | CM29: 1984 | CZ29: 2014 | DA29: 2039 | DC29: 2004/2005 | DS29: l (liter) | DT29: thou.m3 | ED29: Distance travelled (passenger) | EF29: Distance travelled (freight) | EG29: Distance travelled (freight) | EJ29: Methanol
O30: Motor gasoline (petrol) | AB30: Travel time | AF30: Travel time | AH30: Travel time | BH30: Crop land converted to Wetlands | BI30: 3.B.4.b | CM30: 1985 | CZ30: 2015 | DA30: 2040 | DC30: 2005/2006 | DR30: =TODAY() -> 2019-12-10 | DS30: kl | DT30: Mcm | ED30: Distance travelled (freight) | EF30: Travel expenditure | EG30: Travel expenditure | EJ30: Motor gasoline (petrol)
O31: Municipal wastes (all) | AB31: T&D losses from grid-supplied energy consumption | AF31: T&D losses from grid-supplied energy consumption | AH31: T&D losses from grid-supplied energy consumption | BH31: Grassland converted to Wetlands | BI31: 3.B.4.b | CM31: 1986 | CZ31: 2016 | DA31: 2041 | DC31: 2006/2007 | DS31: Ml | DT31: cf (ft3) | ED31: Travel expenditure | EF31: Travel time | EG31: Travel time | EJ31: Municipal wastes (all)
O32: Municipal wastes (non-biomass fraction) | AB32: Other (please specify) | AF32: Other (please specify) | AH32: Other (please specify) | BH32: Settlements converted to Wetlands | BI32: 3.B.4.b | CM32: 1987 | CZ32: 2017 | DA32: 2042 | DC32: 2007/2008 | DS32: gal (US) | DT32: Ccf | ED32: Travel time | EF32: T&D losses from grid-supplied energy consumption | EG32: T&D losses from grid-supplied energy consumption | EJ32: Municipal wastes (non-biomass fraction)
O33: Municipal wastes (biomass fraction) | BH33: Other land converted to Wetlands | BI33: 3.B.4.b | CM33: 1988 | CZ33: 2018 | DA33: 2043 | DC33: 2008/2009 | DS33: gal (UK) | DT33: Mcf | ED33: T&D losses from grid-supplied energy consumption | EF33: Other (please specify) | EG33: Other (please specify) | EJ33: Municipal wastes (biomass fraction)
O34: Naphtha | BH34: Settlements | BI34: 3.B.5 | CM34: 1989 | CZ34: 2019 | DA34: 2044 | DC34: 2009/2010 | DS34: tonne | DT34: MMcf | ED34: Other (please specify) | EJ34: Naphtha
O35: Natural gas | BH35: Settlements remaining Settlements | BI35: 3.B.5.a | CM35: 1990 | CZ35: 2020 | DA35: 2045 | DC35: 2010/2011 | DS35: kg | DT35: bbl | EJ35: Natural gas
O36: Other biogas | BH36: Forest land converted to Settlements | BI36: 3.B.5.b.i | CM36: 1991 | DA36: 2046 | DC36: 2011/2012 | DS36: lt | DT36: MMb | EJ36: Other biogas
O37: Other Liquid BioFuels | BH37: Crop land converted to Settlements | BI37: 3.B.5.b.ii | CM37: 1992 | DA37: 2047 | DC37: 2012/2013 | DS37: st | DT37: l (liter) | EJ37: Other Liquid BioFuels
O38: Petroleum coke | BH38: Grassland converted to Settlements | BI38: 3.B.5.b.iii | CM38: 1993 | DA38: 2048 | DC38: 2013/2014 | DS38: lb | DT38: kl | EJ38: Petroleum coke
O39: Propane | BH39: Wetlands converted to Settlements | BI39: 3.B.5.b.iv | CM39: 1994 | DA39: 2049 | DC39: 2014/2015 | DS39: Other (please specify) | DT39: Ml | EJ39: Propane
O40: Residual fuel oil | BH40: Other land converted to Settlements | BI40: 3.B.5.b.v | CM40: 1995 | DA40: 2050 | DC40: 2015/2016 | DT40: gal (US) | EJ40: Residual fuel oil
O41: Sewage sludge | BH41: Other land | BI41: 3.B.6 | CM41: 1996 | DC41: 2016/2017 | DT41: gal (UK) | EJ41: Sewage sludge
O42: Sludge gas | BH42: Other land remaining Other land | BI42: 3.B.6.a | CM42: 1997 | DC42: 2017/2018 | DT42: tonne | EJ42: Sludge gas
O43: Town gas or city gas | BH43: Forest land converted to Other land | BI43: 3.B.6.b.i | CM43: 1998 | DC43: 2018/2019 | DT43: kg | EJ43: Town gas or city gas
O44: Wood or wood waste | BH44: Crop land converted to Other land | BI44: 3.B.6.b.ii | CM44: 1999 | DC44: 2019/2020 | DT44: lt | EJ44: Wood or wood waste
O45: Other (please specify) | BH45: Grassland converted to Other land | BI45: 3.B.6.b.iii | CM45: 2000 | DC45: 2020/2021 | DT45: st | EJ45: Electricity
BH46: Wetlands converted to Other land | BI46: 3.B.6.b.iv | CM46: 2001 | DT46: lb | EJ46: Electricity (CHP)
BH47: Settlements converted to Other land | BI47: 3.B.6.b.v | CM47: 2002 | DT47: Other (please specify) | EJ47: Heating
CM48: 2003 | EJ48: Heating (CHP)
CM49: 2004 | EJ49: Steam
CM50: 2005 | EJ50: Steam (CHP)
CM51: 2006 | EJ51: Cooling
CM52: 2007 | EJ52: Cooling (CHP)
CM53: 2008 | EJ53: T&D losses from grid-supplied energy consumption
CM54: 2009 | EJ54: Hydrogen
CM55: 2010 | EJ55: Distance travelled (vehicle)
CM56: 2011 | EJ56: Distance travelled (passenger)
CM57: 2012 | EJ57: Distance travelled (freight)
CM58: 2013 | EJ58: Travel expenditure
CM59: 2014 | EJ59: Travel time
CM60: 2015 | EJ60: Other (please specify)
CM61: 2016
CM62: 2017
CM63: 2018
CM64: 2019
CM65: 2020

Sheet CIRIS
D2: Welcome
B30: Version | C30: Standard
B31: # | C31: 2.3 | E31: CITY INVENTORY REPORTING AND INFORMATION SYSTEM
B32: Date | C32: May 2019
B37: © C40 Cities Climate Leadership Group 2017 | O37: This tool has been reviewed by WRI for conformance with the GHG Protocol for Cities

Sheet Home
D2: Introduction | F2: Set-up | H2: Inventory | J2: Calculators | L2: Results | N2: Notes
D3: User guide | F3: GPC | H3: Notation keys | J3: GWP | L3: Conversion factors
B6: USER GUIDE
B8: CIRIS (City Inventory Reporting and Information System) has been designed to support cities in reporting city-wide GHG emissions according to the requirements of the Global Protocol for Community-scale Greenhouse Gas Emission Inventories (GPC). It should be used in conjuction with the GPC, available at http://ghgprotocol.org. Below and throughout the tool you will find basic instructions on how to use CIRIS. For more detailed guidance please refer to the user guide, available at https://resourcecentre.c40.org
B10: 1. | C10: Set-up | E10: To start with, users are asked to define the inventory boundary and provide supporting background information, such as population and land area. This helps to provide context and allows for meaningful benchmarking. This section should also be used to record all data sources and emission factors to be used in the inventory.
B12: 2. | C12: Inventory | E12: The next step is to record activity data. Using the emission factors defined in the Set-up, emissions are calculated according to the GPC reporting framework. Stationary energy, Transportation and Waste must be completed for a BASIC inventory. IPPU and AFOLU are additionally required for a BASIC+ inventory.
B14: 3. | C14: Calculators | E14: CIRIS includes five calculators to help cities estimate emissions for: fugitive losses from gas distribution; solid waste landfill; biological treatment of waste; waste incineration and wastewater. The calculations are based on IPPC Guidance and use IPCC default factors. These should only be used if no other data is available or otherwise to compare results estimated using another methodology.
B16: 4. | C16: Results | E16: This section presents your city's GHG emissions in a number of different ways. It provides a summary of total city-wide emissions broken down by (sub-) sector based on the activity data and emission factors submitted. It enables you to compare your city's current GHG emissions against any historical inventories, and also gives you the option to record emission credits to estimate your city's net emissions.
B18: 5. | C18: Notes | E18: These sheets are kept blank and can be used to record additional information.
B20: Quick tip: Columns and row headings are hidden in all sheets by default. To view them, go to "View" in the Excel menu bar and tick "Headings".
B22: CONTACT
B24: For any questions regarding CIRIS, please contact:
B26: C40 cities: measurement@c40.org
B27: ICLEI cities: your regional ICLEI office
B28: CDP Cities: cities@cdp.net

Sheet GPC
D2: Introduction | F2: Set-up | H2: Inventory | J2: Calculators | L2: Results | N2: Notes
D3: User guide | F3: GPC | H3: Notation keys | J3: GWP | L3: Conversion factors
B6: THE GLOBAL PROTOCOL FOR COMMUNITY-SCALE GREENHOUSE GAS EMISSION INVENTORIES (GPC)
B8: A city’s ability to take effective action on mitigating climate change, and monitor progress, depends on having access to good quality data on greenhouse gas (GHG) emissions. Planning for climate action begins with measuring GHG emissions. The GPC provides a clear framework for calculating and reporting city-wide GHG emissions, consistent with IPCC Guidelines. It requires cities to report GHG emissions by scope and sector, and total these using two distinct but complementary approaches. One captures emissions from both production and consumption activities taking place within the city boundary, including some emissions released outside the city boundary. The other categorizes all emissions into “scopes,” depending on where they physically occur. To assist cities with reporting, a GPC reporting tool has been developed (see Resources on right). The GPC the result of a collaboration between C40, the World Resources Institute and ICLEI to develop a single global standard, which started in 2011. 35 cites piloted earlier versions of the GPC, including 9 C40 cities. The GPC was officially launched in December 2014.
B10: A city-wide GHG inventory enables cities to measure their overall emissions, as well as understand the contribution of different activities within the city. In 2014, C40, WRI and ICLEI launched the Global Protocol for Community-scale Greenhouse Gas Emission Inventories (GPC) to support cities to develop robust, comprehensive and consistent inventories. It seeks to:
B12: > Help cities develop a comprehensive and robust GHG inventory in order to support climate action planning
B13: > Help cities establish a base year emissions inventory, set reduction targets, and track their performance
B14: > Ensure consistent and transparent measurement and reporting of GHG emissions between cities, following internationally recognized GHG accounting and reporting principles
B15: > Enable city inventories to be aggregated at subnational and national levels
B16: > Demonstrate the important role that cities play in tackling climate change, and facilitate insight through benchmarking—and aggregation—of comparable data.
B18: GPC REPORTING FRAMEWORK (GPC CHAPTER 4.1, FIGURE 4.1, PAGE 37)
B20: The GPC does not specify the calculation methodologies to be used to estimate your city's emissions. Rather, it provides a clear framework for calculating and reporting city-wide GHG emissions, consistent with IPCC Guidelines, that emphasises transparency and organisation of emissions data in a way that facilitates consistency and comparability across cities globally.
B22: The GPC requires cities to report GHG emissions by scope and sector. Activities taking place within a city can generate GHG emissions that occur inside the city boundary as well as outside the city boundary. To distinguish between these, the GPC groups emissions into three categories based on where they occur in order to avoid double counting: scope 1, scope 2 or scope 3. .
B24: Scope | D24: Definition | I24: Sectors and sub-sectors | M24: Scope 1 | N24: Scope 2 | O24: Scope 3
I25: Stationary energy
B26: Scope 1 | D26: GHG emissions from sources located within the city boundary. | I26: Residential buildings | M26: a | N26: a | O26: a
I27: Commercial buildings | M27: a | N27: a | O27: a
I28: Institutional buildings | M28: a | N28: a | O28: a
B29: Scope 2 | D29: GHG emissions occurring as a consequence of the use of grid-supplied electricity, heat, steam and/or cooling within the city boundary. | I29: Manufacturing industries and construction | M29: a | N29: a | O29: a
I30: Energy industries | M30: a | N30: a | O30: a
I31: Energy generation supplied to the grid | M31: a
B32: Scope 3 | D32: All other GHG emissions that occur outside the city boundary as a result of activities taking places within the city boundary. | I32: Agriculture, forestry, and fishing activities | M32: a | N32: a | O32: a
I33: Non-specified sources | M33: a | N33: a | O33: a
I34: Fugitive emissions from coal | M34: a
I35: Fugitive emissions from oil and natural gas systems | M35: a
B36: The GPC distinguishes between emissions that physically occur within the city (scope 1), from those that occur outside the city but are driven by activities taking place within the city’s boundaries (scope 3), from those that occur from the use of electricity, steam, and/or heating/cooling supplied by grids which may or may not cross city boundaries (scope 2). | I36: Transportaton
I37: On-road | M37: a | N37: a | O37: a
I38: Railways | M38: a | N38: a | O38: a
I39: Waterborne navigation | M39: a | N39: a | O39: a
I40: Aviation | M40: a | N40: a | O40: a
I41: Off-road | M41: a | N41: a
B42: The sectors and sub-sectors that the GPC requires a city to report are shown in the table on the right, and definitions are provided in the section below. | I42: Waste
I43: Solid waste generated in the city | M43: a | O43: a
I44: Solid waste generated outside the city | M44: a
B45: The GPC uses two distinct but complementary approaches to adding up and reporting emissions: | I45: Biological waste generated in the city | M45: a | O45: a
I46: Biological waste generated outside the city | M46: a
I47: Incinerated and burned waste generated in the city | M47: a | O47: a
B48: > The city-induced framework measures GHG emissions attributable to activities taking place within the geographic boundary of the city. This covers selected scope 1, 2 and 3 emission sources, and provides two reporting levels. The BASIC level covers emission sources that occur in almost all cities (Stationary Energy, in-boundary transportation, and in-boundary generated waste) and the calculation methodologies and data are more readily available. The BASIC+ level has a more comprehensive coverage of emissions sources (BASIC sources plus IPPU, AFOLU, transboundary transportation, and energy transmission and distribution losses) and reflects more challenging data collection and calculation procedures. | I48: Incinerated and burned waste generated outside city | M48: a
I49: Wastewater generated in the city | M49: a | O49: a
I50: Wastewater generated outside the city | M50: a
I51: Industrial processes and product use (IPPU)
I52: Industrial processes | M52: a
I53: Product use | M53: a
I54: Agriculture, forestry, and fishing activities (AFOLU)
I55: Livestock | M55: a
I56: Land | M56: a
I57: Other agriculture | M57: a
I58: Other scope 3
B59: > The scopes framework allows cities to comprehensively report all GHG emissions attributable to activities taking place within the geographic boundary of the city by categorizing the emission sources into in-boundary sources (scope 1, or “territorial”), grid-supplied energy sources (scope 2), and out-of-boundary sources (scope 3). Scope 1 allows for a territorial approach to aggregating multiple cities’ inventories, consistent with national-level GHG reporting.
I60: a | J60: ="= sources required for reporting" -> = sources required for reporting
I61: a | J61: ="= sources required for BASIC reporting" -> = sources required for BASIC reporting
I62: a | J62: =" +" -> + | K62: a | L62: ="= sources required for BASIC+ reporting" -> = sources required for BASIC+ reporting
I63: a | J63: ="= additional scope 1 sources required for territorial reporting" -> = additional scope 1 sources required for territorial reporting
J64: ="= other scope 3 sources" -> = other scope 3 sources
J65: ="= non-applicable emission sources" -> = non-applicable emission sources
B67: SECTOR DEFINITIONS
B69: The table below provides definitions of all the sectors and sub-sectors covered by the GPC:
B71: Sectors and sub-sectors | F71: Definition
B72: Stationary energy | F72: GHG emissions come from fuel combustion, as well as fugitive emissions released in the process of generating, delivering, and consuming useful forms of energy (such as electricity or heat).
B73: Residential buildings | F73: All emissions from energy use in households
B74: Commercial buildings | F74: All emissions from energy use in commercial buildings and facilities
B75: Institutional buildings | F75: All emissions from energy use in public buildings such as schools, hospitals, government offices, highway street lighting, and other public facilities
B76: Manufacturing industries and construction | F76: All emissions from energy use in industrial facilities and construction activities, except those included in energy industries sub-sector. This also includes combustion for the generation of electricity and heat for own use in these industries
B77: Energy industries | F77: All emissions from energy production and use in energy industries
B78: Energy generation supplied to the grid | F78: All emissions from the generation of energy for grid-distributed electricity, steam, heat and cooling
B79: Agriculture, forestry, and fishing activities | F79: All emissions from energy use in agriculture, forestry, and fishing activities
B80: Non-specified sources | F80: All remaining emissions from facilities producing or consuming energy not specified elsewhere
B81: Fugitive emissions from mining, processing, storage, and transportation of coal | F81: Includes all intentional and unintentional emissions from the extraction, processing, storage and transport of fuel in the city
B82: Fugitive emissions from oil and natural gas systems | F82: Fugitive emissions from all oil and natural gas activities occurring in the city. The primary sources of these emissions may include fugitive equipment leaks, evaporation losses, venting, flaring and accidental releases.
B83: Transportation | F83: City transportation systems are designed to move people and goods within and beyond city borders. Transport vehicles and mobile equipment or machinery produce GHG emissions directly by combusting fuel or indirectly by consuming grid-delivered electricity.
B84: On-road | F84: On-road vehicles are designed for transporting people, property or material on common or public roads, thoroughfares, or highways. This category includes vehicles such as buses, cars, taxis, trucks, motorcycles, on-road waste collection and transportation vehicles (e.g. compactor trucks), etc.
B85: Railways | F85: Railways typically use energy through combustion of diesel fuels or electricity. Railways can be divided into four sub-categories: urban railway subway systems inc. trams, regional commuter rail national rail and international rail. Each can be further classified as passenger or freight.
B86: Waterborne navigation | F86: Water transportation includes ships, ferries, and other boats operating within the city boundary, as well as marine-vessels whose journeys originate or end at ports within the city’s boundary but travel to destinations outside of the city.
B87: Aviation | F87: Civil aviation, or air travel, includes emissions from airborne trips occurring within the geographic boundary (e.g., helicopters operating within the city) and emissions from flights departing airports that serve the city
B88: Off-road | F88: Off-road vehicles are those designed or adapted for travel on unpaved terrain. This category typically includes airport ground support equipment, all-terrain vehicles, landscaping and construction equipment, bulldozers, forklifts, snowmobiles etc.
B89: Waste | F89: Waste disposal and treatment produces GHG emissions through aerobic or anaerobic decomposition, or incineration.
B90: Solid waste generated in the city | F90: Solid waste may be disposed of at managed sites (e.g., sanitary landfill and managed dumps), and at unmanaged disposal sites (e.g., open dumps, including above-ground piles, holes in the ground, and dumping into natural features, such as ravines)
B91: Biological waste generated in the city | F91: The biological treatment of waste refers to composting and anaerobic digestion of organic waste, such as food waste, garden and park waste, sludge, and other organic waste sources.
B92: Incinerated and burned waste generated in the city | F92: Incineration is a controlled, industrial process, often with energy recovery where inputs and emissions can be measured and data is often available. By contrast, open burning is an uncontrolled, often illicit process with different emissions and can typically only be estimated based on collection rates.
B93: Wastewater generated in the city | F93: Wastewater can be treated aerobically (in presence of oxygen) or anaerobically (in absence of oxygen). Wastewater can generally be categorized as domestic wastewater or industrial wastewater, and cities must report emissions from both.
B94: Industrial processes and product use | F94: GHG emissions resulting from non-energy related industrial activities and product uses. All GHG emissions occurring from industrial processes, product use, and non-energy uses of fossil fuel, shall be reported under IPPU.
B95: Industrial processes | F95: GHG emissions are produced from a wide variety of industrial activities. The main emission sources are releases from industrial processes that chemically or physically transform materials. Note, if fuels are combusted for energy use, the emission shall be reported under Stationary Energy.
B96: Product use | F96: Products such as refrigerants, foams or aerosol cans can release potent GHG emissions
B97: Agriculture, forestry, and fishing activities | F97: GHG emissions are produced through a variety of pathways, including land-use change that alter the composition of the soil, methane produced in the digestive processes of livestock, and nutrient management for agricultural purposes.
B98: Livestock | F98: Livestock production emits CH4 through enteric fermentation, and both CH4 and N2O through management of their manure.
B99: Land | F99: Emissions and removals of CO2 are based on changes in ecosystem C stocks and are estimated for each land-use category. C stocks consist of above-ground and below-ground biomass, dead organic matter, and soil organic matter.
B100: Other agriculture | F100: Other sources of GHG emissions from land include rice cultivation, fertilizer use, liming, and urea application.
B101: Other scope 3 | F101: Cities may optionally report other scope 3 emissions, such as GHG emissions embodied in fuels, water, food and construction materials.

Sheet Notation keys
D2: Introduction | F2: Set-up | H2: Inventory | J2: Calculators | L2: Results | N2: Notes
D3: User guide | F3: GPC | H3: Notation keys | J3: GWP | L3: Conversion factors
B6: NOTATION KEYS (GPC CHAPTER 2.2, PAGE 26)
B8: To accommodate limitations in data availability and differences in emission sources between cities, the GPC requires the use of notation keys, as recommended in IPCC Guidelines. Where notation keys are used, cities need to provide an accompanying explanation to justify exclusions or partial accounting of GHG emission source categories.
B10: When collecting emissions data, the first step is identifying whether or not an activity occurs in a city. If it does not, the notation key "NO" is used for the relevant GHG emission source category. For example, a landlocked city with no transport by water would use the notation key "NO" to indicate that GHG emissions from water transport do not occur. If the activity does occur in the city – and data are available – then the emissions should be reported. However, if the data are also included in another emissions source category or cannot be disaggregated, the notation key "IE" shall be used with appropriate explanation in order to avoid double counting, and the category in which they are included should be identified. For example, emissions from waste incineration would use "IE" if these emissions were also reported under generation of energy for use in buildings. If the data are available but cannot be reported for reasons of data confidentiality and cannot be included in another emissions source category, the notation key “C” would be used. For instance, certain military operations or industrial facilities may not permit public data disclosure where this impacts security. Finally, if the data are not available and, therefore, the emissions are not estimated, the notation key "NE" would be used. The latter should be avoided and can not be used for BASIC sources.
B12: When to use notation keys? | H12: Definitions
H14: Notation key | K14: Description and examples
H17: Not occurring | J17: NO | K17: An activity or process does not occur or exist within the city.
J19: Example | K19: I.7.1 does not occur. No coal-related activities within the city boundary.
K21: II.2.2 does not occur. Number of electric vehicles is negligible compared to total vehicle fleet (0.01% of vehicle sales in 2014 were electric).
H23: Included elsewhere | J23: IE | K23: GHG emissions for this activity are estimated and presented in another category of the inventory. That category shall be noted in the explanation.
J25: Example | K25: II.5.1 is reported in II.1.1. Fuel sales approach does not allow for disaggregation.
K27: III.1.2 is reported in I Stationary. Landfill gas is captured and burned as an energy source.
H29: Not estimated | J29: NE | K29: Emissions occur but have not been estimated or reported; justification for exclusion shall be noted in the explanation
J31: Example | K31: III.4.3 has not been estimated. Activity not required for BASIC inventory.
K33: V.1 has not been estimated. No livestock data available.
H35: Confidential | J35: C | K35: GHG emissions which could lead to the disclosure of confidential information and can therefore not be reported.
J37: Example | K37: Activity data for IV.1 is confidential. Data cannot be aggregated to provide confidentiality.
K39: II.5.1 is confidential. Military base within city boundary.

Sheet GWP
D2: Introduction | F2: Set-up | H2: Inventory | J2: Calculators | L2: Results | N2: Notes
D3: User guide | F3: GPC | H3: Notation keys | J3: GWP | L3: Conversion factors
B6: GLOBAL WARMING POTENTIAL (GPC CHAPTER 5.5, TABLE 5.2, PAGE 51)
B8: CO2 equivalents (CO2e) is a universal unit of measurement that accounts for the global warming potential (GWP) when measuring and comparing GHG emissions from different gases. Individual GHGs should be converted into CO2e by multiplying by the 100-year GWP coefficients in the latest version of the IPCC Guidelines or the version used by the country’s national inventory body.
B10: Greenhouse gas | F10: IPCC Assessment Report
A11: 1 | B11: Formula | D11: Name | F11: 5AR | G11: 4AR | H11: 3AR | I11: 2AR
A12: 2
A13: 3 | B13: CO2 | D13: Carbon Dioxide | F13: 1 | G13: 1 | H13: 1 | I13: 1
A14: 4 | B14: CH4 | D14: Methane | F14: 28 | G14: 25 | H14: 23 | I14: 21
A15: 5 | B15: N2O | D15: Nitrous Oxide | F15: 265 | G15: 298 | H15: 296 | I15: 310
A16: 6 | B16: SF6 | D16: Sulphur hexafluoride | F16: 23500 | G16: 22800 | H16: 22200 | I16: 23900
A17: 7 | B17: CF4 | D17: Carbon tetrafluoride | F17: 6630 | G17: 7390 | H17: 5700 | I17: 6500
A18: 8 | B18: C2F6 | D18: Hexafluoroethane | F18: 11100 | G18: 12200 | H18: 11900 | I18: 9200
A19: 9 | B19: CHF3 | D19: HFC-23 | F19: 12400 | G19: 14800 | H19: 12000 | I19: 11700
A20: 10 | B20: CH2F2 | D20: HFC-32 | F20: 677 | G20: 675 | H20: 550 | I20: 650
A21: 11 | B21: CH3F | D21: HFC-41 | F21: 116 | G21: 92 | H21: 97 | I21: 150
A22: 12 | B22: C2HF5 | D22: HFC-125 | F22: 3170 | G22: 3500 | H22: 3400 | I22: 2800
A23: 13 | B23: C2H2F4 | D23: HFC-134 | F23: 1120 | G23: 1100 | H23: 1100 | I23: 1000
A24: 14 | B24: CH2FCF3 | D24: HFC-134a | F24: 1300 | G24: 1430 | H24: 1300 | I24: 1300
A25: 15 | B25: C2H3F3 | D25: HFC-143 | F25: 328 | G25: 353 | H25: 330 | I25: 300
A26: 16 | B26: C2H4F3 | D26: HFC-143a | F26: 4800 | G26: 4470 | H26: 4300 | I26: 3800
A27: 17 | B27: C2H4F2 | D27: HFC-152a | F27: 138 | G27: 124 | H27: 120 | I27: 140
A28: 18 | B28: C3HF7 | D28: HFC-227ea | F28: 3350 | G28: 3220 | H28: 3500 | I28: 2900
A29: 19 | B29: C3H2F6 | D29: HFC-236fa | F29: 8060 | G29: 9810 | H29: 9400 | I29: 6300
A30: 20 | B30: C3H3F5 | D30: HFC-245ca | F30: 716 | G30: 1030 | H30: 950 | I30: 560
A31: 21 | B31: NF3 | D31: Nitrogen trifluoride | F31: 16100 | G31: 17200
B33: Full references to the IPCC Assessment Reports are provided in the GPC

Sheet Conversion factors
D2: Introduction | F2: Set-up | H2: Inventory | J2: Calculators | L2: Results | N2: Notes
D3: User guide | F3: GPC | H3: Notation keys | J3: GWP | L3: Conversion factors
B6: CONVERSION FACTORS
B8: Conversion factors are embedded in the activity data multiplier function in the Inventory sheets. The tables below show the conversion factors for commonly used units for energy, mass, volume and distance.
B10: Conversion factors for SI prefixes
B12: From | D12: To | E12: T | F12: G | G12: M | H12: k
B14: Multiply by:
B15: Tera (T) - 1000000000000, 1012 | E15: 1 | F15: 1000 | G15: 1000000 | H15: 1000000000
B16: Giga (G) - 1000000000, 109 | E16: 0.001 | F16: 1 | G16: 1000 | H16: 1000000
B17: Mega (M) - 1000000, 106 | E17: 1e-06 | F17: 0.001 | G17: 1 | H17: 1000
B18: Kilo (k) - 1000, 103 | E18: 1e-09 | F18: 1e-06 | G18: 0.001 | H18: 1
B20: General conversion factors for mass
B22: From | D22: To | E22: g | F22: kg | G22: t | H22: kt | I22: lt | J22: st | K22: lb
B24: Multiply by:
B25: gramme (g) | D25: g | E25: =F25*1000 -> 1 | F25: =F26/1000 -> 0.001 | G25: =G26/1000 -> 1e-06 | H25: =1/E28 -> 1e-09 | I25: =I26/1000 -> 9.84e-07 | J25: =J26/1000 -> 1.102e-06 | K25: =K26/1000 -> 0.0022046
B26: Kilogramme (kg) | D26: kg | E26: 1000 | F26: 1 | G26: 0.001 | H26: =1/F28 -> 1e-06 | I26: 0.000984 | J26: 0.001102 | K26: 2.2046
B27: Metric tonne (t) | D27: t | E27: 1000000 | F27: 1000 | G27: 1 | H27: =1/G28 -> 0.001 | I27: 0.984 | J27: 1.1023 | K27: 2204.6
B28: Kiloton (kt) | D28: kt | E28: 1000000000 | F28: 1000000 | G28: 1000 | H28: 1 | I28: 984 | J28: 1102.3 | K28: 2204600
B29: Long ton (lt) | D29: lt | E29: 1016000 | F29: 1016 | G29: 1.016 | H29: =1/I28 -> 0.001016260163 | I29: 1 | J29: 1.12 | K29: 2240
B30: Short ton (st) | D30: st | E30: 907200 | F30: 907.2 | G30: 0.9072 | H30: =1/J28 -> 0.0009071940488 | I30: 0.893 | J30: 1 | K30: 2000
B31: Pound (lb) | D31: lb | E31: 453.5970244 | F31: =1/K26 -> 0.4535970244 | G31: =1/K27 -> 0.0004535970244 | H31: =1/K28 -> 4.535970244e-07 | I31: =1/K29 -> 0.0004464285714 | J31: =1/K30 -> 0.0005 | K31: 1
B33: General conversion factors for volume
B35: From | D35: To | E35: l | F35: m3 | G35: ft3 | H35: bbl | I35: UK gal | J35: US gal
B37: Multiply by:
B38: Litre (l) | E38: 1 | F38: 0.001 | G38: 0.0353 | H38: 0.0063 | I38: 0.22 | J38: =1/E43 -> 0.2642007926
B39: Cubic metre (m3) | E39: =E38*1000 -> 1000 | F39: 1 | G39: =G38*1000 -> 35.3 | H39: =H38*1000 -> 6.3 | I39: =I38*1000 -> 220 | J39: =J38*1000 -> 264.2007926
B40: Cubic foot (ft3) | E40: 28.3 | F40: 0.0283 | G40: 1 | H40: 0.1781 | I40: 6.229 | J40: 7.48
B41: Barrel (bbl) | E41: 159 | F41: 0.159 | G41: 5.615 | H41: 1 | I41: 34.97 | J41: 42
B42: UK gallon (gal) | E42: 4.546 | F42: 0.0045 | G42: 0.1605 | H42: 0.02859 | I42: 1 | J42: 1.201
B43: US gallon (gal) | E43: 3.785 | F43: 0.0038 | G43: 0.1337 | H43: 0.02381 | I43: 0.8327 | J43: 1
B45: General conversion factors for distance
B47: From | D47: To | E47: mile | F47: km | G47: m | H47: feet | I47: inch | J47: cm
B49: Multiply by:
B50: mile | E50: 1 | F50: 1.609344 | G50: =F50*1000 -> 1609.344 | H50: 5280 | I50: 63360 | J50: =G50*100 -> 160934.4
B51: kilometre (km) | E51: =1/F50 -> 0.6213711922 | F51: 1 | G51: 1000 | H51: 3280.839895 | I51: 39370.07874 | J51: =G51*100 -> 100000
B52: meter (m) | E52: =1/G50 -> 0.0006213711922 | F52: =F51/1000 -> 0.001 | G52: 1 | H52: 3.280839895 | I52: 39.37007874 | J52: =G52*100 -> 100
B53: feet | E53: =1/H50 -> 0.0001893939394 | F53: =1/H51 -> 0.0003048 | G53: =1/H52 -> 0.3048 | H53: 1 | I53: 12 | J53: =G53*100 -> 30.48
B54: inch | E54: =1/I50 -> 1.578282828e-05 | F54: =1/I51 -> 2.54e-05 | G54: =1/I52 -> 0.0254 | H54: =1/I53 -> 0.08333333333 | I54: 1 | J54: =G54*100 -> 2.54
B55: centimetre (cm) | E55: =1/J50 -> 6.213711922e-06 | F55: =1/J51 -> 1e-05 | G55: =1/J52 -> 0.01 | H55: =1/J53 -> 0.03280839895 | I55: =1/J54 -> 0.3937007874 | J55: 1
B57: General conversion factors for energy
B59: From | D59: To | E59: kWh | F59: MWh | G59: GWh | H59: TWh | I59: MJ | J59: GJ | K59: TJ | L59: Mcal | M59: Gcal | N59: Btu | O59: kBtu | P59: MMBtu | Q59: Therm | R59: Mtoe | S59: BOE
B60: Multiply by:
B61: Kilowatt hours | D61: kWh | E61: =SUMIFS(REF_Fuel_UnitConversionFactors!$D$6:$D$230,REF_Fuel_UnitConversionFactors!$B$6:$B$230,$D61,REF_Fuel_UnitConversionFactors!$C$6:$C$230,E$59) -> 1 | F61: =SUMIFS(REF_Fuel_UnitConversionFactors!$D$6:$D$230,REF_Fuel_UnitConversionFactors!$B$6:$B$230,$D61,REF_Fuel_UnitConversionFactors!$C$6:$C$230,F$59) -> 0.001 | G61: =SUMIFS(REF_Fuel_UnitConversionFactors!$D$6:$D$230,REF_Fuel_UnitConversionFactors!$B$6:$B$230,$D61,REF_Fuel_UnitConversionFactors!$C$6:$C$230,G$59) -> 1e-06 | H61: =SUMIFS(REF_Fuel_UnitConversionFactors!$D$6:$D$230,REF_Fuel_UnitConversionFactors!$B$6:$B$230,$D61,REF_Fuel_UnitConversionFactors!$C$6:$C$230,H$59) -> 1e-09 | I61: =SUMIFS(REF_Fuel_UnitConversionFactors!$D$6:$D$230,REF_Fuel_UnitConversionFactors!$B$6:$B$230,$D61,REF_Fuel_UnitConversionFactors!$C$6:$C$230,I$59) -> 3.6 | J61: =SUMIFS(REF_Fuel_UnitConversionFactors!$D$6:$D$230,REF_Fuel_UnitConversionFactors!$B$6:$B$230,$D61,REF_Fuel_UnitConversionFactors!$C$6:$C$230,J$59) -> 0.0036 | K61: =SUMIFS(REF_Fuel_UnitConversionFactors!$D$6:$D$230,REF_Fuel_UnitConversionFactors!$B$6:$B$230,$D61,REF_Fuel_UnitConversionFactors!$C$6:$C$230,K$59) -> 3.6e-06 | L61: =SUMIFS(REF_Fuel_UnitConversionFactors!$D$6:$D$230,REF_Fuel_UnitConversionFactors!$B$6:$B$230,$D61,REF_Fuel_UnitConversionFactors!$C$6:$C$230,L$59) -> 0.8604206517 | M61: =SUMIFS(REF_Fuel_UnitConversionFactors!$D$6:$D$230,REF_Fuel_UnitConversionFactors!$B$6:$B$230,$D61,REF_Fuel_UnitConversionFactors!$C$6:$C$230,M$59) -> 0.0008604206517 | N61: =SUMIFS(REF_Fuel_UnitConversionFactors!$D$6:$D$230,REF_Fuel_UnitConversionFactors!$B$6:$B$230,$D61,REF_Fuel_UnitConversionFactors!$C$6:$C$230,N$59) -> 3412.141635 | O61: =SUMIFS(REF_Fuel_UnitConversionFactors!$D$6:$D$230,REF_Fuel_UnitConversionFactors!$B$6:$B$230,$D61,REF_Fuel_UnitConversionFactors!$C$6:$C$230,O$59) -> 3.412141635 | P61: =SUMIFS(REF_Fuel_UnitConversionFactors!$D$6:$D$230,REF_Fuel_UnitConversionFactors!$B$6:$B$230,$D61,REF_Fuel_UnitConversionFactors!$C$6:$C$230,P$59) -> 0.003412141635 | Q61: =SUMIFS(REF_Fuel_UnitConversionFactors!$D$6:$D$230,REF_Fuel_UnitConversionFactors!$B$6:$B$230,$D61,REF_Fuel_UnitConversionFactors!$C$6:$C$230,Q$59) -> 0.03409510641 | R61: =SUMIFS(REF_Fuel_UnitConversionFactors!$D$6:$D$230,REF_Fuel_UnitConversionFactors!$B$6:$B$230,$D61,REF_Fuel_UnitConversionFactors!$C$6:$C$230,R$59) -> 8.598452279e-11 | S61: =SUMIFS(REF_Fuel_UnitConversionFactors!$D$6:$D$230,REF_Fuel_UnitConversionFactors!$B$6:$B$230,$D61,REF_Fuel_UnitConversionFactors!$C$6:$C$230,S$59) -> 0.0006141751628
B62: Megawatt hours | D62: MWh | E62: =SUMIFS(REF_Fuel_UnitConversionFactors!$D$6:$D$230,REF_Fuel_UnitConversionFactors!$B$6:$B$230,$D62,REF_Fuel_UnitConversionFactors!$C$6:$C$230,E$59) -> 1000 | F62: =SUMIFS(REF_Fuel_UnitConversionFactors!$D$6:$D$230,REF_Fuel_UnitConversionFactors!$B$6:$B$230,$D62,REF_Fuel_UnitConversionFactors!$C$6:$C$230,F$59) -> 1 | G62: =SUMIFS(REF_Fuel_UnitConversionFactors!$D$6:$D$230,REF_Fuel_UnitConversionFactors!$B$6:$B$230,$D62,REF_Fuel_UnitConversionFactors!$C$6:$C$230,G$59) -> 0.001 | H62: =SUMIFS(REF_Fuel_UnitConversionFactors!$D$6:$D$230,REF_Fuel_UnitConversionFactors!$B$6:$B$230,$D62,REF_Fuel_UnitConversionFactors!$C$6:$C$230,H$59) -> 1e-06 | I62: =SUMIFS(REF_Fuel_UnitConversionFactors!$D$6:$D$230,REF_Fuel_UnitConversionFactors!$B$6:$B$230,$D62,REF_Fuel_UnitConversionFactors!$C$6:$C$230,I$59) -> 3600 | J62: =SUMIFS(REF_Fuel_UnitConversionFactors!$D$6:$D$230,REF_Fuel_UnitConversionFactors!$B$6:$B$230,$D62,REF_Fuel_UnitConversionFactors!$C$6:$C$230,J$59) -> 3.6 | K62: =SUMIFS(REF_Fuel_UnitConversionFactors!$D$6:$D$230,REF_Fuel_UnitConversionFactors!$B$6:$B$230,$D62,REF_Fuel_UnitConversionFactors!$C$6:$C$230,K$59) -> 0.0036 | L62: =SUMIFS(REF_Fuel_UnitConversionFactors!$D$6:$D$230,REF_Fuel_UnitConversionFactors!$B$6:$B$230,$D62,REF_Fuel_UnitConversionFactors!$C$6:$C$230,L$59) -> 860.4206517 | M62: =SUMIFS(REF_Fuel_UnitConversionFactors!$D$6:$D$230,REF_Fuel_UnitConversionFactors!$B$6:$B$230,$D62,REF_Fuel_UnitConversionFactors!$C$6:$C$230,M$59) -> 0.8604206517 | N62: =SUMIFS(REF_Fuel_UnitConversionFactors!$D$6:$D$230,REF_Fuel_UnitConversionFactors!$B$6:$B$230,$D62,REF_Fuel_UnitConversionFactors!$C$6:$C$230,N$59) -> 3412141.635 | O62: =SUMIFS(REF_Fuel_UnitConversionFactors!$D$6:$D$230,REF_Fuel_UnitConversionFactors!$B$6:$B$230,$D62,REF_Fuel_UnitConversionFactors!$C$6:$C$230,O$59) -> 3412.141635 | P62: =SUMIFS(REF_Fuel_UnitConversionFactors!$D$6:$D$230,REF_Fuel_UnitConversionFactors!$B$6:$B$230,$D62,REF_Fuel_UnitConversionFactors!$C$6:$C$230,P$59) -> 3.412141635 | Q62: =SUMIFS(REF_Fuel_UnitConversionFactors!$D$6:$D$230,REF_Fuel_UnitConversionFactors!$B$6:$B$230,$D62,REF_Fuel_UnitConversionFactors!$C$6:$C$230,Q$59) -> 34.09510641 | R62: =SUMIFS(REF_Fuel_UnitConversionFactors!$D$6:$D$230,REF_Fuel_UnitConversionFactors!$B$6:$B$230,$D62,REF_Fuel_UnitConversionFactors!$C$6:$C$230,R$59) -> 8.598452279e-08 | S62: =SUMIFS(REF_Fuel_UnitConversionFactors!$D$6:$D$230,REF_Fuel_UnitConversionFactors!$B$6:$B$230,$D62,REF_Fuel_UnitConversionFactors!$C$6:$C$230,S$59) -> 0.6141751628
B63: Gigawatt hours | D63: GWh | E63: =SUMIFS(REF_Fuel_UnitConversionFactors!$D$6:$D$230,REF_Fuel_UnitConversionFactors!$B$6:$B$230,$D63,REF_Fuel_UnitConversionFactors!$C$6:$C$230,E$59) -> 1000000 | F63: =SUMIFS(REF_Fuel_UnitConversionFactors!$D$6:$D$230,REF_Fuel_UnitConversionFactors!$B$6:$B$230,$D63,REF_Fuel_UnitConversionFactors!$C$6:$C$230,F$59) -> 1000 | G63: =SUMIFS(REF_Fuel_UnitConversionFactors!$D$6:$D$230,REF_Fuel_UnitConversionFactors!$B$6:$B$230,$D63,REF_Fuel_UnitConversionFactors!$C$6:$C$230,G$59) -> 1 | H63: =SUMIFS(REF_Fuel_UnitConversionFactors!$D$6:$D$230,REF_Fuel_UnitConversionFactors!$B$6:$B$230,$D63,REF_Fuel_UnitConversionFactors!$C$6:$C$230,H$59) -> 0.001 | I63: =SUMIFS(REF_Fuel_UnitConversionFactors!$D$6:$D$230,REF_Fuel_UnitConversionFactors!$B$6:$B$230,$D63,REF_Fuel_UnitConversionFactors!$C$6:$C$230,I$59) -> 3600000 | J63: =SUMIFS(REF_Fuel_UnitConversionFactors!$D$6:$D$230,REF_Fuel_UnitConversionFactors!$B$6:$B$230,$D63,REF_Fuel_UnitConversionFactors!$C$6:$C$230,J$59) -> 3600 | K63: =SUMIFS(REF_Fuel_UnitConversionFactors!$D$6:$D$230,REF_Fuel_UnitConversionFactors!$B$6:$B$230,$D63,REF_Fuel_UnitConversionFactors!$C$6:$C$230,K$59) -> 3.6 | L63: =SUMIFS(REF_Fuel_UnitConversionFactors!$D$6:$D$230,REF_Fuel_UnitConversionFactors!$B$6:$B$230,$D63,REF_Fuel_UnitConversionFactors!$C$6:$C$230,L$59) -> 860420.6517 | M63: =SUMIFS(REF_Fuel_UnitConversionFactors!$D$6:$D$230,REF_Fuel_UnitConversionFactors!$B$6:$B$230,$D63,REF_Fuel_UnitConversionFactors!$C$6:$C$230,M$59) -> 860.4206517 | N63: =SUMIFS(REF_Fuel_UnitConversionFactors!$D$6:$D$230,REF_Fuel_UnitConversionFactors!$B$6:$B$230,$D63,REF_Fuel_UnitConversionFactors!$C$6:$C$230,N$59) -> 3412141635 | O63: =SUMIFS(REF_Fuel_UnitConversionFactors!$D$6:$D$230,REF_Fuel_UnitConversionFactors!$B$6:$B$230,$D63,REF_Fuel_UnitConversionFactors!$C$6:$C$230,O$59) -> 3412141.635 | P63: =SUMIFS(REF_Fuel_UnitConversionFactors!$D$6:$D$230,REF_Fuel_UnitConversionFactors!$B$6:$B$230,$D63,REF_Fuel_UnitConversionFactors!$C$6:$C$230,P$59) -> 3412.141635 | Q63: =SUMIFS(REF_Fuel_UnitConversionFactors!$D$6:$D$230,REF_Fuel_UnitConversionFactors!$B$6:$B$230,$D63,REF_Fuel_UnitConversionFactors!$C$6:$C$230,Q$59) -> 34095.10641 | R63: =SUMIFS(REF_Fuel_UnitConversionFactors!$D$6:$D$230,REF_Fuel_UnitConversionFactors!$B$6:$B$230,$D63,REF_Fuel_UnitConversionFactors!$C$6:$C$230,R$59) -> 8.598452279e-05 | S63: =SUMIFS(REF_Fuel_UnitConversionFactors!$D$6:$D$230,REF_Fuel_UnitConversionFactors!$B$6:$B$230,$D63,REF_Fuel_UnitConversionFactors!$C$6:$C$230,S$59) -> 614.1751628
B64: Terawatt hours | D64: TWh | E64: =SUMIFS(REF_Fuel_UnitConversionFactors!$D$6:$D$230,REF_Fuel_UnitConversionFactors!$B$6:$B$230,$D64,REF_Fuel_UnitConversionFactors!$C$6:$C$230,E$59) -> 1000000000 | F64: =SUMIFS(REF_Fuel_UnitConversionFactors!$D$6:$D$230,REF_Fuel_UnitConversionFactors!$B$6:$B$230,$D64,REF_Fuel_UnitConversionFactors!$C$6:$C$230,F$59) -> 1000000 | G64: =SUMIFS(REF_Fuel_UnitConversionFactors!$D$6:$D$230,REF_Fuel_UnitConversionFactors!$B$6:$B$230,$D64,REF_Fuel_UnitConversionFactors!$C$6:$C$230,G$59) -> 1000 | H64: =SUMIFS(REF_Fuel_UnitConversionFactors!$D$6:$D$230,REF_Fuel_UnitConversionFactors!$B$6:$B$230,$D64,REF_Fuel_UnitConversionFactors!$C$6:$C$230,H$59) -> 1 | I64: =SUMIFS(REF_Fuel_UnitConversionFactors!$D$6:$D$230,REF_Fuel_UnitConversionFactors!$B$6:$B$230,$D64,REF_Fuel_UnitConversionFactors!$C$6:$C$230,I$59) -> 3600000000 | J64: =SUMIFS(REF_Fuel_UnitConversionFactors!$D$6:$D$230,REF_Fuel_UnitConversionFactors!$B$6:$B$230,$D64,REF_Fuel_UnitConversionFactors!$C$6:$C$230,J$59) -> 3600000 | K64: =SUMIFS(REF_Fuel_UnitConversionFactors!$D$6:$D$230,REF_Fuel_UnitConversionFactors!$B$6:$B$230,$D64,REF_Fuel_UnitConversionFactors!$C$6:$C$230,K$59) -> 3600 | L64: =SUMIFS(REF_Fuel_UnitConversionFactors!$D$6:$D$230,REF_Fuel_UnitConversionFactors!$B$6:$B$230,$D64,REF_Fuel_UnitConversionFactors!$C$6:$C$230,L$59) -> 860420651.7 | M64: =SUMIFS(REF_Fuel_UnitConversionFactors!$D$6:$D$230,REF_Fuel_UnitConversionFactors!$B$6:$B$230,$D64,REF_Fuel_UnitConversionFactors!$C$6:$C$230,M$59) -> 860420.6517 | N64: =SUMIFS(REF_Fuel_UnitConversionFactors!$D$6:$D$230,REF_Fuel_UnitConversionFactors!$B$6:$B$230,$D64,REF_Fuel_UnitConversionFactors!$C$6:$C$230,N$59) -> 3.412141635e+12 | O64: =SUMIFS(REF_Fuel_UnitConversionFactors!$D$6:$D$230,REF_Fuel_UnitConversionFactors!$B$6:$B$230,$D64,REF_Fuel_UnitConversionFactors!$C$6:$C$230,O$59) -> 3412141635 | P64: =SUMIFS(REF_Fuel_UnitConversionFactors!$D$6:$D$230,REF_Fuel_UnitConversionFactors!$B$6:$B$230,$D64,REF_Fuel_UnitConversionFactors!$C$6:$C$230,P$59) -> 3412141.635 | Q64: =SUMIFS(REF_Fuel_UnitConversionFactors!$D$6:$D$230,REF_Fuel_UnitConversionFactors!$B$6:$B$230,$D64,REF_Fuel_UnitConversionFactors!$C$6:$C$230,Q$59) -> 34095106.41 | R64: =SUMIFS(REF_Fuel_UnitConversionFactors!$D$6:$D$230,REF_Fuel_UnitConversionFactors!$B$6:$B$230,$D64,REF_Fuel_UnitConversionFactors!$C$6:$C$230,R$59) -> 0.08598452279 | S64: =SUMIFS(REF_Fuel_UnitConversionFactors!$D$6:$D$230,REF_Fuel_UnitConversionFactors!$B$6:$B$230,$D64,REF_Fuel_UnitConversionFactors!$C$6:$C$230,S$59) -> 614175.1628
B65: Megajoules | D65: MJ | E65: =SUMIFS(REF_Fuel_UnitConversionFactors!$D$6:$D$230,REF_Fuel_UnitConversionFactors!$B$6:$B$230,$D65,REF_Fuel_UnitConversionFactors!$C$6:$C$230,E$59) -> 0.2777777778 | F65: =SUMIFS(REF_Fuel_UnitConversionFactors!$D$6:$D$230,REF_Fuel_UnitConversionFactors!$B$6:$B$230,$D65,REF_Fuel_UnitConversionFactors!$C$6:$C$230,F$59) -> 0.0002777777778 | G65: =SUMIFS(REF_Fuel_UnitConversionFactors!$D$6:$D$230,REF_Fuel_UnitConversionFactors!$B$6:$B$230,$D65,REF_Fuel_UnitConversionFactors!$C$6:$C$230,G$59) -> 2.777777778e-07 | H65: =SUMIFS(REF_Fuel_UnitConversionFactors!$D$6:$D$230,REF_Fuel_UnitConversionFactors!$B$6:$B$230,$D65,REF_Fuel_UnitConversionFactors!$C$6:$C$230,H$59) -> 2.777777778e-10 | I65: =SUMIFS(REF_Fuel_UnitConversionFactors!$D$6:$D$230,REF_Fuel_UnitConversionFactors!$B$6:$B$230,$D65,REF_Fuel_UnitConversionFactors!$C$6:$C$230,I$59) -> 1 | J65: =SUMIFS(REF_Fuel_UnitConversionFactors!$D$6:$D$230,REF_Fuel_UnitConversionFactors!$B$6:$B$230,$D65,REF_Fuel_UnitConversionFactors!$C$6:$C$230,J$59) -> 0.001 | K65: =SUMIFS(REF_Fuel_UnitConversionFactors!$D$6:$D$230,REF_Fuel_UnitConversionFactors!$B$6:$B$230,$D65,REF_Fuel_UnitConversionFactors!$C$6:$C$230,K$59) -> 1e-06 | L65: =SUMIFS(REF_Fuel_UnitConversionFactors!$D$6:$D$230,REF_Fuel_UnitConversionFactors!$B$6:$B$230,$D65,REF_Fuel_UnitConversionFactors!$C$6:$C$230,L$59) -> 0.2390057366 | M65: =SUMIFS(REF_Fuel_UnitConversionFactors!$D$6:$D$230,REF_Fuel_UnitConversionFactors!$B$6:$B$230,$D65,REF_Fuel_UnitConversionFactors!$C$6:$C$230,M$59) -> 0.0002390057366 | N65: =SUMIFS(REF_Fuel_UnitConversionFactors!$D$6:$D$230,REF_Fuel_UnitConversionFactors!$B$6:$B$230,$D65,REF_Fuel_UnitConversionFactors!$C$6:$C$230,N$59) -> 947.8171209 | O65: =SUMIFS(REF_Fuel_UnitConversionFactors!$D$6:$D$230,REF_Fuel_UnitConversionFactors!$B$6:$B$230,$D65,REF_Fuel_UnitConversionFactors!$C$6:$C$230,O$59) -> 0.9478171209 | P65: =SUMIFS(REF_Fuel_UnitConversionFactors!$D$6:$D$230,REF_Fuel_UnitConversionFactors!$B$6:$B$230,$D65,REF_Fuel_UnitConversionFactors!$C$6:$C$230,P$59) -> 0.0009478171209 | Q65: =SUMIFS(REF_Fuel_UnitConversionFactors!$D$6:$D$230,REF_Fuel_UnitConversionFactors!$B$6:$B$230,$D65,REF_Fuel_UnitConversionFactors!$C$6:$C$230,Q$59) -> 0.00947086289 | R65: =SUMIFS(REF_Fuel_UnitConversionFactors!$D$6:$D$230,REF_Fuel_UnitConversionFactors!$B$6:$B$230,$D65,REF_Fuel_UnitConversionFactors!$C$6:$C$230,R$59) -> 2.388458966e-11 | S65: =SUMIFS(REF_Fuel_UnitConversionFactors!$D$6:$D$230,REF_Fuel_UnitConversionFactors!$B$6:$B$230,$D65,REF_Fuel_UnitConversionFactors!$C$6:$C$230,S$59) -> 0.0001706042119
B66: Gigajoules | D66: GJ | E66: =SUMIFS(REF_Fuel_UnitConversionFactors!$D$6:$D$230,REF_Fuel_UnitConversionFactors!$B$6:$B$230,$D66,REF_Fuel_UnitConversionFactors!$C$6:$C$230,E$59) -> 277.7777778 | F66: =SUMIFS(REF_Fuel_UnitConversionFactors!$D$6:$D$230,REF_Fuel_UnitConversionFactors!$B$6:$B$230,$D66,REF_Fuel_UnitConversionFactors!$C$6:$C$230,F$59) -> 0.2777777778 | G66: =SUMIFS(REF_Fuel_UnitConversionFactors!$D$6:$D$230,REF_Fuel_UnitConversionFactors!$B$6:$B$230,$D66,REF_Fuel_UnitConversionFactors!$C$6:$C$230,G$59) -> 0.0002777777778 | H66: =SUMIFS(REF_Fuel_UnitConversionFactors!$D$6:$D$230,REF_Fuel_UnitConversionFactors!$B$6:$B$230,$D66,REF_Fuel_UnitConversionFactors!$C$6:$C$230,H$59) -> 2.777777778e-07 | I66: =SUMIFS(REF_Fuel_UnitConversionFactors!$D$6:$D$230,REF_Fuel_UnitConversionFactors!$B$6:$B$230,$D66,REF_Fuel_UnitConversionFactors!$C$6:$C$230,I$59) -> 1000 | J66: =SUMIFS(REF_Fuel_UnitConversionFactors!$D$6:$D$230,REF_Fuel_UnitConversionFactors!$B$6:$B$230,$D66,REF_Fuel_UnitConversionFactors!$C$6:$C$230,J$59) -> 1 | K66: =SUMIFS(REF_Fuel_UnitConversionFactors!$D$6:$D$230,REF_Fuel_UnitConversionFactors!$B$6:$B$230,$D66,REF_Fuel_UnitConversionFactors!$C$6:$C$230,K$59) -> 0.001 | L66: =SUMIFS(REF_Fuel_UnitConversionFactors!$D$6:$D$230,REF_Fuel_UnitConversionFactors!$B$6:$B$230,$D66,REF_Fuel_UnitConversionFactors!$C$6:$C$230,L$59) -> 239.0057366 | M66: =SUMIFS(REF_Fuel_UnitConversionFactors!$D$6:$D$230,REF_Fuel_UnitConversionFactors!$B$6:$B$230,$D66,REF_Fuel_UnitConversionFactors!$C$6:$C$230,M$59) -> 0.2390057366 | N66: =SUMIFS(REF_Fuel_UnitConversionFactors!$D$6:$D$230,REF_Fuel_UnitConversionFactors!$B$6:$B$230,$D66,REF_Fuel_UnitConversionFactors!$C$6:$C$230,N$59) -> 947817.1209 | O66: =SUMIFS(REF_Fuel_UnitConversionFactors!$D$6:$D$230,REF_Fuel_UnitConversionFactors!$B$6:$B$230,$D66,REF_Fuel_UnitConversionFactors!$C$6:$C$230,O$59) -> 947.8171209 | P66: =SUMIFS(REF_Fuel_UnitConversionFactors!$D$6:$D$230,REF_Fuel_UnitConversionFactors!$B$6:$B$230,$D66,REF_Fuel_UnitConversionFactors!$C$6:$C$230,P$59) -> 0.9478171209 | Q66: =SUMIFS(REF_Fuel_UnitConversionFactors!$D$6:$D$230,REF_Fuel_UnitConversionFactors!$B$6:$B$230,$D66,REF_Fuel_UnitConversionFactors!$C$6:$C$230,Q$59) -> 9.47086289 | R66: =SUMIFS(REF_Fuel_UnitConversionFactors!$D$6:$D$230,REF_Fuel_UnitConversionFactors!$B$6:$B$230,$D66,REF_Fuel_UnitConversionFactors!$C$6:$C$230,R$59) -> 2.388458966e-08 | S66: =SUMIFS(REF_Fuel_UnitConversionFactors!$D$6:$D$230,REF_Fuel_UnitConversionFactors!$B$6:$B$230,$D66,REF_Fuel_UnitConversionFactors!$C$6:$C$230,S$59) -> 0.1706042119
B67: Terajoules | D67: TJ | E67: =SUMIFS(REF_Fuel_UnitConversionFactors!$D$6:$D$230,REF_Fuel_UnitConversionFactors!$B$6:$B$230,$D67,REF_Fuel_UnitConversionFactors!$C$6:$C$230,E$59) -> 277777.7778 | F67: =SUMIFS(REF_Fuel_UnitConversionFactors!$D$6:$D$230,REF_Fuel_UnitConversionFactors!$B$6:$B$230,$D67,REF_Fuel_UnitConversionFactors!$C$6:$C$230,F$59) -> 277.7777778 | G67: =SUMIFS(REF_Fuel_UnitConversionFactors!$D$6:$D$230,REF_Fuel_UnitConversionFactors!$B$6:$B$230,$D67,REF_Fuel_UnitConversionFactors!$C$6:$C$230,G$59) -> 0.2777777778 | H67: =SUMIFS(REF_Fuel_UnitConversionFactors!$D$6:$D$230,REF_Fuel_UnitConversionFactors!$B$6:$B$230,$D67,REF_Fuel_UnitConversionFactors!$C$6:$C$230,H$59) -> 0.0002777777778 | I67: =SUMIFS(REF_Fuel_UnitConversionFactors!$D$6:$D$230,REF_Fuel_UnitConversionFactors!$B$6:$B$230,$D67,REF_Fuel_UnitConversionFactors!$C$6:$C$230,I$59) -> 1000000 | J67: =SUMIFS(REF_Fuel_UnitConversionFactors!$D$6:$D$230,REF_Fuel_UnitConversionFactors!$B$6:$B$230,$D67,REF_Fuel_UnitConversionFactors!$C$6:$C$230,J$59) -> 1000 | K67: =SUMIFS(REF_Fuel_UnitConversionFactors!$D$6:$D$230,REF_Fuel_UnitConversionFactors!$B$6:$B$230,$D67,REF_Fuel_UnitConversionFactors!$C$6:$C$230,K$59) -> 1 | L67: =SUMIFS(REF_Fuel_UnitConversionFactors!$D$6:$D$230,REF_Fuel_UnitConversionFactors!$B$6:$B$230,$D67,REF_Fuel_UnitConversionFactors!$C$6:$C$230,L$59) -> 239005.7366 | M67: =SUMIFS(REF_Fuel_UnitConversionFactors!$D$6:$D$230,REF_Fuel_UnitConversionFactors!$B$6:$B$230,$D67,REF_Fuel_UnitConversionFactors!$C$6:$C$230,M$59) -> 239.0057366 | N67: =SUMIFS(REF_Fuel_UnitConversionFactors!$D$6:$D$230,REF_Fuel_UnitConversionFactors!$B$6:$B$230,$D67,REF_Fuel_UnitConversionFactors!$C$6:$C$230,N$59) -> 947817120.9 | O67: =SUMIFS(REF_Fuel_UnitConversionFactors!$D$6:$D$230,REF_Fuel_UnitConversionFactors!$B$6:$B$230,$D67,REF_Fuel_UnitConversionFactors!$C$6:$C$230,O$59) -> 947817.1209 | P67: =SUMIFS(REF_Fuel_UnitConversionFactors!$D$6:$D$230,REF_Fuel_UnitConversionFactors!$B$6:$B$230,$D67,REF_Fuel_UnitConversionFactors!$C$6:$C$230,P$59) -> 947.8171209 | Q67: =SUMIFS(REF_Fuel_UnitConversionFactors!$D$6:$D$230,REF_Fuel_UnitConversionFactors!$B$6:$B$230,$D67,REF_Fuel_UnitConversionFactors!$C$6:$C$230,Q$59) -> 9470.86289 | R67: =SUMIFS(REF_Fuel_UnitConversionFactors!$D$6:$D$230,REF_Fuel_UnitConversionFactors!$B$6:$B$230,$D67,REF_Fuel_UnitConversionFactors!$C$6:$C$230,R$59) -> 2.388458966e-05 | S67: =SUMIFS(REF_Fuel_UnitConversionFactors!$D$6:$D$230,REF_Fuel_UnitConversionFactors!$B$6:$B$230,$D67,REF_Fuel_UnitConversionFactors!$C$6:$C$230,S$59) -> 170.6042119
B68: Mega calories | D68: Mcal | E68: =SUMIFS(REF_Fuel_UnitConversionFactors!$D$6:$D$230,REF_Fuel_UnitConversionFactors!$B$6:$B$230,$D68,REF_Fuel_UnitConversionFactors!$C$6:$C$230,E$59) -> 1.16222222 | F68: =SUMIFS(REF_Fuel_UnitConversionFactors!$D$6:$D$230,REF_Fuel_UnitConversionFactors!$B$6:$B$230,$D68,REF_Fuel_UnitConversionFactors!$C$6:$C$230,F$59) -> 0.00116222222 | G68: =SUMIFS(REF_Fuel_UnitConversionFactors!$D$6:$D$230,REF_Fuel_UnitConversionFactors!$B$6:$B$230,$D68,REF_Fuel_UnitConversionFactors!$C$6:$C$230,G$59) -> 1.16222222e-06 | H68: =SUMIFS(REF_Fuel_UnitConversionFactors!$D$6:$D$230,REF_Fuel_UnitConversionFactors!$B$6:$B$230,$D68,REF_Fuel_UnitConversionFactors!$C$6:$C$230,H$59) -> 1.16222222e-09 | I68: =SUMIFS(REF_Fuel_UnitConversionFactors!$D$6:$D$230,REF_Fuel_UnitConversionFactors!$B$6:$B$230,$D68,REF_Fuel_UnitConversionFactors!$C$6:$C$230,I$59) -> 4.183999992 | J68: =SUMIFS(REF_Fuel_UnitConversionFactors!$D$6:$D$230,REF_Fuel_UnitConversionFactors!$B$6:$B$230,$D68,REF_Fuel_UnitConversionFactors!$C$6:$C$230,J$59) -> 0.004183999992 | K68: =SUMIFS(REF_Fuel_UnitConversionFactors!$D$6:$D$230,REF_Fuel_UnitConversionFactors!$B$6:$B$230,$D68,REF_Fuel_UnitConversionFactors!$C$6:$C$230,K$59) -> 4.183999992e-06 | L68: =SUMIFS(REF_Fuel_UnitConversionFactors!$D$6:$D$230,REF_Fuel_UnitConversionFactors!$B$6:$B$230,$D68,REF_Fuel_UnitConversionFactors!$C$6:$C$230,L$59) -> 1 | M68: =SUMIFS(REF_Fuel_UnitConversionFactors!$D$6:$D$230,REF_Fuel_UnitConversionFactors!$B$6:$B$230,$D68,REF_Fuel_UnitConversionFactors!$C$6:$C$230,M$59) -> 0.001 | N68: =SUMIFS(REF_Fuel_UnitConversionFactors!$D$6:$D$230,REF_Fuel_UnitConversionFactors!$B$6:$B$230,$D68,REF_Fuel_UnitConversionFactors!$C$6:$C$230,N$59) -> 3965.666826 | O68: =SUMIFS(REF_Fuel_UnitConversionFactors!$D$6:$D$230,REF_Fuel_UnitConversionFactors!$B$6:$B$230,$D68,REF_Fuel_UnitConversionFactors!$C$6:$C$230,O$59) -> 3.965666826 | P68: =SUMIFS(REF_Fuel_UnitConversionFactors!$D$6:$D$230,REF_Fuel_UnitConversionFactors!$B$6:$B$230,$D68,REF_Fuel_UnitConversionFactors!$C$6:$C$230,P$59) -> 0.003965666826 | Q68: =SUMIFS(REF_Fuel_UnitConversionFactors!$D$6:$D$230,REF_Fuel_UnitConversionFactors!$B$6:$B$230,$D68,REF_Fuel_UnitConversionFactors!$C$6:$C$230,Q$59) -> 0.03962609026 | R68: =SUMIFS(REF_Fuel_UnitConversionFactors!$D$6:$D$230,REF_Fuel_UnitConversionFactors!$B$6:$B$230,$D68,REF_Fuel_UnitConversionFactors!$C$6:$C$230,R$59) -> 9.993312296e-11 | S68: =SUMIFS(REF_Fuel_UnitConversionFactors!$D$6:$D$230,REF_Fuel_UnitConversionFactors!$B$6:$B$230,$D68,REF_Fuel_UnitConversionFactors!$C$6:$C$230,S$59) -> 0.0007138080211
B69: Giga calories | D69: Gcal | E69: =SUMIFS(REF_Fuel_UnitConversionFactors!$D$6:$D$230,REF_Fuel_UnitConversionFactors!$B$6:$B$230,$D69,REF_Fuel_UnitConversionFactors!$C$6:$C$230,E$59) -> 1162.22222 | F69: =SUMIFS(REF_Fuel_UnitConversionFactors!$D$6:$D$230,REF_Fuel_UnitConversionFactors!$B$6:$B$230,$D69,REF_Fuel_UnitConversionFactors!$C$6:$C$230,F$59) -> 1.16222222 | G69: =SUMIFS(REF_Fuel_UnitConversionFactors!$D$6:$D$230,REF_Fuel_UnitConversionFactors!$B$6:$B$230,$D69,REF_Fuel_UnitConversionFactors!$C$6:$C$230,G$59) -> 0.00116222222 | H69: =SUMIFS(REF_Fuel_UnitConversionFactors!$D$6:$D$230,REF_Fuel_UnitConversionFactors!$B$6:$B$230,$D69,REF_Fuel_UnitConversionFactors!$C$6:$C$230,H$59) -> 1.16222222e-06 | I69: =SUMIFS(REF_Fuel_UnitConversionFactors!$D$6:$D$230,REF_Fuel_UnitConversionFactors!$B$6:$B$230,$D69,REF_Fuel_UnitConversionFactors!$C$6:$C$230,I$59) -> 4183.999992 | J69: =SUMIFS(REF_Fuel_UnitConversionFactors!$D$6:$D$230,REF_Fuel_UnitConversionFactors!$B$6:$B$230,$D69,REF_Fuel_UnitConversionFactors!$C$6:$C$230,J$59) -> 4.183999992 | K69: =SUMIFS(REF_Fuel_UnitConversionFactors!$D$6:$D$230,REF_Fuel_UnitConversionFactors!$B$6:$B$230,$D69,REF_Fuel_UnitConversionFactors!$C$6:$C$230,K$59) -> 0.004183999992 | L69: =SUMIFS(REF_Fuel_UnitConversionFactors!$D$6:$D$230,REF_Fuel_UnitConversionFactors!$B$6:$B$230,$D69,REF_Fuel_UnitConversionFactors!$C$6:$C$230,L$59) -> 1000 | M69: =SUMIFS(REF_Fuel_UnitConversionFactors!$D$6:$D$230,REF_Fuel_UnitConversionFactors!$B$6:$B$230,$D69,REF_Fuel_UnitConversionFactors!$C$6:$C$230,M$59) -> 1 | N69: =SUMIFS(REF_Fuel_UnitConversionFactors!$D$6:$D$230,REF_Fuel_UnitConversionFactors!$B$6:$B$230,$D69,REF_Fuel_UnitConversionFactors!$C$6:$C$230,N$59) -> 3965666.826 | O69: =SUMIFS(REF_Fuel_UnitConversionFactors!$D$6:$D$230,REF_Fuel_UnitConversionFactors!$B$6:$B$230,$D69,REF_Fuel_UnitConversionFactors!$C$6:$C$230,O$59) -> 3965.666826 | P69: =SUMIFS(REF_Fuel_UnitConversionFactors!$D$6:$D$230,REF_Fuel_UnitConversionFactors!$B$6:$B$230,$D69,REF_Fuel_UnitConversionFactors!$C$6:$C$230,P$59) -> 3.965666826 | Q69: =SUMIFS(REF_Fuel_UnitConversionFactors!$D$6:$D$230,REF_Fuel_UnitConversionFactors!$B$6:$B$230,$D69,REF_Fuel_UnitConversionFactors!$C$6:$C$230,Q$59) -> 39.62609026 | R69: =SUMIFS(REF_Fuel_UnitConversionFactors!$D$6:$D$230,REF_Fuel_UnitConversionFactors!$B$6:$B$230,$D69,REF_Fuel_UnitConversionFactors!$C$6:$C$230,R$59) -> 9.993312296e-08 | S69: =SUMIFS(REF_Fuel_UnitConversionFactors!$D$6:$D$230,REF_Fuel_UnitConversionFactors!$B$6:$B$230,$D69,REF_Fuel_UnitConversionFactors!$C$6:$C$230,S$59) -> 0.7138080211
B70: British thermal unit | D70: Btu | E70: =SUMIFS(REF_Fuel_UnitConversionFactors!$D$6:$D$230,REF_Fuel_UnitConversionFactors!$B$6:$B$230,$D70,REF_Fuel_UnitConversionFactors!$C$6:$C$230,E$59) -> 0.00029307107 | F70: =SUMIFS(REF_Fuel_UnitConversionFactors!$D$6:$D$230,REF_Fuel_UnitConversionFactors!$B$6:$B$230,$D70,REF_Fuel_UnitConversionFactors!$C$6:$C$230,F$59) -> 2.9307107e-07 | G70: =SUMIFS(REF_Fuel_UnitConversionFactors!$D$6:$D$230,REF_Fuel_UnitConversionFactors!$B$6:$B$230,$D70,REF_Fuel_UnitConversionFactors!$C$6:$C$230,G$59) -> 2.9307107e-10 | H70: =SUMIFS(REF_Fuel_UnitConversionFactors!$D$6:$D$230,REF_Fuel_UnitConversionFactors!$B$6:$B$230,$D70,REF_Fuel_UnitConversionFactors!$C$6:$C$230,H$59) -> 2.9307107e-13 | I70: =SUMIFS(REF_Fuel_UnitConversionFactors!$D$6:$D$230,REF_Fuel_UnitConversionFactors!$B$6:$B$230,$D70,REF_Fuel_UnitConversionFactors!$C$6:$C$230,I$59) -> 0.001055055852 | J70: =SUMIFS(REF_Fuel_UnitConversionFactors!$D$6:$D$230,REF_Fuel_UnitConversionFactors!$B$6:$B$230,$D70,REF_Fuel_UnitConversionFactors!$C$6:$C$230,J$59) -> 1.055055852e-06 | K70: =SUMIFS(REF_Fuel_UnitConversionFactors!$D$6:$D$230,REF_Fuel_UnitConversionFactors!$B$6:$B$230,$D70,REF_Fuel_UnitConversionFactors!$C$6:$C$230,K$59) -> 1.055055852e-09 | L70: =SUMIFS(REF_Fuel_UnitConversionFactors!$D$6:$D$230,REF_Fuel_UnitConversionFactors!$B$6:$B$230,$D70,REF_Fuel_UnitConversionFactors!$C$6:$C$230,L$59) -> 0.0002521644011 | M70: =SUMIFS(REF_Fuel_UnitConversionFactors!$D$6:$D$230,REF_Fuel_UnitConversionFactors!$B$6:$B$230,$D70,REF_Fuel_UnitConversionFactors!$C$6:$C$230,M$59) -> 2.521644011e-07 | N70: =SUMIFS(REF_Fuel_UnitConversionFactors!$D$6:$D$230,REF_Fuel_UnitConversionFactors!$B$6:$B$230,$D70,REF_Fuel_UnitConversionFactors!$C$6:$C$230,N$59) -> 1 | O70: =SUMIFS(REF_Fuel_UnitConversionFactors!$D$6:$D$230,REF_Fuel_UnitConversionFactors!$B$6:$B$230,$D70,REF_Fuel_UnitConversionFactors!$C$6:$C$230,O$59) -> 0.001 | P70: =SUMIFS(REF_Fuel_UnitConversionFactors!$D$6:$D$230,REF_Fuel_UnitConversionFactors!$B$6:$B$230,$D70,REF_Fuel_UnitConversionFactors!$C$6:$C$230,P$59) -> 1e-06 | Q70: =SUMIFS(REF_Fuel_UnitConversionFactors!$D$6:$D$230,REF_Fuel_UnitConversionFactors!$B$6:$B$230,$D70,REF_Fuel_UnitConversionFactors!$C$6:$C$230,Q$59) -> 9.992289316e-06 | R70: =SUMIFS(REF_Fuel_UnitConversionFactors!$D$6:$D$230,REF_Fuel_UnitConversionFactors!$B$6:$B$230,$D70,REF_Fuel_UnitConversionFactors!$C$6:$C$230,R$59) -> 2.51995761e-14 | S70: =SUMIFS(REF_Fuel_UnitConversionFactors!$D$6:$D$230,REF_Fuel_UnitConversionFactors!$B$6:$B$230,$D70,REF_Fuel_UnitConversionFactors!$C$6:$C$230,S$59) -> 1.799969721e-07
B71: Kilo Btu | D71: kBtu | E71: =SUMIFS(REF_Fuel_UnitConversionFactors!$D$6:$D$230,REF_Fuel_UnitConversionFactors!$B$6:$B$230,$D71,REF_Fuel_UnitConversionFactors!$C$6:$C$230,E$59) -> 0.29307107 | F71: =SUMIFS(REF_Fuel_UnitConversionFactors!$D$6:$D$230,REF_Fuel_UnitConversionFactors!$B$6:$B$230,$D71,REF_Fuel_UnitConversionFactors!$C$6:$C$230,F$59) -> 0.00029307107 | G71: =SUMIFS(REF_Fuel_UnitConversionFactors!$D$6:$D$230,REF_Fuel_UnitConversionFactors!$B$6:$B$230,$D71,REF_Fuel_UnitConversionFactors!$C$6:$C$230,G$59) -> 2.9307107e-07 | H71: =SUMIFS(REF_Fuel_UnitConversionFactors!$D$6:$D$230,REF_Fuel_UnitConversionFactors!$B$6:$B$230,$D71,REF_Fuel_UnitConversionFactors!$C$6:$C$230,H$59) -> 2.9307107e-10 | I71: =SUMIFS(REF_Fuel_UnitConversionFactors!$D$6:$D$230,REF_Fuel_UnitConversionFactors!$B$6:$B$230,$D71,REF_Fuel_UnitConversionFactors!$C$6:$C$230,I$59) -> 1.055055852 | J71: =SUMIFS(REF_Fuel_UnitConversionFactors!$D$6:$D$230,REF_Fuel_UnitConversionFactors!$B$6:$B$230,$D71,REF_Fuel_UnitConversionFactors!$C$6:$C$230,J$59) -> 0.001055055852 | K71: =SUMIFS(REF_Fuel_UnitConversionFactors!$D$6:$D$230,REF_Fuel_UnitConversionFactors!$B$6:$B$230,$D71,REF_Fuel_UnitConversionFactors!$C$6:$C$230,K$59) -> 1.055055852e-06 | L71: =SUMIFS(REF_Fuel_UnitConversionFactors!$D$6:$D$230,REF_Fuel_UnitConversionFactors!$B$6:$B$230,$D71,REF_Fuel_UnitConversionFactors!$C$6:$C$230,L$59) -> 0.2521644011 | M71: =SUMIFS(REF_Fuel_UnitConversionFactors!$D$6:$D$230,REF_Fuel_UnitConversionFactors!$B$6:$B$230,$D71,REF_Fuel_UnitConversionFactors!$C$6:$C$230,M$59) -> 0.0002521644011 | N71: =SUMIFS(REF_Fuel_UnitConversionFactors!$D$6:$D$230,REF_Fuel_UnitConversionFactors!$B$6:$B$230,$D71,REF_Fuel_UnitConversionFactors!$C$6:$C$230,N$59) -> 1000 | O71: =SUMIFS(REF_Fuel_UnitConversionFactors!$D$6:$D$230,REF_Fuel_UnitConversionFactors!$B$6:$B$230,$D71,REF_Fuel_UnitConversionFactors!$C$6:$C$230,O$59) -> 1 | P71: =SUMIFS(REF_Fuel_UnitConversionFactors!$D$6:$D$230,REF_Fuel_UnitConversionFactors!$B$6:$B$230,$D71,REF_Fuel_UnitConversionFactors!$C$6:$C$230,P$59) -> 0.001 | Q71: =SUMIFS(REF_Fuel_UnitConversionFactors!$D$6:$D$230,REF_Fuel_UnitConversionFactors!$B$6:$B$230,$D71,REF_Fuel_UnitConversionFactors!$C$6:$C$230,Q$59) -> 0.009992289316 | R71: =SUMIFS(REF_Fuel_UnitConversionFactors!$D$6:$D$230,REF_Fuel_UnitConversionFactors!$B$6:$B$230,$D71,REF_Fuel_UnitConversionFactors!$C$6:$C$230,R$59) -> 2.51995761e-11 | S71: =SUMIFS(REF_Fuel_UnitConversionFactors!$D$6:$D$230,REF_Fuel_UnitConversionFactors!$B$6:$B$230,$D71,REF_Fuel_UnitConversionFactors!$C$6:$C$230,S$59) -> 0.0001799969721
B72: Million Btu | D72: MMBtu | E72: =SUMIFS(REF_Fuel_UnitConversionFactors!$D$6:$D$230,REF_Fuel_UnitConversionFactors!$B$6:$B$230,$D72,REF_Fuel_UnitConversionFactors!$C$6:$C$230,E$59) -> 293.07107 | F72: =SUMIFS(REF_Fuel_UnitConversionFactors!$D$6:$D$230,REF_Fuel_UnitConversionFactors!$B$6:$B$230,$D72,REF_Fuel_UnitConversionFactors!$C$6:$C$230,F$59) -> 0.29307107 | G72: =SUMIFS(REF_Fuel_UnitConversionFactors!$D$6:$D$230,REF_Fuel_UnitConversionFactors!$B$6:$B$230,$D72,REF_Fuel_UnitConversionFactors!$C$6:$C$230,G$59) -> 0.00029307107 | H72: =SUMIFS(REF_Fuel_UnitConversionFactors!$D$6:$D$230,REF_Fuel_UnitConversionFactors!$B$6:$B$230,$D72,REF_Fuel_UnitConversionFactors!$C$6:$C$230,H$59) -> 2.9307107e-07 | I72: =SUMIFS(REF_Fuel_UnitConversionFactors!$D$6:$D$230,REF_Fuel_UnitConversionFactors!$B$6:$B$230,$D72,REF_Fuel_UnitConversionFactors!$C$6:$C$230,I$59) -> 1055.055852 | J72: =SUMIFS(REF_Fuel_UnitConversionFactors!$D$6:$D$230,REF_Fuel_UnitConversionFactors!$B$6:$B$230,$D72,REF_Fuel_UnitConversionFactors!$C$6:$C$230,J$59) -> 1.055055852 | K72: =SUMIFS(REF_Fuel_UnitConversionFactors!$D$6:$D$230,REF_Fuel_UnitConversionFactors!$B$6:$B$230,$D72,REF_Fuel_UnitConversionFactors!$C$6:$C$230,K$59) -> 0.001055055852 | L72: =SUMIFS(REF_Fuel_UnitConversionFactors!$D$6:$D$230,REF_Fuel_UnitConversionFactors!$B$6:$B$230,$D72,REF_Fuel_UnitConversionFactors!$C$6:$C$230,L$59) -> 252.1644011 | M72: =SUMIFS(REF_Fuel_UnitConversionFactors!$D$6:$D$230,REF_Fuel_UnitConversionFactors!$B$6:$B$230,$D72,REF_Fuel_UnitConversionFactors!$C$6:$C$230,M$59) -> 0.2521644011 | N72: =SUMIFS(REF_Fuel_UnitConversionFactors!$D$6:$D$230,REF_Fuel_UnitConversionFactors!$B$6:$B$230,$D72,REF_Fuel_UnitConversionFactors!$C$6:$C$230,N$59) -> 1000000 | O72: =SUMIFS(REF_Fuel_UnitConversionFactors!$D$6:$D$230,REF_Fuel_UnitConversionFactors!$B$6:$B$230,$D72,REF_Fuel_UnitConversionFactors!$C$6:$C$230,O$59) -> 1000 | P72: =SUMIFS(REF_Fuel_UnitConversionFactors!$D$6:$D$230,REF_Fuel_UnitConversionFactors!$B$6:$B$230,$D72,REF_Fuel_UnitConversionFactors!$C$6:$C$230,P$59) -> 1 | Q72: =SUMIFS(REF_Fuel_UnitConversionFactors!$D$6:$D$230,REF_Fuel_UnitConversionFactors!$B$6:$B$230,$D72,REF_Fuel_UnitConversionFactors!$C$6:$C$230,Q$59) -> 9.992289316 | R72: =SUMIFS(REF_Fuel_UnitConversionFactors!$D$6:$D$230,REF_Fuel_UnitConversionFactors!$B$6:$B$230,$D72,REF_Fuel_UnitConversionFactors!$C$6:$C$230,R$59) -> 2.51995761e-08 | S72: =SUMIFS(REF_Fuel_UnitConversionFactors!$D$6:$D$230,REF_Fuel_UnitConversionFactors!$B$6:$B$230,$D72,REF_Fuel_UnitConversionFactors!$C$6:$C$230,S$59) -> 0.1799969721
B73: Therms | D73: Therm | E73: =SUMIFS(REF_Fuel_UnitConversionFactors!$D$6:$D$230,REF_Fuel_UnitConversionFactors!$B$6:$B$230,$D73,REF_Fuel_UnitConversionFactors!$C$6:$C$230,E$59) -> 29.32972222 | F73: =SUMIFS(REF_Fuel_UnitConversionFactors!$D$6:$D$230,REF_Fuel_UnitConversionFactors!$B$6:$B$230,$D73,REF_Fuel_UnitConversionFactors!$C$6:$C$230,F$59) -> 0.02932972222 | G73: =SUMIFS(REF_Fuel_UnitConversionFactors!$D$6:$D$230,REF_Fuel_UnitConversionFactors!$B$6:$B$230,$D73,REF_Fuel_UnitConversionFactors!$C$6:$C$230,G$59) -> 2.932972222e-05 | H73: =SUMIFS(REF_Fuel_UnitConversionFactors!$D$6:$D$230,REF_Fuel_UnitConversionFactors!$B$6:$B$230,$D73,REF_Fuel_UnitConversionFactors!$C$6:$C$230,H$59) -> 2.932972222e-08 | I73: =SUMIFS(REF_Fuel_UnitConversionFactors!$D$6:$D$230,REF_Fuel_UnitConversionFactors!$B$6:$B$230,$D73,REF_Fuel_UnitConversionFactors!$C$6:$C$230,I$59) -> 105.587 | J73: =SUMIFS(REF_Fuel_UnitConversionFactors!$D$6:$D$230,REF_Fuel_UnitConversionFactors!$B$6:$B$230,$D73,REF_Fuel_UnitConversionFactors!$C$6:$C$230,J$59) -> 0.105587 | K73: =SUMIFS(REF_Fuel_UnitConversionFactors!$D$6:$D$230,REF_Fuel_UnitConversionFactors!$B$6:$B$230,$D73,REF_Fuel_UnitConversionFactors!$C$6:$C$230,K$59) -> 0.000105587 | L73: =SUMIFS(REF_Fuel_UnitConversionFactors!$D$6:$D$230,REF_Fuel_UnitConversionFactors!$B$6:$B$230,$D73,REF_Fuel_UnitConversionFactors!$C$6:$C$230,L$59) -> 25.23589871 | M73: =SUMIFS(REF_Fuel_UnitConversionFactors!$D$6:$D$230,REF_Fuel_UnitConversionFactors!$B$6:$B$230,$D73,REF_Fuel_UnitConversionFactors!$C$6:$C$230,M$59) -> 0.02523589871 | N73: =SUMIFS(REF_Fuel_UnitConversionFactors!$D$6:$D$230,REF_Fuel_UnitConversionFactors!$B$6:$B$230,$D73,REF_Fuel_UnitConversionFactors!$C$6:$C$230,N$59) -> 100077.1663 | O73: =SUMIFS(REF_Fuel_UnitConversionFactors!$D$6:$D$230,REF_Fuel_UnitConversionFactors!$B$6:$B$230,$D73,REF_Fuel_UnitConversionFactors!$C$6:$C$230,O$59) -> 100.0771663 | P73: =SUMIFS(REF_Fuel_UnitConversionFactors!$D$6:$D$230,REF_Fuel_UnitConversionFactors!$B$6:$B$230,$D73,REF_Fuel_UnitConversionFactors!$C$6:$C$230,P$59) -> 0.1000771663 | Q73: =SUMIFS(REF_Fuel_UnitConversionFactors!$D$6:$D$230,REF_Fuel_UnitConversionFactors!$B$6:$B$230,$D73,REF_Fuel_UnitConversionFactors!$C$6:$C$230,Q$59) -> 1 | R73: =SUMIFS(REF_Fuel_UnitConversionFactors!$D$6:$D$230,REF_Fuel_UnitConversionFactors!$B$6:$B$230,$D73,REF_Fuel_UnitConversionFactors!$C$6:$C$230,R$59) -> 2.521902169e-09 | S73: =SUMIFS(REF_Fuel_UnitConversionFactors!$D$6:$D$230,REF_Fuel_UnitConversionFactors!$B$6:$B$230,$D73,REF_Fuel_UnitConversionFactors!$C$6:$C$230,S$59) -> 0.01801358692
B74: Million tonnes of oil equivalent | D74: Mtoe | E74: =SUMIFS(REF_Fuel_UnitConversionFactors!$D$6:$D$230,REF_Fuel_UnitConversionFactors!$B$6:$B$230,$D74,REF_Fuel_UnitConversionFactors!$C$6:$C$230,E$59) -> 11630000000 | F74: =SUMIFS(REF_Fuel_UnitConversionFactors!$D$6:$D$230,REF_Fuel_UnitConversionFactors!$B$6:$B$230,$D74,REF_Fuel_UnitConversionFactors!$C$6:$C$230,F$59) -> 11630000 | G74: =SUMIFS(REF_Fuel_UnitConversionFactors!$D$6:$D$230,REF_Fuel_UnitConversionFactors!$B$6:$B$230,$D74,REF_Fuel_UnitConversionFactors!$C$6:$C$230,G$59) -> 11630 | H74: =SUMIFS(REF_Fuel_UnitConversionFactors!$D$6:$D$230,REF_Fuel_UnitConversionFactors!$B$6:$B$230,$D74,REF_Fuel_UnitConversionFactors!$C$6:$C$230,H$59) -> 11.63 | I74: =SUMIFS(REF_Fuel_UnitConversionFactors!$D$6:$D$230,REF_Fuel_UnitConversionFactors!$B$6:$B$230,$D74,REF_Fuel_UnitConversionFactors!$C$6:$C$230,I$59) -> 41868000000 | J74: =SUMIFS(REF_Fuel_UnitConversionFactors!$D$6:$D$230,REF_Fuel_UnitConversionFactors!$B$6:$B$230,$D74,REF_Fuel_UnitConversionFactors!$C$6:$C$230,J$59) -> 41868000 | K74: =SUMIFS(REF_Fuel_UnitConversionFactors!$D$6:$D$230,REF_Fuel_UnitConversionFactors!$B$6:$B$230,$D74,REF_Fuel_UnitConversionFactors!$C$6:$C$230,K$59) -> 41868 | L74: =SUMIFS(REF_Fuel_UnitConversionFactors!$D$6:$D$230,REF_Fuel_UnitConversionFactors!$B$6:$B$230,$D74,REF_Fuel_UnitConversionFactors!$C$6:$C$230,L$59) -> 1.000669218e+10 | M74: =SUMIFS(REF_Fuel_UnitConversionFactors!$D$6:$D$230,REF_Fuel_UnitConversionFactors!$B$6:$B$230,$D74,REF_Fuel_UnitConversionFactors!$C$6:$C$230,M$59) -> 10006692.18 | N74: =SUMIFS(REF_Fuel_UnitConversionFactors!$D$6:$D$230,REF_Fuel_UnitConversionFactors!$B$6:$B$230,$D74,REF_Fuel_UnitConversionFactors!$C$6:$C$230,N$59) -> 3.968320722e+13 | O74: =SUMIFS(REF_Fuel_UnitConversionFactors!$D$6:$D$230,REF_Fuel_UnitConversionFactors!$B$6:$B$230,$D74,REF_Fuel_UnitConversionFactors!$C$6:$C$230,O$59) -> 3.968320722e+10 | P74: =SUMIFS(REF_Fuel_UnitConversionFactors!$D$6:$D$230,REF_Fuel_UnitConversionFactors!$B$6:$B$230,$D74,REF_Fuel_UnitConversionFactors!$C$6:$C$230,P$59) -> 39683207.22 | Q74: =SUMIFS(REF_Fuel_UnitConversionFactors!$D$6:$D$230,REF_Fuel_UnitConversionFactors!$B$6:$B$230,$D74,REF_Fuel_UnitConversionFactors!$C$6:$C$230,Q$59) -> 396526087.5 | R74: =SUMIFS(REF_Fuel_UnitConversionFactors!$D$6:$D$230,REF_Fuel_UnitConversionFactors!$B$6:$B$230,$D74,REF_Fuel_UnitConversionFactors!$C$6:$C$230,R$59) -> 1 | S74: =SUMIFS(REF_Fuel_UnitConversionFactors!$D$6:$D$230,REF_Fuel_UnitConversionFactors!$B$6:$B$230,$D74,REF_Fuel_UnitConversionFactors!$C$6:$C$230,S$59) -> 7142857.143
B75: Barrels of oil equivalent | D75: BOE | E75: =SUMIFS(REF_Fuel_UnitConversionFactors!$D$6:$D$230,REF_Fuel_UnitConversionFactors!$B$6:$B$230,$D75,REF_Fuel_UnitConversionFactors!$C$6:$C$230,E$59) -> 1628.2 | F75: =SUMIFS(REF_Fuel_UnitConversionFactors!$D$6:$D$230,REF_Fuel_UnitConversionFactors!$B$6:$B$230,$D75,REF_Fuel_UnitConversionFactors!$C$6:$C$230,F$59) -> 1.6282 | G75: =SUMIFS(REF_Fuel_UnitConversionFactors!$D$6:$D$230,REF_Fuel_UnitConversionFactors!$B$6:$B$230,$D75,REF_Fuel_UnitConversionFactors!$C$6:$C$230,G$59) -> 0.0016282 | H75: =SUMIFS(REF_Fuel_UnitConversionFactors!$D$6:$D$230,REF_Fuel_UnitConversionFactors!$B$6:$B$230,$D75,REF_Fuel_UnitConversionFactors!$C$6:$C$230,H$59) -> 1.6282e-06 | I75: =SUMIFS(REF_Fuel_UnitConversionFactors!$D$6:$D$230,REF_Fuel_UnitConversionFactors!$B$6:$B$230,$D75,REF_Fuel_UnitConversionFactors!$C$6:$C$230,I$59) -> 5861.52 | J75: =SUMIFS(REF_Fuel_UnitConversionFactors!$D$6:$D$230,REF_Fuel_UnitConversionFactors!$B$6:$B$230,$D75,REF_Fuel_UnitConversionFactors!$C$6:$C$230,J$59) -> 5.86152 | K75: =SUMIFS(REF_Fuel_UnitConversionFactors!$D$6:$D$230,REF_Fuel_UnitConversionFactors!$B$6:$B$230,$D75,REF_Fuel_UnitConversionFactors!$C$6:$C$230,K$59) -> 0.00586152 | L75: =SUMIFS(REF_Fuel_UnitConversionFactors!$D$6:$D$230,REF_Fuel_UnitConversionFactors!$B$6:$B$230,$D75,REF_Fuel_UnitConversionFactors!$C$6:$C$230,L$59) -> 1400.936905 | M75: =SUMIFS(REF_Fuel_UnitConversionFactors!$D$6:$D$230,REF_Fuel_UnitConversionFactors!$B$6:$B$230,$D75,REF_Fuel_UnitConversionFactors!$C$6:$C$230,M$59) -> 1.400936905 | N75: =SUMIFS(REF_Fuel_UnitConversionFactors!$D$6:$D$230,REF_Fuel_UnitConversionFactors!$B$6:$B$230,$D75,REF_Fuel_UnitConversionFactors!$C$6:$C$230,N$59) -> 5555649.01 | O75: =SUMIFS(REF_Fuel_UnitConversionFactors!$D$6:$D$230,REF_Fuel_UnitConversionFactors!$B$6:$B$230,$D75,REF_Fuel_UnitConversionFactors!$C$6:$C$230,O$59) -> 5555.64901 | P75: =SUMIFS(REF_Fuel_UnitConversionFactors!$D$6:$D$230,REF_Fuel_UnitConversionFactors!$B$6:$B$230,$D75,REF_Fuel_UnitConversionFactors!$C$6:$C$230,P$59) -> 5.55564901 | Q75: =SUMIFS(REF_Fuel_UnitConversionFactors!$D$6:$D$230,REF_Fuel_UnitConversionFactors!$B$6:$B$230,$D75,REF_Fuel_UnitConversionFactors!$C$6:$C$230,Q$59) -> 55.51365225 | R75: =SUMIFS(REF_Fuel_UnitConversionFactors!$D$6:$D$230,REF_Fuel_UnitConversionFactors!$B$6:$B$230,$D75,REF_Fuel_UnitConversionFactors!$C$6:$C$230,R$59) -> 1.4e-07 | S75: =SUMIFS(REF_Fuel_UnitConversionFactors!$D$6:$D$230,REF_Fuel_UnitConversionFactors!$B$6:$B$230,$D75,REF_Fuel_UnitConversionFactors!$C$6:$C$230,S$59) -> 1
B77: Fuel volume to energy conversion factors
B79: Fuel | E79: From | F79: To | G79: Factor
B80: Aviation gasoline | E80: m³ | F80: kWh | G80: 9290.544485
B81: Aviation gasoline | E81: m³ | F81: MWh | G81: 9.290512785
B82: Aviation gasoline | E82: m³ | F82: GWh | G82: 0.009290512785
B83: Aviation gasoline | E83: m³ | F83: TWh | G83: 9.290512785e-06
B84: Aviation gasoline | E84: m³ | F84: MJ | G84: 33446.09963
B85: Aviation gasoline | E85: m³ | F85: GJ | G85: 33.44609963
B86: Aviation gasoline | E86: m³ | F86: TJ | G86: 0.03344609963
B87: Aviation gasoline | E87: m³ | F87: Mcal | G87: 7988.439826
B88: Aviation gasoline | E88: m³ | F88: Gcal | G88: 7.988439826
B89: Aviation gasoline | E89: m³ | F89: Btu | G89: 31700661.22
B90: Aviation gasoline | E90: m³ | F90: kBtu | G90: 31700.66122
B91: Aviation gasoline | E91: m³ | F91: MMBtu | G91: 31.70066122
B92: Aviation gasoline | E92: m³ | F92: Therm | G92: 317.0066122
B93: Aviation gasoline | E93: m³ | F93: Mtoe | G93: 7.988439826e-07
B94: Aviation gasoline | E94: m³ | F94: BOE | G94: 5.466779028
B95: Biodiesels | E95: m³ | F95: kWh | G95: 9909.914118
B96: Biodiesels | E96: m³ | F96: MWh | G96: 9.909880304
B97: Biodiesels | E97: m³ | F97: GWh | G97: 0.009909880304
B98: Biodiesels | E98: m³ | F98: TWh | G98: 9.909880304e-06
B99: Biodiesels | E99: m³ | F99: MJ | G99: 35675.83961
B100: Biodiesels | E100: m³ | F100: GJ | G100: 35.67583961
B101: Biodiesels | E101: m³ | F101: TJ | G101: 0.03567583961
B102: Biodiesels | E102: m³ | F102: Mcal | G102: 8521.002481
B103: Biodiesels | E103: m³ | F103: Gcal | G103: 8.521002481
B104: Biodiesels | E104: m³ | F104: Btu | G104: 33814038.64
B105: Biodiesels | E105: m³ | F105: kBtu | G105: 33814.03864
B106: Biodiesels | E106: m³ | F106: MMBtu | G106: 33.81403864
B107: Biodiesels | E107: m³ | F107: Therm | G107: 338.1403864
B108: Biodiesels | E108: m³ | F108: Mtoe | G108: 8.521002481e-07
B109: Biodiesels | E109: m³ | F109: BOE | G109: 5.831230963
B110: Biogasoline | E110: m³ | F110: kWh | G110: 8979.543509
B111: Biogasoline | E111: m³ | F111: MWh | G111: 8.979512869
B112: Biogasoline | E112: m³ | F112: GWh | G112: 0.008979512869
B113: Biogasoline | E113: m³ | F113: TWh | G113: 8.979512869e-06
B114: Biogasoline | E114: m³ | F114: MJ | G114: 32326.49144
B115: Biogasoline | E115: m³ | F115: GJ | G115: 32.32649144
B116: Biogasoline | E116: m³ | F116: TJ | G116: 0.03232649144
B117: Biogasoline | E117: m³ | F117: Mcal | G117: 7721.026802
B118: Biogasoline | E118: m³ | F118: Gcal | G118: 7.721026802
B119: Biogasoline | E119: m³ | F119: Btu | G119: 30639481.59
B120: Biogasoline | E120: m³ | F120: kBtu | G120: 30639.48159
B121: Biogasoline | E121: m³ | F121: MMBtu | G121: 30.63948159
B122: Biogasoline | E122: m³ | F122: Therm | G122: 306.3948159
B123: Biogasoline | E123: m³ | F123: Mtoe | G123: 7.721026802e-07
B124: Biogasoline | E124: m³ | F124: BOE | G124: 5.2837786
B125: Bitumen | E125: m³ | F125: kWh | G125: 26383.63655
B126: Bitumen | E126: m³ | F126: MWh | G126: 26.38354653
B127: Bitumen | E127: m³ | F127: GWh | G127: 0.02638354653
B128: Bitumen | E128: m³ | F128: TWh | G128: 2.638354653e-05
B129: Bitumen | E129: m³ | F129: MJ | G129: 94981.48769
B130: Bitumen | E130: m³ | F130: GJ | G130: 94.98148769
B131: Bitumen | E131: m³ | F131: TJ | G131: 0.09498148769
B132: Bitumen | E132: m³ | F132: Mcal | G132: 22685.87092
B133: Bitumen | E133: m³ | F133: Gcal | G133: 22.68587092
B134: Bitumen | E134: m³ | F134: Btu | G134: 90024726.27
B135: Bitumen | E135: m³ | F135: kBtu | G135: 90024.72627
B136: Bitumen | E136: m³ | F136: MMBtu | G136: 90.02472627
B137: Bitumen | E137: m³ | F137: Therm | G137: 900.2472627
B138: Bitumen | E138: m³ | F138: Mtoe | G138: 2.268587092e-06
B139: Bitumen | E139: m³ | F139: BOE | G139: 15.52476404
B140: Butane | E140: m³ | F140: kWh | G140: 7974.384017
B141: Butane | E141: m³ | F141: MWh | G141: 7.974356807
B142: Butane | E142: m³ | F142: GWh | G142: 0.007974356807
B143: Butane | E143: m³ | F143: TWh | G143: 7.974356807e-06
B144: Butane | E144: m³ | F144: MJ | G144: 28707.90218
B145: Butane | E145: m³ | F145: GJ | G145: 28.70790218
B146: Butane | E146: m³ | F146: TJ | G146: 0.02870790218
B147: Butane | E147: m³ | F147: Mcal | G147: 6856.744184
B148: Butane | E148: m³ | F148: Gcal | G148: 6.856744184
B149: Butane | E149: m³ | F149: Btu | G149: 27209734.22
B150: Butane | E150: m³ | F150: kBtu | G150: 27209.73422
B151: Butane | E151: m³ | F151: MMBtu | G151: 27.20973422
B152: Butane | E152: m³ | F152: Therm | G152: 272.0973422
B153: Butane | E153: m³ | F153: Mtoe | G153: 6.856744184e-07
B154: Butane | E154: m³ | F154: BOE | G154: 4.692318666
B155: Charcoal | E155: m³ | F155: kWh | G155: 2954.084903
B156: Charcoal | E156: m³ | F156: MWh | G156: 2.954074823
B157: Charcoal | E157: m³ | F157: GWh | G157: 0.002954074823
B158: Charcoal | E158: m³ | F158: TWh | G158: 2.954074823e-06
B159: Charcoal | E159: m³ | F159: MJ | G159: 10634.75
B160: Charcoal | E160: m³ | F160: GJ | G160: 10.63475
B161: Charcoal | E161: m³ | F161: TJ | G161: 0.01063475
B162: Charcoal | E162: m³ | F162: Mcal | G162: 2540.058822
B163: Charcoal | E163: m³ | F163: Gcal | G163: 2.540058822
B164: Charcoal | E164: m³ | F164: Btu | G164: 10079758.5
B165: Charcoal | E165: m³ | F165: kBtu | G165: 10079.7585
B166: Charcoal | E166: m³ | F166: MMBtu | G166: 10.0797585
B167: Charcoal | E167: m³ | F167: Therm | G167: 100.797585
B168: Charcoal | E168: m³ | F168: Mtoe | G168: 2.540058822e-07
B169: Charcoal | E169: m³ | F169: BOE | G169: 1.738254353
B170: Coal (Bituminous or Black coal) | E170: m³ | F170: kWh | G170: 6722.248229
B171: Coal (Bituminous or Black coal) | E171: m³ | F171: MWh | G171: 6.722225292
B172: Coal (Bituminous or Black coal) | E172: m³ | F172: GWh | G172: 0.006722225292
B173: Coal (Bituminous or Black coal) | E173: m³ | F173: TWh | G173: 6.722225292e-06
B174: Coal (Bituminous or Black coal) | E174: m³ | F174: MJ | G174: 24200.19455
B175: Coal (Bituminous or Black coal) | E175: m³ | F175: GJ | G175: 24.20019455
B176: Coal (Bituminous or Black coal) | E176: m³ | F176: TJ | G176: 0.02420019455
B177: Coal (Bituminous or Black coal) | E177: m³ | F177: Mcal | G177: 5780.099924
B178: Coal (Bituminous or Black coal) | E178: m³ | F178: Gcal | G178: 5.780099924
B179: Coal (Bituminous or Black coal) | E179: m³ | F179: Btu | G179: 22937268.54
B180: Coal (Bituminous or Black coal) | E180: m³ | F180: kBtu | G180: 22937.26854
B181: Coal (Bituminous or Black coal) | E181: m³ | F181: MMBtu | G181: 22.93726854
B182: Coal (Bituminous or Black coal) | E182: m³ | F182: Therm | G182: 229.3726854
B183: Coal (Bituminous or Black coal) | E183: m³ | F183: Mtoe | G183: 5.780099924e-07
B184: Coal (Bituminous or Black coal) | E184: m³ | F184: BOE | G184: 3.95553196
B185: Coke | E185: m³ | F185: kWh | G185: 10499.95621
B186: Coke | E186: m³ | F186: MWh | G186: 10.49992038
B187: Coke | E187: m³ | F187: GWh | G187: 0.01049992038
B188: Coke | E188: m³ | F188: TWh | G188: 1.049992038e-05
B189: Coke | E189: m³ | F189: MJ | G189: 37800
B190: Coke | E190: m³ | F190: GJ | G190: 37.8
B191: Coke | E191: m³ | F191: TJ | G191: 0.0378
B192: Coke | E192: m³ | F192: Mcal | G192: 9028.347961
B193: Coke | E193: m³ | F193: Gcal | G193: 9.028347961
B194: Coke | E194: m³ | F194: Btu | G194: 35827346.31
B195: Coke | E195: m³ | F195: kBtu | G195: 35827.34631
B196: Coke | E196: m³ | F196: MMBtu | G196: 35.82734631
B197: Coke | E197: m³ | F197: Therm | G197: 358.2734631
B198: Coke | E198: m³ | F198: Mtoe | G198: 9.028347961e-07
B199: Coke | E199: m³ | F199: BOE | G199: 6.178425872
B200: Coking coal | E200: m³ | F200: kWh | G200: 6673.809291
B201: Coking coal | E201: m³ | F201: MWh | G201: 6.673786519
B202: Coking coal | E202: m³ | F202: GWh | G202: 0.006673786519
B203: Coking coal | E203: m³ | F203: TWh | G203: 6.673786519e-06
B204: Coking coal | E204: m³ | F204: MJ | G204: 24025.81364
B205: Coking coal | E205: m³ | F205: GJ | G205: 24.02581364
B206: Coking coal | E206: m³ | F206: TJ | G206: 0.02402581364
B207: Coking coal | E207: m³ | F207: Mcal | G207: 5738.449884
B208: Coking coal | E208: m³ | F208: Gcal | G208: 5.738449884
B209: Coking coal | E209: m³ | F209: Btu | G209: 22771987.99
B210: Coking coal | E210: m³ | F210: kBtu | G210: 22771.98799
B211: Coking coal | E211: m³ | F211: MMBtu | G211: 22.77198799
B212: Coking coal | E212: m³ | F212: Therm | G212: 227.7198799
B213: Coking coal | E213: m³ | F213: Mtoe | G213: 5.738449884e-07
B214: Coking coal | E214: m³ | F214: BOE | G214: 3.927029328
B215: Coal (manufactured solid fuels) | E215: m³ | F215: kWh | G215: 5756.160513
B216: Coal (manufactured solid fuels) | E216: m³ | F216: MWh | G216: 5.756140873
B217: Coal (manufactured solid fuels) | E217: m³ | F217: GWh | G217: 0.005756140873
B218: Coal (manufactured solid fuels) | E218: m³ | F218: TWh | G218: 5.756140873e-06
B219: Coal (manufactured solid fuels) | E219: m³ | F219: MJ | G219: 20722.26427
B220: Coal (manufactured solid fuels) | E220: m³ | F220: GJ | G220: 20.72226427
... 672 more rows

Sheet REF_Fuel_UnitConversionFactors (hidden)
B4: Energy to Energy Conversions | F4: Volume to Volume Conversions | J4: Volume to Energy Conversions | O4: Weight to Weight Conversions | S4: Weight to Energy Conversions
S5: Not Available for Unit
B6: kWh | C6: kWh | D6: 1 | F6: m³ | G6: m³ | H6: 1 | J6: Aviation gasoline | K6: m³ | L6: kWh | M6: 9290.544485 | O6: tonne | P6: tonne | Q6: 1 | S6: Biogasoline | T6: tonne | U6: kWh | V6: 7499.968722
B7: kWh | C7: MWh | D7: 0.001 | F7: thou.m3 | G7: m³ | H7: 1000 | J7: Aviation gasoline | K7: m³ | L7: MWh | M7: 9.290512785 | O7: kg | P7: tonne | Q7: 0.001 | S7: Biogasoline | T7: tonne | U7: MWh | V7: 7.499968722
B8: kWh | C8: GWh | D8: 1e-06 | F8: Mcm | G8: m³ | H8: 1000000 | J8: Aviation gasoline | K8: m³ | L8: GWh | M8: 0.009290512785 | O8: lt | P8: tonne | Q8: 1.01604691 | S8: Biogasoline | T8: tonne | U8: GWh | V8: 0.007499968722
B9: kWh | C9: TWh | D9: 1e-09 | F9: cf (ft3) | G9: m³ | H9: 0.0283168 | J9: Aviation gasoline | K9: m³ | L9: TWh | M9: 9.290512785e-06 | O9: st | P9: tonne | Q9: 0.90718474 | S9: Biogasoline | T9: tonne | U9: TWh | V9: 7.499968722e-06
B10: kWh | C10: MJ | D10: 3.6 | F10: Ccf | G10: m³ | H10: 2.83168 | J10: Aviation gasoline | K10: m³ | L10: MJ | M10: 33446.09963 | O10: lb | P10: tonne | Q10: 0.00045359237 | S10: Biogasoline | T10: tonne | U10: MJ | V10: 27000
B11: kWh | C11: GJ | D11: 0.0036 | F11: Mcf | G11: m³ | H11: 28.3168 | J11: Aviation gasoline | K11: m³ | L11: GJ | M11: 33.44609963 | O11: tonne | P11: kg | Q11: 1000 | S11: Biogasoline | T11: tonne | U11: GJ | V11: 27
B12: kWh | C12: TJ | D12: 3.6e-06 | F12: MMcf | G12: m³ | H12: 28316.8 | J12: Aviation gasoline | K12: m³ | L12: TJ | M12: 0.03344609963 | O12: kg | P12: kg | Q12: 1 | S12: Biogasoline | T12: tonne | U12: TJ | V12: 0.027
B13: kWh | C13: Mcal | D13: 0.8604206517 | F13: bbl | G13: m³ | H13: 0.1589319771 | J13: Aviation gasoline | K13: m³ | L13: Mcal | M13: 7988.439826 | O13: lt | P13: kg | Q13: 1016.04691 | S13: Biogasoline | T13: tonne | U13: Mcal | V13: 6448.819972
B14: kWh | C14: Gcal | D14: 0.0008604206517 | F14: MMb | G14: m³ | H14: 158931977.1 | J14: Aviation gasoline | K14: m³ | L14: Gcal | M14: 7.988439826 | O14: st | P14: kg | Q14: 907.18474 | S14: Biogasoline | T14: tonne | U14: Gcal | V14: 6.448819972
B15: kWh | C15: Btu | D15: 3412.141635 | F15: l (liter) | G15: m³ | H15: 0.001 | J15: Aviation gasoline | K15: m³ | L15: Btu | M15: 31700661.22 | O15: lb | P15: kg | Q15: 0.45359237 | S15: Biogasoline | T15: tonne | U15: Btu | V15: 25590961.65
B16: kWh | C16: kBtu | D16: 3.412141635 | F16: Kl | G16: m³ | H16: 1 | J16: Aviation gasoline | K16: m³ | L16: kBtu | M16: 31700.66122 | O16: tonne | P16: lt | Q16: 0.9842065264 | S16: Biogasoline | T16: tonne | U16: kBtu | V16: 25590.96165
B17: kWh | C17: MMBtu | D17: 0.003412141635 | F17: Ml | G17: m³ | H17: 1000 | J17: Aviation gasoline | K17: m³ | L17: MMBtu | M17: 31.70066122 | O17: kg | P17: lt | Q17: 0.0009842065264 | S17: Biogasoline | T17: tonne | U17: MMBtu | V17: 25.59096165
B18: kWh | C18: Therm | D18: 0.03409510641 | F18: gal (US) | G18: m³ | H18: 0.00378541 | J18: Aviation gasoline | K18: m³ | L18: Therm | M18: 317.0066122 | O18: lt | P18: lt | Q18: 1 | S18: Biogasoline | T18: tonne | U18: Therm | V18: 255.9096165
B19: kWh | C19: Mtoe | D19: 8.598452279e-11 | F19: gal (UK) | G19: m³ | H19: 0.00454609188 | J19: Aviation gasoline | K19: m³ | L19: Mtoe | M19: 7.988439826e-07 | O19: st | P19: lt | Q19: 0.8928571418 | S19: Biogasoline | T19: tonne | U19: Mtoe | V19: 6.448819972e-07
B20: kWh | C20: BOE | D20: 0.0006141751628 | F20: m³ | G20: thou.m3 | H20: 0.001 | J20: Aviation gasoline | K20: m³ | L20: BOE | M20: 5.466779028 | O20: lb | P20: lt | Q20: 0.0004464285709 | S20: Biogasoline | T20: tonne | U20: BOE | V20: 4.413161337
B21: MWh | C21: kWh | D21: 1000 | F21: thou.m3 | G21: thou.m3 | H21: 1 | J21: Biodiesels | K21: m³ | L21: kWh | M21: 9909.914118 | O21: tonne | P21: st | Q21: 1.102311311 | S21: Bitumen | T21: tonne | U21: kWh | V21: 11166.6201
B22: MWh | C22: MWh | D22: 1 | F22: Mcm | G22: thou.m3 | H22: 1000 | J22: Biodiesels | K22: m³ | L22: MWh | M22: 9.909880304 | O22: kg | P22: st | Q22: 0.001102311311 | S22: Bitumen | T22: tonne | U22: MWh | V22: 11.166582
B23: MWh | C23: GWh | D23: 0.001 | F23: cf (ft3) | G23: thou.m3 | H23: 2.83168e-05 | J23: Biodiesels | K23: m³ | L23: GWh | M23: 0.009909880304 | O23: lt | P23: st | Q23: 1.120000001 | S23: Bitumen | T23: tonne | U23: GWh | V23: 0.011166582
B24: MWh | C24: TWh | D24: 1e-06 | F24: Ccf | G24: thou.m3 | H24: 0.00283168 | J24: Biodiesels | K24: m³ | L24: TWh | M24: 9.909880304e-06 | O24: st | P24: st | Q24: 1 | S24: Bitumen | T24: tonne | U24: TWh | V24: 1.1166582e-05
B25: MWh | C25: MJ | D25: 3600 | F25: Mcf | G25: thou.m3 | H25: 0.0283168 | J25: Biodiesels | K25: m³ | L25: MJ | M25: 35675.83961 | O25: lb | P25: st | Q25: 0.0005 | S25: Bitumen | T25: tonne | U25: MJ | V25: 40200
B26: MWh | C26: GJ | D26: 3.6 | F26: MMcf | G26: thou.m3 | H26: 28.3168 | J26: Biodiesels | K26: m³ | L26: GJ | M26: 35.67583961 | O26: tonne | P26: lb | Q26: 2204.622622 | S26: Bitumen | T26: tonne | U26: GJ | V26: 40.2
B27: MWh | C27: TJ | D27: 0.0036 | F27: bbl | G27: thou.m3 | H27: 0.0001589319771 | J27: Biodiesels | K27: m³ | L27: TJ | M27: 0.03567583961 | O27: kg | P27: lb | Q27: 2.204622622 | S27: Bitumen | T27: tonne | U27: TJ | V27: 0.0402
B28: MWh | C28: Mcal | D28: 860.4206517 | F28: MMb | G28: thou.m3 | H28: 158931.9771 | J28: Biodiesels | K28: m³ | L28: Mcal | M28: 8521.002481 | O28: lt | P28: lb | Q28: 2240.000003 | S28: Bitumen | T28: tonne | U28: Mcal | V28: 9601.576403
B29: MWh | C29: Gcal | D29: 0.8604206517 | F29: l (liter) | G29: thou.m3 | H29: 1e-06 | J29: Biodiesels | K29: m³ | L29: Gcal | M29: 8.521002481 | O29: st | P29: lb | Q29: 2000 | S29: Bitumen | T29: tonne | U29: Gcal | V29: 9.601576403
B30: MWh | C30: Btu | D30: 3412141.635 | F30: Kl | G30: thou.m3 | H30: 0.001 | J30: Biodiesels | K30: m³ | L30: Btu | M30: 33814038.64 | O30: lb | P30: lb | Q30: 1 | S30: Bitumen | T30: tonne | U30: Btu | V30: 38102098.46
B31: MWh | C31: kBtu | D31: 3412.141635 | F31: Ml | G31: thou.m3 | H31: 1 | J31: Biodiesels | K31: m³ | L31: kBtu | M31: 33814.03864 | S31: Bitumen | T31: tonne | U31: kBtu | V31: 38102.09846
B32: MWh | C32: MMBtu | D32: 3.412141635 | F32: gal (US) | G32: thou.m3 | H32: 3.78541e-06 | J32: Biodiesels | K32: m³ | L32: MMBtu | M32: 33.81403864 | S32: Bitumen | T32: tonne | U32: MMBtu | V32: 38.10209846
B33: MWh | C33: Therm | D33: 34.09510641 | F33: gal (UK) | G33: thou.m3 | H33: 4.54609188e-06 | J33: Biodiesels | K33: m³ | L33: Therm | M33: 338.1403864 | S33: Bitumen | T33: tonne | U33: Therm | V33: 381.0209846
B34: MWh | C34: Mtoe | D34: 8.598452279e-08 | F34: m³ | G34: Mcm | H34: 1e-06 | J34: Biodiesels | K34: m³ | L34: Mtoe | M34: 8.521002481e-07 | S34: Bitumen | T34: tonne | U34: Mtoe | V34: 9.601576403e-07
B35: MWh | C35: BOE | D35: 0.6141751628 | F35: thou.m3 | G35: Mcm | H35: 0.001 | J35: Biodiesels | K35: m³ | L35: BOE | M35: 5.831230963 | S35: Bitumen | T35: tonne | U35: BOE | V35: 6.570706879
B36: GWh | C36: kWh | D36: 1000000 | F36: Mcm | G36: Mcm | H36: 1 | J36: Biogasoline | K36: m³ | L36: kWh | M36: 8979.543509 | S36: Charcoal | T36: tonne | U36: kWh | V36: 8194.410271
B37: GWh | C37: MWh | D37: 1000 | F37: cf (ft3) | G37: Mcm | H37: 2.83168e-08 | J37: Biogasoline | K37: m³ | L37: MWh | M37: 8.979512869 | S37: Charcoal | T37: tonne | U37: MWh | V37: 8.194410271
B38: GWh | C38: GWh | D38: 1 | F38: Ccf | G38: Mcm | H38: 2.83168e-06 | J38: Biogasoline | K38: m³ | L38: GWh | M38: 0.008979512869 | S38: Charcoal | T38: tonne | U38: GWh | V38: 0.008194410271
B39: GWh | C39: TWh | D39: 0.001 | F39: Mcf | G39: Mcm | H39: 2.83168e-05 | J39: Biogasoline | K39: m³ | L39: TWh | M39: 8.979512869e-06 | S39: Charcoal | T39: tonne | U39: TWh | V39: 8.194410271e-06
B40: GWh | C40: MJ | D40: 3600000 | F40: MMcf | G40: Mcm | H40: 0.0283168 | J40: Biogasoline | K40: m³ | L40: MJ | M40: 32326.49144 | S40: Charcoal | T40: tonne | U40: MJ | V40: 29500
B41: GWh | C41: GJ | D41: 3600 | F41: bbl | G41: Mcm | H41: 1.589319771e-07 | J41: Biogasoline | K41: m³ | L41: GJ | M41: 32.32649144 | S41: Charcoal | T41: tonne | U41: GJ | V41: 29.5
B42: GWh | C42: TJ | D42: 3.6 | F42: MMb | G42: Mcm | H42: 158.9319771 | J42: Biogasoline | K42: m³ | L42: TJ | M42: 0.03232649144 | S42: Charcoal | T42: tonne | U42: TJ | V42: 0.0295
B43: GWh | C43: Mcal | D43: 860420.6517 | F43: l (liter) | G43: Mcm | H43: 1e-09 | J43: Biogasoline | K43: m³ | L43: Mcal | M43: 7721.026802 | S43: Charcoal | T43: tonne | U43: Mcal | V43: 7045.932933
B44: GWh | C44: Gcal | D44: 860.4206517 | F44: Kl | G44: Mcm | H44: 1e-06 | J44: Biogasoline | K44: m³ | L44: Gcal | M44: 7.721026802 | S44: Charcoal | T44: tonne | U44: Gcal | V44: 7.045932933
B45: GWh | C45: Btu | D45: 3412141635 | F45: Ml | G45: Mcm | H45: 0.001 | J45: Biogasoline | K45: m³ | L45: Btu | M45: 30639481.59 | S45: Charcoal | T45: tonne | U45: Btu | V45: 27960495.14
B46: GWh | C46: kBtu | D46: 3412141.635 | F46: gal (US) | G46: Mcm | H46: 3.78541e-09 | J46: Biogasoline | K46: m³ | L46: kBtu | M46: 30639.48159 | S46: Charcoal | T46: tonne | U46: kBtu | V46: 27960.49514
B47: GWh | C47: MMBtu | D47: 3412.141635 | F47: gal (UK) | G47: Mcm | H47: 4.54609188e-09 | J47: Biogasoline | K47: m³ | L47: MMBtu | M47: 30.63948159 | S47: Charcoal | T47: tonne | U47: MMBtu | V47: 27.96049514
B48: GWh | C48: Therm | D48: 34095.10641 | F48: m³ | G48: cf (ft3) | H48: 35.31472483 | J48: Biogasoline | K48: m³ | L48: Therm | M48: 306.3948159 | S48: Charcoal | T48: tonne | U48: Therm | V48: 279.6049514
B49: GWh | C49: Mtoe | D49: 8.598452279e-05 | F49: thou.m3 | G49: cf (ft3) | H49: 35314.72483 | J49: Biogasoline | K49: m³ | L49: Mtoe | M49: 7.721026802e-07 | S49: Charcoal | T49: tonne | U49: Mtoe | V49: 7.045932933e-07
B50: GWh | C50: BOE | D50: 614.1751628 | F50: Mcm | G50: cf (ft3) | H50: 35314724.83 | J50: Biogasoline | K50: m³ | L50: BOE | M50: 5.2837786 | S50: Charcoal | T50: tonne | U50: BOE | V50: 4.821787386
B51: TWh | C51: kWh | D51: 1000000000 | F51: cf (ft3) | G51: cf (ft3) | H51: 1 | J51: Bitumen | K51: m³ | L51: kWh | M51: 26383.63655 | S51: Coal (Bituminous or Black coal) | T51: tonne | U51: kWh | V51: 8069.925846
B52: TWh | C52: MWh | D52: 1000000 | F52: Ccf | G52: cf (ft3) | H52: 100 | J52: Bitumen | K52: m³ | L52: MWh | M52: 26.38354653 | S52: Coal (Bituminous or Black coal) | T52: tonne | U52: MWh | V52: 8.06989831
B53: TWh | C53: GWh | D53: 1000 | F53: Mcf | G53: cf (ft3) | H53: 1000 | J53: Bitumen | K53: m³ | L53: GWh | M53: 0.02638354653 | S53: Coal (Bituminous or Black coal) | T53: tonne | U53: GWh | V53: 0.00806989831
B54: TWh | C54: TWh | D54: 1 | F54: MMcf | G54: cf (ft3) | H54: 1000000 | J54: Bitumen | K54: m³ | L54: TWh | M54: 2.638354653e-05 | S54: Coal (Bituminous or Black coal) | T54: tonne | U54: TWh | V54: 8.06989831e-06
B55: TWh | C55: MJ | D55: 3600000000 | F55: bbl | G55: cf (ft3) | H55: 5.612639038 | J55: Bitumen | K55: m³ | L55: MJ | M55: 94981.48769 | S55: Coal (Bituminous or Black coal) | T55: tonne | U55: MJ | V55: 29051.8542
B56: TWh | C56: GJ | D56: 3600000 | F56: MMb | G56: cf (ft3) | H56: 5612639038 | J56: Bitumen | K56: m³ | L56: GJ | M56: 94.98148769 | S56: Coal (Bituminous or Black coal) | T56: tonne | U56: GJ | V56: 29.0518542
B57: TWh | C57: TJ | D57: 3600 | F57: l (liter) | G57: cf (ft3) | H57: 0.03531472483 | J57: Bitumen | K57: m³ | L57: TJ | M57: 0.09498148769 | S57: Coal (Bituminous or Black coal) | T57: tonne | U57: TJ | V57: 0.0290518542
B58: TWh | C58: Mcal | D58: 860420651.7 | F58: Kl | G58: cf (ft3) | H58: 35.31472483 | J58: Bitumen | K58: m³ | L58: Mcal | M58: 22685.87092 | S58: Coal (Bituminous or Black coal) | T58: tonne | U58: Mcal | V58: 6938.895467
B59: TWh | C59: Gcal | D59: 860420.6517 | F59: Ml | G59: cf (ft3) | H59: 35314.72483 | J59: Bitumen | K59: m³ | L59: Gcal | M59: 22.68587092 | S59: Coal (Bituminous or Black coal) | T59: tonne | U59: Gcal | V59: 6.938895467
B60: TWh | C60: Btu | D60: 3.412141635e+12 | F60: gal (US) | G60: cf (ft3) | H60: 0.1336807125 | J60: Bitumen | K60: m³ | L60: Btu | M60: 90024726.27 | S60: Coal (Bituminous or Black coal) | T60: tonne | U60: Btu | V60: 27535736.55
B61: TWh | C61: kBtu | D61: 3412141635 | F61: gal (UK) | G61: cf (ft3) | H61: 0.1605439838 | J61: Bitumen | K61: m³ | L61: kBtu | M61: 90024.72627 | S61: Coal (Bituminous or Black coal) | T61: tonne | U61: kBtu | V61: 27535.73655
B62: TWh | C62: MMBtu | D62: 3412141.635 | F62: m³ | G62: Ccf | H62: 0.3531472483 | J62: Bitumen | K62: m³ | L62: MMBtu | M62: 90.02472627 | S62: Coal (Bituminous or Black coal) | T62: tonne | U62: MMBtu | V62: 27.53573655
B63: TWh | C63: Therm | D63: 34095106.41 | F63: thou.m3 | G63: Ccf | H63: 353.1472483 | J63: Bitumen | K63: m³ | L63: Therm | M63: 900.2472627 | S63: Coal (Bituminous or Black coal) | T63: tonne | U63: Therm | V63: 275.3573655
B64: TWh | C64: Mtoe | D64: 0.08598452279 | F64: Mcm | G64: Ccf | H64: 353147.2483 | J64: Bitumen | K64: m³ | L64: Mtoe | M64: 2.268587092e-06 | S64: Coal (Bituminous or Black coal) | T64: tonne | U64: Mtoe | V64: 6.938895467e-07
B65: TWh | C65: BOE | D65: 614175.1628 | F65: cf (ft3) | G65: Ccf | H65: 0.01 | J65: Bitumen | K65: m³ | L65: BOE | M65: 15.52476404 | S65: Coal (Bituminous or Black coal) | T65: tonne | U65: BOE | V65: 4.748537768
B66: MJ | C66: kWh | D66: 0.2777777778 | F66: Ccf | G66: Ccf | H66: 1 | J66: Butane | K66: m³ | L66: kWh | M66: 7974.384017 | S66: Coke | T66: tonne | U66: kWh | V66: 7499.968722
B67: MJ | C67: MWh | D67: 0.0002777777778 | F67: Mcf | G67: Ccf | H67: 10 | J67: Butane | K67: m³ | L67: MWh | M67: 7.974356807 | S67: Coke | T67: tonne | U67: MWh | V67: 7.499943131
B68: MJ | C68: GWh | D68: 2.777777778e-07 | F68: MMcf | G68: Ccf | H68: 10000 | J68: Butane | K68: m³ | L68: GWh | M68: 0.007974356807 | S68: Coke | T68: tonne | U68: GWh | V68: 0.007499943131
B69: MJ | C69: TWh | D69: 2.777777778e-10 | F69: bbl | G69: Ccf | H69: 0.05612639038 | J69: Butane | K69: m³ | L69: TWh | M69: 7.974356807e-06 | S69: Coke | T69: tonne | U69: TWh | V69: 7.499943131e-06
B70: MJ | C70: MJ | D70: 1 | F70: MMb | G70: Ccf | H70: 56126390.38 | J70: Butane | K70: m³ | L70: MJ | M70: 28707.90218 | S70: Coke | T70: tonne | U70: MJ | V70: 27000
B71: MJ | C71: GJ | D71: 0.001 | F71: l (liter) | G71: Ccf | H71: 0.0003531472483 | J71: Butane | K71: m³ | L71: GJ | M71: 28.70790218 | S71: Coke | T71: tonne | U71: GJ | V71: 27
B72: MJ | C72: TJ | D72: 1e-06 | F72: Kl | G72: Ccf | H72: 0.3531472483 | J72: Butane | K72: m³ | L72: TJ | M72: 0.02870790218 | S72: Coke | T72: tonne | U72: TJ | V72: 0.027
B73: MJ | C73: Mcal | D73: 0.2390057366 | F73: Ml | G73: Ccf | H73: 353.1472483 | J73: Butane | K73: m³ | L73: Mcal | M73: 6856.744184 | S73: Coke | T73: tonne | U73: Mcal | V73: 6448.819972
B74: MJ | C74: Gcal | D74: 0.0002390057366 | F74: gal (US) | G74: Ccf | H74: 0.001336807125 | J74: Butane | K74: m³ | L74: Gcal | M74: 6.856744184 | S74: Coke | T74: tonne | U74: Gcal | V74: 6.448819972
B75: MJ | C75: Btu | D75: 947.8171209 | F75: gal (UK) | G75: Ccf | H75: 0.001605439838 | J75: Butane | K75: m³ | L75: Btu | M75: 27209734.22 | S75: Coke | T75: tonne | U75: Btu | V75: 25590961.65
B76: MJ | C76: kBtu | D76: 0.9478171209 | F76: m³ | G76: Mcf | H76: 0.03531472483 | J76: Butane | K76: m³ | L76: kBtu | M76: 27209.73422 | S76: Coke | T76: tonne | U76: kBtu | V76: 25590.96165
B77: MJ | C77: MMBtu | D77: 0.0009478171209 | F77: thou.m3 | G77: Mcf | H77: 35.31472483 | J77: Butane | K77: m³ | L77: MMBtu | M77: 27.20973422 | S77: Coke | T77: tonne | U77: MMBtu | V77: 25.59096165
B78: MJ | C78: Therm | D78: 0.00947086289 | F78: Mcm | G78: Mcf | H78: 35314.72483 | J78: Butane | K78: m³ | L78: Therm | M78: 272.0973422 | S78: Coke | T78: tonne | U78: Therm | V78: 255.9096165
B79: MJ | C79: Mtoe | D79: 2.388458966e-11 | F79: cf (ft3) | G79: Mcf | H79: 0.001 | J79: Butane | K79: m³ | L79: Mtoe | M79: 6.856744184e-07 | S79: Coke | T79: tonne | U79: Mtoe | V79: 6.448819972e-07
B80: MJ | C80: BOE | D80: 0.0001706042119 | F80: Ccf | G80: Mcf | H80: 0.1 | J80: Butane | K80: m³ | L80: BOE | M80: 4.692318666 | S80: Coke | T80: tonne | U80: BOE | V80: 4.413161337
B81: GJ | C81: kWh | D81: 277.7777778 | F81: Mcf | G81: Mcf | H81: 1 | J81: Charcoal | K81: m³ | L81: kWh | M81: 2954.084903 | S81: Coking coal | T81: tonne | U81: kWh | V81: 8011.775859
B82: GJ | C82: MWh | D82: 0.2777777778 | F82: MMcf | G82: Mcf | H82: 1000 | J82: Charcoal | K82: m³ | L82: MWh | M82: 2.954074823 | S82: Coking coal | T82: tonne | U82: MWh | V82: 8.011748522
B83: GJ | C83: GWh | D83: 0.0002777777778 | F83: bbl | G83: Mcf | H83: 0.005612639038 | J83: Charcoal | K83: m³ | L83: GWh | M83: 0.002954074823 | S83: Coking coal | T83: tonne | U83: GWh | V83: 0.008011748522
B84: GJ | C84: TWh | D84: 2.777777778e-07 | F84: MMb | G84: Mcf | H84: 5612639.038 | J84: Charcoal | K84: m³ | L84: TWh | M84: 2.954074823e-06 | S84: Coking coal | T84: tonne | U84: TWh | V84: 8.011748522e-06
B85: GJ | C85: MJ | D85: 1000 | F85: l (liter) | G85: Mcf | H85: 3.531472483e-05 | J85: Charcoal | K85: m³ | L85: MJ | M85: 10634.75 | S85: Coking coal | T85: tonne | U85: MJ | V85: 28842.51338
B86: GJ | C86: GJ | D86: 1 | F86: Kl | G86: Mcf | H86: 0.03531472483 | J86: Charcoal | K86: m³ | L86: GJ | M86: 10.63475 | S86: Coking coal | T86: tonne | U86: GJ | V86: 28.84251338
B87: GJ | C87: TJ | D87: 0.001 | F87: Ml | G87: Mcf | H87: 35.31472483 | J87: Charcoal | K87: m³ | L87: TJ | M87: 0.01063475 | S87: Coking coal | T87: tonne | U87: TJ | V87: 0.02884251338
B88: GJ | C88: Mcal | D88: 239.0057366 | F88: gal (US) | G88: Mcf | H88: 0.0001336807125 | J88: Charcoal | K88: m³ | L88: Mcal | M88: 2540.058822 | S88: Coking coal | T88: tonne | U88: Mcal | V88: 6888.895419
B89: GJ | C89: Gcal | D89: 0.2390057366 | F89: gal (UK) | G89: Mcf | H89: 0.0001605439838 | J89: Charcoal | K89: m³ | L89: Gcal | M89: 2.540058822 | S89: Coking coal | T89: tonne | U89: Gcal | V89: 6.888895419
B90: GJ | C90: Btu | D90: 947817.1209 | F90: m³ | G90: MMcf | H90: 3.531472483e-05 | J90: Charcoal | K90: m³ | L90: Btu | M90: 10079758.5 | S90: Coking coal | T90: tonne | U90: Btu | V90: 27337320.51
B91: GJ | C91: kBtu | D91: 947.8171209 | F91: thou.m3 | G91: MMcf | H91: 0.03531472483 | J91: Charcoal | K91: m³ | L91: kBtu | M91: 10079.7585 | S91: Coking coal | T91: tonne | U91: kBtu | V91: 27337.32051
B92: GJ | C92: MMBtu | D92: 0.9478171209 | F92: Mcm | G92: MMcf | H92: 35.31472483 | J92: Charcoal | K92: m³ | L92: MMBtu | M92: 10.0797585 | S92: Coking coal | T92: tonne | U92: MMBtu | V92: 27.33732051
B93: GJ | C93: Therm | D93: 9.47086289 | F93: cf (ft3) | G93: MMcf | H93: 1e-06 | J93: Charcoal | K93: m³ | L93: Therm | M93: 100.797585 | S93: Coking coal | T93: tonne | U93: Therm | V93: 273.3732051
B94: GJ | C94: Mtoe | D94: 2.388458966e-08 | F94: Ccf | G94: MMcf | H94: 0.0001 | J94: Charcoal | K94: m³ | L94: Mtoe | M94: 2.540058822e-07 | S94: Coking coal | T94: tonne | U94: Mtoe | V94: 6.888895419e-07
B95: GJ | C95: BOE | D95: 0.1706042119 | F95: Mcf | G95: MMcf | H95: 0.001 | J95: Charcoal | K95: m³ | L95: BOE | M95: 1.738254353 | S95: Coking coal | T95: tonne | U95: BOE | V95: 4.714320922
B96: TJ | C96: kWh | D96: 277777.7778 | F96: MMcf | G96: MMcf | H96: 1 | J96: Coal (Bituminous or Black coal) | K96: m³ | L96: kWh | M96: 6722.248229 | S96: E85 | T96: tonne | U96: kWh | V96: 9194.4061
B97: TJ | C97: MWh | D97: 277.7777778 | F97: bbl | G97: MMcf | H97: 5.612639038e-06 | J97: Coal (Bituminous or Black coal) | K97: m³ | L97: MWh | M97: 6.722225292 | S97: E85 | T97: tonne | U97: MWh | V97: 9.194374728
B98: TJ | C98: GWh | D98: 0.2777777778 | F98: MMb | G98: MMcf | H98: 5612.639038 | J98: Coal (Bituminous or Black coal) | K98: m³ | L98: GWh | M98: 0.006722225292 | S98: E85 | T98: tonne | U98: GWh | V98: 0.009194374728
B99: TJ | C99: TWh | D99: 0.0002777777778 | F99: l (liter) | G99: MMcf | H99: 3.531472483e-08 | J99: Coal (Bituminous or Black coal) | K99: m³ | L99: TWh | M99: 6.722225292e-06 | S99: E85 | T99: tonne | U99: TWh | V99: 9.194374728e-06
B100: TJ | C100: MJ | D100: 1000000 | F100: Kl | G100: MMcf | H100: 3.531472483e-05 | J100: Coal (Bituminous or Black coal) | K100: m³ | L100: MJ | M100: 24200.19455 | S100: E85 | T100: tonne | U100: MJ | V100: 33100
B101: TJ | C101: GJ | D101: 1000 | F101: Ml | G101: MMcf | H101: 0.03531472483 | J101: Coal (Bituminous or Black coal) | K101: m³ | L101: GJ | M101: 24.20019455 | S101: E85 | T101: tonne | U101: GJ | V101: 33.1
B102: TJ | C102: TJ | D102: 1 | F102: gal (US) | G102: MMcf | H102: 1.336807125e-07 | J102: Coal (Bituminous or Black coal) | K102: m³ | L102: TJ | M102: 0.02420019455 | S102: E85 | T102: tonne | U102: TJ | V102: 0.0331
B103: TJ | C103: Mcal | D103: 239005.7366 | F103: gal (UK) | G103: MMcf | H103: 1.605439838e-07 | J103: Coal (Bituminous or Black coal) | K103: m³ | L103: Mcal | M103: 5780.099924 | S103: E85 | T103: tonne | U103: Mcal | V103: 7905.775596
B104: TJ | C104: Gcal | D104: 239.0057366 | F104: m³ | G104: bbl | H104: 6.292 | J104: Coal (Bituminous or Black coal) | K104: m³ | L104: Gcal | M104: 5.780099924 | S104: E85 | T104: tonne | U104: Gcal | V104: 7.905775596
B105: TJ | C105: Btu | D105: 947817120.9 | F105: thou.m3 | G105: bbl | H105: 6292 | J105: Coal (Bituminous or Black coal) | K105: m³ | L105: Btu | M105: 22937268.54 | S105: E85 | T105: tonne | U105: Btu | V105: 31372623.36
B106: TJ | C106: kBtu | D106: 947817.1209 | F106: Mcm | G106: bbl | H106: 6292000 | J106: Coal (Bituminous or Black coal) | K106: m³ | L106: kBtu | M106: 22937.26854 | S106: E85 | T106: tonne | U106: kBtu | V106: 31372.62336
B107: TJ | C107: MMBtu | D107: 947.8171209 | F107: cf (ft3) | G107: bbl | H107: 0.1781693056 | J107: Coal (Bituminous or Black coal) | K107: m³ | L107: MMBtu | M107: 22.93726854 | S107: E85 | T107: tonne | U107: MMBtu | V107: 31.37262336
B108: TJ | C108: Therm | D108: 9470.86289 | F108: Ccf | G108: bbl | H108: 17.81693056 | J108: Coal (Bituminous or Black coal) | K108: m³ | L108: Therm | M108: 229.3726854 | S108: E85 | T108: tonne | U108: Therm | V108: 313.7262336
B109: TJ | C109: Mtoe | D109: 2.388458966e-05 | F109: Mcf | G109: bbl | H109: 178.1693056 | J109: Coal (Bituminous or Black coal) | K109: m³ | L109: Mtoe | M109: 5.780099924e-07 | S109: E85 | T109: tonne | U109: Mtoe | V109: 7.905775596e-07
B110: TJ | C110: BOE | D110: 170.6042119 | F110: MMcf | G110: bbl | H110: 178169.3056 | J110: Coal (Bituminous or Black coal) | K110: m³ | L110: BOE | M110: 3.95553196 | S110: E85 | T110: tonne | U110: BOE | V110: 5.410208898
B111: Mcal | C111: kWh | D111: 1.16222222 | F111: bbl | G111: bbl | H111: 1 | J111: Coke | K111: m³ | L111: kWh | M111: 10499.95621 | S111: Municipal wastes (all) | T111: tonne | U111: kWh | V111: 3214.402008
B112: Mcal | C112: MWh | D112: 0.00116222222 | F112: MMb | G112: bbl | H112: 1000000000 | J112: Coke | K112: m³ | L112: MWh | M112: 10.49992038 | S112: Municipal wastes (all) | T112: tonne | U112: MWh | V112: 3.21439104
B113: Mcal | C113: GWh | D113: 1.16222222e-06 | F113: l (liter) | G113: bbl | H113: 0.006292 | J113: Coke | K113: m³ | L113: GWh | M113: 0.01049992038 | S113: Municipal wastes (all) | T113: tonne | U113: GWh | V113: 0.00321439104
B114: Mcal | C114: TWh | D114: 1.16222222e-09 | F114: Kl | G114: bbl | H114: 6.292 | J114: Coke | K114: m³ | L114: TWh | M114: 1.049992038e-05 | S114: Municipal wastes (all) | T114: tonne | U114: TWh | V114: 3.21439104e-06
B115: Mcal | C115: MJ | D115: 4.183999992 | F115: Ml | G115: bbl | H115: 6292 | J115: Coke | K115: m³ | L115: MJ | M115: 37800 | S115: Municipal wastes (all) | T115: tonne | U115: MJ | V115: 11571.89549
B116: Mcal | C116: GJ | D116: 0.004183999992 | F116: gal (US) | G116: bbl | H116: 0.02381779972 | J116: Coke | K116: m³ | L116: GJ | M116: 37.8 | S116: Municipal wastes (all) | T116: tonne | U116: GJ | V116: 11.57189549
B117: Mcal | C117: TJ | D117: 4.183999992e-06 | F117: gal (UK) | G117: bbl | H117: 0.02860401011 | J117: Coke | K117: m³ | L117: TJ | M117: 0.0378 | S117: Municipal wastes (all) | T117: tonne | U117: TJ | V117: 0.01157189549
B118: Mcal | C118: Mcal | D118: 1 | F118: m³ | G118: MMb | H118: 6.292e-09 | J118: Coke | K118: m³ | L118: Mcal | M118: 9028.347961 | S118: Municipal wastes (all) | T118: tonne | U118: Mcal | V118: 2763.891509
B119: Mcal | C119: Gcal | D119: 0.001 | F119: thou.m3 | G119: MMb | H119: 6.292e-06 | J119: Coke | K119: m³ | L119: Gcal | M119: 9.028347961 | S119: Municipal wastes (all) | T119: tonne | U119: Gcal | V119: 2.763891509
B120: Mcal | C120: Btu | D120: 3965.666826 | F120: Mcm | G120: MMb | H120: 0.006292 | J120: Coke | K120: m³ | L120: Btu | M120: 35827346.31 | S120: Municipal wastes (all) | T120: tonne | U120: Btu | V120: 10967997.54
B121: Mcal | C121: kBtu | D121: 3.965666826 | F121: cf (ft3) | G121: MMb | H121: 1.781693056e-10 | J121: Coke | K121: m³ | L121: kBtu | M121: 35827.34631 | S121: Municipal wastes (all) | T121: tonne | U121: kBtu | V121: 10967.99754
B122: Mcal | C122: MMBtu | D122: 0.003965666826 | F122: Ccf | G122: MMb | H122: 1.781693056e-08 | J122: Coke | K122: m³ | L122: MMBtu | M122: 35.82734631 | S122: Municipal wastes (all) | T122: tonne | U122: MMBtu | V122: 10.96799754
B123: Mcal | C123: Therm | D123: 0.03962609026 | F123: Mcf | G123: MMb | H123: 1.781693056e-07 | J123: Coke | K123: m³ | L123: Therm | M123: 358.2734631 | S123: Municipal wastes (all) | T123: tonne | U123: Therm | V123: 109.6799754
B124: Mcal | C124: Mtoe | D124: 9.993312296e-11 | F124: MMcf | G124: MMb | H124: 0.0001781693056 | J124: Coke | K124: m³ | L124: Mtoe | M124: 9.028347961e-07 | S124: Municipal wastes (all) | T124: tonne | U124: Mtoe | V124: 2.763891509e-07
B125: Mcal | C125: BOE | D125: 0.0007138080211 | F125: bbl | G125: MMb | H125: 1e-09 | J125: Coke | K125: m³ | L125: BOE | M125: 6.178425872 | S125: Municipal wastes (all) | T125: tonne | U125: BOE | V125: 1.891431176
B126: Gcal | C126: kWh | D126: 1162.22222 | F126: MMb | G126: MMb | H126: 1 | J126: Coking coal | K126: m³ | L126: kWh | M126: 6673.809291 | S126: Municipal wastes (non-biomass fraction) | T126: tonne | U126: kWh | V126: 7430.275999
B127: Gcal | C127: MWh | D127: 1.16222222 | F127: l (liter) | G127: MMb | H127: 6.292e-12 | J127: Coking coal | K127: m³ | L127: MWh | M127: 6.673786519 | S127: Municipal wastes (non-biomass fraction) | T127: tonne | U127: MWh | V127: 7.430250646
B128: Gcal | C128: GWh | D128: 0.00116222222 | F128: Kl | G128: MMb | H128: 6.292e-09 | J128: Coking coal | K128: m³ | L128: GWh | M128: 0.006673786519 | S128: Municipal wastes (non-biomass fraction) | T128: tonne | U128: GWh | V128: 0.007430250646
B129: Gcal | C129: TWh | D129: 1.16222222e-06 | F129: Ml | G129: MMb | H129: 6.292e-06 | J129: Coking coal | K129: m³ | L129: TWh | M129: 6.673786519e-06 | S129: Municipal wastes (non-biomass fraction) | T129: tonne | U129: TWh | V129: 7.430250646e-06
B130: Gcal | C130: MJ | D130: 4183.999992 | F130: gal (US) | G130: MMb | H130: 2.381779972e-11 | J130: Coking coal | K130: m³ | L130: MJ | M130: 24025.81364 | S130: Municipal wastes (non-biomass fraction) | T130: tonne | U130: MJ | V130: 26749.10515
B131: Gcal | C131: GJ | D131: 4.183999992 | F131: gal (UK) | G131: MMb | H131: 2.860401011e-11 | J131: Coking coal | K131: m³ | L131: GJ | M131: 24.02581364 | S131: Municipal wastes (non-biomass fraction) | T131: tonne | U131: GJ | V131: 26.74910515
B132: Gcal | C132: TJ | D132: 0.004183999992 | F132: m³ | G132: l (liter) | H132: 1000 | J132: Coking coal | K132: m³ | L132: TJ | M132: 0.02402581364 | S132: Municipal wastes (non-biomass fraction) | T132: tonne | U132: TJ | V132: 0.02674910515
B133: Gcal | C133: Mcal | D133: 1000 | F133: thou.m3 | G133: l (liter) | H133: 1000000 | J133: Coking coal | K133: m³ | L133: Mcal | M133: 5738.449884 | S133: Municipal wastes (non-biomass fraction) | T133: tonne | U133: Mcal | V133: 6388.894945
B134: Gcal | C134: Gcal | D134: 1 | F134: Mcm | G134: l (liter) | H134: 1000000000 | J134: Coking coal | K134: m³ | L134: Gcal | M134: 5.738449884 | S134: Municipal wastes (non-biomass fraction) | T134: tonne | U134: Gcal | V134: 6.388894945
B135: Gcal | C135: Btu | D135: 3965666.826 | F135: cf (ft3) | G135: l (liter) | H135: 28.3168 | J135: Coking coal | K135: m³ | L135: Btu | M135: 22771987.99 | S135: Municipal wastes (non-biomass fraction) | T135: tonne | U135: Btu | V135: 25353160.15
B136: Gcal | C136: kBtu | D136: 3965.666826 | F136: Ccf | G136: l (liter) | H136: 2831.68 | J136: Coking coal | K136: m³ | L136: kBtu | M136: 22771.98799 | S136: Municipal wastes (non-biomass fraction) | T136: tonne | U136: kBtu | V136: 25353.16015
B137: Gcal | C137: MMBtu | D137: 3.965666826 | F137: Mcf | G137: l (liter) | H137: 28316.8 | J137: Coking coal | K137: m³ | L137: MMBtu | M137: 22.77198799 | S137: Municipal wastes (non-biomass fraction) | T137: tonne | U137: MMBtu | V137: 25.35316015
B138: Gcal | C138: Therm | D138: 39.62609026 | F138: MMcf | G138: l (liter) | H138: 28316800 | J138: Coking coal | K138: m³ | L138: Therm | M138: 227.7198799 | S138: Municipal wastes (non-biomass fraction) | T138: tonne | U138: Therm | V138: 253.5316015
B139: Gcal | C139: Mtoe | D139: 9.993312296e-08 | F139: bbl | G139: l (liter) | H139: 158.9319771 | J139: Coking coal | K139: m³ | L139: Mtoe | M139: 5.738449884e-07 | S139: Municipal wastes (non-biomass fraction) | T139: tonne | U139: Mtoe | V139: 6.388894945e-07
B140: Gcal | C140: BOE | D140: 0.7138080211 | F140: MMb | G140: l (liter) | H140: 1.589319771e+11 | J140: Coking coal | K140: m³ | L140: BOE | M140: 3.927029328 | S140: Municipal wastes (non-biomass fraction) | T140: tonne | U140: BOE | V140: 4.372152468
B141: Btu | C141: kWh | D141: 0.00029307107 | F141: l (liter) | G141: l (liter) | H141: 1 | J141: Coal (manufactured solid fuels) | K141: m³ | L141: kWh | M141: 5756.160513 | S141: Municipal wastes (biomass fraction) | T141: tonne | U141: kWh | V141: 3585.915808
B142: Btu | C142: MWh | D142: 2.9307107e-07 | F142: Kl | G142: l (liter) | H142: 1000 | J142: Coal (manufactured solid fuels) | K142: m³ | L142: MWh | M142: 5.756140873 | S142: Municipal wastes (biomass fraction) | T142: tonne | U142: MWh | V142: 3.585903572
B143: Btu | C143: GWh | D143: 2.9307107e-10 | F143: Ml | G143: l (liter) | H143: 1000000 | J143: Coal (manufactured solid fuels) | K143: m³ | L143: GWh | M143: 0.005756140873 | S143: Municipal wastes (biomass fraction) | T143: tonne | U143: GWh | V143: 0.003585903572
B144: Btu | C144: TWh | D144: 2.9307107e-13 | F144: gal (US) | G144: l (liter) | H144: 3.78541 | J144: Coal (manufactured solid fuels) | K144: m³ | L144: TWh | M144: 5.756140873e-06 | S144: Municipal wastes (biomass fraction) | T144: tonne | U144: TWh | V144: 3.585903572e-06
B145: Btu | C145: MJ | D145: 0.001055055852 | F145: gal (UK) | G145: l (liter) | H145: 4.54609188 | J145: Coal (manufactured solid fuels) | K145: m³ | L145: MJ | M145: 20722.26427 | S145: Municipal wastes (biomass fraction) | T145: tonne | U145: MJ | V145: 12909.35075
B146: Btu | C146: GJ | D146: 1.055055852e-06 | F146: m³ | G146: Kl | H146: 1 | J146: Coal (manufactured solid fuels) | K146: m³ | L146: GJ | M146: 20.72226427 | S146: Municipal wastes (biomass fraction) | T146: tonne | U146: GJ | V146: 12.90935075
B147: Btu | C147: TJ | D147: 1.055055852e-09 | F147: thou.m3 | G147: Kl | H147: 1000 | J147: Coal (manufactured solid fuels) | K147: m³ | L147: TJ | M147: 0.02072226427 | S147: Municipal wastes (biomass fraction) | T147: tonne | U147: TJ | V147: 0.01290935075
B148: Btu | C148: Mcal | D148: 0.0002521644011 | F148: Mcm | G148: Kl | H148: 1000000 | J148: Coal (manufactured solid fuels) | K148: m³ | L148: Mcal | M148: 4949.413025 | S148: Municipal wastes (biomass fraction) | T148: tonne | U148: Mcal | V148: 3083.336256
B149: Btu | C149: Gcal | D149: 2.521644011e-07 | F149: cf (ft3) | G149: Kl | H149: 0.0283168 | J149: Coal (manufactured solid fuels) | K149: m³ | L149: Gcal | M149: 4.949413025 | S149: Municipal wastes (biomass fraction) | T149: tonne | U149: Gcal | V149: 3.083336256
B150: Btu | C150: Btu | D150: 1 | F150: Ccf | G150: Kl | H150: 2.83168 | J150: Coal (manufactured solid fuels) | K150: m³ | L150: Btu | M150: 19640839.64 | S150: Municipal wastes (biomass fraction) | T150: tonne | U150: Btu | V150: 12235655.55
B151: Btu | C151: kBtu | D151: 0.001 | F151: Mcf | G151: Kl | H151: 28.3168 | J151: Coal (manufactured solid fuels) | K151: m³ | L151: kBtu | M151: 19640.83964 | S151: Municipal wastes (biomass fraction) | T151: tonne | U151: kBtu | V151: 12235.65555
B152: Btu | C152: MMBtu | D152: 1e-06 | F152: MMcf | G152: Kl | H152: 28316.8 | J152: Coal (manufactured solid fuels) | K152: m³ | L152: MMBtu | M152: 19.64083964 | S152: Municipal wastes (biomass fraction) | T152: tonne | U152: MMBtu | V152: 12.23565555
B153: Btu | C153: Therm | D153: 9.992289316e-06 | F153: bbl | G153: Kl | H153: 0.1589319771 | J153: Coal (manufactured solid fuels) | K153: m³ | L153: Therm | M153: 196.4083964 | S153: Municipal wastes (biomass fraction) | T153: tonne | U153: Therm | V153: 122.3565555
B154: Btu | C154: Mtoe | D154: 2.51995761e-14 | F154: MMb | G154: Kl | H154: 158931977.1 | J154: Coal (manufactured solid fuels) | K154: m³ | L154: Mtoe | M154: 4.949413025e-07 | S154: Municipal wastes (biomass fraction) | T154: tonne | U154: Mtoe | V154: 3.083336256e-07
B155: Btu | C155: BOE | D155: 1.799969721e-07 | F155: l (liter) | G155: Kl | H155: 0.001 | J155: Coal (manufactured solid fuels) | K155: m³ | L155: BOE | M155: 3.387062796 | S155: Municipal wastes (biomass fraction) | T155: tonne | U155: BOE | V155: 2.1100388
B156: kBtu | C156: kWh | D156: 0.29307107 | F156: Kl | G156: Kl | H156: 1 | J156: Compressed Natural Gas (CNG) | K156: m³ | L156: kWh | M156: 10.63736888 | S156: Other Liquid BioFuels | T156: tonne | U156: kWh | V156: 7611.07937
B157: kBtu | C157: MWh | D157: 0.00029307107 | F157: Ml | G157: Kl | H157: 1000 | J157: Compressed Natural Gas (CNG) | K157: m³ | L157: MWh | M157: 0.01063736888 | S157: Other Liquid BioFuels | T157: tonne | U157: MWh | V157: 7.6110534
B158: kBtu | C158: GWh | D158: 2.9307107e-07 | F158: gal (US) | G158: Kl | H158: 0.00378541 | J158: Compressed Natural Gas (CNG) | K158: m³ | L158: GWh | M158: 1.063736888e-05 | S158: Other Liquid BioFuels | T158: tonne | U158: GWh | V158: 0.0076110534
B159: kBtu | C159: TWh | D159: 2.9307107e-10 | F159: gal (UK) | G159: Kl | H159: 0.00454609188 | J159: Compressed Natural Gas (CNG) | K159: m³ | L159: TWh | M159: 1.063736888e-08 | S159: Other Liquid BioFuels | T159: tonne | U159: TWh | V159: 7.6110534e-06
B160: kBtu | C160: MJ | D160: 1.055055852 | F160: m³ | G160: Ml | H160: 0.001 | J160: Compressed Natural Gas (CNG) | K160: m³ | L160: MJ | M160: 38.29452798 | S160: Other Liquid BioFuels | T160: tonne | U160: MJ | V160: 27400
B161: kBtu | C161: GJ | D161: 0.001055055852 | F161: thou.m3 | G161: Ml | H161: 1 | J161: Compressed Natural Gas (CNG) | K161: m³ | L161: GJ | M161: 0.03829452795 | S161: Other Liquid BioFuels | T161: tonne | U161: GJ | V161: 27.4
B162: kBtu | C162: TJ | D162: 1.055055852e-06 | F162: Mcm | G162: Ml | H162: 1000 | J162: Compressed Natural Gas (CNG) | K162: m³ | L162: TJ | M162: 3.829452795e-05 | S162: Other Liquid BioFuels | T162: tonne | U162: TJ | V162: 0.0274
B163: kBtu | C163: Mcal | D163: 0.2521644011 | F163: cf (ft3) | G163: Ml | H163: 2.83168e-05 | J163: Compressed Natural Gas (CNG) | K163: m³ | L163: Mcal | M163: 9.152611868 | S163: Other Liquid BioFuels | T163: tonne | U163: Mcal | V163: 6544.358046
B164: kBtu | C164: Gcal | D164: 0.0002521644011 | F164: Ccf | G164: Ml | H164: 0.00283168 | J164: Compressed Natural Gas (CNG) | K164: m³ | L164: Gcal | M164: 0.009152611868 | S164: Other Liquid BioFuels | T164: tonne | U164: Gcal | V164: 6.544358046
B165: kBtu | C165: Btu | D165: 1000 | F165: Mcf | G165: Ml | H165: 0.0283168 | J165: Compressed Natural Gas (CNG) | K165: m³ | L165: Btu | M165: 36296.20926 | S165: Other Liquid BioFuels | T165: tonne | U165: Btu | V165: 25970087.01
B166: kBtu | C166: kBtu | D166: 1 | F166: MMcf | G166: Ml | H166: 28.3168 | J166: Compressed Natural Gas (CNG) | K166: m³ | L166: kBtu | M166: 36.29620923 | S166: Other Liquid BioFuels | T166: tonne | U166: kBtu | V166: 25970.08701
B167: kBtu | C167: MMBtu | D167: 0.001 | F167: bbl | G167: Ml | H167: 0.0001589319771 | J167: Compressed Natural Gas (CNG) | K167: m³ | L167: MMBtu | M167: 0.0362682224 | S167: Other Liquid BioFuels | T167: tonne | U167: MMBtu | V167: 25.97008701
B168: kBtu | C168: Therm | D168: 0.009992289316 | F168: MMb | G168: Ml | H168: 158931.9771 | J168: Compressed Natural Gas (CNG) | K168: m³ | L168: Therm | M168: 0.362682224 | S168: Other Liquid BioFuels | T168: tonne | U168: Therm | V168: 259.7008701
B169: kBtu | C169: Mtoe | D169: 2.51995761e-11 | F169: l (liter) | G169: Ml | H169: 1e-06 | J169: Compressed Natural Gas (CNG) | K169: m³ | L169: Mtoe | M169: 9.146490872e-10 | S169: Other Liquid BioFuels | T169: tonne | U169: Mtoe | V169: 6.544358046e-07
B170: kBtu | C170: BOE | D170: 0.0001799969721 | F170: Kl | G170: Ml | H170: 0.001 | J170: Compressed Natural Gas (CNG) | K170: m³ | L170: BOE | M170: 0.006533207766 | S170: Other Liquid BioFuels | T170: tonne | U170: BOE | V170: 4.478541505
B171: MMBtu | C171: kWh | D171: 293.07107 | F171: Ml | G171: Ml | H171: 1 | J171: Crude oil | K171: m³ | L171: kWh | M171: 10684.12616 | S171: Petroleum coke | T171: tonne | U171: kWh | V171: 9027.740129
B172: MMBtu | C172: MWh | D172: 0.29307107 | F172: gal (US) | G172: Ml | H172: 3.78541e-06 | J172: Crude oil | K172: m³ | L172: MWh | M172: 10.6840897 | S172: Petroleum coke | T172: tonne | U172: MWh | V172: 9.027709325
B173: MMBtu | C173: GWh | D173: 0.00029307107 | F173: gal (UK) | G173: Ml | H173: 4.54609188e-06 | J173: Crude oil | K173: m³ | L173: GWh | M173: 0.0106840897 | S173: Petroleum coke | T173: tonne | U173: GWh | V173: 0.009027709325
B174: MMBtu | C174: TWh | D174: 2.9307107e-07 | F174: m³ | G174: gal (US) | H174: 264.1721769 | J174: Crude oil | K174: m³ | L174: TWh | M174: 1.06840897e-05 | S174: Petroleum coke | T174: tonne | U174: TWh | V174: 9.027709325e-06
B175: MMBtu | C175: MJ | D175: 1055.055852 | F175: thou.m3 | G175: gal (US) | H175: 264172.1769 | J175: Crude oil | K175: m³ | L175: MJ | M175: 38463.01457 | S175: Petroleum coke | T175: tonne | U175: MJ | V175: 32500
B176: MMBtu | C176: GJ | D176: 1.055055852 | F176: Mcm | G176: gal (US) | H176: 264172176.9 | J176: Crude oil | K176: m³ | L176: GJ | M176: 38.46301457 | S176: Petroleum coke | T176: tonne | U176: GJ | V176: 32.5
B177: MMBtu | C177: TJ | D177: 0.001055055852 | F177: cf (ft3) | G177: gal (US) | H177: 7.480510698 | J177: Crude oil | K177: m³ | L177: TJ | M177: 0.03846301457 | S177: Petroleum coke | T177: tonne | U177: TJ | V177: 0.0325
B178: MMBtu | C178: Mcal | D178: 252.1644011 | F178: Ccf | G178: gal (US) | H178: 748.0510698 | J178: Crude oil | K178: m³ | L178: Mcal | M178: 9186.705799 | S178: Petroleum coke | T178: tonne | U178: Mcal | V178: 7762.468485
B179: MMBtu | C179: Gcal | D179: 0.2521644011 | F179: Mcf | G179: gal (US) | H179: 7480.510698 | J179: Crude oil | K179: m³ | L179: Gcal | M179: 9.186705799 | S179: Petroleum coke | T179: tonne | U179: Gcal | V179: 7.762468485
B180: MMBtu | C180: Btu | D180: 1000000 | F180: MMcf | G180: gal (US) | H180: 7480510.698 | J180: Crude oil | K180: m³ | L180: Btu | M180: 36455760.41 | S180: Petroleum coke | T180: tonne | U180: Btu | V180: 30803935.32
B181: MMBtu | C181: kBtu | D181: 1000 | F181: bbl | G181: gal (US) | H181: 41.98540637 | J181: Crude oil | K181: m³ | L181: kBtu | M181: 36455.76041 | S181: Petroleum coke | T181: tonne | U181: kBtu | V181: 30803.93532
B182: MMBtu | C182: MMBtu | D182: 1 | F182: MMb | G182: gal (US) | H182: 4.198540637e+10 | J182: Crude oil | K182: m³ | L182: MMBtu | M182: 36.45576041 | S182: Petroleum coke | T182: tonne | U182: MMBtu | V182: 30.80393532
B183: MMBtu | C183: Therm | D183: 9.992289316 | F183: l (liter) | G183: gal (US) | H183: 0.2641721769 | J183: Crude oil | K183: m³ | L183: Therm | M183: 364.5576041 | S183: Petroleum coke | T183: tonne | U183: Therm | V183: 308.0393532
B184: MMBtu | C184: Mtoe | D184: 2.51995761e-08 | F184: Kl | G184: gal (US) | H184: 264.1721769 | J184: Crude oil | K184: m³ | L184: Mtoe | M184: 9.186705799e-07 | S184: Petroleum coke | T184: tonne | U184: Mtoe | V184: 7.762468485e-07
B185: MMBtu | C185: BOE | D185: 0.1799969721 | F185: Ml | G185: gal (US) | H185: 264172.1769 | J185: Crude oil | K185: m³ | L185: BOE | M185: 6.286795882 | S185: Petroleum coke | T185: tonne | U185: BOE | V185: 5.312138646
B186: Therm | C186: kWh | D186: 29.32972222 | F186: gal (US) | G186: gal (US) | H186: 1 | J186: Diesel oil | K186: m³ | L186: kWh | M186: 10692.37326 | S186: Sewage sludge | T186: tonne | U186: kWh | V186: 1055.551153
B187: Therm | C187: MWh | D187: 0.02932972222 | F187: gal (UK) | G187: gal (US) | H187: 1.200950988 | J187: Diesel oil | K187: m³ | L187: MWh | M187: 10.69237326 | S187: Sewage sludge | T187: tonne | U187: MWh | V187: 1.055547552
B188: Therm | C188: GWh | D188: 2.932972222e-05 | F188: m³ | G188: gal (UK) | H188: 219.9691573 | J188: Diesel oil | K188: m³ | L188: GWh | M188: 0.01069237326 | S188: Sewage sludge | T188: tonne | U188: GWh | V188: 0.001055547552
B189: Therm | C189: TWh | D189: 2.932972222e-08 | F189: thou.m3 | G189: gal (UK) | H189: 219969.1573 | J189: Diesel oil | K189: m³ | L189: TWh | M189: 1.069237326e-05 | S189: Sewage sludge | T189: tonne | U189: TWh | V189: 1.055547552e-06
B190: Therm | C190: MJ | D190: 105.587 | F190: Mcm | G190: gal (UK) | H190: 219969157.3 | J190: Diesel oil | K190: m³ | L190: MJ | M190: 38492.54374 | S190: Sewage sludge | T190: tonne | U190: MJ | V190: 3800
B191: Therm | C191: GJ | D191: 0.105587 | F191: cf (ft3) | G191: gal (UK) | H191: 6.228822634 | J191: Diesel oil | K191: m³ | L191: GJ | M191: 38.49254371 | S191: Sewage sludge | T191: tonne | U191: GJ | V191: 3.8
B192: Therm | C192: TJ | D192: 0.000105587 | F192: Ccf | G192: gal (UK) | H192: 622.8822634 | J192: Diesel oil | K192: m³ | L192: TJ | M192: 0.03849254371 | S192: Sewage sludge | T192: tonne | U192: TJ | V192: 0.0038
B193: Therm | C193: Mcal | D193: 25.23589871 | F193: Mcf | G193: gal (UK) | H193: 6228.822634 | J193: Diesel oil | K193: m³ | L193: Mcal | M193: 9199.93877 | S193: Sewage sludge | T193: tonne | U193: Mcal | V193: 907.6116998
B194: Therm | C194: Gcal | D194: 0.02523589871 | F194: MMcf | G194: gal (UK) | H194: 6228822.634 | J194: Diesel oil | K194: m³ | L194: Gcal | M194: 9.19993877 | S194: Sewage sludge | T194: tonne | U194: Gcal | V194: 0.9076116998
B195: Therm | C195: Btu | D195: 100077.1663 | F195: bbl | G195: gal (UK) | H195: 34.96013308 | J195: Diesel oil | K195: m³ | L195: Btu | M195: 36483891.98 | S195: Sewage sludge | T195: tonne | U195: Btu | V195: 3601690.899
B196: Therm | C196: kBtu | D196: 100.0771663 | F196: MMb | G196: gal (UK) | H196: 3.496013308e+10 | J196: Diesel oil | K196: m³ | L196: kBtu | M196: 36483.89196 | S196: Sewage sludge | T196: tonne | U196: kBtu | V196: 3601.690899
B197: Therm | C197: MMBtu | D197: 0.1000771663 | F197: l (liter) | G197: gal (UK) | H197: 0.2199691573 | J197: Diesel oil | K197: m³ | L197: MMBtu | M197: 36.45576041 | S197: Sewage sludge | T197: tonne | U197: MMBtu | V197: 3.601690899
B198: Therm | C198: Therm | D198: 1 | F198: Kl | G198: gal (UK) | H198: 219.9691573 | J198: Diesel oil | K198: m³ | L198: Therm | M198: 364.5576041 | S198: Sewage sludge | T198: tonne | U198: Therm | V198: 36.01690899
B199: Therm | C199: Mtoe | D199: 2.521902169e-09 | F199: Ml | G199: gal (UK) | H199: 219969.1573 | J199: Diesel oil | K199: m³ | L199: Mtoe | M199: 9.193786123e-07 | S199: Sewage sludge | T199: tonne | U199: Mtoe | V199: 9.076116998e-08
B200: Therm | C200: BOE | D200: 0.01801358692 | F200: gal (US) | G200: gal (UK) | H200: 0.8326734479 | J200: Diesel oil | K200: m³ | L200: BOE | M200: 6.566990088 | S200: Sewage sludge | T200: tonne | U200: BOE | V200: 0.6211115955
B201: Mtoe | C201: kWh | D201: 11630000000 | F201: gal (UK) | G201: gal (UK) | H201: 1 | J201: E85 | K201: m³ | L201: kWh | M201: 7111.081455 | S201: Town gas or city gas | T201: tonne | U201: kWh | V201: 10660.83078
B202: Mtoe | C202: MWh | D202: 11630000 | J202: E85 | K202: m³ | L202: MWh | M202: 7.111057191 | S202: Town gas or city gas | T202: tonne | U202: MWh | V202: 10.6607944
B203: Mtoe | C203: GWh | D203: 11630 | J203: E85 | K203: m³ | L203: GWh | M203: 0.007111057191 | S203: Town gas or city gas | T203: tonne | U203: GWh | V203: 0.0106607944
... 417 more rows

Sheet City information
D2: Introduction | F2: Set-up | H2: Inventory | J2: Calculators | L2: Results | N2: Notes
D3: City information | F3: Data sources | H3: Emission factors | J3: IPPU Emission factors
B6: A. INVENTORY BOUNDARY (GPC CHAPTER 4.4, TABLE 4.1, PAGE 40)
B8: Boundary | E8: Information | H8: Reference(s)
B10: Name of city | P10: 1
B11: Country | P11: 1
B12: Region | E12: Please select | P12: 1
B13: Inventory year (select from list) | E13: Please select | H13: Select calendar or financial year. Specify other 12-month period as mm/yyyy-mm/yyyy | P13: 1
B14: Geographic boundary (select from list) | E14: Please select | H14: Please provide a description of the boundary or reference to an official source | P14: 1
B15: Heating degree days (HDD, °C)* | H15: Please also specify base temperature | P15: 1
B16: Cooling degree days (CDD, °C)* | H16: Please also specify base temperature | P16: 1
B17: Land area (km2) within city boundary | P17: 1
B18: Resident population within city boundary* | P18: 1
B19: GDP (US$) of economic activity within city boundary* | P19: 1
B20: Type of economy (select from list) | E20: Please select | P20: 1
B21: Climate (select from list) | E21: Please select | H21: http://people.eng.unimelb.edu.au/mpeel/koppen.html | P21: 1
B22: Other information | P22: 1
B24: * Should correspond to inventory year
B25: B. MAP OF CITY BOUNDARY
B27: Insert a map of your city boundary in this box (use insert > picture from file)
B40: C. INVENTORY INFORMATION
B42: Inventory | E42: Information
B44: GPC reporting level (select from list) | E44: Please select | P44: 1
B45: Greenhouse gases included in inventory (select from list) | E45: Please select | P45: 1
B46: Global Warming Potential (select relevant IPCC AR from list) | E46: IPCC Fourth Assessment Report (2007) | P46: 1
B47: Please explain your choice of GWP (if not AR4 or AR5) | P47: 1
B48: Description of overall methodology and tools used | P48: 1
B49: Relevant local, regional and national regulations | P49: 1
B50: Comments on change in total emissions since last reported inventory | P50: 1
B51: Has the inventory been audited or verified by a third party? | E51: Please select | P51: 1
B52: =IF(E51="Yes - audited","Name of auditor",IF(E51="Yes - verified","Name of verifier","")) ->  | P52: 1
B53: =IF(E51="Yes - audited","Year of audit",IF(E51="Yes - verified","Year of verification","")) ->  | P53: 1
B54: Planned improvements | P54: 1
B56: D. INVENTORY COMPILER
B58: Inventory | E58: Information
B60: Compiler name | P60: 1
B61: Department | P61: 1
B62: Date | P62: 1
B63: Version | P63: 1
B64: Email | P64: 1
B65: Webpage | P65: 1

Sheet Data sources
D2: Introduction | F2: Set-up | H2: Inventory | J2: Calculators | L2: Results | N2: Notes
D3: City information | F3: Data sources | H3: Emission factors | J3: IPPU Emission factors
B6: DATA SOURCES (GPC CHAPTER 5.4, PAGE 48)
B8: Use this table to record all the data sources used to compile the inventory. The "Add" function allows you to select the required number of rows. References provided in the "Name of source" column may be used to select the relevant data sources in the emission factors and sector tabs. Data can be gathered from a variety of sources, including government departments and statistics agencies, a country’s national GHG inventory report, universities, scientific and technical articles in environmental books, journals and reports, and sector experts/stakeholder organizations. In general, it is preferable to use local and national data over international data, and data from publicly-available, peer-reviewed and reputable sources.
B13: Data | E13: Name of source | J13: Provider | O13: Latest year | P13: Period | Q13: Frequency | R13: Scale | S13: Link
A15: 30 | B15: EXAMPLE: Emission factors | E15: National emissions factor database | J15: Ministry of the Environment | O15: 2014 | P15: Calendar year | Q15: Annual | R15: National | S15: www.ipcc-nggip.iges.or.jp/EFDB/main.php
E17: Please select
B18: Emission factors | E18: Measuring Emissions; A guide for Organisations ( Using data and methods from the 2016 Calender year) | J18: Ministry for the Environment | O18: 2019 | P18: Calendar year | Q18: Annual | R18: National | S18: https://www.mfe.govt.nz/climate-change/guidance-measuring-emissions | T18: 1
B19: Agricultural statistics | E19: Livestock numbers by type and territorial authority (2017) | J19: Statistics New Zealand | O19: 2017 | P19: Calendar year | Q19: Other (please specify) - every 6 years | R19: National | S19: https://www.stats.govt.nz/topics/agriculture | T19: 1
B20: Agricultural statistics | E20: Fertiliser and lime applied by territorial authority and type - June 2017 | J20: Statistics New Zealand | O20: 2017 | P20: Calendar year | Q20: =$Q$19 -> Other (please specify) - every 6 years | R20: National | S20: https://www.stats.govt.nz/topics/agriculture | T20: 1
B21: Fuel sales data | E21: Local fuel sales data collected for tax purposes | J21: Council | O21: 2018 | P21: Calendar year | Q21: Annual | R21: Regional | T21: 1
B22: LPG sales data | E22: LPG sales data | O22: 2016 | P22: Financial year | Q22: Annual | R22: National | T22: 1
B23: Rail diesel data | E23: Rail diesel data | J23: KiwiRail | O23: 2017 | P23: Financial year | Q23: Annual | R23: Regional | S23: No data provided | T23: 1
B24: Flights | E24: Number of flights arriving and departing | J24: Airport | O24: 2017 | P24: Other (please specify) | Q24: As required | R24: Regional | S24: https://flightaware.com/live/airport/NZNP/departures?;offset=260;order=actualdeparturetime;sort=DESC data extrapolated to a year, based on 2 weeks of flight data. | T24: 1
B25: Number of ships | E25: Number of ships departing | J25: Port | O25: 2017 | P25: Other (please specify) | Q25: As required | R25: Other (please specify) | S25: a) http://www.energyefficiencyrating.net/VesselEnviro.asp?LRNumber=9728356 b) https://sea-distances.org/ c) www.vesselfinder.com/vessels d) www.marinetraffic.com e) https://southport.co.nz/ | T25: 1
B26: Coal consumption | E26: Annual Coal Supply, Transfomation & Consumption | J26: Ministry for Business, Employment and Innovation | O26: 2018 | P26: Calendar year | Q26: Annual | R26: National | S26: https://www.mbie.govt.nz/building-and-energy/energy-and-natural-resources/energy-statistics-and-modelling/energy-statistics/coal-statistics/ | T26: 1
B27: Electricity | E27: Electricity supplied to the Region | O27: 2017 | P27: Other (please specify) | Q27: Please select | R27: Please select | T27: 1
B28: Emission factors | E28: New Zealand Greenhouse Gas Inventory 2019 | J28: Ministry for the Environment | O28: 2019 | P28: Calendar year | Q28: Every 2 years | R28: National | S28: http://www.mfe.govt.nz/publications/climate-change/new-zealands-greenhouse-gas-inventory-1990-2015 | T28: 1
T29: 1
B30: Electricity | E30: Energy delivered per Commerce Comission information disclosure | T30: 1
T31: 1
B32: Forestry | E32: Exotic Forestry Data | J32: Ministry for Primary Industries | O32: 2018 | P32: Calendar year | Q32: Annual | R32: National | S32: https://www.mpi.govt.nz/news-and-resources/open-data-and-forecasting/forestry/new-zealands-forests/ | T32: 1
B33: Forestry | E33: Harvesting statistics | J33: Statistics New Zealand | O33: 2016 | P33: Calendar year | Q33: Annual | R33: National | S33: https://www.stats.govt.nz/ | T33: 1
B34: Forestry | E34: Indigenous forestry data | J34: Landcover Database 4.1 | O34: 2016 | P34: Calendar year | Q34: Every 4 years | R34: National | S34: https://lris.scinfo.org.nz/layer/48423-lcdb-v41-land-cover-database-version-41-mainland-new-zealand/ | T34: 1
B35: Biofuel (Wood) | E35: Air Quality Emission Inventory | O35: 2015 | P35: Calendar year | Q35: Every 3 years | R35: Regional | T35: 1
T36: 1
T37: 1
B38: Coal Fugitive emissions | E38: Operating Coal mine production figures | J38: New Zealand Petroleum & Minerals | O38: 2017 | P38: Calendar year | Q38: Please select | R38: Please select | S38: https://www.nzpam.govt.nz/our-industry/nz-minerals/minerals-data/coal/operating-mines/ | T38: 1
T39: 1
B40: Electric Vehicles & Hybrids | E40: Electric Vehicles & Hybrids | J40: MOT | O40: 2018 | P40: Other (please specify) | Q40: Once | R40: Regional | T40: 1
B41: Emission factors and calorific values | E41: Energy Data File 2012 | J41: Ministry for Business, Employment and Innovation | O41: 2012 | P41: Calendar year | Q41: Annual | R41: National | S41: https://www.mbie.govt.nz/building-and-energy/energy-and-natural-resources/energy-statistics-and-modelling/energy-publications-and-technical-papers/energy-in-new-zealand/ | T41: 1
B42: Organic Soil data | E42: Area of organic soils | J42: Landcare Research | O42: 2012 | P42: Calendar year | Q42: Once | R42: Regional | S42: https://www.mpi.govt.nz/dmsdocument/2955/loggedIn | T42: 1
B43: Wastewater treatment information | E43: Wastewater treatment | J43: Council | O43: 2018 | P43: Calendar year | Q43: Annual | R43: Local | T43: 1
O44: Please select | P44: Please select | Q44: Please select | R44: Please select | T44: 1
O45: Please select | P45: Please select | Q45: Please select | R45: Please select | T45: 1
O46: Please select | P46: Please select | Q46: Please select | R46: Please select | T46: 1
O47: Please select | P47: Please select | Q47: Please select | R47: Please select | T47: 1
O48: Please select | P48: Please select | Q48: Please select | R48: Please select | T48: 1
O49: Please select | P49: Please select | Q49: Please select | R49: Please select | T49: 1
O50: Please select | P50: Please select | Q50: Please select | R50: Please select | T50: 1
O51: Please select | P51: Please select | Q51: Please select | R51: Please select | T51: 1
O52: Please select | P52: Please select | Q52: Please select | R52: Please select | T52: 1
O53: Please select | P53: Please select | Q53: Please select | R53: Please select | T53: 1
O54: Please select | P54: Please select | Q54: Please select | R54: Please select | T54: 1
O55: Please select | P55: Please select | Q55: Please select | R55: Please select | T55: 1
O56: Please select | P56: Please select | Q56: Please select | R56: Please select | T56: 1
O57: Please select | P57: Please select | Q57: Please select | R57: Please select | T57: 1
O58: Please select | P58: Please select | Q58: Please select | R58: Please select | T58: 1
O59: Please select | P59: Please select | Q59: Please select | R59: Please select | T59: 1
O60: Please select | P60: Please select | Q60: Please select | R60: Please select | T60: 1
O61: Please select | P61: Please select | Q61: Please select | R61: Please select | T61: 1
O62: Please select | P62: Please select | Q62: Please select | R62: Please select | T62: 1
O63: Please select | P63: Please select | Q63: Please select | R63: Please select | T63: 1
O64: Please select | P64: Please select | Q64: Please select | R64: Please select | T64: 1
O65: Please select | P65: Please select | Q65: Please select | R65: Please select | T65: 1
O66: Please select | P66: Please select | Q66: Please select | R66: Please select | T66: 1
O67: Please select | P67: Please select | Q67: Please select | R67: Please select | T67: 1
O68: Please select | P68: Please select | Q68: Please select | R68: Please select | T68: 1
O69: Please select | P69: Please select | Q69: Please select | R69: Please select | T69: 1
O70: Please select | P70: Please select | Q70: Please select | R70: Please select | T70: 1
O71: Please select | P71: Please select | Q71: Please select | R71: Please select | T71: 1
O72: Please select | P72: Please select | Q72: Please select | R72: Please select | T72: 1
O73: Please select | P73: Please select | Q73: Please select | R73: Please select | T73: 1
O74: Please select | P74: Please select | Q74: Please select | R74: Please select | T74: 1
O75: Please select | P75: Please select | Q75: Please select | R75: Please select | T75: 1
O76: Please select | P76: Please select | Q76: Please select | R76: Please select | T76: 1
O77: Please select | P77: Please select | Q77: Please select | R77: Please select | T77: 1
O78: Please select | P78: Please select | Q78: Please select | R78: Please select | T78: 1
O79: Please select | P79: Please select | Q79: Please select | R79: Please select | T79: 1
O80: Please select | P80: Please select | Q80: Please select | R80: Please select | T80: 1
O81: Please select | P81: Please select | Q81: Please select | R81: Please select | T81: 1
O82: Please select | P82: Please select | Q82: Please select | R82: Please select | T82: 1
O83: Please select | P83: Please select | Q83: Please select | R83: Please select | T83: 1
O84: Please select | P84: Please select | Q84: Please select | R84: Please select | T84: 1
O85: Please select | P85: Please select | Q85: Please select | R85: Please select | T85: 1
O86: Please select | P86: Please select | Q86: Please select | R86: Please select | T86: 1
O87: Please select | P87: Please select | Q87: Please select | R87: Please select | T87: 1
O88: Please select | P88: Please select | Q88: Please select | R88: Please select | T88: 1
O89: Please select | P89: Please select | Q89: Please select | R89: Please select | T89: 1
O90: Please select | P90: Please select | Q90: Please select | R90: Please select | T90: 1
O91: Please select | P91: Please select | Q91: Please select | R91: Please select | T91: 1
O92: Please select | P92: Please select | Q92: Please select | R92: Please select | T92: 1
O93: Please select | P93: Please select | Q93: Please select | R93: Please select | T93: 1
O94: Please select | P94: Please select | Q94: Please select | R94: Please select | T94: 1
O95: Please select | P95: Please select | Q95: Please select | R95: Please select | T95: 1
O96: Please select | P96: Please select | Q96: Please select | R96: Please select | T96: 1
O97: Please select | P97: Please select | Q97: Please select | R97: Please select | T97: 1
O98: Please select | P98: Please select | Q98: Please select | R98: Please select | T98: 1
O99: Please select | P99: Please select | Q99: Please select | R99: Please select | T99: 1
O100: Please select | P100: Please select | Q100: Please select | R100: Please select | T100: 1
O101: Please select | P101: Please select | Q101: Please select | R101: Please select | T101: 1
O102: Please select | P102: Please select | Q102: Please select | R102: Please select | T102: 1
O103: Please select | P103: Please select | Q103: Please select | R103: Please select | T103: 1
O104: Please select | P104: Please select | Q104: Please select | R104: Please select | T104: 1
O105: Please select | P105: Please select | Q105: Please select | R105: Please select | T105: 1
O106: Please select | P106: Please select | Q106: Please select | R106: Please select | T106: 1
O107: Please select | P107: Please select | Q107: Please select | R107: Please select | T107: 1
O108: Please select | P108: Please select | Q108: Please select | R108: Please select | T108: 1
O109: Please select | P109: Please select | Q109: Please select | R109: Please select | T109: 1
O110: Please select | P110: Please select | Q110: Please select | R110: Please select | T110: 1
O111: Please select | P111: Please select | Q111: Please select | R111: Please select | T111: 1
O112: Please select | P112: Please select | Q112: Please select | R112: Please select | T112: 1
O113: Please select | P113: Please select | Q113: Please select | R113: Please select | T113: 1
O114: Please select | P114: Please select | Q114: Please select | R114: Please select | T114: 1
O115: Please select | P115: Please select | Q115: Please select | R115: Please select | T115: 1
O116: Please select | P116: Please select | Q116: Please select | R116: Please select | T116: 1
O117: Please select | P117: Please select | Q117: Please select | R117: Please select | T117: 1
B118: No data sources reported

Sheet Emission factors
D2: Introduction | F2: Set-up | H2: Inventory | L2: Calculators | N2: Results | P2: Notes
D3: City information | F3: Data sources | H3: Emission factors | L3: IPPU Emission factors
B6: EMISSION FACTORS
B8: Use this table to record the emission factors used to calculate GHG emissions for all activities included in the inventory. Emission factors convert activity data into a mass of GHG emissions. The "Add" function allows you to select the required number of rows. Names provided in the 'Unique identifier' column shall be used to identify the relevant emission factors in the sector tabs. Select "GHG" in the 'Type' column if emission factors have not been converted into units of CO2-equivalent. Select "CO2e" if they have. Emission factors should be recorded for each gas separately. If these are not available, an emission factor for total CO2e may be used. In the "GWP" column, select the version of IPCC Assessment Report where the Global Warming Potentials used come from.
I12: =IF(H12="","","/") ->  | K12: =IFERROR(IF(H12="","",VLOOKUP(H12,'Conversion factors'!$D$25:$G$31,4,FALSE)),"") ->  | M12: =IFERROR(IF(L12="","",L12*$K12),"") ->  | O12: =IF(N12="","",IF($F12="",N12,IF($F12="CO2e",N12*K12,IF($F12="GHG",N12*HLOOKUP($G12,GWP!$F$11:$I$31,4,FALSE)*K12,"")))) ->  | Q12: =IF(P12="","",IF($F12="",P12,IF($F12="CO2e",P12*K12,IF($F12="GHG",P12*HLOOKUP($G12,GWP!$F$11:$I$31,5,FALSE)*K12,"")))) ->  | S12: =IFERROR(IF(R12="","",R12*$K12),"") ->  | U12: =IFERROR(IF(T12="","",T12*$K12),"") -> 
B13: Fuel type or activity | D13: Unique identifier | F13: Type | G13: GWP | H13: Units | K13: Convert to tonnes | L13: Emission factor | V13: Data quality | W13: Year | X13: Scale | Y13: Description | Z13: Source
L14: CO2 | M14: tCO2e | N14: CH4 | O14: CH4_tCO2e | P14: N2O | Q14: N2O_tCO2e | R14: Total CO2e | S14: tCO2e | T14: CO2(b) | U14: tCO2(b)
A15: 50 | B15: EXAMPLE: Natural gas | D15: EXAMPLE: EF_Natural gas | F15: CO2e | G15: 5AR | H15: kg | I15: / | J15: kWh | K15: 0.001 | L15: 0.4822 | M15: =L15*$K15 -> 0.0004822 | N15: 0.003 | O15: =IF(N15="","",IF($F15="",N15,IF($F15="CO2e",N15*K15,IF($F15="GHG",N15*HLOOKUP($G15,GWP!$F$11:$I$31,4,FALSE)*K15,"")))) -> 3e-06 | P15: 0.0029 | Q15: =IF(P15="","",IF($F15="",P15,IF($F15="CO2e",P15*K15,IF($F15="GHG",P15*HLOOKUP($G15,GWP!$F$11:$I$31,5,FALSE)*K15,"")))) -> 2.9e-06 | R15: =L15+N15+P15 -> 0.4881 | S15: =M15+O15+Q15 -> 0.0004881 | T15: =L15/5 -> 0.09644 | U15: =M15/5 -> 9.644e-05 | V15: H | W15: 2014 | X15: National | Y15: Emission factor for grid-supplied natural gas | Z15: National emissions factor database
D17: Please select
B18: Please select | D18: Industrial coal- default | F18: CO2e | G18: 5AR | H18: kg | I18: =IF(H18="","","/") -> / | J18: l (liter) | K18: =IFERROR(IF(H18="","",VLOOKUP(H18,'Conversion factors'!$D$25:$G$31,4,FALSE)),"") -> 0.001 | L18: 2.034854983 | M18: =IFERROR(IF(L18="","",L18*$K18),"") -> 0.002034854983 | N18: 0.007197506942 | O18: =IF(N18="","",IF($F18="",N18,IF($F18="CO2e",N18*K18,IF($F18="GHG",N18*HLOOKUP($G18,GWP!$F$11:$I$31,4,FALSE)*K18,"")))) -> 7.197506942e-06 | P18: 0.01064096681 | Q18: =IF(P18="","",IF($F18="",P18,IF($F18="CO2e",P18*K18,IF($F18="GHG",P18*HLOOKUP($G18,GWP!$F$11:$I$31,5,FALSE)*K18,"")))) -> 1.064096681e-05 | R18: 2.052693457 | S18: =IFERROR(IF(R18="","",R18*$K18),"") -> 0.002052693457 | U18: =IFERROR(IF(T18="","",T18*$K18),"") ->  | V18: H | W18: 2019 | X18: National | Y18: Based on emission factor provided in the MfE "Measuring Emissions: A Guide for Organisations – 2019". Have converted MfE emission factors to include Climate change feedback as defined by IPCC in AR5. | Z18: Measuring Emissions; A guide for Organisations ( Using data and methods from the 2016 Calender year) | AA18: 1
B19: Please select | D19: SE Diesel industrial | F19: CO2e | G19: 5AR | H19: kg | I19: =IF(H19="","","/") -> / | J19: l (liter) | K19: =IFERROR(IF(H19="","",VLOOKUP(H19,'Conversion factors'!$D$25:$G$31,4,FALSE)),"") -> 0.001 | L19: 2.648156419 | M19: =IFERROR(IF(L19="","",L19*$K19),"") -> 0.002648156419 | N19: 0.003702530597 | O19: =IF(N19="","",IF($F19="",N19,IF($F19="CO2e",N19*K19,IF($F19="GHG",N19*HLOOKUP($G19,GWP!$F$11:$I$31,4,FALSE)*K19,"")))) -> 3.702530597e-06 | P19: 0.007298546662 | Q19: =IF(P19="","",IF($F19="",P19,IF($F19="CO2e",P19*K19,IF($F19="GHG",P19*HLOOKUP($G19,GWP!$F$11:$I$31,5,FALSE)*K19,"")))) -> 7.298546662e-06 | R19: 2.659157497 | S19: =IFERROR(IF(R19="","",R19*$K19),"") -> 0.002659157497 | U19: =IFERROR(IF(T19="","",T19*$K19),"") ->  | V19: H | W19: 2017 | X19: National | Y19: Based on emission factor provided in the MfE "Measuring Emissions: A Guide for Organisations – 2019". Have converted MfE emission factors to include Climate change feedback as defined by IPCC in AR5. | Z19: Measuring Emissions; A guide for Organisations ( Using data and methods from the 2016 Calender year) | AA19: 1
B20: Please select | D20: LPG | F20: CO2e | G20: 5AR | H20: kg | I20: / | J20: l (litre) | K20: =IFERROR(IF(H20="","",VLOOKUP(H20,'Conversion factors'!$D$25:$G$31,4,FALSE)),"") -> 0.001 | L20: 1.603723733 | M20: 0.001603723733 | N20: 0.03908015 | O20: =IF(N20="","",IF($F20="",N20,IF($F20="CO2e",N20*K20,IF($F20="GHG",N20*HLOOKUP($G20,GWP!$F$11:$I$31,4,FALSE)*K20,"")))) -> 3.908015e-05 | P20: 0.0015026948 | Q20: =IF(P20="","",IF($F20="",P20,IF($F20="CO2e",P20*K20,IF($F20="GHG",P20*HLOOKUP($G20,GWP!$F$11:$I$31,5,FALSE)*K20,"")))) -> 1.5026948e-06 | R20: 1.644306578 | S20: 0.001644306578 | V20: H | W20: 2017 | X20: National | Z20: Please select | AA20: 1
B21: Please select | D21: Jet Kerosene | F21: CO2e | G21: 5AR | H21: kg | I21: / | J21: l (liter) | K21: =IFERROR(IF(H21="","",VLOOKUP(H21,'Conversion factors'!$D$25:$G$31,4,FALSE)),"") -> 0.001 | L21: 3.1579038 | M21: 0.0031579038 | N21: 0.030218112 | O21: =IF(N21="","",IF($F21="",N21,IF($F21="CO2e",N21*K21,IF($F21="GHG",N21*HLOOKUP($G21,GWP!$F$11:$I$31,4,FALSE)*K21,"")))) -> 3.0218112e-05 | P21: 0.09890338868 | Q21: =IF(P21="","",IF($F21="",P21,IF($F21="CO2e",P21*K21,IF($F21="GHG",P21*HLOOKUP($G21,GWP!$F$11:$I$31,5,FALSE)*K21,"")))) -> 9.890338868e-05 | R21: 3.287025301 | S21: 0.003287025301 | V21: H | W21: 2017 | X21: National | Y21: Based on emission factor provided in the MfE "Measuring Emissions: A Guide for Organisations – 2019". Have converted MfE emission factors to include Climate change feedback as defined by IPCC in AR5. | Z21: Measuring Emissions; A guide for Organisations ( Using data and methods from the 2016 Calender year) | AA21: 1
B22: Please select | D22: Av Gas | F22: CO2e | G22: 5AR | H22: kg | I22: / | J22: l (liter) | K22: =IFERROR(IF(H22="","",VLOOKUP(H22,'Conversion factors'!$D$25:$G$31,4,FALSE)),"") -> 0.001 | L22: 3.116597 | M22: 0.003116597 | N22: 0.03087744 | O22: =IF(N22="","",IF($F22="",N22,IF($F22="CO2e",N22*K22,IF($F22="GHG",N22*HLOOKUP($G22,GWP!$F$11:$I$31,4,FALSE)*K22,"")))) -> 3.087744e-05 | P22: 0.1010613585 | Q22: =IF(P22="","",IF($F22="",P22,IF($F22="CO2e",P22*K22,IF($F22="GHG",P22*HLOOKUP($G22,GWP!$F$11:$I$31,5,FALSE)*K22,"")))) -> 0.0001010613585 | R22: 3.248535798 | S22: 0.003248535798 | V22: H | W22: 2017 | X22: National | Y22: Based on emission factor provided in the MfE "Measuring Emissions: A Guide for Organisations – 2019". Have converted MfE emission factors to include Climate change feedback as defined by IPCC in AR5. | Z22: Measuring Emissions; A guide for Organisations ( Using data and methods from the 2016 Calender year) | AA22: 1
B23: Please select | D23: Heavy Fuel oil ( transport fuel) | F23: CO2e | G23: 5AR | H23: kg | I23: =IF(H23="","","/") -> / | J23: l (liter) | K23: =IFERROR(IF(H23="","",VLOOKUP(H23,'Conversion factors'!$D$25:$G$31,4,FALSE)),"") -> 0.001 | L23: 3.009479771 | M23: =IFERROR(IF(L23="","",L23*$K23),"") -> 0.003009479771 | N23: 0.009246956234 | O23: =IF(N23="","",IF($F23="",N23,IF($F23="CO2e",N23*K23,IF($F23="GHG",N23*HLOOKUP($G23,GWP!$F$11:$I$31,4,FALSE)*K23,"")))) -> 9.246956234e-06 | P23: 0.026039851 | Q23: =IF(P23="","",IF($F23="",P23,IF($F23="CO2e",P23*K23,IF($F23="GHG",P23*HLOOKUP($G23,GWP!$F$11:$I$31,5,FALSE)*K23,"")))) -> 2.6039851e-05 | R23: 3.044766578 | S23: =IFERROR(IF(R23="","",R23*$K23),"") -> 0.003044766578 | U23: =IFERROR(IF(T23="","",T23*$K23),"") ->  | V23: H | W23: 2017 | X23: National | Y23: Based on emission factor provided in the MfE "Measuring Emissions: A Guide for Organisations – 2019". Have converted MfE emission factors to include Climate change feedback as defined by IPCC in AR5. | Z23: Measuring Emissions; A guide for Organisations ( Using data and methods from the 2016 Calender year) | AA23: 1
B24: Please select | D24: Light Fuel Oil | F24: CO2e | G24: 5AR | H24: kg | I24: / | J24: l (liter) | K24: =IFERROR(IF(H24="","",VLOOKUP(H24,'Conversion factors'!$D$25:$G$31,4,FALSE)),"") -> 0.001 | L24: 2.915178024 | M24: 0.002915178024 | N24: 0.009116125006 | O24: =IF(N24="","",IF($F24="",N24,IF($F24="CO2e",N24*K24,IF($F24="GHG",N24*HLOOKUP($G24,GWP!$F$11:$I$31,4,FALSE)*K24,"")))) -> 9.116125006e-06 | P24: 0.02567142429 | Q24: =IF(P24="","",IF($F24="",P24,IF($F24="CO2e",P24*K24,IF($F24="GHG",P24*HLOOKUP($G24,GWP!$F$11:$I$31,5,FALSE)*K24,"")))) -> 2.567142429e-05 | R24: 2.949965573 | S24: 0.002949965573 | V24: H | W24: 2017 | X24: National | Y24: Based on emission factor provided in the MfE "Measuring Emissions: A Guide for Organisations – 2019". Have converted MfE emission factors to include Climate change feedback as defined by IPCC in AR5. | Z24: Measuring Emissions; A guide for Organisations ( Using data and methods from the 2016 Calender year) | AA24: 1
B25: Please select | D25: Coal- Residential | F25: CO2e | G25: 5AR | H25: kg | I25: / | J25: kg | K25: =IFERROR(IF(H25="","",VLOOKUP(H25,'Conversion factors'!$D$25:$G$31,4,FALSE)),"") -> 0.001 | L25: 1.740119833 | M25: 0.001740119833 | N25: 0.1826537583 | O25: =IF(N25="","",IF($F25="",N25,IF($F25="CO2e",N25*K25,IF($F25="GHG",N25*HLOOKUP($G25,GWP!$F$11:$I$31,4,FALSE)*K25,"")))) -> 0.0001826537583 | P25: 0.009001323169 | Q25: =IF(P25="","",IF($F25="",P25,IF($F25="CO2e",P25*K25,IF($F25="GHG",P25*HLOOKUP($G25,GWP!$F$11:$I$31,5,FALSE)*K25,"")))) -> 9.001323169e-06 | R25: 1.931774914 | S25: 0.001931774914 | V25: H | W25: 2017 | X25: National | Y25: Based on emission factor provided in the MfE "Measuring Emissions: A Guide for Organisations – 2019". Have converted MfE emission factors to include Climate change feedback as defined by IPCC in AR5. | Z25: Measuring Emissions; A guide for Organisations ( Using data and methods from the 2016 Calender year) | AA25: 1
B26: Please select | D26: Dairy | F26: CO2e | G26: 5AR | H26: kg | I26: / | J26: head | K26: =IFERROR(IF(H26="","",VLOOKUP(H26,'Conversion factors'!$D$25:$G$31,4,FALSE)),"") -> 0.001 | L26: 0 | M26: 0 | N26: 3090.6 | O26: =IF(N26="","",IF($F26="",N26,IF($F26="CO2e",N26*K26,IF($F26="GHG",N26*HLOOKUP($G26,GWP!$F$11:$I$31,4,FALSE)*K26,"")))) -> 3.0906 | P26: 1168.242786 | Q26: =IF(P26="","",IF($F26="",P26,IF($F26="CO2e",P26*K26,IF($F26="GHG",P26*HLOOKUP($G26,GWP!$F$11:$I$31,5,FALSE)*K26,"")))) -> 1.168242786 | R26: 4258.842786 | S26: 4.258842786 | V26: H | W26: 2017 | X26: National | Y26: Based on emission factors used in the national emissions inventory for New Zealand | Z26: New Zealand National Emission Inventory Report | AA26: 1
B27: Please select | D27: Beef Cattle | F27: CO2e | G27: 5AR | H27: kg | I27: / | J27: head | K27: =IFERROR(IF(H27="","",VLOOKUP(H27,'Conversion factors'!$D$25:$G$31,4,FALSE)),"") -> 0.001 | L27: 0 | M27: 0 | N27: 2022.66 | O27: =IF(N27="","",IF($F27="",N27,IF($F27="CO2e",N27*K27,IF($F27="GHG",N27*HLOOKUP($G27,GWP!$F$11:$I$31,4,FALSE)*K27,"")))) -> 2.02266 | P27: 756.2554353 | Q27: =IF(P27="","",IF($F27="",P27,IF($F27="CO2e",P27*K27,IF($F27="GHG",P27*HLOOKUP($G27,GWP!$F$11:$I$31,5,FALSE)*K27,"")))) -> 0.7562554353 | R27: 2778.915435 | S27: 2.778915435 | V27: H | W27: 2017 | X27: National | Y27: Based on emission factors used in the national emissions inventory for New Zealand | Z27: New Zealand National Emission Inventory Report | AA27: 1
B28: Please select | D28: Sheep | F28: CO2e | G28: 5AR | H28: kg | I28: / | J28: head | K28: =IFERROR(IF(H28="","",VLOOKUP(H28,'Conversion factors'!$D$25:$G$31,4,FALSE)),"") -> 0.001 | L28: 0 | M28: 0 | N28: 412.08 | O28: =IF(N28="","",IF($F28="",N28,IF($F28="CO2e",N28*K28,IF($F28="GHG",N28*HLOOKUP($G28,GWP!$F$11:$I$31,4,FALSE)*K28,"")))) -> 0.41208 | P28: 167.83956 | Q28: =IF(P28="","",IF($F28="",P28,IF($F28="CO2e",P28*K28,IF($F28="GHG",P28*HLOOKUP($G28,GWP!$F$11:$I$31,5,FALSE)*K28,"")))) -> 0.16783956 | R28: 579.91956 | S28: 0.57991956 | V28: H | W28: 2017 | X28: National | Y28: Based on emission factors used in the national emissions inventory for New Zealand | Z28: New Zealand National Emission Inventory Report | AA28: 1
B29: Please select | D29: Goats | F29: CO2e | G29: 5AR | H29: kg | I29: / | J29: head | K29: =IFERROR(IF(H29="","",VLOOKUP(H29,'Conversion factors'!$D$25:$G$31,4,FALSE)),"") -> 0.001 | L29: 0 | M29: 0 | N29: 286.6 | O29: =IF(N29="","",IF($F29="",N29,IF($F29="CO2e",N29*K29,IF($F29="GHG",N29*HLOOKUP($G29,GWP!$F$11:$I$31,4,FALSE)*K29,"")))) -> 0.2866 | P29: 100 | Q29: =IF(P29="","",IF($F29="",P29,IF($F29="CO2e",P29*K29,IF($F29="GHG",P29*HLOOKUP($G29,GWP!$F$11:$I$31,5,FALSE)*K29,"")))) -> 0.1 | R29: 386.6 | S29: 0.3866 | V29: H | W29: 2017 | X29: National | Y29: Based on emission factors used in the national emissions inventory for New Zealand | Z29: New Zealand National Emission Inventory Report | AA29: 1
B30: Please select | D30: Horse | F30: CO2e | G30: 5AR | H30: kg | I30: / | J30: head | K30: =IFERROR(IF(H30="","",VLOOKUP(H30,'Conversion factors'!$D$25:$G$31,4,FALSE)),"") -> 0.001 | L30: 0 | M30: 0 | N30: 691.56 | O30: =IF(N30="","",IF($F30="",N30,IF($F30="CO2e",N30*K30,IF($F30="GHG",N30*HLOOKUP($G30,GWP!$F$11:$I$31,4,FALSE)*K30,"")))) -> 0.69156 | P30: 601.6748512 | Q30: =IF(P30="","",IF($F30="",P30,IF($F30="CO2e",P30*K30,IF($F30="GHG",P30*HLOOKUP($G30,GWP!$F$11:$I$31,5,FALSE)*K30,"")))) -> 0.6016748512 | R30: 1293.234851 | S30: 1.293234851 | V30: H | W30: 2017 | X30: National | Y30: Based on emission factors used in the national emissions inventory for New Zealand | Z30: New Zealand National Emission Inventory Report | AA30: 1
B31: Please select | D31: Deer | F31: CO2e | G31: 5AR | H31: kg | I31: / | J31: head | K31: =IFERROR(IF(H31="","",VLOOKUP(H31,'Conversion factors'!$D$25:$G$31,4,FALSE)),"") -> 0.001 | L31: 0 | M31: 0 | N31: 785.4 | O31: =IF(N31="","",IF($F31="",N31,IF($F31="CO2e",N31*K31,IF($F31="GHG",N31*HLOOKUP($G31,GWP!$F$11:$I$31,4,FALSE)*K31,"")))) -> 0.7854 | P31: 315.69822 | Q31: =IF(P31="","",IF($F31="",P31,IF($F31="CO2e",P31*K31,IF($F31="GHG",P31*HLOOKUP($G31,GWP!$F$11:$I$31,5,FALSE)*K31,"")))) -> 0.31569822 | R31: 1101.09822 | S31: 1.10109822 | V31: H | W31: 2017 | X31: National | Y31: Based on emission factors used in the national emissions inventory for New Zealand | Z31: New Zealand National Emission Inventory Report | AA31: 1
B32: Please select | D32: Pigs | F32: CO2e | G32: 5AR | H32: kg | I32: / | J32: head | K32: =IFERROR(IF(H32="","",VLOOKUP(H32,'Conversion factors'!$D$25:$G$31,4,FALSE)),"") -> 0.001 | L32: 0 | M32: 0 | N32: 238 | O32: =IF(N32="","",IF($F32="",N32,IF($F32="CO2e",N32*K32,IF($F32="GHG",N32*HLOOKUP($G32,GWP!$F$11:$I$31,4,FALSE)*K32,"")))) -> 0.238 | P32: 91.52066593 | Q32: =IF(P32="","",IF($F32="",P32,IF($F32="CO2e",P32*K32,IF($F32="GHG",P32*HLOOKUP($G32,GWP!$F$11:$I$31,5,FALSE)*K32,"")))) -> 0.09152066593 | R32: 329.5206659 | S32: 0.3295206659 | V32: H | W32: 2017 | X32: National | Y32: Based on emission factors used in the national emissions inventory for New Zealand | Z32: New Zealand National Emission Inventory Report | AA32: 1
B33: Please select | D33: Urea | F33: CO2e | G33: 5AR | H33: t | I33: / | J33: kg | K33: =IFERROR(IF(H33="","",VLOOKUP(H33,'Conversion factors'!$D$25:$G$31,4,FALSE)),"") -> 1 | O33: =IF(N33="","",IF($F33="",N33,IF($F33="CO2e",N33*K33,IF($F33="GHG",N33*HLOOKUP($G33,GWP!$F$11:$I$31,4,FALSE)*K33,"")))) ->  | Q33: =IF(P33="","",IF($F33="",P33,IF($F33="CO2e",P33*K33,IF($F33="GHG",P33*HLOOKUP($G33,GWP!$F$11:$I$31,5,FALSE)*K33,"")))) ->  | R33: 1.513901729 | S33: 1.513901729 | V33: H | W33: 2017 | X33: National | Z33: New Zealand National Emission Inventory Report | AA33: 1
B34: Please select | D34: Diammonium phosphate | F34: CO2e | G34: 5AR | H34: t | I34: / | J34: kg | K34: =IFERROR(IF(H34="","",VLOOKUP(H34,'Conversion factors'!$D$25:$G$31,4,FALSE)),"") -> 1 | O34: =IF(N34="","",IF($F34="",N34,IF($F34="CO2e",N34*K34,IF($F34="GHG",N34*HLOOKUP($G34,GWP!$F$11:$I$31,4,FALSE)*K34,"")))) ->  | Q34: =IF(P34="","",IF($F34="",P34,IF($F34="CO2e",P34*K34,IF($F34="GHG",P34*HLOOKUP($G34,GWP!$F$11:$I$31,5,FALSE)*K34,"")))) ->  | R34: 0.5923963286 | S34: 0.5923963286 | V34: H | W34: 2017 | X34: National | Z34: New Zealand National Emission Inventory Report | AA34: 1
B35: Please select | D35: Ammonium sulphate | F35: CO2e | G35: 5AR | H35: t | I35: / | J35: kg | K35: =IFERROR(IF(H35="","",VLOOKUP(H35,'Conversion factors'!$D$25:$G$31,4,FALSE)),"") -> 1 | O35: =IF(N35="","",IF($F35="",N35,IF($F35="CO2e",N35*K35,IF($F35="GHG",N35*HLOOKUP($G35,GWP!$F$11:$I$31,4,FALSE)*K35,"")))) ->  | Q35: =IF(P35="","",IF($F35="",P35,IF($F35="CO2e",P35*K35,IF($F35="GHG",P35*HLOOKUP($G35,GWP!$F$11:$I$31,5,FALSE)*K35,"")))) ->  | R35: 0.69112905 | S35: 0.69112905 | V35: H | W35: 2017 | X35: National | Z35: New Zealand National Emission Inventory Report | AA35: 1
B36: Please select | D36: Other Nitrogen fertiliser | F36: CO2e | G36: 5AR | H36: t | I36: / | J36: kg | K36: =IFERROR(IF(H36="","",VLOOKUP(H36,'Conversion factors'!$D$25:$G$31,4,FALSE)),"") -> 1 | O36: =IF(N36="","",IF($F36="",N36,IF($F36="CO2e",N36*K36,IF($F36="GHG",N36*HLOOKUP($G36,GWP!$F$11:$I$31,4,FALSE)*K36,"")))) ->  | Q36: =IF(P36="","",IF($F36="",P36,IF($F36="CO2e",P36*K36,IF($F36="GHG",P36*HLOOKUP($G36,GWP!$F$11:$I$31,5,FALSE)*K36,"")))) ->  | R36: 0.4475883371 | S36: 0.4475883371 | V36: H | W36: 2017 | X36: National | Z36: New Zealand National Emission Inventory Report | AA36: 1
B37: Please select | D37: Crops | F37: CO2e | G37: 5AR | H37: t | I37: / | J37: kg | K37: =IFERROR(IF(H37="","",VLOOKUP(H37,'Conversion factors'!$D$25:$G$31,4,FALSE)),"") -> 1 | O37: =IF(N37="","",IF($F37="",N37,IF($F37="CO2e",N37*K37,IF($F37="GHG",N37*HLOOKUP($G37,GWP!$F$11:$I$31,4,FALSE)*K37,"")))) ->  | Q37: =IF(P37="","",IF($F37="",P37,IF($F37="CO2e",P37*K37,IF($F37="GHG",P37*HLOOKUP($G37,GWP!$F$11:$I$31,5,FALSE)*K37,"")))) ->  | R37: 3.62259975e-05 | S37: 3.62259975e-05 | V37: H | W37: 2017 | X37: National | Z37: New Zealand National Emission Inventory Report | AA37: 1
B38: Please select | D38: Electricity | F38: CO2e | G38: 5AR | H38: kg | I38: / | J38: MWh | K38: =IFERROR(IF(H38="","",VLOOKUP(H38,'Conversion factors'!$D$25:$G$31,4,FALSE)),"") -> 0.001 | L38: 0.09322238965 | M38: 9.322238965e-05 | N38: 0.005976011979 | O38: =IF(N38="","",IF($F38="",N38,IF($F38="CO2e",N38*K38,IF($F38="GHG",N38*HLOOKUP($G38,GWP!$F$11:$I$31,4,FALSE)*K38,"")))) -> 5.976011979e-06 | P38: 9.686344427e-05 | Q38: =IF(P38="","",IF($F38="",P38,IF($F38="CO2e",P38*K38,IF($F38="GHG",P38*HLOOKUP($G38,GWP!$F$11:$I$31,5,FALSE)*K38,"")))) -> 9.686344427e-08 | R38: 0.09929526508 | S38: 9.929526508e-05 | V38: H | W38: 2019 | X38: National | Y38: Based on emission factor provided in the MfE "Measuring Emissions: A Guide for Organisations – 2019". Have converted MfE emission factors to include Climate change feedback as defined by IPCC in AR5. | Z38: Measuring Emissions; A guide for Organisations ( Using data and methods from the 2016 Calender year) | AA38: 1
B39: Please select | D39: Electricity T&D Loss | F39: CO2e | G39: 5AR | H39: kg | I39: / | J39: MWh | K39: =IFERROR(IF(H39="","",VLOOKUP(H39,'Conversion factors'!$D$25:$G$31,4,FALSE)),"") -> 0.001 | L39: 0.007062612357 | M39: 7.062612357e-06 | N39: 0.0004527480599 | O39: =IF(N39="","",IF($F39="",N39,IF($F39="CO2e",N39*K39,IF($F39="GHG",N39*HLOOKUP($G39,GWP!$F$11:$I$31,4,FALSE)*K39,"")))) -> 4.527480599e-07 | P39: 7.33846194e-06 | Q39: =IF(P39="","",IF($F39="",P39,IF($F39="CO2e",P39*K39,IF($F39="GHG",P39*HLOOKUP($G39,GWP!$F$11:$I$31,5,FALSE)*K39,"")))) -> 7.33846194e-09 | R39: 0.007522698879 | S39: 7.522698879e-06 | V39: H | W39: 2019 | X39: National | Y39: Based on emission factor provided in the MfE "Measuring Emissions: A Guide for Organisations – 2019". Have converted MfE emission factors to include Climate change feedback as defined by IPCC in AR5. | Z39: Measuring Emissions; A guide for Organisations ( Using data and methods from the 2016 Calender year) | AA39: 1
B40: Please select | D40: Biofuel/Wood Residential | F40: CO2e | G40: 5AR | H40: kg | I40: / | J40: kg | K40: =IFERROR(IF(H40="","",VLOOKUP(H40,'Conversion factors'!$D$25:$G$31,4,FALSE)),"") -> 0.001 | L40: 0 | M40: 0 | N40: 0.0785808 | O40: =IF(N40="","",IF($F40="",N40,IF($F40="CO2e",N40*K40,IF($F40="GHG",N40*HLOOKUP($G40,GWP!$F$11:$I$31,4,FALSE)*K40,"")))) -> 7.85808e-05 | P40: 0.01032673232 | Q40: =IF(P40="","",IF($F40="",P40,IF($F40="CO2e",P40*K40,IF($F40="GHG",P40*HLOOKUP($G40,GWP!$F$11:$I$31,5,FALSE)*K40,"")))) -> 1.032673232e-05 | R40: 0.08890753232 | S40: 8.890753232e-05 | T40: 0.861564 | U40: 0.000861564 | V40: H | W40: 2019 | X40: National | Y40: Based on emission factor provided in the MfE "Measuring Emissions: A Guide for Organisations – 2019". Have converted MfE emission factors to include Climate change feedback as defined by IPCC in AR5. | Z40: Measuring Emissions; A guide for Organisations ( Using data and methods from the 2016 Calender year) | AA40: 1
B41: Please select | D41: Biofuel/Wood Industrial | F41: CO2e | G41: 5AR | H41: kg | I41: / | J41: kg | K41: =IFERROR(IF(H41="","",VLOOKUP(H41,'Conversion factors'!$D$25:$G$31,4,FALSE)),"") -> 0.001 | L41: 0 | M41: 0 | N41: 0.0785808 | O41: =IF(N41="","",IF($F41="",N41,IF($F41="CO2e",N41*K41,IF($F41="GHG",N41*HLOOKUP($G41,GWP!$F$11:$I$31,4,FALSE)*K41,"")))) -> 7.85808e-05 | P41: 0.01032673232 | Q41: =IF(P41="","",IF($F41="",P41,IF($F41="CO2e",P41*K41,IF($F41="GHG",P41*HLOOKUP($G41,GWP!$F$11:$I$31,5,FALSE)*K41,"")))) -> 1.032673232e-05 | R41: 0.08890753232 | S41: 8.890753232e-05 | T41: 0.861564 | U41: 0.000861564 | V41: H | W41: 2019 | X41: National | Y41: Based on emission factor provided in the MfE "Measuring Emissions: A Guide for Organisations – 2019". Have converted MfE emission factors to include Climate change feedback as defined by IPCC in AR5. | Z41: Measuring Emissions; A guide for Organisations ( Using data and methods from the 2016 Calender year) | AA41: 1
B42: Please select | D42: Exotic roundwood removal | F42: CO2e | G42: 5AR | H42: t | I42: / | J42: m3 | K42: =IFERROR(IF(H42="","",VLOOKUP(H42,'Conversion factors'!$D$25:$G$31,4,FALSE)),"") -> 1 | L42: 1.687573218 | M42: 1.687573218 | O42: =IF(N42="","",IF($F42="",N42,IF($F42="CO2e",N42*K42,IF($F42="GHG",N42*HLOOKUP($G42,GWP!$F$11:$I$31,4,FALSE)*K42,"")))) ->  | Q42: =IF(P42="","",IF($F42="",P42,IF($F42="CO2e",P42*K42,IF($F42="GHG",P42*HLOOKUP($G42,GWP!$F$11:$I$31,5,FALSE)*K42,"")))) ->  | V42: Please select | W42: Please select | X42: Please select | Z42: Please select | AA42: 1
B43: Please select | D43: Broadleaved indigenouse hardwoods | F43: CO2e | G43: 5AR | H43: t | I43: / | J43: ha | K43: =IFERROR(IF(H43="","",VLOOKUP(H43,'Conversion factors'!$D$25:$G$31,4,FALSE)),"") -> 1 | L43: -5.096666667 | M43: -5.096666667 | O43: =IF(N43="","",IF($F43="",N43,IF($F43="CO2e",N43*K43,IF($F43="GHG",N43*HLOOKUP($G43,GWP!$F$11:$I$31,4,FALSE)*K43,"")))) ->  | Q43: =IF(P43="","",IF($F43="",P43,IF($F43="CO2e",P43*K43,IF($F43="GHG",P43*HLOOKUP($G43,GWP!$F$11:$I$31,5,FALSE)*K43,"")))) ->  | V43: Please select | W43: Please select | X43: Please select | Z43: Please select | AA43: 1
B44: Please select | K44: =IFERROR(IF(H44="","",VLOOKUP(H44,'Conversion factors'!$D$25:$G$31,4,FALSE)),"") ->  | O44: =IF(N44="","",IF($F44="",N44,IF($F44="CO2e",N44*K44,IF($F44="GHG",N44*HLOOKUP($G44,GWP!$F$11:$I$31,4,FALSE)*K44,"")))) ->  | Q44: =IF(P44="","",IF($F44="",P44,IF($F44="CO2e",P44*K44,IF($F44="GHG",P44*HLOOKUP($G44,GWP!$F$11:$I$31,5,FALSE)*K44,"")))) ->  | AA44: 1
B45: Please select | D45: commercial- sub-bituminous | F45: CO2e | G45: 5AR | H45: kg | I45: / | J45: kg | K45: =IFERROR(IF(H45="","",VLOOKUP(H45,'Conversion factors'!$D$25:$G$31,4,FALSE)),"") -> 0.001 | L45: 1.991009477 | M45: 0.001991009477 | N45: 0.006990934461 | O45: =IF(N45="","",IF($F45="",N45,IF($F45="CO2e",N45*K45,IF($F45="GHG",N45*HLOOKUP($G45,GWP!$F$11:$I$31,4,FALSE)*K45,"")))) -> 6.990934461e-06 | P45: 0.0103355651 | Q45: =IF(P45="","",IF($F45="",P45,IF($F45="CO2e",P45*K45,IF($F45="GHG",P45*HLOOKUP($G45,GWP!$F$11:$I$31,5,FALSE)*K45,"")))) -> 1.03355651e-05 | R45: 2.008335976 | S45: 0.002008335976 | V45: H | W45: 2019 | X45: National | Y45: Based on emission factor provided in the MfE "Measuring Emissions: A Guide for Organisations – 2019". Have converted MfE emission factors to include Climate change feedback as defined by IPCC in AR5. | Z45: Measuring Emissions; A guide for Organisations ( Using data and methods from the 2016 Calender year) | AA45: 1
B46: Please select | D46: Biogas combustion (landfill gas and wastewater treatment) | F46: CO2e | G46: 5AR | H46: t | I46: / | J46: MJ | K46: =IFERROR(IF(H46="","",VLOOKUP(H46,'Conversion factors'!$D$25:$G$31,4,FALSE)),"") -> 1 | N46: 5e-09 | O46: =IF(N46="","",IF($F46="",N46,IF($F46="CO2e",N46*K46,IF($F46="GHG",N46*HLOOKUP($G46,GWP!$F$11:$I$31,4,FALSE)*K46,"")))) -> 5e-09 | P46: 1e-10 | Q46: =IF(P46="","",IF($F46="",P46,IF($F46="CO2e",P46*K46,IF($F46="GHG",P46*HLOOKUP($G46,GWP!$F$11:$I$31,5,FALSE)*K46,"")))) -> 1e-10 | R46: 1.998e-07 | S46: 1.998e-07 | T46: 5.46e-05 | U46: 5.46e-05 | V46: H | W46: 2017 | X46: National | Y46: Based on emission factor provided in MBIE 2012 (Energy Data File). Have converted emission factors to include Climate change feedback as defined by IPCC in AR5. | Z46: Energy Data File 2012 | AA46: 1
B47: Please select | D47: commercial-lignite | F47: CO2e | G47: 5AR | H47: kg | I47: / | J47: kg | K47: =IFERROR(IF(H47="","",VLOOKUP(H47,'Conversion factors'!$D$25:$G$31,4,FALSE)),"") -> 0.001 | L47: 1.420447873 | M47: 0.001420447873 | N47: 0.004927555181 | O47: =IF(N47="","",IF($F47="",N47,IF($F47="CO2e",N47*K47,IF($F47="GHG",N47*HLOOKUP($G47,GWP!$F$11:$I$31,4,FALSE)*K47,"")))) -> 4.927555181e-06 | P47: 0.007285015709 | Q47: =IF(P47="","",IF($F47="",P47,IF($F47="CO2e",P47*K47,IF($F47="GHG",P47*HLOOKUP($G47,GWP!$F$11:$I$31,5,FALSE)*K47,"")))) -> 7.285015709e-06 | R47: 1.432660444 | S47: 0.001432660444 | V47: H | W47: 2017 | X47: National | Y47: Based on emission factor provided in the MfE "Measuring Emissions: A Guide for Organisations – 2019". Have converted MfE emission factors to include Climate change feedback as defined by IPCC in AR5. | Z47: Measuring Emissions; A guide for Organisations ( Using data and methods from the 2016 Calender year) | AA47: 1
B48: Please select | D48: industrial- sub-bituminous | F48: CO2e | G48: 5AR | H48: kg | I48: / | J48: kg | K48: =IFERROR(IF(H48="","",VLOOKUP(H48,'Conversion factors'!$D$25:$G$31,4,FALSE)),"") -> 0.001 | L48: 1.991009477 | M48: 0.001991009477 | N48: 0.006990934461 | O48: =IF(N48="","",IF($F48="",N48,IF($F48="CO2e",N48*K48,IF($F48="GHG",N48*HLOOKUP($G48,GWP!$F$11:$I$31,4,FALSE)*K48,"")))) -> 6.990934461e-06 | P48: 0.0103355651 | Q48: =IF(P48="","",IF($F48="",P48,IF($F48="CO2e",P48*K48,IF($F48="GHG",P48*HLOOKUP($G48,GWP!$F$11:$I$31,5,FALSE)*K48,"")))) -> 1.03355651e-05 | R48: 2.008335976 | S48: 0.002008335976 | V48: H | W48: 2019 | X48: National | Y48: Based on emission factor provided in the MfE "Measuring Emissions: A Guide for Organisations – 2019". Have converted MfE emission factors to include Climate change feedback as defined by IPCC in AR5. | Z48: Measuring Emissions; A guide for Organisations ( Using data and methods from the 2016 Calender year) | AA48: 1
B49: Please select | D49: industrial-lignite | F49: CO2e | G49: 5AR | H49: kg | I49: / | J49: kg | K49: =IFERROR(IF(H49="","",VLOOKUP(H49,'Conversion factors'!$D$25:$G$31,4,FALSE)),"") -> 0.001 | L49: 1.420447873 | M49: 0.001420447873 | N49: 0.004927555181 | O49: =IF(N49="","",IF($F49="",N49,IF($F49="CO2e",N49*K49,IF($F49="GHG",N49*HLOOKUP($G49,GWP!$F$11:$I$31,4,FALSE)*K49,"")))) -> 4.927555181e-06 | P49: 0.007285015709 | Q49: =IF(P49="","",IF($F49="",P49,IF($F49="CO2e",P49*K49,IF($F49="GHG",P49*HLOOKUP($G49,GWP!$F$11:$I$31,5,FALSE)*K49,"")))) -> 7.285015709e-06 | R49: 1.432660444 | S49: 0.001432660444 | V49: H | W49: 2019 | X49: National | Y49: Based on emission factor provided in the MfE "Measuring Emissions: A Guide for Organisations – 2019". Have converted MfE emission factors to include Climate change feedback as defined by IPCC in AR5. | Z49: Measuring Emissions; A guide for Organisations ( Using data and methods from the 2016 Calender year) | AA49: 1
B50: Please select | D50: Transport-Petrol | F50: CO2e | G50: 5AR | H50: kg | I50: / | J50: l (liter) | K50: =IFERROR(IF(H50="","",VLOOKUP(H50,'Conversion factors'!$D$25:$G$31,4,FALSE)),"") -> 0.001 | L50: 2.344562703 | M50: 0.002344562703 | N50: 0.03754067472 | O50: =IF(N50="","",IF($F50="",N50,IF($F50="CO2e",N50*K50,IF($F50="GHG",N50*HLOOKUP($G50,GWP!$F$11:$I$31,4,FALSE)*K50,"")))) -> 3.754067472e-05 | P50: 0.08969863997 | Q50: =IF(P50="","",IF($F50="",P50,IF($F50="CO2e",P50*K50,IF($F50="GHG",P50*HLOOKUP($G50,GWP!$F$11:$I$31,5,FALSE)*K50,"")))) -> 8.969863997e-05 | R50: 2.471802018 | S50: 0.002471802018 | V50: H | W50: 2019 | X50: National | Y50: Based on emission factor provided in the MfE "Measuring Emissions: A Guide for Organisations – 2019". Have converted MfE emission factors to include Climate change feedback as defined by IPCC in AR5. | Z50: Measuring Emissions; A guide for Organisations ( Using data and methods from the 2016 Calender year) | AA50: 1
B51: Please select | D51: Transport-Diesel | F51: CO2e | G51: 5AR | H51: kg | I51: / | J51: l (liter) | K51: =IFERROR(IF(H51="","",VLOOKUP(H51,'Conversion factors'!$D$25:$G$31,4,FALSE)),"") -> 0.001 | L51: 2.648156419 | M51: 0.002648156419 | N51: 0.004813289776 | O51: =IF(N51="","",IF($F51="",N51,IF($F51="CO2e",N51*K51,IF($F51="GHG",N51*HLOOKUP($G51,GWP!$F$11:$I$31,4,FALSE)*K51,"")))) -> 4.813289776e-06 | P51: 0.04744055331 | Q51: =IF(P51="","",IF($F51="",P51,IF($F51="CO2e",P51*K51,IF($F51="GHG",P51*HLOOKUP($G51,GWP!$F$11:$I$31,5,FALSE)*K51,"")))) -> 4.744055331e-05 | R51: 2.700410262 | S51: 0.002700410262 | V51: H | W51: 2019 | X51: National | Y51: Based on emission factor used in the national emissions inventory for New Zealand. Based on emission factor provided in the national guidance for measuring emissions for New Zealand. Have converted MfE emission factors to include Climate change feedback as defined by IPCC in AR5. | Z51: Measuring Emissions; A guide for Organisations ( Using data and methods from the 2016 Calender year) | AA51: 1
B52: Please select | D52: Av.WWTP (volume) | F52: CO2e | G52: 5AR | H52: kg | I52: / | J52: m3 | K52: =IFERROR(IF(H52="","",VLOOKUP(H52,'Conversion factors'!$D$25:$G$31,4,FALSE)),"") -> 0.001 | L52: 0.07747443291 | M52: 7.747443291e-05 | N52: 0.2050895712 | O52: =IF(N52="","",IF($F52="",N52,IF($F52="CO2e",N52*K52,IF($F52="GHG",N52*HLOOKUP($G52,GWP!$F$11:$I$31,4,FALSE)*K52,"")))) -> 0.0002050895712 | P52: 0.2454769605 | Q52: =IF(P52="","",IF($F52="",P52,IF($F52="CO2e",P52*K52,IF($F52="GHG",P52*HLOOKUP($G52,GWP!$F$11:$I$31,5,FALSE)*K52,"")))) -> 0.0002454769605 | R52: 0.5280409646 | S52: 0.0005280409646 | V52: H | W52: 2019 | X52: National | Y52: Based on emission factor provided in the MfE "Measuring Emissions: A Guide for Organisations – 2019". Have converted MfE emission factors to include Climate change feedback as defined by IPCC in AR5. | Z52: Measuring Emissions; A guide for Organisations ( Using data and methods from the 2016 Calender year) | AA52: 1
B53: Please select | D53: Organic Soils | F53: CO2e | G53: 5AR | H53: t | I53: / | J53: ha | K53: =IFERROR(IF(H53="","",VLOOKUP(H53,'Conversion factors'!$D$25:$G$31,4,FALSE)),"") -> 1 | O53: =IF(N53="","",IF($F53="",N53,IF($F53="CO2e",N53*K53,IF($F53="GHG",N53*HLOOKUP($G53,GWP!$F$11:$I$31,4,FALSE)*K53,"")))) ->  | P53: 0.008 | Q53: =IF(P53="","",IF($F53="",P53,IF($F53="CO2e",P53*K53,IF($F53="GHG",P53*HLOOKUP($G53,GWP!$F$11:$I$31,5,FALSE)*K53,"")))) -> 0.008 | R53: 2.384 | S53: 2.384 | V53: M | W53: 2019 | X53: National | Y53: Based on emission factor provided in the MfE National GHG Inventory 2017 (2019). Have converted MfE emission factors to include Climate change feedback as defined by IPCC in AR5. | Z53: New Zealand National Emission Inventory Report | AA53: 1
B54: Please select | D54: Age class 1-5 | F54: CO2e | G54: 5AR | H54: t | I54: / | J54: ha | K54: =IFERROR(IF(H54="","",VLOOKUP(H54,'Conversion factors'!$D$25:$G$31,4,FALSE)),"") -> 1 | L54: =-11.2273333333333 -> -11.22733333 | M54: -11.22733333 | O54: =IF(N54="","",IF($F54="",N54,IF($F54="CO2e",N54*K54,IF($F54="GHG",N54*HLOOKUP($G54,GWP!$F$11:$I$31,4,FALSE)*K54,"")))) ->  | Q54: =IF(P54="","",IF($F54="",P54,IF($F54="CO2e",P54*K54,IF($F54="GHG",P54*HLOOKUP($G54,GWP!$F$11:$I$31,5,FALSE)*K54,"")))) ->  | V54: Please select | W54: Please select | X54: Please select | Z54: Please select | AA54: 1
B55: Please select | D55: Age class 6-10 | F55: CO2e | G55: 5AR | H55: t | I55: / | J55: ha | K55: =IFERROR(IF(H55="","",VLOOKUP(H55,'Conversion factors'!$D$25:$G$31,4,FALSE)),"") -> 1 | L55: =-38.005 -> -38.005 | M55: -38.005 | O55: =IF(N55="","",IF($F55="",N55,IF($F55="CO2e",N55*K55,IF($F55="GHG",N55*HLOOKUP($G55,GWP!$F$11:$I$31,4,FALSE)*K55,"")))) ->  | Q55: =IF(P55="","",IF($F55="",P55,IF($F55="CO2e",P55*K55,IF($F55="GHG",P55*HLOOKUP($G55,GWP!$F$11:$I$31,5,FALSE)*K55,"")))) ->  | V55: Please select | W55: Please select | X55: Please select | Z55: Please select | AA55: 1
B56: Please select | D56: Age class 11-15 | F56: CO2e | G56: 5AR | H56: t | I56: / | J56: ha | K56: =IFERROR(IF(H56="","",VLOOKUP(H56,'Conversion factors'!$D$25:$G$31,4,FALSE)),"") -> 1 | L56: =-33.6416666666667 -> -33.64166667 | M56: -33.64166667 | O56: =IF(N56="","",IF($F56="",N56,IF($F56="CO2e",N56*K56,IF($F56="GHG",N56*HLOOKUP($G56,GWP!$F$11:$I$31,4,FALSE)*K56,"")))) ->  | Q56: =IF(P56="","",IF($F56="",P56,IF($F56="CO2e",P56*K56,IF($F56="GHG",P56*HLOOKUP($G56,GWP!$F$11:$I$31,5,FALSE)*K56,"")))) ->  | V56: Please select | W56: Please select | X56: Please select | Z56: Please select | AA56: 1
B57: Please select | D57: Age class 16-20 | F57: CO2e | G57: 5AR | H57: t | I57: / | J57: ha | K57: =IFERROR(IF(H57="","",VLOOKUP(H57,'Conversion factors'!$D$25:$G$31,4,FALSE)),"") -> 1 | L57: =-39.6623333333333 -> -39.66233333 | M57: -39.66233333 | O57: =IF(N57="","",IF($F57="",N57,IF($F57="CO2e",N57*K57,IF($F57="GHG",N57*HLOOKUP($G57,GWP!$F$11:$I$31,4,FALSE)*K57,"")))) ->  | Q57: =IF(P57="","",IF($F57="",P57,IF($F57="CO2e",P57*K57,IF($F57="GHG",P57*HLOOKUP($G57,GWP!$F$11:$I$31,5,FALSE)*K57,"")))) ->  | V57: Please select | W57: Please select | X57: Please select | Z57: Please select | AA57: 1
B58: Please select | D58: Age class 21-25 | F58: CO2e | G58: 5AR | H58: t | I58: / | J58: ha | K58: =IFERROR(IF(H58="","",VLOOKUP(H58,'Conversion factors'!$D$25:$G$31,4,FALSE)),"") -> 1 | L58: =-40.7843333333333 -> -40.78433333 | M58: -40.78433333 | O58: =IF(N58="","",IF($F58="",N58,IF($F58="CO2e",N58*K58,IF($F58="GHG",N58*HLOOKUP($G58,GWP!$F$11:$I$31,4,FALSE)*K58,"")))) ->  | Q58: =IF(P58="","",IF($F58="",P58,IF($F58="CO2e",P58*K58,IF($F58="GHG",P58*HLOOKUP($G58,GWP!$F$11:$I$31,5,FALSE)*K58,"")))) ->  | V58: Please select | W58: Please select | X58: Please select | Z58: Please select | AA58: 1
B59: Please select | D59: Age class 26-30 | F59: CO2e | G59: 5AR | H59: t | I59: / | J59: ha | K59: =IFERROR(IF(H59="","",VLOOKUP(H59,'Conversion factors'!$D$25:$G$31,4,FALSE)),"") -> 1 | L59: =-40.9456666666667 -> -40.94566667 | M59: -40.94566667 | O59: =IF(N59="","",IF($F59="",N59,IF($F59="CO2e",N59*K59,IF($F59="GHG",N59*HLOOKUP($G59,GWP!$F$11:$I$31,4,FALSE)*K59,"")))) ->  | Q59: =IF(P59="","",IF($F59="",P59,IF($F59="CO2e",P59*K59,IF($F59="GHG",P59*HLOOKUP($G59,GWP!$F$11:$I$31,5,FALSE)*K59,"")))) ->  | V59: Please select | W59: Please select | X59: Please select | Z59: Please select | AA59: 1
B60: Please select | D60: Age class 31-35 | F60: CO2e | G60: 5AR | H60: t | I60: / | J60: ha | K60: =IFERROR(IF(H60="","",VLOOKUP(H60,'Conversion factors'!$D$25:$G$31,4,FALSE)),"") -> 1 | L60: =-38.269 -> -38.269 | M60: -38.269 | O60: =IF(N60="","",IF($F60="",N60,IF($F60="CO2e",N60*K60,IF($F60="GHG",N60*HLOOKUP($G60,GWP!$F$11:$I$31,4,FALSE)*K60,"")))) ->  | Q60: =IF(P60="","",IF($F60="",P60,IF($F60="CO2e",P60*K60,IF($F60="GHG",P60*HLOOKUP($G60,GWP!$F$11:$I$31,5,FALSE)*K60,"")))) ->  | V60: Please select | W60: Please select | X60: Please select | Z60: Please select | AA60: 1
B61: Please select | D61: Age class 36-40 | F61: CO2e | G61: 5AR | H61: t | I61: / | J61: ha | K61: =IFERROR(IF(H61="","",VLOOKUP(H61,'Conversion factors'!$D$25:$G$31,4,FALSE)),"") -> 1 | L61: =-35.0863333333334 -> -35.08633333 | M61: -35.08633333 | O61: =IF(N61="","",IF($F61="",N61,IF($F61="CO2e",N61*K61,IF($F61="GHG",N61*HLOOKUP($G61,GWP!$F$11:$I$31,4,FALSE)*K61,"")))) ->  | Q61: =IF(P61="","",IF($F61="",P61,IF($F61="CO2e",P61*K61,IF($F61="GHG",P61*HLOOKUP($G61,GWP!$F$11:$I$31,5,FALSE)*K61,"")))) ->  | V61: Please select | W61: Please select | X61: Please select | Z61: Please select | AA61: 1
B62: Please select | D62: Age class 41-50 | F62: CO2e | G62: 5AR | H62: t | I62: / | J62: ha | K62: =IFERROR(IF(H62="","",VLOOKUP(H62,'Conversion factors'!$D$25:$G$31,4,FALSE)),"") -> 1 | L62: =-29.0427543859649 -> -29.04275439 | M62: -29.04275439 | O62: =IF(N62="","",IF($F62="",N62,IF($F62="CO2e",N62*K62,IF($F62="GHG",N62*HLOOKUP($G62,GWP!$F$11:$I$31,4,FALSE)*K62,"")))) ->  | Q62: =IF(P62="","",IF($F62="",P62,IF($F62="CO2e",P62*K62,IF($F62="GHG",P62*HLOOKUP($G62,GWP!$F$11:$I$31,5,FALSE)*K62,"")))) ->  | V62: Please select | W62: Please select | X62: Please select | Z62: Please select | AA62: 1
B63: Please select | D63: Age class 51-60 | F63: CO2e | G63: 5AR | H63: t | I63: / | J63: ha | K63: =IFERROR(IF(H63="","",VLOOKUP(H63,'Conversion factors'!$D$25:$G$31,4,FALSE)),"") -> 1 | L63: =-26.0209649122807 -> -26.02096491 | M63: -26.02096491 | O63: =IF(N63="","",IF($F63="",N63,IF($F63="CO2e",N63*K63,IF($F63="GHG",N63*HLOOKUP($G63,GWP!$F$11:$I$31,4,FALSE)*K63,"")))) ->  | Q63: =IF(P63="","",IF($F63="",P63,IF($F63="CO2e",P63*K63,IF($F63="GHG",P63*HLOOKUP($G63,GWP!$F$11:$I$31,5,FALSE)*K63,"")))) ->  | V63: Please select | W63: Please select | X63: Please select | Z63: Please select | AA63: 1
B64: Please select | D64: Gorse and Broom | F64: CO2e | G64: 5AR | H64: t | I64: / | J64: ha | K64: =IFERROR(IF(H64="","",VLOOKUP(H64,'Conversion factors'!$D$25:$G$31,4,FALSE)),"") -> 1 | L64: -5.5 | M64: -5.5 | O64: =IF(N64="","",IF($F64="",N64,IF($F64="CO2e",N64*K64,IF($F64="GHG",N64*HLOOKUP($G64,GWP!$F$11:$I$31,4,FALSE)*K64,"")))) ->  | Q64: =IF(P64="","",IF($F64="",P64,IF($F64="CO2e",P64*K64,IF($F64="GHG",P64*HLOOKUP($G64,GWP!$F$11:$I$31,5,FALSE)*K64,"")))) ->  | V64: Please select | W64: Please select | X64: Please select | Z64: Please select | AA64: 1
B65: Please select | D65: Grey Scrub | F65: CO2e | G65: 5AR | H65: t | I65: / | J65: ha | K65: =IFERROR(IF(H65="","",VLOOKUP(H65,'Conversion factors'!$D$25:$G$31,4,FALSE)),"") -> 1 | L65: -1.833333333 | M65: -1.833333333 | O65: =IF(N65="","",IF($F65="",N65,IF($F65="CO2e",N65*K65,IF($F65="GHG",N65*HLOOKUP($G65,GWP!$F$11:$I$31,4,FALSE)*K65,"")))) ->  | Q65: =IF(P65="","",IF($F65="",P65,IF($F65="CO2e",P65*K65,IF($F65="GHG",P65*HLOOKUP($G65,GWP!$F$11:$I$31,5,FALSE)*K65,"")))) ->  | V65: Please select | W65: Please select | X65: Please select | Z65: Please select | AA65: 1
B66: Please select | D66: Manuka and/or Kanuka | F66: CO2e | G66: 5AR | H66: t | I66: / | J66: ha | K66: =IFERROR(IF(H66="","",VLOOKUP(H66,'Conversion factors'!$D$25:$G$31,4,FALSE)),"") -> 1 | L66: -7.333333333 | M66: -7.333333333 | O66: =IF(N66="","",IF($F66="",N66,IF($F66="CO2e",N66*K66,IF($F66="GHG",N66*HLOOKUP($G66,GWP!$F$11:$I$31,4,FALSE)*K66,"")))) ->  | Q66: =IF(P66="","",IF($F66="",P66,IF($F66="CO2e",P66*K66,IF($F66="GHG",P66*HLOOKUP($G66,GWP!$F$11:$I$31,5,FALSE)*K66,"")))) ->  | V66: Please select | W66: Please select | X66: Please select | Z66: Please select | AA66: 1
B67: Please select | D67: Mixed Exotic Shrubland | F67: CO2e | G67: 5AR | H67: t | I67: / | J67: ha | K67: =IFERROR(IF(H67="","",VLOOKUP(H67,'Conversion factors'!$D$25:$G$31,4,FALSE)),"") -> 1 | L67: -3.666666667 | M67: -3.666666667 | O67: =IF(N67="","",IF($F67="",N67,IF($F67="CO2e",N67*K67,IF($F67="GHG",N67*HLOOKUP($G67,GWP!$F$11:$I$31,4,FALSE)*K67,"")))) ->  | Q67: =IF(P67="","",IF($F67="",P67,IF($F67="CO2e",P67*K67,IF($F67="GHG",P67*HLOOKUP($G67,GWP!$F$11:$I$31,5,FALSE)*K67,"")))) ->  | V67: Please select | W67: Please select | X67: Please select | Z67: Please select | AA67: 1
B68: Please select | F68: Please select | G68: Please select | K68: =IFERROR(IF(H68="","",VLOOKUP(H68,'Conversion factors'!$D$25:$G$31,4,FALSE)),"") ->  | O68: =IF(N68="","",IF($F68="",N68,IF($F68="CO2e",N68*K68,IF($F68="GHG",N68*HLOOKUP($G68,GWP!$F$11:$I$31,4,FALSE)*K68,"")))) ->  | Q68: =IF(P68="","",IF($F68="",P68,IF($F68="CO2e",P68*K68,IF($F68="GHG",P68*HLOOKUP($G68,GWP!$F$11:$I$31,5,FALSE)*K68,"")))) ->  | AA68: 1
B69: Please select | F69: Please select | G69: Please select | I69: =IF(H69="","","/") ->  | K69: =IFERROR(IF(H69="","",VLOOKUP(H69,'Conversion factors'!$D$25:$G$31,4,FALSE)),"") ->  | M69: =IFERROR(IF(L69="","",L69*$K69),"") ->  | O69: =IF(N69="","",IF($F69="",N69,IF($F69="CO2e",N69*K69,IF($F69="GHG",N69*HLOOKUP($G69,GWP!$F$11:$I$31,4,FALSE)*K69,"")))) ->  | Q69: =IF(P69="","",IF($F69="",P69,IF($F69="CO2e",P69*K69,IF($F69="GHG",P69*HLOOKUP($G69,GWP!$F$11:$I$31,5,FALSE)*K69,"")))) ->  | S69: =IFERROR(IF(R69="","",R69*$K69),"") ->  | U69: =IFERROR(IF(T69="","",T69*$K69),"") ->  | V69: Please select | W69: Please select | X69: Please select | Z69: Please select | AA69: 1
B70: Please select | F70: Please select | G70: Please select | I70: =IF(H70="","","/") ->  | K70: =IFERROR(IF(H70="","",VLOOKUP(H70,'Conversion factors'!$D$25:$G$31,4,FALSE)),"") ->  | M70: =IFERROR(IF(L70="","",L70*$K70),"") ->  | O70: =IF(N70="","",IF($F70="",N70,IF($F70="CO2e",N70*K70,IF($F70="GHG",N70*HLOOKUP($G70,GWP!$F$11:$I$31,4,FALSE)*K70,"")))) ->  | Q70: =IF(P70="","",IF($F70="",P70,IF($F70="CO2e",P70*K70,IF($F70="GHG",P70*HLOOKUP($G70,GWP!$F$11:$I$31,5,FALSE)*K70,"")))) ->  | S70: =IFERROR(IF(R70="","",R70*$K70),"") ->  | U70: =IFERROR(IF(T70="","",T70*$K70),"") ->  | V70: Please select | W70: Please select | X70: Please select | Z70: Please select | AA70: 1
B71: Please select | F71: Please select | G71: Please select | K71: =IFERROR(IF(H71="","",VLOOKUP(H71,'Conversion factors'!$D$25:$G$31,4,FALSE)),"") ->  | O71: =IF(N71="","",IF($F71="",N71,IF($F71="CO2e",N71*K71,IF($F71="GHG",N71*HLOOKUP($G71,GWP!$F$11:$I$31,4,FALSE)*K71,"")))) ->  | Q71: =IF(P71="","",IF($F71="",P71,IF($F71="CO2e",P71*K71,IF($F71="GHG",P71*HLOOKUP($G71,GWP!$F$11:$I$31,5,FALSE)*K71,"")))) ->  | V71: Please select | W71: Please select | X71: Please select | Z71: Please select | AA71: 1
B72: Please select | F72: Please select | G72: Please select | K72: =IFERROR(IF(H72="","",VLOOKUP(H72,'Conversion factors'!$D$25:$G$31,4,FALSE)),"") ->  | O72: =IF(N72="","",IF($F72="",N72,IF($F72="CO2e",N72*K72,IF($F72="GHG",N72*HLOOKUP($G72,GWP!$F$11:$I$31,4,FALSE)*K72,"")))) ->  | Q72: =IF(P72="","",IF($F72="",P72,IF($F72="CO2e",P72*K72,IF($F72="GHG",P72*HLOOKUP($G72,GWP!$F$11:$I$31,5,FALSE)*K72,"")))) ->  | V72: Please select | W72: Please select | X72: Please select | Z72: Please select | AA72: 1
B73: Please select | F73: Please select | G73: Please select | K73: =IFERROR(IF(H73="","",VLOOKUP(H73,'Conversion factors'!$D$25:$G$31,4,FALSE)),"") ->  | O73: =IF(N73="","",IF($F73="",N73,IF($F73="CO2e",N73*K73,IF($F73="GHG",N73*HLOOKUP($G73,GWP!$F$11:$I$31,4,FALSE)*K73,"")))) ->  | Q73: =IF(P73="","",IF($F73="",P73,IF($F73="CO2e",P73*K73,IF($F73="GHG",P73*HLOOKUP($G73,GWP!$F$11:$I$31,5,FALSE)*K73,"")))) ->  | V73: Please select | W73: Please select | X73: Please select | Z73: Please select | AA73: 1
B74: Please select | F74: Please select | G74: Please select | K74: =IFERROR(IF(H74="","",VLOOKUP(H74,'Conversion factors'!$D$25:$G$31,4,FALSE)),"") ->  | O74: =IF(N74="","",IF($F74="",N74,IF($F74="CO2e",N74*K74,IF($F74="GHG",N74*HLOOKUP($G74,GWP!$F$11:$I$31,4,FALSE)*K74,"")))) ->  | Q74: =IF(P74="","",IF($F74="",P74,IF($F74="CO2e",P74*K74,IF($F74="GHG",P74*HLOOKUP($G74,GWP!$F$11:$I$31,5,FALSE)*K74,"")))) ->  | V74: Please select | W74: Please select | X74: Please select | Z74: Please select | AA74: 1
B75: Please select | F75: Please select | G75: Please select | K75: =IFERROR(IF(H75="","",VLOOKUP(H75,'Conversion factors'!$D$25:$G$31,4,FALSE)),"") ->  | O75: =IF(N75="","",IF($F75="",N75,IF($F75="CO2e",N75*K75,IF($F75="GHG",N75*HLOOKUP($G75,GWP!$F$11:$I$31,4,FALSE)*K75,"")))) ->  | Q75: =IF(P75="","",IF($F75="",P75,IF($F75="CO2e",P75*K75,IF($F75="GHG",P75*HLOOKUP($G75,GWP!$F$11:$I$31,5,FALSE)*K75,"")))) ->  | V75: Please select | W75: Please select | X75: Please select | Z75: Please select | AA75: 1
B76: Please select | F76: Please select | G76: Please select | K76: =IFERROR(IF(H76="","",VLOOKUP(H76,'Conversion factors'!$D$25:$G$31,4,FALSE)),"") ->  | O76: =IF(N76="","",IF($F76="",N76,IF($F76="CO2e",N76*K76,IF($F76="GHG",N76*HLOOKUP($G76,GWP!$F$11:$I$31,4,FALSE)*K76,"")))) ->  | Q76: =IF(P76="","",IF($F76="",P76,IF($F76="CO2e",P76*K76,IF($F76="GHG",P76*HLOOKUP($G76,GWP!$F$11:$I$31,5,FALSE)*K76,"")))) ->  | V76: Please select | W76: Please select | X76: Please select | Z76: Please select | AA76: 1
B77: Please select | F77: Please select | G77: Please select | K77: =IFERROR(IF(H77="","",VLOOKUP(H77,'Conversion factors'!$D$25:$G$31,4,FALSE)),"") ->  | O77: =IF(N77="","",IF($F77="",N77,IF($F77="CO2e",N77*K77,IF($F77="GHG",N77*HLOOKUP($G77,GWP!$F$11:$I$31,4,FALSE)*K77,"")))) ->  | Q77: =IF(P77="","",IF($F77="",P77,IF($F77="CO2e",P77*K77,IF($F77="GHG",P77*HLOOKUP($G77,GWP!$F$11:$I$31,5,FALSE)*K77,"")))) ->  | V77: Please select | W77: Please select | X77: Please select | Z77: Please select | AA77: 1
B78: Please select | F78: Please select | G78: Please select | K78: =IFERROR(IF(H78="","",VLOOKUP(H78,'Conversion factors'!$D$25:$G$31,4,FALSE)),"") ->  | O78: =IF(N78="","",IF($F78="",N78,IF($F78="CO2e",N78*K78,IF($F78="GHG",N78*HLOOKUP($G78,GWP!$F$11:$I$31,4,FALSE)*K78,"")))) ->  | Q78: =IF(P78="","",IF($F78="",P78,IF($F78="CO2e",P78*K78,IF($F78="GHG",P78*HLOOKUP($G78,GWP!$F$11:$I$31,5,FALSE)*K78,"")))) ->  | V78: Please select | W78: Please select | X78: Please select | Z78: Please select | AA78: 1
B79: Please select | F79: Please select | G79: Please select | K79: =IFERROR(IF(H79="","",VLOOKUP(H79,'Conversion factors'!$D$25:$G$31,4,FALSE)),"") ->  | O79: =IF(N79="","",IF($F79="",N79,IF($F79="CO2e",N79*K79,IF($F79="GHG",N79*HLOOKUP($G79,GWP!$F$11:$I$31,4,FALSE)*K79,"")))) ->  | Q79: =IF(P79="","",IF($F79="",P79,IF($F79="CO2e",P79*K79,IF($F79="GHG",P79*HLOOKUP($G79,GWP!$F$11:$I$31,5,FALSE)*K79,"")))) ->  | V79: Please select | W79: Please select | X79: Please select | Z79: Please select | AA79: 1
B80: Please select | F80: Please select | G80: Please select | K80: =IFERROR(IF(H80="","",VLOOKUP(H80,'Conversion factors'!$D$25:$G$31,4,FALSE)),"") ->  | O80: =IF(N80="","",IF($F80="",N80,IF($F80="CO2e",N80*K80,IF($F80="GHG",N80*HLOOKUP($G80,GWP!$F$11:$I$31,4,FALSE)*K80,"")))) ->  | Q80: =IF(P80="","",IF($F80="",P80,IF($F80="CO2e",P80*K80,IF($F80="GHG",P80*HLOOKUP($G80,GWP!$F$11:$I$31,5,FALSE)*K80,"")))) ->  | V80: Please select | W80: Please select | X80: Please select | Z80: Please select | AA80: 1
B81: Please select | F81: Please select | G81: Please select | K81: =IFERROR(IF(H81="","",VLOOKUP(H81,'Conversion factors'!$D$25:$G$31,4,FALSE)),"") ->  | O81: =IF(N81="","",IF($F81="",N81,IF($F81="CO2e",N81*K81,IF($F81="GHG",N81*HLOOKUP($G81,GWP!$F$11:$I$31,4,FALSE)*K81,"")))) ->  | Q81: =IF(P81="","",IF($F81="",P81,IF($F81="CO2e",P81*K81,IF($F81="GHG",P81*HLOOKUP($G81,GWP!$F$11:$I$31,5,FALSE)*K81,"")))) ->  | V81: Please select | W81: Please select | X81: Please select | Z81: Please select | AA81: 1
B82: Please select | F82: Please select | G82: Please select | K82: =IFERROR(IF(H82="","",VLOOKUP(H82,'Conversion factors'!$D$25:$G$31,4,FALSE)),"") ->  | O82: =IF(N82="","",IF($F82="",N82,IF($F82="CO2e",N82*K82,IF($F82="GHG",N82*HLOOKUP($G82,GWP!$F$11:$I$31,4,FALSE)*K82,"")))) ->  | Q82: =IF(P82="","",IF($F82="",P82,IF($F82="CO2e",P82*K82,IF($F82="GHG",P82*HLOOKUP($G82,GWP!$F$11:$I$31,5,FALSE)*K82,"")))) ->  | V82: Please select | W82: Please select | X82: Please select | Z82: Please select | AA82: 1
B83: Please select | F83: Please select | G83: Please select | I83: =IF(H83="","","/") ->  | K83: =IFERROR(IF(H83="","",VLOOKUP(H83,'Conversion factors'!$D$25:$G$31,4,FALSE)),"") ->  | M83: =IFERROR(IF(L83="","",L83*$K83),"") ->  | O83: =IF(N83="","",IF($F83="",N83,IF($F83="CO2e",N83*K83,IF($F83="GHG",N83*HLOOKUP($G83,GWP!$F$11:$I$31,4,FALSE)*K83,"")))) ->  | Q83: =IF(P83="","",IF($F83="",P83,IF($F83="CO2e",P83*K83,IF($F83="GHG",P83*HLOOKUP($G83,GWP!$F$11:$I$31,5,FALSE)*K83,"")))) ->  | S83: =IFERROR(IF(R83="","",R83*$K83),"") ->  | U83: =IFERROR(IF(T83="","",T83*$K83),"") ->  | V83: Please select | W83: Please select | X83: Please select | Z83: Please select | AA83: 1
B84: Please select | F84: Please select | G84: Please select | K84: =IFERROR(IF(H84="","",VLOOKUP(H84,'Conversion factors'!$D$25:$G$31,4,FALSE)),"") ->  | O84: =IF(N84="","",IF($F84="",N84,IF($F84="CO2e",N84*K84,IF($F84="GHG",N84*HLOOKUP($G84,GWP!$F$11:$I$31,4,FALSE)*K84,"")))) ->  | Q84: =IF(P84="","",IF($F84="",P84,IF($F84="CO2e",P84*K84,IF($F84="GHG",P84*HLOOKUP($G84,GWP!$F$11:$I$31,5,FALSE)*K84,"")))) ->  | V84: Please select | W84: Please select | X84: Please select | Z84: Please select | AA84: 1
B85: Please select | F85: Please select | G85: Please select | K85: =IFERROR(IF(H85="","",VLOOKUP(H85,'Conversion factors'!$D$25:$G$31,4,FALSE)),"") ->  | O85: =IF(N85="","",IF($F85="",N85,IF($F85="CO2e",N85*K85,IF($F85="GHG",N85*HLOOKUP($G85,GWP!$F$11:$I$31,4,FALSE)*K85,"")))) ->  | Q85: =IF(P85="","",IF($F85="",P85,IF($F85="CO2e",P85*K85,IF($F85="GHG",P85*HLOOKUP($G85,GWP!$F$11:$I$31,5,FALSE)*K85,"")))) ->  | V85: Please select | W85: Please select | X85: Please select | Z85: Please select | AA85: 1
B86: Please select | F86: Please select | G86: Please select | K86: =IFERROR(IF(H86="","",VLOOKUP(H86,'Conversion factors'!$D$25:$G$31,4,FALSE)),"") ->  | O86: =IF(N86="","",IF($F86="",N86,IF($F86="CO2e",N86*K86,IF($F86="GHG",N86*HLOOKUP($G86,GWP!$F$11:$I$31,4,FALSE)*K86,"")))) ->  | Q86: =IF(P86="","",IF($F86="",P86,IF($F86="CO2e",P86*K86,IF($F86="GHG",P86*HLOOKUP($G86,GWP!$F$11:$I$31,5,FALSE)*K86,"")))) ->  | V86: Please select | W86: Please select | X86: Please select | Z86: Please select | AA86: 1
B87: Please select | F87: Please select | G87: Please select | K87: =IFERROR(IF(H87="","",VLOOKUP(H87,'Conversion factors'!$D$25:$G$31,4,FALSE)),"") ->  | O87: =IF(N87="","",IF($F87="",N87,IF($F87="CO2e",N87*K87,IF($F87="GHG",N87*HLOOKUP($G87,GWP!$F$11:$I$31,4,FALSE)*K87,"")))) ->  | Q87: =IF(P87="","",IF($F87="",P87,IF($F87="CO2e",P87*K87,IF($F87="GHG",P87*HLOOKUP($G87,GWP!$F$11:$I$31,5,FALSE)*K87,"")))) ->  | V87: Please select | W87: Please select | X87: Please select | Z87: Please select | AA87: 1
B88: Please select | F88: Please select | G88: Please select | K88: =IFERROR(IF(H88="","",VLOOKUP(H88,'Conversion factors'!$D$25:$G$31,4,FALSE)),"") ->  | O88: =IF(N88="","",IF($F88="",N88,IF($F88="CO2e",N88*K88,IF($F88="GHG",N88*HLOOKUP($G88,GWP!$F$11:$I$31,4,FALSE)*K88,"")))) ->  | Q88: =IF(P88="","",IF($F88="",P88,IF($F88="CO2e",P88*K88,IF($F88="GHG",P88*HLOOKUP($G88,GWP!$F$11:$I$31,5,FALSE)*K88,"")))) ->  | V88: Please select | W88: Please select | X88: Please select | Z88: Please select | AA88: 1
B89: Please select | F89: Please select | G89: Please select | K89: =IFERROR(IF(H89="","",VLOOKUP(H89,'Conversion factors'!$D$25:$G$31,4,FALSE)),"") ->  | O89: =IF(N89="","",IF($F89="",N89,IF($F89="CO2e",N89*K89,IF($F89="GHG",N89*HLOOKUP($G89,GWP!$F$11:$I$31,4,FALSE)*K89,"")))) ->  | Q89: =IF(P89="","",IF($F89="",P89,IF($F89="CO2e",P89*K89,IF($F89="GHG",P89*HLOOKUP($G89,GWP!$F$11:$I$31,5,FALSE)*K89,"")))) ->  | V89: Please select | W89: Please select | X89: Please select | Z89: Please select | AA89: 1
B90: Please select | F90: Please select | G90: Please select | K90: =IFERROR(IF(H90="","",VLOOKUP(H90,'Conversion factors'!$D$25:$G$31,4,FALSE)),"") ->  | O90: =IF(N90="","",IF($F90="",N90,IF($F90="CO2e",N90*K90,IF($F90="GHG",N90*HLOOKUP($G90,GWP!$F$11:$I$31,4,FALSE)*K90,"")))) ->  | Q90: =IF(P90="","",IF($F90="",P90,IF($F90="CO2e",P90*K90,IF($F90="GHG",P90*HLOOKUP($G90,GWP!$F$11:$I$31,5,FALSE)*K90,"")))) ->  | V90: Please select | W90: Please select | X90: Please select | Z90: Please select | AA90: 1
B91: Please select | F91: Please select | G91: Please select | I91: =IF(H91="","","/") ->  | K91: =IFERROR(IF(H91="","",VLOOKUP(H91,'Conversion factors'!$D$25:$G$31,4,FALSE)),"") ->  | M91: =IFERROR(IF(L91="","",L91*$K91),"") ->  | O91: =IF(N91="","",IF($F91="",N91,IF($F91="CO2e",N91*K91,IF($F91="GHG",N91*HLOOKUP($G91,GWP!$F$11:$I$31,4,FALSE)*K91,"")))) ->  | Q91: =IF(P91="","",IF($F91="",P91,IF($F91="CO2e",P91*K91,IF($F91="GHG",P91*HLOOKUP($G91,GWP!$F$11:$I$31,5,FALSE)*K91,"")))) ->  | S91: =IFERROR(IF(R91="","",R91*$K91),"") ->  | U91: =IFERROR(IF(T91="","",T91*$K91),"") ->  | V91: Please select | W91: Please select | X91: Please select | Z91: Please select | AA91: 1
B92: Please select | F92: Please select | G92: Please select | K92: =IFERROR(IF(H92="","",VLOOKUP(H92,'Conversion factors'!$D$25:$G$31,4,FALSE)),"") ->  | O92: =IF(N92="","",IF($F92="",N92,IF($F92="CO2e",N92*K92,IF($F92="GHG",N92*HLOOKUP($G92,GWP!$F$11:$I$31,4,FALSE)*K92,"")))) ->  | Q92: =IF(P92="","",IF($F92="",P92,IF($F92="CO2e",P92*K92,IF($F92="GHG",P92*HLOOKUP($G92,GWP!$F$11:$I$31,5,FALSE)*K92,"")))) ->  | V92: Please select | W92: Please select | X92: Please select | Z92: Please select | AA92: 1
B93: Please select | F93: Please select | G93: Please select | K93: =IFERROR(IF(H93="","",VLOOKUP(H93,'Conversion factors'!$D$25:$G$31,4,FALSE)),"") ->  | O93: =IF(N93="","",IF($F93="",N93,IF($F93="CO2e",N93*K93,IF($F93="GHG",N93*HLOOKUP($G93,GWP!$F$11:$I$31,4,FALSE)*K93,"")))) ->  | Q93: =IF(P93="","",IF($F93="",P93,IF($F93="CO2e",P93*K93,IF($F93="GHG",P93*HLOOKUP($G93,GWP!$F$11:$I$31,5,FALSE)*K93,"")))) ->  | V93: Please select | W93: Please select | X93: Please select | Z93: Please select | AA93: 1
B94: Please select | F94: Please select | G94: Please select | K94: =IFERROR(IF(H94="","",VLOOKUP(H94,'Conversion factors'!$D$25:$G$31,4,FALSE)),"") ->  | O94: =IF(N94="","",IF($F94="",N94,IF($F94="CO2e",N94*K94,IF($F94="GHG",N94*HLOOKUP($G94,GWP!$F$11:$I$31,4,FALSE)*K94,"")))) ->  | Q94: =IF(P94="","",IF($F94="",P94,IF($F94="CO2e",P94*K94,IF($F94="GHG",P94*HLOOKUP($G94,GWP!$F$11:$I$31,5,FALSE)*K94,"")))) ->  | V94: Please select | W94: Please select | X94: Please select | Z94: Please select | AA94: 1
B95: Please select | F95: Please select | G95: Please select | K95: =IFERROR(IF(H95="","",VLOOKUP(H95,'Conversion factors'!$D$25:$G$31,4,FALSE)),"") ->  | O95: =IF(N95="","",IF($F95="",N95,IF($F95="CO2e",N95*K95,IF($F95="GHG",N95*HLOOKUP($G95,GWP!$F$11:$I$31,4,FALSE)*K95,"")))) ->  | Q95: =IF(P95="","",IF($F95="",P95,IF($F95="CO2e",P95*K95,IF($F95="GHG",P95*HLOOKUP($G95,GWP!$F$11:$I$31,5,FALSE)*K95,"")))) ->  | V95: Please select | W95: Please select | X95: Please select | Z95: Please select | AA95: 1
B96: Please select | F96: Please select | G96: Please select | K96: =IFERROR(IF(H96="","",VLOOKUP(H96,'Conversion factors'!$D$25:$G$31,4,FALSE)),"") ->  | O96: =IF(N96="","",IF($F96="",N96,IF($F96="CO2e",N96*K96,IF($F96="GHG",N96*HLOOKUP($G96,GWP!$F$11:$I$31,4,FALSE)*K96,"")))) ->  | Q96: =IF(P96="","",IF($F96="",P96,IF($F96="CO2e",P96*K96,IF($F96="GHG",P96*HLOOKUP($G96,GWP!$F$11:$I$31,5,FALSE)*K96,"")))) ->  | V96: Please select | W96: Please select | X96: Please select | Z96: Please select | AA96: 1
B97: Please select | F97: Please select | G97: Please select | K97: =IFERROR(IF(H97="","",VLOOKUP(H97,'Conversion factors'!$D$25:$G$31,4,FALSE)),"") ->  | O97: =IF(N97="","",IF($F97="",N97,IF($F97="CO2e",N97*K97,IF($F97="GHG",N97*HLOOKUP($G97,GWP!$F$11:$I$31,4,FALSE)*K97,"")))) ->  | Q97: =IF(P97="","",IF($F97="",P97,IF($F97="CO2e",P97*K97,IF($F97="GHG",P97*HLOOKUP($G97,GWP!$F$11:$I$31,5,FALSE)*K97,"")))) ->  | V97: Please select | W97: Please select | X97: Please select | Z97: Please select | AA97: 1
B98: Please select | F98: Please select | G98: Please select | K98: =IFERROR(IF(H98="","",VLOOKUP(H98,'Conversion factors'!$D$25:$G$31,4,FALSE)),"") ->  | O98: =IF(N98="","",IF($F98="",N98,IF($F98="CO2e",N98*K98,IF($F98="GHG",N98*HLOOKUP($G98,GWP!$F$11:$I$31,4,FALSE)*K98,"")))) ->  | Q98: =IF(P98="","",IF($F98="",P98,IF($F98="CO2e",P98*K98,IF($F98="GHG",P98*HLOOKUP($G98,GWP!$F$11:$I$31,5,FALSE)*K98,"")))) ->  | V98: Please select | W98: Please select | X98: Please select | Z98: Please select | AA98: 1
B99: Please select | F99: Please select | G99: Please select | I99: =IF(H99="","","/") ->  | K99: =IFERROR(IF(H99="","",VLOOKUP(H99,'Conversion factors'!$D$25:$G$31,4,FALSE)),"") ->  | M99: =IFERROR(IF(L99="","",L99*$K99),"") ->  | O99: =IF(N99="","",IF($F99="",N99,IF($F99="CO2e",N99*K99,IF($F99="GHG",N99*HLOOKUP($G99,GWP!$F$11:$I$31,4,FALSE)*K99,"")))) ->  | Q99: =IF(P99="","",IF($F99="",P99,IF($F99="CO2e",P99*K99,IF($F99="GHG",P99*HLOOKUP($G99,GWP!$F$11:$I$31,5,FALSE)*K99,"")))) ->  | S99: =IFERROR(IF(R99="","",R99*$K99),"") ->  | U99: =IFERROR(IF(T99="","",T99*$K99),"") ->  | V99: Please select | W99: Please select | X99: Please select | Z99: Please select | AA99: 1
B100: Please select | F100: Please select | G100: Please select | K100: =IFERROR(IF(H100="","",VLOOKUP(H100,'Conversion factors'!$D$25:$G$31,4,FALSE)),"") ->  | O100: =IF(N100="","",IF($F100="",N100,IF($F100="CO2e",N100*K100,IF($F100="GHG",N100*HLOOKUP($G100,GWP!$F$11:$I$31,4,FALSE)*K100,"")))) ->  | Q100: =IF(P100="","",IF($F100="",P100,IF($F100="CO2e",P100*K100,IF($F100="GHG",P100*HLOOKUP($G100,GWP!$F$11:$I$31,5,FALSE)*K100,"")))) ->  | V100: Please select | W100: Please select | X100: Please select | Z100: Please select | AA100: 1
B101: Please select | F101: Please select | G101: Please select | K101: =IFERROR(IF(H101="","",VLOOKUP(H101,'Conversion factors'!$D$25:$G$31,4,FALSE)),"") ->  | O101: =IF(N101="","",IF($F101="",N101,IF($F101="CO2e",N101*K101,IF($F101="GHG",N101*HLOOKUP($G101,GWP!$F$11:$I$31,4,FALSE)*K101,"")))) ->  | Q101: =IF(P101="","",IF($F101="",P101,IF($F101="CO2e",P101*K101,IF($F101="GHG",P101*HLOOKUP($G101,GWP!$F$11:$I$31,5,FALSE)*K101,"")))) ->  | V101: Please select | W101: Please select | X101: Please select | Z101: Please select | AA101: 1
B102: Please select | F102: Please select | G102: Please select | K102: =IFERROR(IF(H102="","",VLOOKUP(H102,'Conversion factors'!$D$25:$G$31,4,FALSE)),"") ->  | O102: =IF(N102="","",IF($F102="",N102,IF($F102="CO2e",N102*K102,IF($F102="GHG",N102*HLOOKUP($G102,GWP!$F$11:$I$31,4,FALSE)*K102,"")))) ->  | Q102: =IF(P102="","",IF($F102="",P102,IF($F102="CO2e",P102*K102,IF($F102="GHG",P102*HLOOKUP($G102,GWP!$F$11:$I$31,5,FALSE)*K102,"")))) ->  | V102: Please select | W102: Please select | X102: Please select | Z102: Please select | AA102: 1
B103: Please select | F103: Please select | G103: Please select | K103: =IFERROR(IF(H103="","",VLOOKUP(H103,'Conversion factors'!$D$25:$G$31,4,FALSE)),"") ->  | O103: =IF(N103="","",IF($F103="",N103,IF($F103="CO2e",N103*K103,IF($F103="GHG",N103*HLOOKUP($G103,GWP!$F$11:$I$31,4,FALSE)*K103,"")))) ->  | Q103: =IF(P103="","",IF($F103="",P103,IF($F103="CO2e",P103*K103,IF($F103="GHG",P103*HLOOKUP($G103,GWP!$F$11:$I$31,5,FALSE)*K103,"")))) ->  | V103: Please select | W103: Please select | X103: Please select | Z103: Please select | AA103: 1
B104: Please select | F104: Please select | G104: Please select | K104: =IFERROR(IF(H104="","",VLOOKUP(H104,'Conversion factors'!$D$25:$G$31,4,FALSE)),"") ->  | O104: =IF(N104="","",IF($F104="",N104,IF($F104="CO2e",N104*K104,IF($F104="GHG",N104*HLOOKUP($G104,GWP!$F$11:$I$31,4,FALSE)*K104,"")))) ->  | Q104: =IF(P104="","",IF($F104="",P104,IF($F104="CO2e",P104*K104,IF($F104="GHG",P104*HLOOKUP($G104,GWP!$F$11:$I$31,5,FALSE)*K104,"")))) ->  | V104: Please select | W104: Please select | X104: Please select | Z104: Please select | AA104: 1
B105: Please select | F105: Please select | G105: Please select | K105: =IFERROR(IF(H105="","",VLOOKUP(H105,'Conversion factors'!$D$25:$G$31,4,FALSE)),"") ->  | O105: =IF(N105="","",IF($F105="",N105,IF($F105="CO2e",N105*K105,IF($F105="GHG",N105*HLOOKUP($G105,GWP!$F$11:$I$31,4,FALSE)*K105,"")))) ->  | Q105: =IF(P105="","",IF($F105="",P105,IF($F105="CO2e",P105*K105,IF($F105="GHG",P105*HLOOKUP($G105,GWP!$F$11:$I$31,5,FALSE)*K105,"")))) ->  | V105: Please select | W105: Please select | X105: Please select | Z105: Please select | AA105: 1
B106: Please select | F106: Please select | G106: Please select | K106: =IFERROR(IF(H106="","",VLOOKUP(H106,'Conversion factors'!$D$25:$G$31,4,FALSE)),"") ->  | O106: =IF(N106="","",IF($F106="",N106,IF($F106="CO2e",N106*K106,IF($F106="GHG",N106*HLOOKUP($G106,GWP!$F$11:$I$31,4,FALSE)*K106,"")))) ->  | Q106: =IF(P106="","",IF($F106="",P106,IF($F106="CO2e",P106*K106,IF($F106="GHG",P106*HLOOKUP($G106,GWP!$F$11:$I$31,5,FALSE)*K106,"")))) ->  | V106: Please select | W106: Please select | X106: Please select | Z106: Please select | AA106: 1
B107: Please select | F107: Please select | G107: Please select | K107: =IFERROR(IF(H107="","",VLOOKUP(H107,'Conversion factors'!$D$25:$G$31,4,FALSE)),"") ->  | O107: =IF(N107="","",IF($F107="",N107,IF($F107="CO2e",N107*K107,IF($F107="GHG",N107*HLOOKUP($G107,GWP!$F$11:$I$31,4,FALSE)*K107,"")))) ->  | Q107: =IF(P107="","",IF($F107="",P107,IF($F107="CO2e",P107*K107,IF($F107="GHG",P107*HLOOKUP($G107,GWP!$F$11:$I$31,5,FALSE)*K107,"")))) ->  | V107: Please select | W107: Please select | X107: Please select | Z107: Please select | AA107: 1
B108: Please select | F108: Please select | G108: Please select | K108: =IFERROR(IF(H108="","",VLOOKUP(H108,'Conversion factors'!$D$25:$G$31,4,FALSE)),"") ->  | O108: =IF(N108="","",IF($F108="",N108,IF($F108="CO2e",N108*K108,IF($F108="GHG",N108*HLOOKUP($G108,GWP!$F$11:$I$31,4,FALSE)*K108,"")))) ->  | Q108: =IF(P108="","",IF($F108="",P108,IF($F108="CO2e",P108*K108,IF($F108="GHG",P108*HLOOKUP($G108,GWP!$F$11:$I$31,5,FALSE)*K108,"")))) ->  | V108: Please select | W108: Please select | X108: Please select | Z108: Please select | AA108: 1
B109: Please select | F109: Please select | G109: Please select | K109: =IFERROR(IF(H109="","",VLOOKUP(H109,'Conversion factors'!$D$25:$G$31,4,FALSE)),"") ->  | O109: =IF(N109="","",IF($F109="",N109,IF($F109="CO2e",N109*K109,IF($F109="GHG",N109*HLOOKUP($G109,GWP!$F$11:$I$31,4,FALSE)*K109,"")))) ->  | Q109: =IF(P109="","",IF($F109="",P109,IF($F109="CO2e",P109*K109,IF($F109="GHG",P109*HLOOKUP($G109,GWP!$F$11:$I$31,5,FALSE)*K109,"")))) ->  | V109: Please select | W109: Please select | X109: Please select | Z109: Please select | AA109: 1
B110: Please select | F110: Please select | G110: Please select | K110: =IFERROR(IF(H110="","",VLOOKUP(H110,'Conversion factors'!$D$25:$G$31,4,FALSE)),"") ->  | O110: =IF(N110="","",IF($F110="",N110,IF($F110="CO2e",N110*K110,IF($F110="GHG",N110*HLOOKUP($G110,GWP!$F$11:$I$31,4,FALSE)*K110,"")))) ->  | Q110: =IF(P110="","",IF($F110="",P110,IF($F110="CO2e",P110*K110,IF($F110="GHG",P110*HLOOKUP($G110,GWP!$F$11:$I$31,5,FALSE)*K110,"")))) ->  | V110: Please select | W110: Please select | X110: Please select | Z110: Please select | AA110: 1
B111: Please select | F111: Please select | G111: Please select | K111: =IFERROR(IF(H111="","",VLOOKUP(H111,'Conversion factors'!$D$25:$G$31,4,FALSE)),"") ->  | O111: =IF(N111="","",IF($F111="",N111,IF($F111="CO2e",N111*K111,IF($F111="GHG",N111*HLOOKUP($G111,GWP!$F$11:$I$31,4,FALSE)*K111,"")))) ->  | Q111: =IF(P111="","",IF($F111="",P111,IF($F111="CO2e",P111*K111,IF($F111="GHG",P111*HLOOKUP($G111,GWP!$F$11:$I$31,5,FALSE)*K111,"")))) ->  | V111: Please select | W111: Please select | X111: Please select | Z111: Please select | AA111: 1
B112: Please select | F112: Please select | G112: Please select | K112: =IFERROR(IF(H112="","",VLOOKUP(H112,'Conversion factors'!$D$25:$G$31,4,FALSE)),"") ->  | O112: =IF(N112="","",IF($F112="",N112,IF($F112="CO2e",N112*K112,IF($F112="GHG",N112*HLOOKUP($G112,GWP!$F$11:$I$31,4,FALSE)*K112,"")))) ->  | Q112: =IF(P112="","",IF($F112="",P112,IF($F112="CO2e",P112*K112,IF($F112="GHG",P112*HLOOKUP($G112,GWP!$F$11:$I$31,5,FALSE)*K112,"")))) ->  | V112: Please select | W112: Please select | X112: Please select | Z112: Please select | AA112: 1
B113: Please select | F113: Please select | G113: Please select | K113: =IFERROR(IF(H113="","",VLOOKUP(H113,'Conversion factors'!$D$25:$G$31,4,FALSE)),"") ->  | O113: =IF(N113="","",IF($F113="",N113,IF($F113="CO2e",N113*K113,IF($F113="GHG",N113*HLOOKUP($G113,GWP!$F$11:$I$31,4,FALSE)*K113,"")))) ->  | Q113: =IF(P113="","",IF($F113="",P113,IF($F113="CO2e",P113*K113,IF($F113="GHG",P113*HLOOKUP($G113,GWP!$F$11:$I$31,5,FALSE)*K113,"")))) ->  | V113: Please select | W113: Please select | X113: Please select | Z113: Please select | AA113: 1
B114: Please select | F114: Please select | G114: Please select | K114: =IFERROR(IF(H114="","",VLOOKUP(H114,'Conversion factors'!$D$25:$G$31,4,FALSE)),"") ->  | O114: =IF(N114="","",IF($F114="",N114,IF($F114="CO2e",N114*K114,IF($F114="GHG",N114*HLOOKUP($G114,GWP!$F$11:$I$31,4,FALSE)*K114,"")))) ->  | Q114: =IF(P114="","",IF($F114="",P114,IF($F114="CO2e",P114*K114,IF($F114="GHG",P114*HLOOKUP($G114,GWP!$F$11:$I$31,5,FALSE)*K114,"")))) ->  | V114: Please select | W114: Please select | X114: Please select | Z114: Please select | AA114: 1
B115: Please select | F115: Please select | G115: Please select | K115: =IFERROR(IF(H115="","",VLOOKUP(H115,'Conversion factors'!$D$25:$G$31,4,FALSE)),"") ->  | O115: =IF(N115="","",IF($F115="",N115,IF($F115="CO2e",N115*K115,IF($F115="GHG",N115*HLOOKUP($G115,GWP!$F$11:$I$31,4,FALSE)*K115,"")))) ->  | Q115: =IF(P115="","",IF($F115="",P115,IF($F115="CO2e",P115*K115,IF($F115="GHG",P115*HLOOKUP($G115,GWP!$F$11:$I$31,5,FALSE)*K115,"")))) ->  | V115: Please select | W115: Please select | X115: Please select | Z115: Please select | AA115: 1
B116: Please select | F116: Please select | G116: Please select | K116: =IFERROR(IF(H116="","",VLOOKUP(H116,'Conversion factors'!$D$25:$G$31,4,FALSE)),"") ->  | O116: =IF(N116="","",IF($F116="",N116,IF($F116="CO2e",N116*K116,IF($F116="GHG",N116*HLOOKUP($G116,GWP!$F$11:$I$31,4,FALSE)*K116,"")))) ->  | Q116: =IF(P116="","",IF($F116="",P116,IF($F116="CO2e",P116*K116,IF($F116="GHG",P116*HLOOKUP($G116,GWP!$F$11:$I$31,5,FALSE)*K116,"")))) ->  | V116: Please select | W116: Please select | X116: Please select | Z116: Please select | AA116: 1
B117: Please select | F117: Please select | G117: Please select | K117: =IFERROR(IF(H117="","",VLOOKUP(H117,'Conversion factors'!$D$25:$G$31,4,FALSE)),"") ->  | O117: =IF(N117="","",IF($F117="",N117,IF($F117="CO2e",N117*K117,IF($F117="GHG",N117*HLOOKUP($G117,GWP!$F$11:$I$31,4,FALSE)*K117,"")))) ->  | Q117: =IF(P117="","",IF($F117="",P117,IF($F117="CO2e",P117*K117,IF($F117="GHG",P117*HLOOKUP($G117,GWP!$F$11:$I$31,5,FALSE)*K117,"")))) ->  | V117: Please select | W117: Please select | X117: Please select | Z117: Please select | AA117: 1
B118: No data sources reported

Sheet F-Gases
D2: Introduction | F2: Set-up | H2: Inventory | L2: Calculators | N2: Results | P2: Notes
D3: City information | F3: Data sources | H3: Emission factors | L3: IPPU Emission factors
B6: EMISSION FACTORS - F GASES
B8: Use this table to record the emission factors used to calculate F-gas emissions for IPPU activities only. Emission factors convert activity data into a mass of GHG emissions. The "Add" function allows you to select the required number of rows. Names provided in the 'Unique identifier' column shall be used to identify the relevant emission factors in the sector tabs. Select "GHG" in the 'Type' column if emission factors have not been converted into units of CO2-equivalent. Select "CO2e" if they have. Emission factors should be recorded for each gas separately. If these are not available, an emission factor for total CO2e may be used. In the "GWP" column, select the version of IPCC Assessment Report where the Global Warming Potentials used come from.
O12: 4 | Q12: 5 | S12: 7 | U12: 8 | W12: 9 | Y12: 10 | AA12: 11 | AC12: 12 | AE12: 13 | AG12: 14 | AI12: 15 | AK12: 16 | AM12: 17 | AO12: 18 | AQ12: 19 | AS12: 20 | AU12: 6 | AW12: 21
B13: Fuel type or activity | D13: Unique identifier | F13: Type | G13: GWP | H13: Units | K13: Convert to tonnes | L13: Emission factor | BB13: Data quality | BC13: Year | BD13: Scale | BE13: Description | BF13: Source
L14: CO2 | M14: tCO2e | N14: CH4 | O14: CH4_tCO2e | P14: N2O | Q14: N2O_tCO2e | R14: CF4 | S14: CF4_tCO2e | T14: C2F6 | U14: C2F6_tCO2e | V14: HFC-23 | W14: HFC-23_tCO2e | X14: HFC-32 | Y14: HFC-32_tCO2e | Z14: HFC-41 | AA14: HFC-41_tCO2e | AB14: HFC-125 | AC14: HFC-125_tCO2e | AD14: HFC-134 | AE14: HFC-134_tCO2e | AF14: HFC-134a | AG14: HFC-134a_tCO2e | AH14: HFC-143 | AI14: HFC-143_tCO2e | AJ14: HFC-143a | AK14: HFC-143a_tCO2e | AL14: HFC-152a | AM14: HFC-152a_tCO2e | AN14: HFC-227ea | AO14: HFC-227ea_tCO2e | AP14: HFC-236fa | AQ14: HFC-236fa_tCO2e | AR14: HFC-245ca | AS14: HFC-245ca_tCO2e | AT14: SF6 | AU14: SF6_tCO2e | AV14: NF3 | AW14: NF3_tCO2e | AX14: Total CO2e | AY14: tCO2e | AZ14: CO2(b) | BA14: tCO2(b)
A15: Add
D17: Please select
F18: Please select | G18: Please select | I18: =IF(H18="","","/") ->  | K18: =IFERROR(IF(H18="","",VLOOKUP(H18,'Conversion factors'!$D$25:$G$31,4,FALSE)),"") ->  | M18: =IFERROR(IF(L18="","",L18*$K18),"") ->  | O18: =IF(N18="","",IF($F18="",N18,IF($F18="CO2e",N18*$K18,IF($F18="GHG",N18*HLOOKUP($G18,GWP!$F$11:$I$31,4,FALSE)*$K18,"")))) ->  | Q18: =IF(P18="","",IF($F18="",P18,IF($F18="CO2e",P18*$K18,IF($F18="GHG",P18*HLOOKUP($G18,GWP!$F$11:$I$31,Q$12,FALSE)*$K18,"")))) ->  | S18: =IF(R18="","",IF($F18="",R18,IF($F18="CO2e",R18*$K18,IF($F18="GHG",R18*HLOOKUP($G18,GWP!$F$11:$I$31,S$12,FALSE)*$K18,"")))) ->  | U18: =IF(T18="","",IF($F18="",T18,IF($F18="CO2e",T18*$K18,IF($F18="GHG",T18*HLOOKUP($G18,GWP!$F$11:$I$31,U$12,FALSE)*$K18,"")))) ->  | W18: =IF(V18="","",IF($F18="",V18,IF($F18="CO2e",V18*$K18,IF($F18="GHG",V18*HLOOKUP($G18,GWP!$F$11:$I$31,W$12,FALSE)*$K18,"")))) ->  | Y18: =IF(X18="","",IF($F18="",X18,IF($F18="CO2e",X18*$K18,IF($F18="GHG",X18*HLOOKUP($G18,GWP!$F$11:$I$31,Y$12,FALSE)*$K18,"")))) ->  | AA18: =IF(Z18="","",IF($F18="",Z18,IF($F18="CO2e",Z18*$K18,IF($F18="GHG",Z18*HLOOKUP($G18,GWP!$F$11:$I$31,AA$12,FALSE)*$K18,"")))) ->  | AC18: =IF(AB18="","",IF($F18="",AB18,IF($F18="CO2e",AB18*$K18,IF($F18="GHG",AB18*HLOOKUP($G18,GWP!$F$11:$I$31,AC$12,FALSE)*$K18,"")))) ->  | AE18: =IF(AD18="","",IF($F18="",AD18,IF($F18="CO2e",AD18*$K18,IF($F18="GHG",AD18*HLOOKUP($G18,GWP!$F$11:$I$31,AE$12,FALSE)*$K18,"")))) ->  | AG18: =IF(AF18="","",IF($F18="",AF18,IF($F18="CO2e",AF18*$K18,IF($F18="GHG",AF18*HLOOKUP($G18,GWP!$F$11:$I$31,AG$12,FALSE)*$K18,"")))) ->  | AI18: =IF(AH18="","",IF($F18="",AH18,IF($F18="CO2e",AH18*$K18,IF($F18="GHG",AH18*HLOOKUP($G18,GWP!$F$11:$I$31,AI$12,FALSE)*$K18,"")))) ->  | AK18: =IF(AJ18="","",IF($F18="",AJ18,IF($F18="CO2e",AJ18*$K18,IF($F18="GHG",AJ18*HLOOKUP($G18,GWP!$F$11:$I$31,AK$12,FALSE)*$K18,"")))) ->  | AM18: =IF(AL18="","",IF($F18="",AL18,IF($F18="CO2e",AL18*$K18,IF($F18="GHG",AL18*HLOOKUP($G18,GWP!$F$11:$I$31,AM$12,FALSE)*$K18,"")))) ->  | AO18: =IF(AN18="","",IF($F18="",AN18,IF($F18="CO2e",AN18*$K18,IF($F18="GHG",AN18*HLOOKUP($G18,GWP!$F$11:$I$31,AO$12,FALSE)*$K18,"")))) ->  | AQ18: =IF(AP18="","",IF($F18="",AP18,IF($F18="CO2e",AP18*$K18,IF($F18="GHG",AP18*HLOOKUP($G18,GWP!$F$11:$I$31,AQ$12,FALSE)*$K18,"")))) ->  | AS18: =IF(AR18="","",IF($F18="",AR18,IF($F18="CO2e",AR18*$K18,IF($F18="GHG",AR18*HLOOKUP($G18,GWP!$F$11:$I$31,AS$12,FALSE)*$K18,"")))) ->  | AU18: =IF(AT18="","",IF($F18="",AT18,IF($F18="CO2e",AT18*$K18,IF($F18="GHG",AT18*HLOOKUP($G18,GWP!$F$11:$I$31,AU$12,FALSE)*$K18,"")))) ->  | AW18: =IF(AV18="","",IF($F18="",AV18,IF($F18="CO2e",AV18*$K18,IF($F18="GHG",AV18*HLOOKUP($G18,GWP!$F$11:$I$31,AW$12,FALSE)*$K18,"")))) ->  | AY18: =IFERROR(IF(AX18="","",AX18*$K18),"") ->  | BA18: =IFERROR(IF(AZ18="","",AZ18*$K18),"") ->  | BB18: Please select | BC18: Please select | BD18: Please select | BF18: Please select | BG18: 1
F19: Please select | G19: Please select | K19: =IFERROR(IF(H19="","",VLOOKUP(H19,'Conversion factors'!$D$25:$G$31,4,FALSE)),"") ->  | O19: =IF(N19="","",IF($F19="",N19,IF($F19="CO2e",N19*$K19,IF($F19="GHG",N19*HLOOKUP($G19,GWP!$F$11:$I$31,4,FALSE)*$K19,"")))) ->  | Q19: =IF(P19="","",IF($F19="",P19,IF($F19="CO2e",P19*$K19,IF($F19="GHG",P19*HLOOKUP($G19,GWP!$F$11:$I$31,Q$12,FALSE)*$K19,"")))) ->  | S19: =IF(R19="","",IF($F19="",R19,IF($F19="CO2e",R19*$K19,IF($F19="GHG",R19*HLOOKUP($G19,GWP!$F$11:$I$31,S$12,FALSE)*$K19,"")))) ->  | U19: =IF(T19="","",IF($F19="",T19,IF($F19="CO2e",T19*$K19,IF($F19="GHG",T19*HLOOKUP($G19,GWP!$F$11:$I$31,U$12,FALSE)*$K19,"")))) ->  | W19: =IF(V19="","",IF($F19="",V19,IF($F19="CO2e",V19*$K19,IF($F19="GHG",V19*HLOOKUP($G19,GWP!$F$11:$I$31,W$12,FALSE)*$K19,"")))) ->  | Y19: =IF(X19="","",IF($F19="",X19,IF($F19="CO2e",X19*$K19,IF($F19="GHG",X19*HLOOKUP($G19,GWP!$F$11:$I$31,Y$12,FALSE)*$K19,"")))) ->  | AA19: =IF(Z19="","",IF($F19="",Z19,IF($F19="CO2e",Z19*$K19,IF($F19="GHG",Z19*HLOOKUP($G19,GWP!$F$11:$I$31,AA$12,FALSE)*$K19,"")))) ->  | AC19: =IF(AB19="","",IF($F19="",AB19,IF($F19="CO2e",AB19*$K19,IF($F19="GHG",AB19*HLOOKUP($G19,GWP!$F$11:$I$31,AC$12,FALSE)*$K19,"")))) ->  | AE19: =IF(AD19="","",IF($F19="",AD19,IF($F19="CO2e",AD19*$K19,IF($F19="GHG",AD19*HLOOKUP($G19,GWP!$F$11:$I$31,AE$12,FALSE)*$K19,"")))) ->  | AG19: =IF(AF19="","",IF($F19="",AF19,IF($F19="CO2e",AF19*$K19,IF($F19="GHG",AF19*HLOOKUP($G19,GWP!$F$11:$I$31,AG$12,FALSE)*$K19,"")))) ->  | AI19: =IF(AH19="","",IF($F19="",AH19,IF($F19="CO2e",AH19*$K19,IF($F19="GHG",AH19*HLOOKUP($G19,GWP!$F$11:$I$31,AI$12,FALSE)*$K19,"")))) ->  | AK19: =IF(AJ19="","",IF($F19="",AJ19,IF($F19="CO2e",AJ19*$K19,IF($F19="GHG",AJ19*HLOOKUP($G19,GWP!$F$11:$I$31,AK$12,FALSE)*$K19,"")))) ->  | AM19: =IF(AL19="","",IF($F19="",AL19,IF($F19="CO2e",AL19*$K19,IF($F19="GHG",AL19*HLOOKUP($G19,GWP!$F$11:$I$31,AM$12,FALSE)*$K19,"")))) ->  | AO19: =IF(AN19="","",IF($F19="",AN19,IF($F19="CO2e",AN19*$K19,IF($F19="GHG",AN19*HLOOKUP($G19,GWP!$F$11:$I$31,AO$12,FALSE)*$K19,"")))) ->  | AQ19: =IF(AP19="","",IF($F19="",AP19,IF($F19="CO2e",AP19*$K19,IF($F19="GHG",AP19*HLOOKUP($G19,GWP!$F$11:$I$31,AQ$12,FALSE)*$K19,"")))) ->  | AS19: =IF(AR19="","",IF($F19="",AR19,IF($F19="CO2e",AR19*$K19,IF($F19="GHG",AR19*HLOOKUP($G19,GWP!$F$11:$I$31,AS$12,FALSE)*$K19,"")))) ->  | AU19: =IF(AT19="","",IF($F19="",AT19,IF($F19="CO2e",AT19*$K19,IF($F19="GHG",AT19*HLOOKUP($G19,GWP!$F$11:$I$31,AU$12,FALSE)*$K19,"")))) ->  | AW19: =IF(AV19="","",IF($F19="",AV19,IF($F19="CO2e",AV19*$K19,IF($F19="GHG",AV19*HLOOKUP($G19,GWP!$F$11:$I$31,AW$12,FALSE)*$K19,"")))) ->  | BB19: Please select | BC19: Please select | BD19: Please select | BF19: Please select | BG19: 1
F20: Please select | G20: Please select | K20: =IFERROR(IF(H20="","",VLOOKUP(H20,'Conversion factors'!$D$25:$G$31,4,FALSE)),"") ->  | O20: =IF(N20="","",IF($F20="",N20,IF($F20="CO2e",N20*$K20,IF($F20="GHG",N20*HLOOKUP($G20,GWP!$F$11:$I$31,4,FALSE)*$K20,"")))) ->  | Q20: =IF(P20="","",IF($F20="",P20,IF($F20="CO2e",P20*$K20,IF($F20="GHG",P20*HLOOKUP($G20,GWP!$F$11:$I$31,Q$12,FALSE)*$K20,"")))) ->  | S20: =IF(R20="","",IF($F20="",R20,IF($F20="CO2e",R20*$K20,IF($F20="GHG",R20*HLOOKUP($G20,GWP!$F$11:$I$31,S$12,FALSE)*$K20,"")))) ->  | U20: =IF(T20="","",IF($F20="",T20,IF($F20="CO2e",T20*$K20,IF($F20="GHG",T20*HLOOKUP($G20,GWP!$F$11:$I$31,U$12,FALSE)*$K20,"")))) ->  | W20: =IF(V20="","",IF($F20="",V20,IF($F20="CO2e",V20*$K20,IF($F20="GHG",V20*HLOOKUP($G20,GWP!$F$11:$I$31,W$12,FALSE)*$K20,"")))) ->  | Y20: =IF(X20="","",IF($F20="",X20,IF($F20="CO2e",X20*$K20,IF($F20="GHG",X20*HLOOKUP($G20,GWP!$F$11:$I$31,Y$12,FALSE)*$K20,"")))) ->  | AA20: =IF(Z20="","",IF($F20="",Z20,IF($F20="CO2e",Z20*$K20,IF($F20="GHG",Z20*HLOOKUP($G20,GWP!$F$11:$I$31,AA$12,FALSE)*$K20,"")))) ->  | AC20: =IF(AB20="","",IF($F20="",AB20,IF($F20="CO2e",AB20*$K20,IF($F20="GHG",AB20*HLOOKUP($G20,GWP!$F$11:$I$31,AC$12,FALSE)*$K20,"")))) ->  | AE20: =IF(AD20="","",IF($F20="",AD20,IF($F20="CO2e",AD20*$K20,IF($F20="GHG",AD20*HLOOKUP($G20,GWP!$F$11:$I$31,AE$12,FALSE)*$K20,"")))) ->  | AG20: =IF(AF20="","",IF($F20="",AF20,IF($F20="CO2e",AF20*$K20,IF($F20="GHG",AF20*HLOOKUP($G20,GWP!$F$11:$I$31,AG$12,FALSE)*$K20,"")))) ->  | AI20: =IF(AH20="","",IF($F20="",AH20,IF($F20="CO2e",AH20*$K20,IF($F20="GHG",AH20*HLOOKUP($G20,GWP!$F$11:$I$31,AI$12,FALSE)*$K20,"")))) ->  | AK20: =IF(AJ20="","",IF($F20="",AJ20,IF($F20="CO2e",AJ20*$K20,IF($F20="GHG",AJ20*HLOOKUP($G20,GWP!$F$11:$I$31,AK$12,FALSE)*$K20,"")))) ->  | AM20: =IF(AL20="","",IF($F20="",AL20,IF($F20="CO2e",AL20*$K20,IF($F20="GHG",AL20*HLOOKUP($G20,GWP!$F$11:$I$31,AM$12,FALSE)*$K20,"")))) ->  | AO20: =IF(AN20="","",IF($F20="",AN20,IF($F20="CO2e",AN20*$K20,IF($F20="GHG",AN20*HLOOKUP($G20,GWP!$F$11:$I$31,AO$12,FALSE)*$K20,"")))) ->  | AQ20: =IF(AP20="","",IF($F20="",AP20,IF($F20="CO2e",AP20*$K20,IF($F20="GHG",AP20*HLOOKUP($G20,GWP!$F$11:$I$31,AQ$12,FALSE)*$K20,"")))) ->  | AS20: =IF(AR20="","",IF($F20="",AR20,IF($F20="CO2e",AR20*$K20,IF($F20="GHG",AR20*HLOOKUP($G20,GWP!$F$11:$I$31,AS$12,FALSE)*$K20,"")))) ->  | AU20: =IF(AT20="","",IF($F20="",AT20,IF($F20="CO2e",AT20*$K20,IF($F20="GHG",AT20*HLOOKUP($G20,GWP!$F$11:$I$31,AU$12,FALSE)*$K20,"")))) ->  | AW20: =IF(AV20="","",IF($F20="",AV20,IF($F20="CO2e",AV20*$K20,IF($F20="GHG",AV20*HLOOKUP($G20,GWP!$F$11:$I$31,AW$12,FALSE)*$K20,"")))) ->  | BB20: Please select | BC20: Please select | BD20: Please select | BF20: Please select | BG20: 1
F21: Please select | G21: Please select | K21: =IFERROR(IF(H21="","",VLOOKUP(H21,'Conversion factors'!$D$25:$G$31,4,FALSE)),"") ->  | O21: =IF(N21="","",IF($F21="",N21,IF($F21="CO2e",N21*$K21,IF($F21="GHG",N21*HLOOKUP($G21,GWP!$F$11:$I$31,4,FALSE)*$K21,"")))) ->  | Q21: =IF(P21="","",IF($F21="",P21,IF($F21="CO2e",P21*$K21,IF($F21="GHG",P21*HLOOKUP($G21,GWP!$F$11:$I$31,Q$12,FALSE)*$K21,"")))) ->  | S21: =IF(R21="","",IF($F21="",R21,IF($F21="CO2e",R21*$K21,IF($F21="GHG",R21*HLOOKUP($G21,GWP!$F$11:$I$31,S$12,FALSE)*$K21,"")))) ->  | U21: =IF(T21="","",IF($F21="",T21,IF($F21="CO2e",T21*$K21,IF($F21="GHG",T21*HLOOKUP($G21,GWP!$F$11:$I$31,U$12,FALSE)*$K21,"")))) ->  | W21: =IF(V21="","",IF($F21="",V21,IF($F21="CO2e",V21*$K21,IF($F21="GHG",V21*HLOOKUP($G21,GWP!$F$11:$I$31,W$12,FALSE)*$K21,"")))) ->  | Y21: =IF(X21="","",IF($F21="",X21,IF($F21="CO2e",X21*$K21,IF($F21="GHG",X21*HLOOKUP($G21,GWP!$F$11:$I$31,Y$12,FALSE)*$K21,"")))) ->  | AA21: =IF(Z21="","",IF($F21="",Z21,IF($F21="CO2e",Z21*$K21,IF($F21="GHG",Z21*HLOOKUP($G21,GWP!$F$11:$I$31,AA$12,FALSE)*$K21,"")))) ->  | AC21: =IF(AB21="","",IF($F21="",AB21,IF($F21="CO2e",AB21*$K21,IF($F21="GHG",AB21*HLOOKUP($G21,GWP!$F$11:$I$31,AC$12,FALSE)*$K21,"")))) ->  | AE21: =IF(AD21="","",IF($F21="",AD21,IF($F21="CO2e",AD21*$K21,IF($F21="GHG",AD21*HLOOKUP($G21,GWP!$F$11:$I$31,AE$12,FALSE)*$K21,"")))) ->  | AG21: =IF(AF21="","",IF($F21="",AF21,IF($F21="CO2e",AF21*$K21,IF($F21="GHG",AF21*HLOOKUP($G21,GWP!$F$11:$I$31,AG$12,FALSE)*$K21,"")))) ->  | AI21: =IF(AH21="","",IF($F21="",AH21,IF($F21="CO2e",AH21*$K21,IF($F21="GHG",AH21*HLOOKUP($G21,GWP!$F$11:$I$31,AI$12,FALSE)*$K21,"")))) ->  | AK21: =IF(AJ21="","",IF($F21="",AJ21,IF($F21="CO2e",AJ21*$K21,IF($F21="GHG",AJ21*HLOOKUP($G21,GWP!$F$11:$I$31,AK$12,FALSE)*$K21,"")))) ->  | AM21: =IF(AL21="","",IF($F21="",AL21,IF($F21="CO2e",AL21*$K21,IF($F21="GHG",AL21*HLOOKUP($G21,GWP!$F$11:$I$31,AM$12,FALSE)*$K21,"")))) ->  | AO21: =IF(AN21="","",IF($F21="",AN21,IF($F21="CO2e",AN21*$K21,IF($F21="GHG",AN21*HLOOKUP($G21,GWP!$F$11:$I$31,AO$12,FALSE)*$K21,"")))) ->  | AQ21: =IF(AP21="","",IF($F21="",AP21,IF($F21="CO2e",AP21*$K21,IF($F21="GHG",AP21*HLOOKUP($G21,GWP!$F$11:$I$31,AQ$12,FALSE)*$K21,"")))) ->  | AS21: =IF(AR21="","",IF($F21="",AR21,IF($F21="CO2e",AR21*$K21,IF($F21="GHG",AR21*HLOOKUP($G21,GWP!$F$11:$I$31,AS$12,FALSE)*$K21,"")))) ->  | AU21: =IF(AT21="","",IF($F21="",AT21,IF($F21="CO2e",AT21*$K21,IF($F21="GHG",AT21*HLOOKUP($G21,GWP!$F$11:$I$31,AU$12,FALSE)*$K21,"")))) ->  | AW21: =IF(AV21="","",IF($F21="",AV21,IF($F21="CO2e",AV21*$K21,IF($F21="GHG",AV21*HLOOKUP($G21,GWP!$F$11:$I$31,AW$12,FALSE)*$K21,"")))) ->  | BB21: Please select | BC21: Please select | BD21: Please select | BF21: Please select | BG21: 1
F22: Please select | G22: Please select | I22: =IF(H22="","","/") ->  | K22: =IFERROR(IF(H22="","",VLOOKUP(H22,'Conversion factors'!$D$25:$G$31,4,FALSE)),"") ->  | M22: =IFERROR(IF(L22="","",L22*$K22),"") ->  | O22: =IF(N22="","",IF($F22="",N22,IF($F22="CO2e",N22*$K22,IF($F22="GHG",N22*HLOOKUP($G22,GWP!$F$11:$I$31,4,FALSE)*$K22,"")))) ->  | Q22: =IF(P22="","",IF($F22="",P22,IF($F22="CO2e",P22*$K22,IF($F22="GHG",P22*HLOOKUP($G22,GWP!$F$11:$I$31,Q$12,FALSE)*$K22,"")))) ->  | S22: =IF(R22="","",IF($F22="",R22,IF($F22="CO2e",R22*$K22,IF($F22="GHG",R22*HLOOKUP($G22,GWP!$F$11:$I$31,S$12,FALSE)*$K22,"")))) ->  | U22: =IF(T22="","",IF($F22="",T22,IF($F22="CO2e",T22*$K22,IF($F22="GHG",T22*HLOOKUP($G22,GWP!$F$11:$I$31,U$12,FALSE)*$K22,"")))) ->  | W22: =IF(V22="","",IF($F22="",V22,IF($F22="CO2e",V22*$K22,IF($F22="GHG",V22*HLOOKUP($G22,GWP!$F$11:$I$31,W$12,FALSE)*$K22,"")))) ->  | Y22: =IF(X22="","",IF($F22="",X22,IF($F22="CO2e",X22*$K22,IF($F22="GHG",X22*HLOOKUP($G22,GWP!$F$11:$I$31,Y$12,FALSE)*$K22,"")))) ->  | AA22: =IF(Z22="","",IF($F22="",Z22,IF($F22="CO2e",Z22*$K22,IF($F22="GHG",Z22*HLOOKUP($G22,GWP!$F$11:$I$31,AA$12,FALSE)*$K22,"")))) ->  | AC22: =IF(AB22="","",IF($F22="",AB22,IF($F22="CO2e",AB22*$K22,IF($F22="GHG",AB22*HLOOKUP($G22,GWP!$F$11:$I$31,AC$12,FALSE)*$K22,"")))) ->  | AE22: =IF(AD22="","",IF($F22="",AD22,IF($F22="CO2e",AD22*$K22,IF($F22="GHG",AD22*HLOOKUP($G22,GWP!$F$11:$I$31,AE$12,FALSE)*$K22,"")))) ->  | AG22: =IF(AF22="","",IF($F22="",AF22,IF($F22="CO2e",AF22*$K22,IF($F22="GHG",AF22*HLOOKUP($G22,GWP!$F$11:$I$31,AG$12,FALSE)*$K22,"")))) ->  | AI22: =IF(AH22="","",IF($F22="",AH22,IF($F22="CO2e",AH22*$K22,IF($F22="GHG",AH22*HLOOKUP($G22,GWP!$F$11:$I$31,AI$12,FALSE)*$K22,"")))) ->  | AK22: =IF(AJ22="","",IF($F22="",AJ22,IF($F22="CO2e",AJ22*$K22,IF($F22="GHG",AJ22*HLOOKUP($G22,GWP!$F$11:$I$31,AK$12,FALSE)*$K22,"")))) ->  | AM22: =IF(AL22="","",IF($F22="",AL22,IF($F22="CO2e",AL22*$K22,IF($F22="GHG",AL22*HLOOKUP($G22,GWP!$F$11:$I$31,AM$12,FALSE)*$K22,"")))) ->  | AO22: =IF(AN22="","",IF($F22="",AN22,IF($F22="CO2e",AN22*$K22,IF($F22="GHG",AN22*HLOOKUP($G22,GWP!$F$11:$I$31,AO$12,FALSE)*$K22,"")))) ->  | AQ22: =IF(AP22="","",IF($F22="",AP22,IF($F22="CO2e",AP22*$K22,IF($F22="GHG",AP22*HLOOKUP($G22,GWP!$F$11:$I$31,AQ$12,FALSE)*$K22,"")))) ->  | AS22: =IF(AR22="","",IF($F22="",AR22,IF($F22="CO2e",AR22*$K22,IF($F22="GHG",AR22*HLOOKUP($G22,GWP!$F$11:$I$31,AS$12,FALSE)*$K22,"")))) ->  | AU22: =IF(AT22="","",IF($F22="",AT22,IF($F22="CO2e",AT22*$K22,IF($F22="GHG",AT22*HLOOKUP($G22,GWP!$F$11:$I$31,AU$12,FALSE)*$K22,"")))) ->  | AW22: =IF(AV22="","",IF($F22="",AV22,IF($F22="CO2e",AV22*$K22,IF($F22="GHG",AV22*HLOOKUP($G22,GWP!$F$11:$I$31,AW$12,FALSE)*$K22,"")))) ->  | AY22: =IFERROR(IF(AX22="","",AX22*$K22),"") ->  | BA22: =IFERROR(IF(AZ22="","",AZ22*$K22),"") ->  | BB22: Please select | BC22: Please select | BD22: Please select | BF22: Please select | BG22: 1
F23: Please select | G23: Please select | K23: =IFERROR(IF(H23="","",VLOOKUP(H23,'Conversion factors'!$D$25:$G$31,4,FALSE)),"") ->  | O23: =IF(N23="","",IF($F23="",N23,IF($F23="CO2e",N23*$K23,IF($F23="GHG",N23*HLOOKUP($G23,GWP!$F$11:$I$31,4,FALSE)*$K23,"")))) ->  | Q23: =IF(P23="","",IF($F23="",P23,IF($F23="CO2e",P23*$K23,IF($F23="GHG",P23*HLOOKUP($G23,GWP!$F$11:$I$31,Q$12,FALSE)*$K23,"")))) ->  | S23: =IF(R23="","",IF($F23="",R23,IF($F23="CO2e",R23*$K23,IF($F23="GHG",R23*HLOOKUP($G23,GWP!$F$11:$I$31,S$12,FALSE)*$K23,"")))) ->  | U23: =IF(T23="","",IF($F23="",T23,IF($F23="CO2e",T23*$K23,IF($F23="GHG",T23*HLOOKUP($G23,GWP!$F$11:$I$31,U$12,FALSE)*$K23,"")))) ->  | W23: =IF(V23="","",IF($F23="",V23,IF($F23="CO2e",V23*$K23,IF($F23="GHG",V23*HLOOKUP($G23,GWP!$F$11:$I$31,W$12,FALSE)*$K23,"")))) ->  | Y23: =IF(X23="","",IF($F23="",X23,IF($F23="CO2e",X23*$K23,IF($F23="GHG",X23*HLOOKUP($G23,GWP!$F$11:$I$31,Y$12,FALSE)*$K23,"")))) ->  | AA23: =IF(Z23="","",IF($F23="",Z23,IF($F23="CO2e",Z23*$K23,IF($F23="GHG",Z23*HLOOKUP($G23,GWP!$F$11:$I$31,AA$12,FALSE)*$K23,"")))) ->  | AC23: =IF(AB23="","",IF($F23="",AB23,IF($F23="CO2e",AB23*$K23,IF($F23="GHG",AB23*HLOOKUP($G23,GWP!$F$11:$I$31,AC$12,FALSE)*$K23,"")))) ->  | AE23: =IF(AD23="","",IF($F23="",AD23,IF($F23="CO2e",AD23*$K23,IF($F23="GHG",AD23*HLOOKUP($G23,GWP!$F$11:$I$31,AE$12,FALSE)*$K23,"")))) ->  | AG23: =IF(AF23="","",IF($F23="",AF23,IF($F23="CO2e",AF23*$K23,IF($F23="GHG",AF23*HLOOKUP($G23,GWP!$F$11:$I$31,AG$12,FALSE)*$K23,"")))) ->  | AI23: =IF(AH23="","",IF($F23="",AH23,IF($F23="CO2e",AH23*$K23,IF($F23="GHG",AH23*HLOOKUP($G23,GWP!$F$11:$I$31,AI$12,FALSE)*$K23,"")))) ->  | AK23: =IF(AJ23="","",IF($F23="",AJ23,IF($F23="CO2e",AJ23*$K23,IF($F23="GHG",AJ23*HLOOKUP($G23,GWP!$F$11:$I$31,AK$12,FALSE)*$K23,"")))) ->  | AM23: =IF(AL23="","",IF($F23="",AL23,IF($F23="CO2e",AL23*$K23,IF($F23="GHG",AL23*HLOOKUP($G23,GWP!$F$11:$I$31,AM$12,FALSE)*$K23,"")))) ->  | AO23: =IF(AN23="","",IF($F23="",AN23,IF($F23="CO2e",AN23*$K23,IF($F23="GHG",AN23*HLOOKUP($G23,GWP!$F$11:$I$31,AO$12,FALSE)*$K23,"")))) ->  | AQ23: =IF(AP23="","",IF($F23="",AP23,IF($F23="CO2e",AP23*$K23,IF($F23="GHG",AP23*HLOOKUP($G23,GWP!$F$11:$I$31,AQ$12,FALSE)*$K23,"")))) ->  | AS23: =IF(AR23="","",IF($F23="",AR23,IF($F23="CO2e",AR23*$K23,IF($F23="GHG",AR23*HLOOKUP($G23,GWP!$F$11:$I$31,AS$12,FALSE)*$K23,"")))) ->  | AU23: =IF(AT23="","",IF($F23="",AT23,IF($F23="CO2e",AT23*$K23,IF($F23="GHG",AT23*HLOOKUP($G23,GWP!$F$11:$I$31,AU$12,FALSE)*$K23,"")))) ->  | AW23: =IF(AV23="","",IF($F23="",AV23,IF($F23="CO2e",AV23*$K23,IF($F23="GHG",AV23*HLOOKUP($G23,GWP!$F$11:$I$31,AW$12,FALSE)*$K23,"")))) ->  | BB23: Please select | BC23: Please select | BD23: Please select | BF23: Please select | BG23: 1
F24: Please select | G24: Please select | K24: =IFERROR(IF(H24="","",VLOOKUP(H24,'Conversion factors'!$D$25:$G$31,4,FALSE)),"") ->  | O24: =IF(N24="","",IF($F24="",N24,IF($F24="CO2e",N24*$K24,IF($F24="GHG",N24*HLOOKUP($G24,GWP!$F$11:$I$31,4,FALSE)*$K24,"")))) ->  | Q24: =IF(P24="","",IF($F24="",P24,IF($F24="CO2e",P24*$K24,IF($F24="GHG",P24*HLOOKUP($G24,GWP!$F$11:$I$31,Q$12,FALSE)*$K24,"")))) ->  | S24: =IF(R24="","",IF($F24="",R24,IF($F24="CO2e",R24*$K24,IF($F24="GHG",R24*HLOOKUP($G24,GWP!$F$11:$I$31,S$12,FALSE)*$K24,"")))) ->  | U24: =IF(T24="","",IF($F24="",T24,IF($F24="CO2e",T24*$K24,IF($F24="GHG",T24*HLOOKUP($G24,GWP!$F$11:$I$31,U$12,FALSE)*$K24,"")))) ->  | W24: =IF(V24="","",IF($F24="",V24,IF($F24="CO2e",V24*$K24,IF($F24="GHG",V24*HLOOKUP($G24,GWP!$F$11:$I$31,W$12,FALSE)*$K24,"")))) ->  | Y24: =IF(X24="","",IF($F24="",X24,IF($F24="CO2e",X24*$K24,IF($F24="GHG",X24*HLOOKUP($G24,GWP!$F$11:$I$31,Y$12,FALSE)*$K24,"")))) ->  | AA24: =IF(Z24="","",IF($F24="",Z24,IF($F24="CO2e",Z24*$K24,IF($F24="GHG",Z24*HLOOKUP($G24,GWP!$F$11:$I$31,AA$12,FALSE)*$K24,"")))) ->  | AC24: =IF(AB24="","",IF($F24="",AB24,IF($F24="CO2e",AB24*$K24,IF($F24="GHG",AB24*HLOOKUP($G24,GWP!$F$11:$I$31,AC$12,FALSE)*$K24,"")))) ->  | AE24: =IF(AD24="","",IF($F24="",AD24,IF($F24="CO2e",AD24*$K24,IF($F24="GHG",AD24*HLOOKUP($G24,GWP!$F$11:$I$31,AE$12,FALSE)*$K24,"")))) ->  | AG24: =IF(AF24="","",IF($F24="",AF24,IF($F24="CO2e",AF24*$K24,IF($F24="GHG",AF24*HLOOKUP($G24,GWP!$F$11:$I$31,AG$12,FALSE)*$K24,"")))) ->  | AI24: =IF(AH24="","",IF($F24="",AH24,IF($F24="CO2e",AH24*$K24,IF($F24="GHG",AH24*HLOOKUP($G24,GWP!$F$11:$I$31,AI$12,FALSE)*$K24,"")))) ->  | AK24: =IF(AJ24="","",IF($F24="",AJ24,IF($F24="CO2e",AJ24*$K24,IF($F24="GHG",AJ24*HLOOKUP($G24,GWP!$F$11:$I$31,AK$12,FALSE)*$K24,"")))) ->  | AM24: =IF(AL24="","",IF($F24="",AL24,IF($F24="CO2e",AL24*$K24,IF($F24="GHG",AL24*HLOOKUP($G24,GWP!$F$11:$I$31,AM$12,FALSE)*$K24,"")))) ->  | AO24: =IF(AN24="","",IF($F24="",AN24,IF($F24="CO2e",AN24*$K24,IF($F24="GHG",AN24*HLOOKUP($G24,GWP!$F$11:$I$31,AO$12,FALSE)*$K24,"")))) ->  | AQ24: =IF(AP24="","",IF($F24="",AP24,IF($F24="CO2e",AP24*$K24,IF($F24="GHG",AP24*HLOOKUP($G24,GWP!$F$11:$I$31,AQ$12,FALSE)*$K24,"")))) ->  | AS24: =IF(AR24="","",IF($F24="",AR24,IF($F24="CO2e",AR24*$K24,IF($F24="GHG",AR24*HLOOKUP($G24,GWP!$F$11:$I$31,AS$12,FALSE)*$K24,"")))) ->  | AU24: =IF(AT24="","",IF($F24="",AT24,IF($F24="CO2e",AT24*$K24,IF($F24="GHG",AT24*HLOOKUP($G24,GWP!$F$11:$I$31,AU$12,FALSE)*$K24,"")))) ->  | AW24: =IF(AV24="","",IF($F24="",AV24,IF($F24="CO2e",AV24*$K24,IF($F24="GHG",AV24*HLOOKUP($G24,GWP!$F$11:$I$31,AW$12,FALSE)*$K24,"")))) ->  | BB24: Please select | BC24: Please select | BD24: Please select | BF24: Please select | BG24: 1
F25: Please select | G25: Please select | I25: =IF(H25="","","/") ->  | K25: =IFERROR(IF(H25="","",VLOOKUP(H25,'Conversion factors'!$D$25:$G$31,4,FALSE)),"") ->  | M25: =IFERROR(IF(L25="","",L25*$K25),"") ->  | O25: =IF(N25="","",IF($F25="",N25,IF($F25="CO2e",N25*$K25,IF($F25="GHG",N25*HLOOKUP($G25,GWP!$F$11:$I$31,4,FALSE)*$K25,"")))) ->  | Q25: =IF(P25="","",IF($F25="",P25,IF($F25="CO2e",P25*$K25,IF($F25="GHG",P25*HLOOKUP($G25,GWP!$F$11:$I$31,Q$12,FALSE)*$K25,"")))) ->  | S25: =IF(R25="","",IF($F25="",R25,IF($F25="CO2e",R25*$K25,IF($F25="GHG",R25*HLOOKUP($G25,GWP!$F$11:$I$31,S$12,FALSE)*$K25,"")))) ->  | U25: =IF(T25="","",IF($F25="",T25,IF($F25="CO2e",T25*$K25,IF($F25="GHG",T25*HLOOKUP($G25,GWP!$F$11:$I$31,U$12,FALSE)*$K25,"")))) ->  | W25: =IF(V25="","",IF($F25="",V25,IF($F25="CO2e",V25*$K25,IF($F25="GHG",V25*HLOOKUP($G25,GWP!$F$11:$I$31,W$12,FALSE)*$K25,"")))) ->  | Y25: =IF(X25="","",IF($F25="",X25,IF($F25="CO2e",X25*$K25,IF($F25="GHG",X25*HLOOKUP($G25,GWP!$F$11:$I$31,Y$12,FALSE)*$K25,"")))) ->  | AA25: =IF(Z25="","",IF($F25="",Z25,IF($F25="CO2e",Z25*$K25,IF($F25="GHG",Z25*HLOOKUP($G25,GWP!$F$11:$I$31,AA$12,FALSE)*$K25,"")))) ->  | AC25: =IF(AB25="","",IF($F25="",AB25,IF($F25="CO2e",AB25*$K25,IF($F25="GHG",AB25*HLOOKUP($G25,GWP!$F$11:$I$31,AC$12,FALSE)*$K25,"")))) ->  | AE25: =IF(AD25="","",IF($F25="",AD25,IF($F25="CO2e",AD25*$K25,IF($F25="GHG",AD25*HLOOKUP($G25,GWP!$F$11:$I$31,AE$12,FALSE)*$K25,"")))) ->  | AG25: =IF(AF25="","",IF($F25="",AF25,IF($F25="CO2e",AF25*$K25,IF($F25="GHG",AF25*HLOOKUP($G25,GWP!$F$11:$I$31,AG$12,FALSE)*$K25,"")))) ->  | AI25: =IF(AH25="","",IF($F25="",AH25,IF($F25="CO2e",AH25*$K25,IF($F25="GHG",AH25*HLOOKUP($G25,GWP!$F$11:$I$31,AI$12,FALSE)*$K25,"")))) ->  | AK25: =IF(AJ25="","",IF($F25="",AJ25,IF($F25="CO2e",AJ25*$K25,IF($F25="GHG",AJ25*HLOOKUP($G25,GWP!$F$11:$I$31,AK$12,FALSE)*$K25,"")))) ->  | AM25: =IF(AL25="","",IF($F25="",AL25,IF($F25="CO2e",AL25*$K25,IF($F25="GHG",AL25*HLOOKUP($G25,GWP!$F$11:$I$31,AM$12,FALSE)*$K25,"")))) ->  | AO25: =IF(AN25="","",IF($F25="",AN25,IF($F25="CO2e",AN25*$K25,IF($F25="GHG",AN25*HLOOKUP($G25,GWP!$F$11:$I$31,AO$12,FALSE)*$K25,"")))) ->  | AQ25: =IF(AP25="","",IF($F25="",AP25,IF($F25="CO2e",AP25*$K25,IF($F25="GHG",AP25*HLOOKUP($G25,GWP!$F$11:$I$31,AQ$12,FALSE)*$K25,"")))) ->  | AS25: =IF(AR25="","",IF($F25="",AR25,IF($F25="CO2e",AR25*$K25,IF($F25="GHG",AR25*HLOOKUP($G25,GWP!$F$11:$I$31,AS$12,FALSE)*$K25,"")))) ->  | AU25: =IF(AT25="","",IF($F25="",AT25,IF($F25="CO2e",AT25*$K25,IF($F25="GHG",AT25*HLOOKUP($G25,GWP!$F$11:$I$31,AU$12,FALSE)*$K25,"")))) ->  | AW25: =IF(AV25="","",IF($F25="",AV25,IF($F25="CO2e",AV25*$K25,IF($F25="GHG",AV25*HLOOKUP($G25,GWP!$F$11:$I$31,AW$12,FALSE)*$K25,"")))) ->  | BB25: Please select | BC25: Please select | BD25: Please select | BF25: Please select | BG25: 1
F26: Please select | G26: Please select | K26: =IFERROR(IF(H26="","",VLOOKUP(H26,'Conversion factors'!$D$25:$G$31,4,FALSE)),"") ->  | O26: =IF(N26="","",IF($F26="",N26,IF($F26="CO2e",N26*$K26,IF($F26="GHG",N26*HLOOKUP($G26,GWP!$F$11:$I$31,4,FALSE)*$K26,"")))) ->  | Q26: =IF(P26="","",IF($F26="",P26,IF($F26="CO2e",P26*$K26,IF($F26="GHG",P26*HLOOKUP($G26,GWP!$F$11:$I$31,Q$12,FALSE)*$K26,"")))) ->  | S26: =IF(R26="","",IF($F26="",R26,IF($F26="CO2e",R26*$K26,IF($F26="GHG",R26*HLOOKUP($G26,GWP!$F$11:$I$31,S$12,FALSE)*$K26,"")))) ->  | U26: =IF(T26="","",IF($F26="",T26,IF($F26="CO2e",T26*$K26,IF($F26="GHG",T26*HLOOKUP($G26,GWP!$F$11:$I$31,U$12,FALSE)*$K26,"")))) ->  | W26: =IF(V26="","",IF($F26="",V26,IF($F26="CO2e",V26*$K26,IF($F26="GHG",V26*HLOOKUP($G26,GWP!$F$11:$I$31,W$12,FALSE)*$K26,"")))) ->  | Y26: =IF(X26="","",IF($F26="",X26,IF($F26="CO2e",X26*$K26,IF($F26="GHG",X26*HLOOKUP($G26,GWP!$F$11:$I$31,Y$12,FALSE)*$K26,"")))) ->  | AA26: =IF(Z26="","",IF($F26="",Z26,IF($F26="CO2e",Z26*$K26,IF($F26="GHG",Z26*HLOOKUP($G26,GWP!$F$11:$I$31,AA$12,FALSE)*$K26,"")))) ->  | AC26: =IF(AB26="","",IF($F26="",AB26,IF($F26="CO2e",AB26*$K26,IF($F26="GHG",AB26*HLOOKUP($G26,GWP!$F$11:$I$31,AC$12,FALSE)*$K26,"")))) ->  | AE26: =IF(AD26="","",IF($F26="",AD26,IF($F26="CO2e",AD26*$K26,IF($F26="GHG",AD26*HLOOKUP($G26,GWP!$F$11:$I$31,AE$12,FALSE)*$K26,"")))) ->  | AG26: =IF(AF26="","",IF($F26="",AF26,IF($F26="CO2e",AF26*$K26,IF($F26="GHG",AF26*HLOOKUP($G26,GWP!$F$11:$I$31,AG$12,FALSE)*$K26,"")))) ->  | AI26: =IF(AH26="","",IF($F26="",AH26,IF($F26="CO2e",AH26*$K26,IF($F26="GHG",AH26*HLOOKUP($G26,GWP!$F$11:$I$31,AI$12,FALSE)*$K26,"")))) ->  | AK26: =IF(AJ26="","",IF($F26="",AJ26,IF($F26="CO2e",AJ26*$K26,IF($F26="GHG",AJ26*HLOOKUP($G26,GWP!$F$11:$I$31,AK$12,FALSE)*$K26,"")))) ->  | AM26: =IF(AL26="","",IF($F26="",AL26,IF($F26="CO2e",AL26*$K26,IF($F26="GHG",AL26*HLOOKUP($G26,GWP!$F$11:$I$31,AM$12,FALSE)*$K26,"")))) ->  | AO26: =IF(AN26="","",IF($F26="",AN26,IF($F26="CO2e",AN26*$K26,IF($F26="GHG",AN26*HLOOKUP($G26,GWP!$F$11:$I$31,AO$12,FALSE)*$K26,"")))) ->  | AQ26: =IF(AP26="","",IF($F26="",AP26,IF($F26="CO2e",AP26*$K26,IF($F26="GHG",AP26*HLOOKUP($G26,GWP!$F$11:$I$31,AQ$12,FALSE)*$K26,"")))) ->  | AS26: =IF(AR26="","",IF($F26="",AR26,IF($F26="CO2e",AR26*$K26,IF($F26="GHG",AR26*HLOOKUP($G26,GWP!$F$11:$I$31,AS$12,FALSE)*$K26,"")))) ->  | AU26: =IF(AT26="","",IF($F26="",AT26,IF($F26="CO2e",AT26*$K26,IF($F26="GHG",AT26*HLOOKUP($G26,GWP!$F$11:$I$31,AU$12,FALSE)*$K26,"")))) ->  | AW26: =IF(AV26="","",IF($F26="",AV26,IF($F26="CO2e",AV26*$K26,IF($F26="GHG",AV26*HLOOKUP($G26,GWP!$F$11:$I$31,AW$12,FALSE)*$K26,"")))) ->  | BB26: Please select | BC26: Please select | BD26: Please select | BF26: Please select | BG26: 1
F27: Please select | G27: Please select | K27: =IFERROR(IF(H27="","",VLOOKUP(H27,'Conversion factors'!$D$25:$G$31,4,FALSE)),"") ->  | O27: =IF(N27="","",IF($F27="",N27,IF($F27="CO2e",N27*$K27,IF($F27="GHG",N27*HLOOKUP($G27,GWP!$F$11:$I$31,4,FALSE)*$K27,"")))) ->  | Q27: =IF(P27="","",IF($F27="",P27,IF($F27="CO2e",P27*$K27,IF($F27="GHG",P27*HLOOKUP($G27,GWP!$F$11:$I$31,Q$12,FALSE)*$K27,"")))) ->  | S27: =IF(R27="","",IF($F27="",R27,IF($F27="CO2e",R27*$K27,IF($F27="GHG",R27*HLOOKUP($G27,GWP!$F$11:$I$31,S$12,FALSE)*$K27,"")))) ->  | U27: =IF(T27="","",IF($F27="",T27,IF($F27="CO2e",T27*$K27,IF($F27="GHG",T27*HLOOKUP($G27,GWP!$F$11:$I$31,U$12,FALSE)*$K27,"")))) ->  | W27: =IF(V27="","",IF($F27="",V27,IF($F27="CO2e",V27*$K27,IF($F27="GHG",V27*HLOOKUP($G27,GWP!$F$11:$I$31,W$12,FALSE)*$K27,"")))) ->  | Y27: =IF(X27="","",IF($F27="",X27,IF($F27="CO2e",X27*$K27,IF($F27="GHG",X27*HLOOKUP($G27,GWP!$F$11:$I$31,Y$12,FALSE)*$K27,"")))) ->  | AA27: =IF(Z27="","",IF($F27="",Z27,IF($F27="CO2e",Z27*$K27,IF($F27="GHG",Z27*HLOOKUP($G27,GWP!$F$11:$I$31,AA$12,FALSE)*$K27,"")))) ->  | AC27: =IF(AB27="","",IF($F27="",AB27,IF($F27="CO2e",AB27*$K27,IF($F27="GHG",AB27*HLOOKUP($G27,GWP!$F$11:$I$31,AC$12,FALSE)*$K27,"")))) ->  | AE27: =IF(AD27="","",IF($F27="",AD27,IF($F27="CO2e",AD27*$K27,IF($F27="GHG",AD27*HLOOKUP($G27,GWP!$F$11:$I$31,AE$12,FALSE)*$K27,"")))) ->  | AG27: =IF(AF27="","",IF($F27="",AF27,IF($F27="CO2e",AF27*$K27,IF($F27="GHG",AF27*HLOOKUP($G27,GWP!$F$11:$I$31,AG$12,FALSE)*$K27,"")))) ->  | AI27: =IF(AH27="","",IF($F27="",AH27,IF($F27="CO2e",AH27*$K27,IF($F27="GHG",AH27*HLOOKUP($G27,GWP!$F$11:$I$31,AI$12,FALSE)*$K27,"")))) ->  | AK27: =IF(AJ27="","",IF($F27="",AJ27,IF($F27="CO2e",AJ27*$K27,IF($F27="GHG",AJ27*HLOOKUP($G27,GWP!$F$11:$I$31,AK$12,FALSE)*$K27,"")))) ->  | AM27: =IF(AL27="","",IF($F27="",AL27,IF($F27="CO2e",AL27*$K27,IF($F27="GHG",AL27*HLOOKUP($G27,GWP!$F$11:$I$31,AM$12,FALSE)*$K27,"")))) ->  | AO27: =IF(AN27="","",IF($F27="",AN27,IF($F27="CO2e",AN27*$K27,IF($F27="GHG",AN27*HLOOKUP($G27,GWP!$F$11:$I$31,AO$12,FALSE)*$K27,"")))) ->  | AQ27: =IF(AP27="","",IF($F27="",AP27,IF($F27="CO2e",AP27*$K27,IF($F27="GHG",AP27*HLOOKUP($G27,GWP!$F$11:$I$31,AQ$12,FALSE)*$K27,"")))) ->  | AS27: =IF(AR27="","",IF($F27="",AR27,IF($F27="CO2e",AR27*$K27,IF($F27="GHG",AR27*HLOOKUP($G27,GWP!$F$11:$I$31,AS$12,FALSE)*$K27,"")))) ->  | AU27: =IF(AT27="","",IF($F27="",AT27,IF($F27="CO2e",AT27*$K27,IF($F27="GHG",AT27*HLOOKUP($G27,GWP!$F$11:$I$31,AU$12,FALSE)*$K27,"")))) ->  | AW27: =IF(AV27="","",IF($F27="",AV27,IF($F27="CO2e",AV27*$K27,IF($F27="GHG",AV27*HLOOKUP($G27,GWP!$F$11:$I$31,AW$12,FALSE)*$K27,"")))) ->  | BB27: Please select | BC27: Please select | BD27: Please select | BF27: Please select | BG27: 1
F28: Please select | G28: Please select | K28: =IFERROR(IF(H28="","",VLOOKUP(H28,'Conversion factors'!$D$25:$G$31,4,FALSE)),"") ->  | O28: =IF(N28="","",IF($F28="",N28,IF($F28="CO2e",N28*$K28,IF($F28="GHG",N28*HLOOKUP($G28,GWP!$F$11:$I$31,4,FALSE)*$K28,"")))) ->  | Q28: =IF(P28="","",IF($F28="",P28,IF($F28="CO2e",P28*$K28,IF($F28="GHG",P28*HLOOKUP($G28,GWP!$F$11:$I$31,Q$12,FALSE)*$K28,"")))) ->  | S28: =IF(R28="","",IF($F28="",R28,IF($F28="CO2e",R28*$K28,IF($F28="GHG",R28*HLOOKUP($G28,GWP!$F$11:$I$31,S$12,FALSE)*$K28,"")))) ->  | U28: =IF(T28="","",IF($F28="",T28,IF($F28="CO2e",T28*$K28,IF($F28="GHG",T28*HLOOKUP($G28,GWP!$F$11:$I$31,U$12,FALSE)*$K28,"")))) ->  | W28: =IF(V28="","",IF($F28="",V28,IF($F28="CO2e",V28*$K28,IF($F28="GHG",V28*HLOOKUP($G28,GWP!$F$11:$I$31,W$12,FALSE)*$K28,"")))) ->  | Y28: =IF(X28="","",IF($F28="",X28,IF($F28="CO2e",X28*$K28,IF($F28="GHG",X28*HLOOKUP($G28,GWP!$F$11:$I$31,Y$12,FALSE)*$K28,"")))) ->  | AA28: =IF(Z28="","",IF($F28="",Z28,IF($F28="CO2e",Z28*$K28,IF($F28="GHG",Z28*HLOOKUP($G28,GWP!$F$11:$I$31,AA$12,FALSE)*$K28,"")))) ->  | AC28: =IF(AB28="","",IF($F28="",AB28,IF($F28="CO2e",AB28*$K28,IF($F28="GHG",AB28*HLOOKUP($G28,GWP!$F$11:$I$31,AC$12,FALSE)*$K28,"")))) ->  | AE28: =IF(AD28="","",IF($F28="",AD28,IF($F28="CO2e",AD28*$K28,IF($F28="GHG",AD28*HLOOKUP($G28,GWP!$F$11:$I$31,AE$12,FALSE)*$K28,"")))) ->  | AG28: =IF(AF28="","",IF($F28="",AF28,IF($F28="CO2e",AF28*$K28,IF($F28="GHG",AF28*HLOOKUP($G28,GWP!$F$11:$I$31,AG$12,FALSE)*$K28,"")))) ->  | AI28: =IF(AH28="","",IF($F28="",AH28,IF($F28="CO2e",AH28*$K28,IF($F28="GHG",AH28*HLOOKUP($G28,GWP!$F$11:$I$31,AI$12,FALSE)*$K28,"")))) ->  | AK28: =IF(AJ28="","",IF($F28="",AJ28,IF($F28="CO2e",AJ28*$K28,IF($F28="GHG",AJ28*HLOOKUP($G28,GWP!$F$11:$I$31,AK$12,FALSE)*$K28,"")))) ->  | AM28: =IF(AL28="","",IF($F28="",AL28,IF($F28="CO2e",AL28*$K28,IF($F28="GHG",AL28*HLOOKUP($G28,GWP!$F$11:$I$31,AM$12,FALSE)*$K28,"")))) ->  | AO28: =IF(AN28="","",IF($F28="",AN28,IF($F28="CO2e",AN28*$K28,IF($F28="GHG",AN28*HLOOKUP($G28,GWP!$F$11:$I$31,AO$12,FALSE)*$K28,"")))) ->  | AQ28: =IF(AP28="","",IF($F28="",AP28,IF($F28="CO2e",AP28*$K28,IF($F28="GHG",AP28*HLOOKUP($G28,GWP!$F$11:$I$31,AQ$12,FALSE)*$K28,"")))) ->  | AS28: =IF(AR28="","",IF($F28="",AR28,IF($F28="CO2e",AR28*$K28,IF($F28="GHG",AR28*HLOOKUP($G28,GWP!$F$11:$I$31,AS$12,FALSE)*$K28,"")))) ->  | AU28: =IF(AT28="","",IF($F28="",AT28,IF($F28="CO2e",AT28*$K28,IF($F28="GHG",AT28*HLOOKUP($G28,GWP!$F$11:$I$31,AU$12,FALSE)*$K28,"")))) ->  | AW28: =IF(AV28="","",IF($F28="",AV28,IF($F28="CO2e",AV28*$K28,IF($F28="GHG",AV28*HLOOKUP($G28,GWP!$F$11:$I$31,AW$12,FALSE)*$K28,"")))) ->  | BB28: Please select | BC28: Please select | BD28: Please select | BF28: Please select | BG28: 1
F29: Please select | G29: Please select | K29: =IFERROR(IF(H29="","",VLOOKUP(H29,'Conversion factors'!$D$25:$G$31,4,FALSE)),"") ->  | O29: =IF(N29="","",IF($F29="",N29,IF($F29="CO2e",N29*$K29,IF($F29="GHG",N29*HLOOKUP($G29,GWP!$F$11:$I$31,4,FALSE)*$K29,"")))) ->  | Q29: =IF(P29="","",IF($F29="",P29,IF($F29="CO2e",P29*$K29,IF($F29="GHG",P29*HLOOKUP($G29,GWP!$F$11:$I$31,Q$12,FALSE)*$K29,"")))) ->  | S29: =IF(R29="","",IF($F29="",R29,IF($F29="CO2e",R29*$K29,IF($F29="GHG",R29*HLOOKUP($G29,GWP!$F$11:$I$31,S$12,FALSE)*$K29,"")))) ->  | U29: =IF(T29="","",IF($F29="",T29,IF($F29="CO2e",T29*$K29,IF($F29="GHG",T29*HLOOKUP($G29,GWP!$F$11:$I$31,U$12,FALSE)*$K29,"")))) ->  | W29: =IF(V29="","",IF($F29="",V29,IF($F29="CO2e",V29*$K29,IF($F29="GHG",V29*HLOOKUP($G29,GWP!$F$11:$I$31,W$12,FALSE)*$K29,"")))) ->  | Y29: =IF(X29="","",IF($F29="",X29,IF($F29="CO2e",X29*$K29,IF($F29="GHG",X29*HLOOKUP($G29,GWP!$F$11:$I$31,Y$12,FALSE)*$K29,"")))) ->  | AA29: =IF(Z29="","",IF($F29="",Z29,IF($F29="CO2e",Z29*$K29,IF($F29="GHG",Z29*HLOOKUP($G29,GWP!$F$11:$I$31,AA$12,FALSE)*$K29,"")))) ->  | AC29: =IF(AB29="","",IF($F29="",AB29,IF($F29="CO2e",AB29*$K29,IF($F29="GHG",AB29*HLOOKUP($G29,GWP!$F$11:$I$31,AC$12,FALSE)*$K29,"")))) ->  | AE29: =IF(AD29="","",IF($F29="",AD29,IF($F29="CO2e",AD29*$K29,IF($F29="GHG",AD29*HLOOKUP($G29,GWP!$F$11:$I$31,AE$12,FALSE)*$K29,"")))) ->  | AG29: =IF(AF29="","",IF($F29="",AF29,IF($F29="CO2e",AF29*$K29,IF($F29="GHG",AF29*HLOOKUP($G29,GWP!$F$11:$I$31,AG$12,FALSE)*$K29,"")))) ->  | AI29: =IF(AH29="","",IF($F29="",AH29,IF($F29="CO2e",AH29*$K29,IF($F29="GHG",AH29*HLOOKUP($G29,GWP!$F$11:$I$31,AI$12,FALSE)*$K29,"")))) ->  | AK29: =IF(AJ29="","",IF($F29="",AJ29,IF($F29="CO2e",AJ29*$K29,IF($F29="GHG",AJ29*HLOOKUP($G29,GWP!$F$11:$I$31,AK$12,FALSE)*$K29,"")))) ->  | AM29: =IF(AL29="","",IF($F29="",AL29,IF($F29="CO2e",AL29*$K29,IF($F29="GHG",AL29*HLOOKUP($G29,GWP!$F$11:$I$31,AM$12,FALSE)*$K29,"")))) ->  | AO29: =IF(AN29="","",IF($F29="",AN29,IF($F29="CO2e",AN29*$K29,IF($F29="GHG",AN29*HLOOKUP($G29,GWP!$F$11:$I$31,AO$12,FALSE)*$K29,"")))) ->  | AQ29: =IF(AP29="","",IF($F29="",AP29,IF($F29="CO2e",AP29*$K29,IF($F29="GHG",AP29*HLOOKUP($G29,GWP!$F$11:$I$31,AQ$12,FALSE)*$K29,"")))) ->  | AS29: =IF(AR29="","",IF($F29="",AR29,IF($F29="CO2e",AR29*$K29,IF($F29="GHG",AR29*HLOOKUP($G29,GWP!$F$11:$I$31,AS$12,FALSE)*$K29,"")))) ->  | AU29: =IF(AT29="","",IF($F29="",AT29,IF($F29="CO2e",AT29*$K29,IF($F29="GHG",AT29*HLOOKUP($G29,GWP!$F$11:$I$31,AU$12,FALSE)*$K29,"")))) ->  | AW29: =IF(AV29="","",IF($F29="",AV29,IF($F29="CO2e",AV29*$K29,IF($F29="GHG",AV29*HLOOKUP($G29,GWP!$F$11:$I$31,AW$12,FALSE)*$K29,"")))) ->  | BB29: Please select | BC29: Please select | BD29: Please select | BF29: Please select | BG29: 1
F30: Please select | G30: Please select | K30: =IFERROR(IF(H30="","",VLOOKUP(H30,'Conversion factors'!$D$25:$G$31,4,FALSE)),"") ->  | O30: =IF(N30="","",IF($F30="",N30,IF($F30="CO2e",N30*$K30,IF($F30="GHG",N30*HLOOKUP($G30,GWP!$F$11:$I$31,4,FALSE)*$K30,"")))) ->  | Q30: =IF(P30="","",IF($F30="",P30,IF($F30="CO2e",P30*$K30,IF($F30="GHG",P30*HLOOKUP($G30,GWP!$F$11:$I$31,Q$12,FALSE)*$K30,"")))) ->  | S30: =IF(R30="","",IF($F30="",R30,IF($F30="CO2e",R30*$K30,IF($F30="GHG",R30*HLOOKUP($G30,GWP!$F$11:$I$31,S$12,FALSE)*$K30,"")))) ->  | U30: =IF(T30="","",IF($F30="",T30,IF($F30="CO2e",T30*$K30,IF($F30="GHG",T30*HLOOKUP($G30,GWP!$F$11:$I$31,U$12,FALSE)*$K30,"")))) ->  | W30: =IF(V30="","",IF($F30="",V30,IF($F30="CO2e",V30*$K30,IF($F30="GHG",V30*HLOOKUP($G30,GWP!$F$11:$I$31,W$12,FALSE)*$K30,"")))) ->  | Y30: =IF(X30="","",IF($F30="",X30,IF($F30="CO2e",X30*$K30,IF($F30="GHG",X30*HLOOKUP($G30,GWP!$F$11:$I$31,Y$12,FALSE)*$K30,"")))) ->  | AA30: =IF(Z30="","",IF($F30="",Z30,IF($F30="CO2e",Z30*$K30,IF($F30="GHG",Z30*HLOOKUP($G30,GWP!$F$11:$I$31,AA$12,FALSE)*$K30,"")))) ->  | AC30: =IF(AB30="","",IF($F30="",AB30,IF($F30="CO2e",AB30*$K30,IF($F30="GHG",AB30*HLOOKUP($G30,GWP!$F$11:$I$31,AC$12,FALSE)*$K30,"")))) ->  | AE30: =IF(AD30="","",IF($F30="",AD30,IF($F30="CO2e",AD30*$K30,IF($F30="GHG",AD30*HLOOKUP($G30,GWP!$F$11:$I$31,AE$12,FALSE)*$K30,"")))) ->  | AG30: =IF(AF30="","",IF($F30="",AF30,IF($F30="CO2e",AF30*$K30,IF($F30="GHG",AF30*HLOOKUP($G30,GWP!$F$11:$I$31,AG$12,FALSE)*$K30,"")))) ->  | AI30: =IF(AH30="","",IF($F30="",AH30,IF($F30="CO2e",AH30*$K30,IF($F30="GHG",AH30*HLOOKUP($G30,GWP!$F$11:$I$31,AI$12,FALSE)*$K30,"")))) ->  | AK30: =IF(AJ30="","",IF($F30="",AJ30,IF($F30="CO2e",AJ30*$K30,IF($F30="GHG",AJ30*HLOOKUP($G30,GWP!$F$11:$I$31,AK$12,FALSE)*$K30,"")))) ->  | AM30: =IF(AL30="","",IF($F30="",AL30,IF($F30="CO2e",AL30*$K30,IF($F30="GHG",AL30*HLOOKUP($G30,GWP!$F$11:$I$31,AM$12,FALSE)*$K30,"")))) ->  | AO30: =IF(AN30="","",IF($F30="",AN30,IF($F30="CO2e",AN30*$K30,IF($F30="GHG",AN30*HLOOKUP($G30,GWP!$F$11:$I$31,AO$12,FALSE)*$K30,"")))) ->  | AQ30: =IF(AP30="","",IF($F30="",AP30,IF($F30="CO2e",AP30*$K30,IF($F30="GHG",AP30*HLOOKUP($G30,GWP!$F$11:$I$31,AQ$12,FALSE)*$K30,"")))) ->  | AS30: =IF(AR30="","",IF($F30="",AR30,IF($F30="CO2e",AR30*$K30,IF($F30="GHG",AR30*HLOOKUP($G30,GWP!$F$11:$I$31,AS$12,FALSE)*$K30,"")))) ->  | AU30: =IF(AT30="","",IF($F30="",AT30,IF($F30="CO2e",AT30*$K30,IF($F30="GHG",AT30*HLOOKUP($G30,GWP!$F$11:$I$31,AU$12,FALSE)*$K30,"")))) ->  | AW30: =IF(AV30="","",IF($F30="",AV30,IF($F30="CO2e",AV30*$K30,IF($F30="GHG",AV30*HLOOKUP($G30,GWP!$F$11:$I$31,AW$12,FALSE)*$K30,"")))) ->  | BB30: Please select | BC30: Please select | BD30: Please select | BF30: Please select | BG30: 1
F31: Please select | G31: Please select | K31: =IFERROR(IF(H31="","",VLOOKUP(H31,'Conversion factors'!$D$25:$G$31,4,FALSE)),"") ->  | O31: =IF(N31="","",IF($F31="",N31,IF($F31="CO2e",N31*$K31,IF($F31="GHG",N31*HLOOKUP($G31,GWP!$F$11:$I$31,4,FALSE)*$K31,"")))) ->  | Q31: =IF(P31="","",IF($F31="",P31,IF($F31="CO2e",P31*$K31,IF($F31="GHG",P31*HLOOKUP($G31,GWP!$F$11:$I$31,Q$12,FALSE)*$K31,"")))) ->  | S31: =IF(R31="","",IF($F31="",R31,IF($F31="CO2e",R31*$K31,IF($F31="GHG",R31*HLOOKUP($G31,GWP!$F$11:$I$31,S$12,FALSE)*$K31,"")))) ->  | U31: =IF(T31="","",IF($F31="",T31,IF($F31="CO2e",T31*$K31,IF($F31="GHG",T31*HLOOKUP($G31,GWP!$F$11:$I$31,U$12,FALSE)*$K31,"")))) ->  | W31: =IF(V31="","",IF($F31="",V31,IF($F31="CO2e",V31*$K31,IF($F31="GHG",V31*HLOOKUP($G31,GWP!$F$11:$I$31,W$12,FALSE)*$K31,"")))) ->  | Y31: =IF(X31="","",IF($F31="",X31,IF($F31="CO2e",X31*$K31,IF($F31="GHG",X31*HLOOKUP($G31,GWP!$F$11:$I$31,Y$12,FALSE)*$K31,"")))) ->  | AA31: =IF(Z31="","",IF($F31="",Z31,IF($F31="CO2e",Z31*$K31,IF($F31="GHG",Z31*HLOOKUP($G31,GWP!$F$11:$I$31,AA$12,FALSE)*$K31,"")))) ->  | AC31: =IF(AB31="","",IF($F31="",AB31,IF($F31="CO2e",AB31*$K31,IF($F31="GHG",AB31*HLOOKUP($G31,GWP!$F$11:$I$31,AC$12,FALSE)*$K31,"")))) ->  | AE31: =IF(AD31="","",IF($F31="",AD31,IF($F31="CO2e",AD31*$K31,IF($F31="GHG",AD31*HLOOKUP($G31,GWP!$F$11:$I$31,AE$12,FALSE)*$K31,"")))) ->  | AG31: =IF(AF31="","",IF($F31="",AF31,IF($F31="CO2e",AF31*$K31,IF($F31="GHG",AF31*HLOOKUP($G31,GWP!$F$11:$I$31,AG$12,FALSE)*$K31,"")))) ->  | AI31: =IF(AH31="","",IF($F31="",AH31,IF($F31="CO2e",AH31*$K31,IF($F31="GHG",AH31*HLOOKUP($G31,GWP!$F$11:$I$31,AI$12,FALSE)*$K31,"")))) ->  | AK31: =IF(AJ31="","",IF($F31="",AJ31,IF($F31="CO2e",AJ31*$K31,IF($F31="GHG",AJ31*HLOOKUP($G31,GWP!$F$11:$I$31,AK$12,FALSE)*$K31,"")))) ->  | AM31: =IF(AL31="","",IF($F31="",AL31,IF($F31="CO2e",AL31*$K31,IF($F31="GHG",AL31*HLOOKUP($G31,GWP!$F$11:$I$31,AM$12,FALSE)*$K31,"")))) ->  | AO31: =IF(AN31="","",IF($F31="",AN31,IF($F31="CO2e",AN31*$K31,IF($F31="GHG",AN31*HLOOKUP($G31,GWP!$F$11:$I$31,AO$12,FALSE)*$K31,"")))) ->  | AQ31: =IF(AP31="","",IF($F31="",AP31,IF($F31="CO2e",AP31*$K31,IF($F31="GHG",AP31*HLOOKUP($G31,GWP!$F$11:$I$31,AQ$12,FALSE)*$K31,"")))) ->  | AS31: =IF(AR31="","",IF($F31="",AR31,IF($F31="CO2e",AR31*$K31,IF($F31="GHG",AR31*HLOOKUP($G31,GWP!$F$11:$I$31,AS$12,FALSE)*$K31,"")))) ->  | AU31: =IF(AT31="","",IF($F31="",AT31,IF($F31="CO2e",AT31*$K31,IF($F31="GHG",AT31*HLOOKUP($G31,GWP!$F$11:$I$31,AU$12,FALSE)*$K31,"")))) ->  | AW31: =IF(AV31="","",IF($F31="",AV31,IF($F31="CO2e",AV31*$K31,IF($F31="GHG",AV31*HLOOKUP($G31,GWP!$F$11:$I$31,AW$12,FALSE)*$K31,"")))) ->  | BB31: Please select | BC31: Please select | BD31: Please select | BF31: Please select | BG31: 1
F32: Please select | G32: Please select | K32: =IFERROR(IF(H32="","",VLOOKUP(H32,'Conversion factors'!$D$25:$G$31,4,FALSE)),"") ->  | O32: =IF(N32="","",IF($F32="",N32,IF($F32="CO2e",N32*$K32,IF($F32="GHG",N32*HLOOKUP($G32,GWP!$F$11:$I$31,4,FALSE)*$K32,"")))) ->  | Q32: =IF(P32="","",IF($F32="",P32,IF($F32="CO2e",P32*$K32,IF($F32="GHG",P32*HLOOKUP($G32,GWP!$F$11:$I$31,Q$12,FALSE)*$K32,"")))) ->  | S32: =IF(R32="","",IF($F32="",R32,IF($F32="CO2e",R32*$K32,IF($F32="GHG",R32*HLOOKUP($G32,GWP!$F$11:$I$31,S$12,FALSE)*$K32,"")))) ->  | U32: =IF(T32="","",IF($F32="",T32,IF($F32="CO2e",T32*$K32,IF($F32="GHG",T32*HLOOKUP($G32,GWP!$F$11:$I$31,U$12,FALSE)*$K32,"")))) ->  | W32: =IF(V32="","",IF($F32="",V32,IF($F32="CO2e",V32*$K32,IF($F32="GHG",V32*HLOOKUP($G32,GWP!$F$11:$I$31,W$12,FALSE)*$K32,"")))) ->  | Y32: =IF(X32="","",IF($F32="",X32,IF($F32="CO2e",X32*$K32,IF($F32="GHG",X32*HLOOKUP($G32,GWP!$F$11:$I$31,Y$12,FALSE)*$K32,"")))) ->  | AA32: =IF(Z32="","",IF($F32="",Z32,IF($F32="CO2e",Z32*$K32,IF($F32="GHG",Z32*HLOOKUP($G32,GWP!$F$11:$I$31,AA$12,FALSE)*$K32,"")))) ->  | AC32: =IF(AB32="","",IF($F32="",AB32,IF($F32="CO2e",AB32*$K32,IF($F32="GHG",AB32*HLOOKUP($G32,GWP!$F$11:$I$31,AC$12,FALSE)*$K32,"")))) ->  | AE32: =IF(AD32="","",IF($F32="",AD32,IF($F32="CO2e",AD32*$K32,IF($F32="GHG",AD32*HLOOKUP($G32,GWP!$F$11:$I$31,AE$12,FALSE)*$K32,"")))) ->  | AG32: =IF(AF32="","",IF($F32="",AF32,IF($F32="CO2e",AF32*$K32,IF($F32="GHG",AF32*HLOOKUP($G32,GWP!$F$11:$I$31,AG$12,FALSE)*$K32,"")))) ->  | AI32: =IF(AH32="","",IF($F32="",AH32,IF($F32="CO2e",AH32*$K32,IF($F32="GHG",AH32*HLOOKUP($G32,GWP!$F$11:$I$31,AI$12,FALSE)*$K32,"")))) ->  | AK32: =IF(AJ32="","",IF($F32="",AJ32,IF($F32="CO2e",AJ32*$K32,IF($F32="GHG",AJ32*HLOOKUP($G32,GWP!$F$11:$I$31,AK$12,FALSE)*$K32,"")))) ->  | AM32: =IF(AL32="","",IF($F32="",AL32,IF($F32="CO2e",AL32*$K32,IF($F32="GHG",AL32*HLOOKUP($G32,GWP!$F$11:$I$31,AM$12,FALSE)*$K32,"")))) ->  | AO32: =IF(AN32="","",IF($F32="",AN32,IF($F32="CO2e",AN32*$K32,IF($F32="GHG",AN32*HLOOKUP($G32,GWP!$F$11:$I$31,AO$12,FALSE)*$K32,"")))) ->  | AQ32: =IF(AP32="","",IF($F32="",AP32,IF($F32="CO2e",AP32*$K32,IF($F32="GHG",AP32*HLOOKUP($G32,GWP!$F$11:$I$31,AQ$12,FALSE)*$K32,"")))) ->  | AS32: =IF(AR32="","",IF($F32="",AR32,IF($F32="CO2e",AR32*$K32,IF($F32="GHG",AR32*HLOOKUP($G32,GWP!$F$11:$I$31,AS$12,FALSE)*$K32,"")))) ->  | AU32: =IF(AT32="","",IF($F32="",AT32,IF($F32="CO2e",AT32*$K32,IF($F32="GHG",AT32*HLOOKUP($G32,GWP!$F$11:$I$31,AU$12,FALSE)*$K32,"")))) ->  | AW32: =IF(AV32="","",IF($F32="",AV32,IF($F32="CO2e",AV32*$K32,IF($F32="GHG",AV32*HLOOKUP($G32,GWP!$F$11:$I$31,AW$12,FALSE)*$K32,"")))) ->  | BB32: Please select | BC32: Please select | BD32: Please select | BF32: Please select | BG32: 1
F33: Please select | G33: Please select | K33: =IFERROR(IF(H33="","",VLOOKUP(H33,'Conversion factors'!$D$25:$G$31,4,FALSE)),"") ->  | O33: =IF(N33="","",IF($F33="",N33,IF($F33="CO2e",N33*$K33,IF($F33="GHG",N33*HLOOKUP($G33,GWP!$F$11:$I$31,4,FALSE)*$K33,"")))) ->  | Q33: =IF(P33="","",IF($F33="",P33,IF($F33="CO2e",P33*$K33,IF($F33="GHG",P33*HLOOKUP($G33,GWP!$F$11:$I$31,Q$12,FALSE)*$K33,"")))) ->  | S33: =IF(R33="","",IF($F33="",R33,IF($F33="CO2e",R33*$K33,IF($F33="GHG",R33*HLOOKUP($G33,GWP!$F$11:$I$31,S$12,FALSE)*$K33,"")))) ->  | U33: =IF(T33="","",IF($F33="",T33,IF($F33="CO2e",T33*$K33,IF($F33="GHG",T33*HLOOKUP($G33,GWP!$F$11:$I$31,U$12,FALSE)*$K33,"")))) ->  | W33: =IF(V33="","",IF($F33="",V33,IF($F33="CO2e",V33*$K33,IF($F33="GHG",V33*HLOOKUP($G33,GWP!$F$11:$I$31,W$12,FALSE)*$K33,"")))) ->  | Y33: =IF(X33="","",IF($F33="",X33,IF($F33="CO2e",X33*$K33,IF($F33="GHG",X33*HLOOKUP($G33,GWP!$F$11:$I$31,Y$12,FALSE)*$K33,"")))) ->  | AA33: =IF(Z33="","",IF($F33="",Z33,IF($F33="CO2e",Z33*$K33,IF($F33="GHG",Z33*HLOOKUP($G33,GWP!$F$11:$I$31,AA$12,FALSE)*$K33,"")))) ->  | AC33: =IF(AB33="","",IF($F33="",AB33,IF($F33="CO2e",AB33*$K33,IF($F33="GHG",AB33*HLOOKUP($G33,GWP!$F$11:$I$31,AC$12,FALSE)*$K33,"")))) ->  | AE33: =IF(AD33="","",IF($F33="",AD33,IF($F33="CO2e",AD33*$K33,IF($F33="GHG",AD33*HLOOKUP($G33,GWP!$F$11:$I$31,AE$12,FALSE)*$K33,"")))) ->  | AG33: =IF(AF33="","",IF($F33="",AF33,IF($F33="CO2e",AF33*$K33,IF($F33="GHG",AF33*HLOOKUP($G33,GWP!$F$11:$I$31,AG$12,FALSE)*$K33,"")))) ->  | AI33: =IF(AH33="","",IF($F33="",AH33,IF($F33="CO2e",AH33*$K33,IF($F33="GHG",AH33*HLOOKUP($G33,GWP!$F$11:$I$31,AI$12,FALSE)*$K33,"")))) ->  | AK33: =IF(AJ33="","",IF($F33="",AJ33,IF($F33="CO2e",AJ33*$K33,IF($F33="GHG",AJ33*HLOOKUP($G33,GWP!$F$11:$I$31,AK$12,FALSE)*$K33,"")))) ->  | AM33: =IF(AL33="","",IF($F33="",AL33,IF($F33="CO2e",AL33*$K33,IF($F33="GHG",AL33*HLOOKUP($G33,GWP!$F$11:$I$31,AM$12,FALSE)*$K33,"")))) ->  | AO33: =IF(AN33="","",IF($F33="",AN33,IF($F33="CO2e",AN33*$K33,IF($F33="GHG",AN33*HLOOKUP($G33,GWP!$F$11:$I$31,AO$12,FALSE)*$K33,"")))) ->  | AQ33: =IF(AP33="","",IF($F33="",AP33,IF($F33="CO2e",AP33*$K33,IF($F33="GHG",AP33*HLOOKUP($G33,GWP!$F$11:$I$31,AQ$12,FALSE)*$K33,"")))) ->  | AS33: =IF(AR33="","",IF($F33="",AR33,IF($F33="CO2e",AR33*$K33,IF($F33="GHG",AR33*HLOOKUP($G33,GWP!$F$11:$I$31,AS$12,FALSE)*$K33,"")))) ->  | AU33: =IF(AT33="","",IF($F33="",AT33,IF($F33="CO2e",AT33*$K33,IF($F33="GHG",AT33*HLOOKUP($G33,GWP!$F$11:$I$31,AU$12,FALSE)*$K33,"")))) ->  | AW33: =IF(AV33="","",IF($F33="",AV33,IF($F33="CO2e",AV33*$K33,IF($F33="GHG",AV33*HLOOKUP($G33,GWP!$F$11:$I$31,AW$12,FALSE)*$K33,"")))) ->  | BB33: Please select | BC33: Please select | BD33: Please select | BF33: Please select | BG33: 1
F34: Please select | G34: Please select | K34: =IFERROR(IF(H34="","",VLOOKUP(H34,'Conversion factors'!$D$25:$G$31,4,FALSE)),"") ->  | O34: =IF(N34="","",IF($F34="",N34,IF($F34="CO2e",N34*$K34,IF($F34="GHG",N34*HLOOKUP($G34,GWP!$F$11:$I$31,4,FALSE)*$K34,"")))) ->  | Q34: =IF(P34="","",IF($F34="",P34,IF($F34="CO2e",P34*$K34,IF($F34="GHG",P34*HLOOKUP($G34,GWP!$F$11:$I$31,Q$12,FALSE)*$K34,"")))) ->  | S34: =IF(R34="","",IF($F34="",R34,IF($F34="CO2e",R34*$K34,IF($F34="GHG",R34*HLOOKUP($G34,GWP!$F$11:$I$31,S$12,FALSE)*$K34,"")))) ->  | U34: =IF(T34="","",IF($F34="",T34,IF($F34="CO2e",T34*$K34,IF($F34="GHG",T34*HLOOKUP($G34,GWP!$F$11:$I$31,U$12,FALSE)*$K34,"")))) ->  | W34: =IF(V34="","",IF($F34="",V34,IF($F34="CO2e",V34*$K34,IF($F34="GHG",V34*HLOOKUP($G34,GWP!$F$11:$I$31,W$12,FALSE)*$K34,"")))) ->  | Y34: =IF(X34="","",IF($F34="",X34,IF($F34="CO2e",X34*$K34,IF($F34="GHG",X34*HLOOKUP($G34,GWP!$F$11:$I$31,Y$12,FALSE)*$K34,"")))) ->  | AA34: =IF(Z34="","",IF($F34="",Z34,IF($F34="CO2e",Z34*$K34,IF($F34="GHG",Z34*HLOOKUP($G34,GWP!$F$11:$I$31,AA$12,FALSE)*$K34,"")))) ->  | AC34: =IF(AB34="","",IF($F34="",AB34,IF($F34="CO2e",AB34*$K34,IF($F34="GHG",AB34*HLOOKUP($G34,GWP!$F$11:$I$31,AC$12,FALSE)*$K34,"")))) ->  | AE34: =IF(AD34="","",IF($F34="",AD34,IF($F34="CO2e",AD34*$K34,IF($F34="GHG",AD34*HLOOKUP($G34,GWP!$F$11:$I$31,AE$12,FALSE)*$K34,"")))) ->  | AG34: =IF(AF34="","",IF($F34="",AF34,IF($F34="CO2e",AF34*$K34,IF($F34="GHG",AF34*HLOOKUP($G34,GWP!$F$11:$I$31,AG$12,FALSE)*$K34,"")))) ->  | AI34: =IF(AH34="","",IF($F34="",AH34,IF($F34="CO2e",AH34*$K34,IF($F34="GHG",AH34*HLOOKUP($G34,GWP!$F$11:$I$31,AI$12,FALSE)*$K34,"")))) ->  | AK34: =IF(AJ34="","",IF($F34="",AJ34,IF($F34="CO2e",AJ34*$K34,IF($F34="GHG",AJ34*HLOOKUP($G34,GWP!$F$11:$I$31,AK$12,FALSE)*$K34,"")))) ->  | AM34: =IF(AL34="","",IF($F34="",AL34,IF($F34="CO2e",AL34*$K34,IF($F34="GHG",AL34*HLOOKUP($G34,GWP!$F$11:$I$31,AM$12,FALSE)*$K34,"")))) ->  | AO34: =IF(AN34="","",IF($F34="",AN34,IF($F34="CO2e",AN34*$K34,IF($F34="GHG",AN34*HLOOKUP($G34,GWP!$F$11:$I$31,AO$12,FALSE)*$K34,"")))) ->  | AQ34: =IF(AP34="","",IF($F34="",AP34,IF($F34="CO2e",AP34*$K34,IF($F34="GHG",AP34*HLOOKUP($G34,GWP!$F$11:$I$31,AQ$12,FALSE)*$K34,"")))) ->  | AS34: =IF(AR34="","",IF($F34="",AR34,IF($F34="CO2e",AR34*$K34,IF($F34="GHG",AR34*HLOOKUP($G34,GWP!$F$11:$I$31,AS$12,FALSE)*$K34,"")))) ->  | AU34: =IF(AT34="","",IF($F34="",AT34,IF($F34="CO2e",AT34*$K34,IF($F34="GHG",AT34*HLOOKUP($G34,GWP!$F$11:$I$31,AU$12,FALSE)*$K34,"")))) ->  | AW34: =IF(AV34="","",IF($F34="",AV34,IF($F34="CO2e",AV34*$K34,IF($F34="GHG",AV34*HLOOKUP($G34,GWP!$F$11:$I$31,AW$12,FALSE)*$K34,"")))) ->  | BB34: Please select | BC34: Please select | BD34: Please select | BF34: Please select | BG34: 1
F35: Please select | G35: Please select | K35: =IFERROR(IF(H35="","",VLOOKUP(H35,'Conversion factors'!$D$25:$G$31,4,FALSE)),"") ->  | O35: =IF(N35="","",IF($F35="",N35,IF($F35="CO2e",N35*$K35,IF($F35="GHG",N35*HLOOKUP($G35,GWP!$F$11:$I$31,4,FALSE)*$K35,"")))) ->  | Q35: =IF(P35="","",IF($F35="",P35,IF($F35="CO2e",P35*$K35,IF($F35="GHG",P35*HLOOKUP($G35,GWP!$F$11:$I$31,Q$12,FALSE)*$K35,"")))) ->  | S35: =IF(R35="","",IF($F35="",R35,IF($F35="CO2e",R35*$K35,IF($F35="GHG",R35*HLOOKUP($G35,GWP!$F$11:$I$31,S$12,FALSE)*$K35,"")))) ->  | U35: =IF(T35="","",IF($F35="",T35,IF($F35="CO2e",T35*$K35,IF($F35="GHG",T35*HLOOKUP($G35,GWP!$F$11:$I$31,U$12,FALSE)*$K35,"")))) ->  | W35: =IF(V35="","",IF($F35="",V35,IF($F35="CO2e",V35*$K35,IF($F35="GHG",V35*HLOOKUP($G35,GWP!$F$11:$I$31,W$12,FALSE)*$K35,"")))) ->  | Y35: =IF(X35="","",IF($F35="",X35,IF($F35="CO2e",X35*$K35,IF($F35="GHG",X35*HLOOKUP($G35,GWP!$F$11:$I$31,Y$12,FALSE)*$K35,"")))) ->  | AA35: =IF(Z35="","",IF($F35="",Z35,IF($F35="CO2e",Z35*$K35,IF($F35="GHG",Z35*HLOOKUP($G35,GWP!$F$11:$I$31,AA$12,FALSE)*$K35,"")))) ->  | AC35: =IF(AB35="","",IF($F35="",AB35,IF($F35="CO2e",AB35*$K35,IF($F35="GHG",AB35*HLOOKUP($G35,GWP!$F$11:$I$31,AC$12,FALSE)*$K35,"")))) ->  | AE35: =IF(AD35="","",IF($F35="",AD35,IF($F35="CO2e",AD35*$K35,IF($F35="GHG",AD35*HLOOKUP($G35,GWP!$F$11:$I$31,AE$12,FALSE)*$K35,"")))) ->  | AG35: =IF(AF35="","",IF($F35="",AF35,IF($F35="CO2e",AF35*$K35,IF($F35="GHG",AF35*HLOOKUP($G35,GWP!$F$11:$I$31,AG$12,FALSE)*$K35,"")))) ->  | AI35: =IF(AH35="","",IF($F35="",AH35,IF($F35="CO2e",AH35*$K35,IF($F35="GHG",AH35*HLOOKUP($G35,GWP!$F$11:$I$31,AI$12,FALSE)*$K35,"")))) ->  | AK35: =IF(AJ35="","",IF($F35="",AJ35,IF($F35="CO2e",AJ35*$K35,IF($F35="GHG",AJ35*HLOOKUP($G35,GWP!$F$11:$I$31,AK$12,FALSE)*$K35,"")))) ->  | AM35: =IF(AL35="","",IF($F35="",AL35,IF($F35="CO2e",AL35*$K35,IF($F35="GHG",AL35*HLOOKUP($G35,GWP!$F$11:$I$31,AM$12,FALSE)*$K35,"")))) ->  | AO35: =IF(AN35="","",IF($F35="",AN35,IF($F35="CO2e",AN35*$K35,IF($F35="GHG",AN35*HLOOKUP($G35,GWP!$F$11:$I$31,AO$12,FALSE)*$K35,"")))) ->  | AQ35: =IF(AP35="","",IF($F35="",AP35,IF($F35="CO2e",AP35*$K35,IF($F35="GHG",AP35*HLOOKUP($G35,GWP!$F$11:$I$31,AQ$12,FALSE)*$K35,"")))) ->  | AS35: =IF(AR35="","",IF($F35="",AR35,IF($F35="CO2e",AR35*$K35,IF($F35="GHG",AR35*HLOOKUP($G35,GWP!$F$11:$I$31,AS$12,FALSE)*$K35,"")))) ->  | AU35: =IF(AT35="","",IF($F35="",AT35,IF($F35="CO2e",AT35*$K35,IF($F35="GHG",AT35*HLOOKUP($G35,GWP!$F$11:$I$31,AU$12,FALSE)*$K35,"")))) ->  | AW35: =IF(AV35="","",IF($F35="",AV35,IF($F35="CO2e",AV35*$K35,IF($F35="GHG",AV35*HLOOKUP($G35,GWP!$F$11:$I$31,AW$12,FALSE)*$K35,"")))) ->  | BB35: Please select | BC35: Please select | BD35: Please select | BF35: Please select | BG35: 1
F36: Please select | G36: Please select | K36: =IFERROR(IF(H36="","",VLOOKUP(H36,'Conversion factors'!$D$25:$G$31,4,FALSE)),"") ->  | O36: =IF(N36="","",IF($F36="",N36,IF($F36="CO2e",N36*$K36,IF($F36="GHG",N36*HLOOKUP($G36,GWP!$F$11:$I$31,4,FALSE)*$K36,"")))) ->  | Q36: =IF(P36="","",IF($F36="",P36,IF($F36="CO2e",P36*$K36,IF($F36="GHG",P36*HLOOKUP($G36,GWP!$F$11:$I$31,Q$12,FALSE)*$K36,"")))) ->  | S36: =IF(R36="","",IF($F36="",R36,IF($F36="CO2e",R36*$K36,IF($F36="GHG",R36*HLOOKUP($G36,GWP!$F$11:$I$31,S$12,FALSE)*$K36,"")))) ->  | U36: =IF(T36="","",IF($F36="",T36,IF($F36="CO2e",T36*$K36,IF($F36="GHG",T36*HLOOKUP($G36,GWP!$F$11:$I$31,U$12,FALSE)*$K36,"")))) ->  | W36: =IF(V36="","",IF($F36="",V36,IF($F36="CO2e",V36*$K36,IF($F36="GHG",V36*HLOOKUP($G36,GWP!$F$11:$I$31,W$12,FALSE)*$K36,"")))) ->  | Y36: =IF(X36="","",IF($F36="",X36,IF($F36="CO2e",X36*$K36,IF($F36="GHG",X36*HLOOKUP($G36,GWP!$F$11:$I$31,Y$12,FALSE)*$K36,"")))) ->  | AA36: =IF(Z36="","",IF($F36="",Z36,IF($F36="CO2e",Z36*$K36,IF($F36="GHG",Z36*HLOOKUP($G36,GWP!$F$11:$I$31,AA$12,FALSE)*$K36,"")))) ->  | AC36: =IF(AB36="","",IF($F36="",AB36,IF($F36="CO2e",AB36*$K36,IF($F36="GHG",AB36*HLOOKUP($G36,GWP!$F$11:$I$31,AC$12,FALSE)*$K36,"")))) ->  | AE36: =IF(AD36="","",IF($F36="",AD36,IF($F36="CO2e",AD36*$K36,IF($F36="GHG",AD36*HLOOKUP($G36,GWP!$F$11:$I$31,AE$12,FALSE)*$K36,"")))) ->  | AG36: =IF(AF36="","",IF($F36="",AF36,IF($F36="CO2e",AF36*$K36,IF($F36="GHG",AF36*HLOOKUP($G36,GWP!$F$11:$I$31,AG$12,FALSE)*$K36,"")))) ->  | AI36: =IF(AH36="","",IF($F36="",AH36,IF($F36="CO2e",AH36*$K36,IF($F36="GHG",AH36*HLOOKUP($G36,GWP!$F$11:$I$31,AI$12,FALSE)*$K36,"")))) ->  | AK36: =IF(AJ36="","",IF($F36="",AJ36,IF($F36="CO2e",AJ36*$K36,IF($F36="GHG",AJ36*HLOOKUP($G36,GWP!$F$11:$I$31,AK$12,FALSE)*$K36,"")))) ->  | AM36: =IF(AL36="","",IF($F36="",AL36,IF($F36="CO2e",AL36*$K36,IF($F36="GHG",AL36*HLOOKUP($G36,GWP!$F$11:$I$31,AM$12,FALSE)*$K36,"")))) ->  | AO36: =IF(AN36="","",IF($F36="",AN36,IF($F36="CO2e",AN36*$K36,IF($F36="GHG",AN36*HLOOKUP($G36,GWP!$F$11:$I$31,AO$12,FALSE)*$K36,"")))) ->  | AQ36: =IF(AP36="","",IF($F36="",AP36,IF($F36="CO2e",AP36*$K36,IF($F36="GHG",AP36*HLOOKUP($G36,GWP!$F$11:$I$31,AQ$12,FALSE)*$K36,"")))) ->  | AS36: =IF(AR36="","",IF($F36="",AR36,IF($F36="CO2e",AR36*$K36,IF($F36="GHG",AR36*HLOOKUP($G36,GWP!$F$11:$I$31,AS$12,FALSE)*$K36,"")))) ->  | AU36: =IF(AT36="","",IF($F36="",AT36,IF($F36="CO2e",AT36*$K36,IF($F36="GHG",AT36*HLOOKUP($G36,GWP!$F$11:$I$31,AU$12,FALSE)*$K36,"")))) ->  | AW36: =IF(AV36="","",IF($F36="",AV36,IF($F36="CO2e",AV36*$K36,IF($F36="GHG",AV36*HLOOKUP($G36,GWP!$F$11:$I$31,AW$12,FALSE)*$K36,"")))) ->  | BB36: Please select | BC36: Please select | BD36: Please select | BF36: Please select | BG36: 1
F37: Please select | G37: Please select | K37: =IFERROR(IF(H37="","",VLOOKUP(H37,'Conversion factors'!$D$25:$G$31,4,FALSE)),"") ->  | O37: =IF(N37="","",IF($F37="",N37,IF($F37="CO2e",N37*$K37,IF($F37="GHG",N37*HLOOKUP($G37,GWP!$F$11:$I$31,4,FALSE)*$K37,"")))) ->  | Q37: =IF(P37="","",IF($F37="",P37,IF($F37="CO2e",P37*$K37,IF($F37="GHG",P37*HLOOKUP($G37,GWP!$F$11:$I$31,Q$12,FALSE)*$K37,"")))) ->  | S37: =IF(R37="","",IF($F37="",R37,IF($F37="CO2e",R37*$K37,IF($F37="GHG",R37*HLOOKUP($G37,GWP!$F$11:$I$31,S$12,FALSE)*$K37,"")))) ->  | U37: =IF(T37="","",IF($F37="",T37,IF($F37="CO2e",T37*$K37,IF($F37="GHG",T37*HLOOKUP($G37,GWP!$F$11:$I$31,U$12,FALSE)*$K37,"")))) ->  | W37: =IF(V37="","",IF($F37="",V37,IF($F37="CO2e",V37*$K37,IF($F37="GHG",V37*HLOOKUP($G37,GWP!$F$11:$I$31,W$12,FALSE)*$K37,"")))) ->  | Y37: =IF(X37="","",IF($F37="",X37,IF($F37="CO2e",X37*$K37,IF($F37="GHG",X37*HLOOKUP($G37,GWP!$F$11:$I$31,Y$12,FALSE)*$K37,"")))) ->  | AA37: =IF(Z37="","",IF($F37="",Z37,IF($F37="CO2e",Z37*$K37,IF($F37="GHG",Z37*HLOOKUP($G37,GWP!$F$11:$I$31,AA$12,FALSE)*$K37,"")))) ->  | AC37: =IF(AB37="","",IF($F37="",AB37,IF($F37="CO2e",AB37*$K37,IF($F37="GHG",AB37*HLOOKUP($G37,GWP!$F$11:$I$31,AC$12,FALSE)*$K37,"")))) ->  | AE37: =IF(AD37="","",IF($F37="",AD37,IF($F37="CO2e",AD37*$K37,IF($F37="GHG",AD37*HLOOKUP($G37,GWP!$F$11:$I$31,AE$12,FALSE)*$K37,"")))) ->  | AG37: =IF(AF37="","",IF($F37="",AF37,IF($F37="CO2e",AF37*$K37,IF($F37="GHG",AF37*HLOOKUP($G37,GWP!$F$11:$I$31,AG$12,FALSE)*$K37,"")))) ->  | AI37: =IF(AH37="","",IF($F37="",AH37,IF($F37="CO2e",AH37*$K37,IF($F37="GHG",AH37*HLOOKUP($G37,GWP!$F$11:$I$31,AI$12,FALSE)*$K37,"")))) ->  | AK37: =IF(AJ37="","",IF($F37="",AJ37,IF($F37="CO2e",AJ37*$K37,IF($F37="GHG",AJ37*HLOOKUP($G37,GWP!$F$11:$I$31,AK$12,FALSE)*$K37,"")))) ->  | AM37: =IF(AL37="","",IF($F37="",AL37,IF($F37="CO2e",AL37*$K37,IF($F37="GHG",AL37*HLOOKUP($G37,GWP!$F$11:$I$31,AM$12,FALSE)*$K37,"")))) ->  | AO37: =IF(AN37="","",IF($F37="",AN37,IF($F37="CO2e",AN37*$K37,IF($F37="GHG",AN37*HLOOKUP($G37,GWP!$F$11:$I$31,AO$12,FALSE)*$K37,"")))) ->  | AQ37: =IF(AP37="","",IF($F37="",AP37,IF($F37="CO2e",AP37*$K37,IF($F37="GHG",AP37*HLOOKUP($G37,GWP!$F$11:$I$31,AQ$12,FALSE)*$K37,"")))) ->  | AS37: =IF(AR37="","",IF($F37="",AR37,IF($F37="CO2e",AR37*$K37,IF($F37="GHG",AR37*HLOOKUP($G37,GWP!$F$11:$I$31,AS$12,FALSE)*$K37,"")))) ->  | AU37: =IF(AT37="","",IF($F37="",AT37,IF($F37="CO2e",AT37*$K37,IF($F37="GHG",AT37*HLOOKUP($G37,GWP!$F$11:$I$31,AU$12,FALSE)*$K37,"")))) ->  | AW37: =IF(AV37="","",IF($F37="",AV37,IF($F37="CO2e",AV37*$K37,IF($F37="GHG",AV37*HLOOKUP($G37,GWP!$F$11:$I$31,AW$12,FALSE)*$K37,"")))) ->  | BB37: Please select | BC37: Please select | BD37: Please select | BF37: Please select | BG37: 1
F38: Please select | G38: Please select | K38: =IFERROR(IF(H38="","",VLOOKUP(H38,'Conversion factors'!$D$25:$G$31,4,FALSE)),"") ->  | O38: =IF(N38="","",IF($F38="",N38,IF($F38="CO2e",N38*$K38,IF($F38="GHG",N38*HLOOKUP($G38,GWP!$F$11:$I$31,4,FALSE)*$K38,"")))) ->  | Q38: =IF(P38="","",IF($F38="",P38,IF($F38="CO2e",P38*$K38,IF($F38="GHG",P38*HLOOKUP($G38,GWP!$F$11:$I$31,Q$12,FALSE)*$K38,"")))) ->  | S38: =IF(R38="","",IF($F38="",R38,IF($F38="CO2e",R38*$K38,IF($F38="GHG",R38*HLOOKUP($G38,GWP!$F$11:$I$31,S$12,FALSE)*$K38,"")))) ->  | U38: =IF(T38="","",IF($F38="",T38,IF($F38="CO2e",T38*$K38,IF($F38="GHG",T38*HLOOKUP($G38,GWP!$F$11:$I$31,U$12,FALSE)*$K38,"")))) ->  | W38: =IF(V38="","",IF($F38="",V38,IF($F38="CO2e",V38*$K38,IF($F38="GHG",V38*HLOOKUP($G38,GWP!$F$11:$I$31,W$12,FALSE)*$K38,"")))) ->  | Y38: =IF(X38="","",IF($F38="",X38,IF($F38="CO2e",X38*$K38,IF($F38="GHG",X38*HLOOKUP($G38,GWP!$F$11:$I$31,Y$12,FALSE)*$K38,"")))) ->  | AA38: =IF(Z38="","",IF($F38="",Z38,IF($F38="CO2e",Z38*$K38,IF($F38="GHG",Z38*HLOOKUP($G38,GWP!$F$11:$I$31,AA$12,FALSE)*$K38,"")))) ->  | AC38: =IF(AB38="","",IF($F38="",AB38,IF($F38="CO2e",AB38*$K38,IF($F38="GHG",AB38*HLOOKUP($G38,GWP!$F$11:$I$31,AC$12,FALSE)*$K38,"")))) ->  | AE38: =IF(AD38="","",IF($F38="",AD38,IF($F38="CO2e",AD38*$K38,IF($F38="GHG",AD38*HLOOKUP($G38,GWP!$F$11:$I$31,AE$12,FALSE)*$K38,"")))) ->  | AG38: =IF(AF38="","",IF($F38="",AF38,IF($F38="CO2e",AF38*$K38,IF($F38="GHG",AF38*HLOOKUP($G38,GWP!$F$11:$I$31,AG$12,FALSE)*$K38,"")))) ->  | AI38: =IF(AH38="","",IF($F38="",AH38,IF($F38="CO2e",AH38*$K38,IF($F38="GHG",AH38*HLOOKUP($G38,GWP!$F$11:$I$31,AI$12,FALSE)*$K38,"")))) ->  | AK38: =IF(AJ38="","",IF($F38="",AJ38,IF($F38="CO2e",AJ38*$K38,IF($F38="GHG",AJ38*HLOOKUP($G38,GWP!$F$11:$I$31,AK$12,FALSE)*$K38,"")))) ->  | AM38: =IF(AL38="","",IF($F38="",AL38,IF($F38="CO2e",AL38*$K38,IF($F38="GHG",AL38*HLOOKUP($G38,GWP!$F$11:$I$31,AM$12,FALSE)*$K38,"")))) ->  | AO38: =IF(AN38="","",IF($F38="",AN38,IF($F38="CO2e",AN38*$K38,IF($F38="GHG",AN38*HLOOKUP($G38,GWP!$F$11:$I$31,AO$12,FALSE)*$K38,"")))) ->  | AQ38: =IF(AP38="","",IF($F38="",AP38,IF($F38="CO2e",AP38*$K38,IF($F38="GHG",AP38*HLOOKUP($G38,GWP!$F$11:$I$31,AQ$12,FALSE)*$K38,"")))) ->  | AS38: =IF(AR38="","",IF($F38="",AR38,IF($F38="CO2e",AR38*$K38,IF($F38="GHG",AR38*HLOOKUP($G38,GWP!$F$11:$I$31,AS$12,FALSE)*$K38,"")))) ->  | AU38: =IF(AT38="","",IF($F38="",AT38,IF($F38="CO2e",AT38*$K38,IF($F38="GHG",AT38*HLOOKUP($G38,GWP!$F$11:$I$31,AU$12,FALSE)*$K38,"")))) ->  | AW38: =IF(AV38="","",IF($F38="",AV38,IF($F38="CO2e",AV38*$K38,IF($F38="GHG",AV38*HLOOKUP($G38,GWP!$F$11:$I$31,AW$12,FALSE)*$K38,"")))) ->  | BB38: Please select | BC38: Please select | BD38: Please select | BF38: Please select | BG38: 1
